Workbook

Sheet Def, COC, ConvF
C1: EXH. DPK-5 page 1 of 5 | J1: EXH. DPK-5 page 2 of 5 | N1: EXH. DPK-5 page 3 of 5
A2: =Company -> PUGET SOUND ENERGY - ELECTRIC | G2: =Company -> PUGET SOUND ENERGY - ELECTRIC | L2: =Company -> PUGET SOUND ENERGY - ELECTRIC
A3: ELECTRIC RESULTS OF OPERATIONS | G3: ELECTRIC RESULTS OF OPERATIONS | L3: ELECTRIC RESULTS OF OPERATIONS
A4: =+RateCase -> 2024 GENERAL RATE CASE | G4: =$A$4 -> 2024 GENERAL RATE CASE | L4: =$A$4 -> 2024 GENERAL RATE CASE
A5: =+TestYear -> 12 MONTHS ENDED JUNE 30, 2023 | G5: =$A$5 -> 12 MONTHS ENDED JUNE 30, 2023 | L5: =$A$5 -> 12 MONTHS ENDED JUNE 30, 2023
A6: GENERAL RATE INCREASE | G6: REQUESTED COST OF CAPITAL | L6: CONVERSION FACTOR
A7: With Trackers Restored to Base Rates
A9: LINE | C9: 2025 | D9: 2026 | E9: 2027 | F9: 2028 | G9: LINE | I9: CAPITAL | K9: WEIGHTED | L9: LINE
A10: NO. | B10: DESCRIPTION | C10: RATE YEAR 1 | D10: RATE YEAR 2 | E10: RATE YEAR 3 | F10: RATE YEAR 4 | G10: NO. | H10: DESCRIPTION | I10: STRUCTURE | J10: COST | K10: COST | L10: NO. | M10: DESCRIPTION
A12: 1 | B12: RATE BASE | C12: =Summary!K58 -> 6818435901 | D12: =Summary!M58 -> 7969294828 | G12: =ROW() -> 12 | H12: Restating through December 2023 | L12: =ROW() -> 12 | M12: BAD DEBTS | P12: 0.006488
A13: =A12+1 -> 2 | B13: RATE OF RETURN | C13: =+K27 -> 0.0736 | D13: =+K36 -> 0.0737 | G13: =+G12+1 -> 13 | H13: SHORT AND LONG TERM DEBT | I13: 0.5093 | J13: =K13/I13 -> 0.0516395052 | K13: 0.0263 | L13: =L12+1 -> 13 | M13: ANNUAL FILING FEE | P13: 0.004
A14: 3 | G14: =+G13+1 -> 14 | H14: EQUITY | I14: 0.4907 | J14: 0.094 | K14: =ROUND(I14*J14,4) -> 0.0461 | L14: 14 | M14: ="STATE UTILITY TAX ( "&P14*100&"% - ( LINE "&L12&" * "&P14*100&"% ) )" -> STATE UTILITY TAX ( 3.8483% - ( LINE 12 * 3.8483% ) ) | O14: 0.038734 | P14: =ROUND(O14-(O14*P12),6) -> 0.038483
A15: 4 | B15: OPERATING INCOME REQUIREMENT | C15: =+C13*C12 -> 501836882.3 | D15: =+D13*D12 -> 587337028.8 | E15: =+E13*E12 -> 0 | F15: =+F13*F12 -> 0 | G15: 15 | H15: TOTAL | I15: =SUM(I13:I14) -> 1 | K15: =SUM(K13:K14) -> 0.0724 | L15: 15
A16: 5 | G16: 16 | L16: 16 | M16: SUM OF TAXES OTHER | P16: =ROUND(SUM(P12:P14),6) -> 0.048971
A17: 6 | B17: PRO FORMA OPERATING INCOME | C17: =Summary!K47 -> 43908041.74 | D17: =Summary!M47 -> -77552219.23 | G17: 17 | H17: AFTER TAX SHORT TERM DEBT ( (LINE 1)* 79%) | I17: =+I13 -> 0.5093 | J17: =J13*0.79 -> 0.04079520911 | K17: =ROUND(K13*0.79,4) -> 0.0208 | L17: 17
A18: 7 | B18: OPERATING INCOME DEFICIENCY | C18: =+C15-C17 -> 457928840.5 | D18: =+D15-D17 -> 664889248 | E18: =+E15-E17 -> 0 | F18: =+F15-F17 -> 0 | G18: 18 | H18: EQUITY | I18: =+I14 -> 0.4907 | J18: =+J14 -> 0.094 | K18: =ROUND(I18*J18,4) -> 0.0461 | L18: 18 | M18: ="CONVERSION FACTOR EXCLUDING FEDERAL INCOME TAX ( 1 - LINE "&$L$17&" )" -> CONVERSION FACTOR EXCLUDING FEDERAL INCOME TAX ( 1 - LINE 17 ) | P18: =ROUND(1-P16,6) -> 0.951029
A19: 8 | G19: 19 | H19: TOTAL AFTER TAX COST OF CAPITAL | I19: =SUM(I17:I18) -> 1 | K19: =SUM(K17:K18) -> 0.0669 | L19: 19 | M19: =+'Named Ranges E'!A11 -> FIT | O19: =+FIT -> 0.21 | P19: =ROUND((P18)*FIT,6) -> 0.199716
A20: 9 | B20: CONVERSION FACTOR | C20: =+P20 -> 0.751313 | D20: =C20 -> 0.751313 | F20: =+E20 -> 0 | G20: 20 | L20: 20 | M20: ="CONVERSION FACTOR INCL FEDERAL INCOME TAX ( LINE "&L18&" - LINE "&L19&" ) " -> CONVERSION FACTOR INCL FEDERAL INCOME TAX ( LINE 18 - LINE 19 ) | P20: =ROUND(1-P19-P16,6) -> 0.751313
A21: 10 | B21: CUMULATIVE REVENUE CHANGE | C21: =ROUND(+C18/C20,0) -> 609504748 | D21: =ROUND(+D18/D20,0) -> 884969710 | G21: 21 | H21: 2025
A22: 11 | G22: 22 | H22: SHORT TERM DEBT | I22: 0.0204 | J22: 0.0507 | K22: 0.0012
A23: 12 | B23: NET REVENUE CHANGE IN BASE RATES BY RATE YEAR | C23: =C21-0 -> 609504748 | D23: =D21-C21 -> 275464962 | F23: =F21-E21 -> 0 | G23: 23 | H23: LONG TERM DEBT | I23: 0.4946 | J23: 0.0527 | K23: 0.0263
A24: 13 | G24: 24 | H24: WEIGHTED COST OF DEBT | I24: =+I22+I23 -> 0.515 | K24: =+K22+K23 -> 0.0275
A25: 14 | B25: CHANGES TO OTHER PRICE SCHEDULES FROM EXH. CTM-7 | G25: 25
A26: 15 | B26: CURRENT TARIFF RATES TRANSFERRED TO BASE RATES ABOVE: | G26: 26 | H26: EQUITY | I26: 0.485 | J26: 0.095 | K26: 0.0461
A27: 16 | B27: SCHEDULE 95 - 2020 PCORC | G27: 27 | H27: TOTAL | I27: =+I24+I26 -> 1 | K27: =+K26+K24 -> 0.0736
A28: 17 | B28: SCHEDULE 95 - 2024 POWER COST UPDATE | C28: -161629358.2 | G28: 28
A29: =A28+1 -> 18 | B29: SCHEDULE 141CEIP | C29: -23557982 | G29: =+G28+1 -> 29
A30: 19 | B30: SCHEDULE 137 | C30: -142889.7874 | G30: 30 | H30: 2026
A31: 20 | B31: SCH. 141N (RATES NOT SUBJ TO REF ADJ) | C31: -160864692.7 | G31: 31 | H31: SHORT TERM DEBT | I31: 0.0118 | J31: 0.0408 | K31: 0.0006
A32: 21 | B32: SCH. 141R (RATES SUBJECT TO REF ADJ) | C32: -152840009.3 | G32: 32 | H32: LONG TERM DEBT | I32: 0.5032 | J32: 0.0536 | K32: 0.0271
A33: 22 | B33: NEW TARIFF RATES COSTS NOT INCLUDED IN BASE RATES DEFICIENCY: | G33: 33 | H33: WEIGHTED COST OF DEBT | I33: =+I31+I32 -> 0.515 | K33: =+K31+K32 -> 0.0277
A34: 23 | B34: SCHEDULE 141CGR - CLEAN GENERATION RESOURCES | G34: 34
A35: 24 | B35: SCHEDULE 141WFP - WILDFIRE PREVENTION | G35: 35 | H35: EQUITY | I35: 0.485 | J35: 0.095 | K35: =ROUND(I35*J35,4) -> 0.0461
A36: 25 | B36: SCHEDULE 141DCARB - DECARBONIZATION | G36: 36 | H36: TOTAL | I36: =+I33+I35 -> 1 | K36: 0.0737
A37: 26 | G37: 37
A38: 27
A39: 28 | B39: SUBTOTAL CHANGES TO OTHER PRICE SCHEDULES | C39: =SUM(C26:C38) -> -499034932.1 | D39: =SUM(D26:D38) -> 0
A40: 29
A41: 30 | B41: NET REVENUE CHANGE AFTER TRACKERS AND RIDERS | C41: =C23+C39 -> 110469815.9 | D41: =D23+D39 -> 275464962 | E41: =B60 -> 0 | K41: =+C41 -> 110469815.9
A42: 31 | E42: =B61 -> 0 | K42: 110265604
A43: 32 | K43: =+K41-K42 -> 204211.9411
A44: 33
A45: 34
A46: 35
A47: 47
A74: =A72+1 -> 1
A75: 2
A76: 3
A77: 4
A78: 5
A79: 6
A80: 7
A81: 8

Sheet Summary
A1: PUGET SOUND ENERGY | L1: EXH. DPK-05 page 4 of 5
A2: ELECTRIC STATEMENT OF OPERATING INCOME
A3: With Proposed Trackers Restored to Base Rates
A4: 2024 GENERAL RATE CASE
A5: 12 MONTHS ENDED JUNE 30, 2023
C7: AMA JUN 2023 | D7: EOP JUN 2023 | E7: EOP JUN 2023 | F7: EOP DEC 2023 | G7: EOP DEC 2023 | H7: EOP DEC 2024 | I7: EOP DEC 2024 | J7: AMA 2025 | K7: AMA DEC 2025 | L7: AMA 2026 | M7: AMA DEC 2026 | N7: AMA 2027 | O7: AMA DEC 2027 | P7: AMA 2028 | Q7: AMA DEC 2028
G9: DEC 2023 | I9: ADJUSTED | K9: ADJUSTED | M9: ADJUSTED | O9: ADJUSTED | Q9: ADJUSTED
C10: 12ME JUNE 2023 | E10: RESTATED | F10: TRADITIONAL | G10: ADJUSTED | H10: 2024 | I10: RESULTS | J10: 2025 | K10: RESULTS | L10: 2026 | M10: RESULTS | O10: RESULTS | Q10: RESULTS
C11: TEST | D11: RESTATING | E11: RESULTS OF | F11: PROFORMA | G11: RESULTS OF | H11: GAP YEAR | I11: START OF | J11: RATE YEAR 1 | K11: END OF | L11: RATE YEAR 2 | M11: END OF | O11: END OF | Q11: END OF
A12: LINE | B12: DESCRIPTION | C12: YEAR | D12: ADJUSTMENTS | E12: OPERATIONS | F12: ADJUSTMENTS | G12: OPERATIONS | H12: ADJUSTMENTS | I12: RATE YEAR 1 | J12: ADJUSTMENTS | K12: RATE YEAR 1 | L12: ADJUSTMENTS | M12: RATE YEAR 2 | O12: RATE YEAR 3 | Q12: RATE YEAR 4
C13: =VLOOKUP(COLUMN(C1),'Named Ranges E'!$A$17:$B$569,2,FALSE) -> c | D13: =VLOOKUP(COLUMN(D1),'Named Ranges E'!$A$17:$B$569,2,FALSE) -> d | E13: =CONCATENATE(VLOOKUP(COLUMN(E1),'Named Ranges E'!$A$17:$B$569,2,FALSE)," = ",C13," + ",D13) -> e = c + d | F13: =VLOOKUP(COLUMN(F1),'Named Ranges E'!$A$17:$B$569,2,FALSE) -> f | G13: =CONCATENATE(VLOOKUP(COLUMN(G1),'Named Ranges E'!$A$17:$B$569,2,FALSE)," = ",VLOOKUP(COLUMN(E1),'Named Ranges E'!$A$17:$B$569,2,FALSE)," + ",F13) -> g = e + f | H13: =VLOOKUP(COLUMN(H1),'Named Ranges E'!$A$17:$B$569,2,FALSE) -> h | I13: =CONCATENATE(VLOOKUP(COLUMN(I1),'Named Ranges E'!$A$17:$B$569,2,FALSE)," = ",VLOOKUP(COLUMN(G1),'Named Ranges E'!$A$17:$B$569,2,FALSE)," + ",H13) -> i = g + h | J13: =VLOOKUP(COLUMN(J1),'Named Ranges E'!$A$17:$B$569,2,FALSE) -> j | K13: =CONCATENATE(VLOOKUP(COLUMN(K1),'Named Ranges E'!$A$17:$B$569,2,FALSE)," = ",VLOOKUP(COLUMN(I1),'Named Ranges E'!$A$17:$B$569,2,FALSE)," + ",J13) -> k = i + j | L13: l | M13: m = k + l | N13: =VLOOKUP(COLUMN(N1),'Named Ranges E'!$A$17:$B$569,2,FALSE) -> n | O13: =CONCATENATE(VLOOKUP(COLUMN(O1),'Named Ranges E'!$A$17:$B$569,2,FALSE)," = ",VLOOKUP(COLUMN(K1),'Named Ranges E'!$A$17:$B$569,2,FALSE)," + ",N13) -> o = k + n | P13: =VLOOKUP(COLUMN(L1),'Named Ranges E'!$A$17:$B$569,2,FALSE) -> l | Q13: =CONCATENATE(VLOOKUP(COLUMN(M1),'Named Ranges E'!$A$17:$B$569,2,FALSE)," = ",VLOOKUP(COLUMN(#REF!),'Named Ranges E'!$A$17:$B$569,2,FALSE)," + ",P13) -> 
A14: =ROW() -> 14 | B14: OPERATING REVENUES
A15: =ROW() -> 15 | B15: SALES TO CUSTOMERS | C15: ='Detailed Summary'!D16 -> 2655527874 | D15: ='Detailed Summary'!BJ16 -> -260804367.7 | E15: =SUM(C15:D15) -> 2394723507 | F15: ='Detailed Summary'!BJ77 -> -300478873.6 | G15: =SUM(E15:F15) -> 2094244633 | H15: ='Detailed Summary'!BJ138 -> 14181030.29 | I15: =SUM(G15:H15) -> 2108425664 | J15: =+'Detailed Summary'!BJ199 -> 9749529.13 | K15: =SUM(I15:J15) -> 2118175193 | L15: =+'Detailed Summary'!BJ260 -> 22389080.99 | M15: =SUM(K15:L15) -> 2140564274 | N15: =+'Detailed Summary'!BJ321 -> 0 | P15: =+'Detailed Summary'!BJ382 -> 0 | Q15: =SUM(O15:P15) -> 0
A16: =ROW() -> 16 | B16: SALES FROM RESALE-FIRM/SPECIAL CONTRACT | C16: ='Detailed Summary'!D17 -> 335744.31 | D16: ='Detailed Summary'!BJ17 -> 132811.8761 | E16: =SUM(C16:D16) -> 468556.1861 | F16: ='Detailed Summary'!BJ78 -> -34111.14608 | G16: =SUM(E16:F16) -> 434445.04 | H16: ='Detailed Summary'!BJ139 -> 0 | I16: =SUM(G16:H16) -> 434445.04 | J16: =+'Detailed Summary'!BJ200 -> 0 | K16: =SUM(I16:J16) -> 434445.04 | L16: =+'Detailed Summary'!BJ261 -> 0 | M16: =SUM(K16:L16) -> 434445.04 | N16: =+'Detailed Summary'!BJ322 -> 0 | P16: =+'Detailed Summary'!BJ383 -> 0 | Q16: =SUM(O16:P16) -> 0
A17: =ROW() -> 17 | B17: SALES TO OTHER UTILITIES | C17: ='Detailed Summary'!D18 -> 763721180.9 | D17: ='Detailed Summary'!BJ18 -> 0 | E17: =SUM(C17:D17) -> 763721180.9 | F17: ='Detailed Summary'!BJ79 -> 0 | G17: =SUM(E17:F17) -> 763721180.9 | H17: ='Detailed Summary'!BJ140 -> 0 | I17: =SUM(G17:H17) -> 763721180.9 | J17: =+'Detailed Summary'!BJ201 -> -257319990.7 | K17: =SUM(I17:J17) -> 506401190.1 | L17: =+'Detailed Summary'!BJ262 -> -225575929.6 | M17: =SUM(K17:L17) -> 280825260.5 | N17: =+'Detailed Summary'!BJ323 -> 0 | P17: =+'Detailed Summary'!BJ384 -> 0 | Q17: =SUM(O17:P17) -> 0
A18: =ROW() -> 18 | B18: OTHER OPERATING REVENUES | C18: ='Detailed Summary'!D19 -> 149493301.8 | D18: ='Detailed Summary'!BJ19 -> -10673281.54 | E18: =SUM(C18:D18) -> 138820020.2 | F18: ='Detailed Summary'!BJ80 -> 43573286.03 | G18: =SUM(E18:F18) -> 182393306.3 | H18: ='Detailed Summary'!BJ141 -> -70072.74412 | I18: =SUM(G18:H18) -> 182323233.5 | J18: =+'Detailed Summary'!BJ202 -> 6868396.898 | K18: =SUM(I18:J18) -> 189191630.4 | L18: =+'Detailed Summary'!BJ263 -> -18026845.29 | M18: =SUM(K18:L18) -> 171164785.1 | N18: =+'Detailed Summary'!BJ324 -> 0 | P18: =+'Detailed Summary'!BJ385 -> 0 | Q18: =SUM(O18:P18) -> 0
A19: =ROW() -> 19 | B19: TOTAL OPERATING REVENUES | C19: =SUM(C15:C18) -> 3569078101 | D19: -271344837.3 | E19: 3297733264 | F19: -256939698.7 | G19: 3040793565 | H19: 14110957.55 | I19: 3054904523 | J19: -240702064.7 | K19: 2814202458 | L19: -221213693.9 | M19: 2592988764 | N19: 0 | O19: =SUM(O15:O18) -> 0 | P19: 0 | Q19: =SUM(Q15:Q18) -> 0
A20: =ROW() -> 20
A21: =ROW() -> 21 | B21: OPERATING REVENUE DEDUCTIONS:
A22: =ROW() -> 22
A23: =ROW() -> 23 | B23: POWER COSTS:
A24: =ROW() -> 24 | B24: FUEL | C24: ='Detailed Summary'!D25 -> 455418278.8 | D24: ='Detailed Summary'!BJ25 -> 0 | E24: =SUM(C24:D24) -> 455418278.8 | F24: ='Detailed Summary'!BJ86 -> 0 | G24: =SUM(E24:F24) -> 455418278.8 | H24: ='Detailed Summary'!BJ147 -> 0 | I24: =SUM(G24:H24) -> 455418278.8 | J24: =+'Detailed Summary'!BJ208 -> 124271945.1 | K24: =SUM(I24:J24) -> 579690223.9 | L24: =+'Detailed Summary'!BJ269 -> -1041915.407 | M24: =SUM(K24:L24) -> 578648308.5 | N24: =+'Detailed Summary'!BJ330 -> 0 | P24: =+'Detailed Summary'!BJ391 -> 0 | Q24: =SUM(O24:P24) -> 0
A25: =ROW() -> 25 | B25: PURCHASED AND INTERCHANGED | C25: ='Detailed Summary'!D26 -> 1350026211 | D25: ='Detailed Summary'!BJ26 -> -48497445.11 | E25: =SUM(C25:D25) -> 1301528766 | F25: ='Detailed Summary'!BJ87 -> 54208.72897 | G25: =SUM(E25:F25) -> 1301582975 | H25: ='Detailed Summary'!BJ148 -> 22553.27808 | I25: =SUM(G25:H25) -> 1301605528 | J25: =+'Detailed Summary'!BJ209 -> -423360765.8 | K25: 878244762.5 | L25: =+'Detailed Summary'!BJ270 -> -139073124.7 | M25: 739171637.7 | N25: =+'Detailed Summary'!BJ331 -> 0 | P25: =+'Detailed Summary'!BJ392 -> 0 | Q25: 0
A26: =ROW() -> 26 | B26: WHEELING | C26: ='Detailed Summary'!D27 -> 161536441.1 | D26: ='Detailed Summary'!BJ27 -> 0 | E26: =SUM(C26:D26) -> 161536441.1 | F26: ='Detailed Summary'!BJ88 -> 0 | G26: =SUM(E26:F26) -> 161536441.1 | H26: ='Detailed Summary'!BJ149 -> 0 | I26: 161536441.1 | J26: =+'Detailed Summary'!BJ210 -> 931160.6183 | K26: 162467601.8 | L26: =+'Detailed Summary'!BJ271 -> -689371.2027 | M26: 161778230.6 | N26: =+'Detailed Summary'!BJ332 -> 0 | P26: =+'Detailed Summary'!BJ393 -> 0 | Q26: 0
A27: =ROW() -> 27 | B27: RESIDENTIAL EXCHANGE | C27: ='Detailed Summary'!D28 -> -77573434.54 | D27: ='Detailed Summary'!BJ28 -> 77573434.54 | E27: =SUM(C27:D27) -> 0 | F27: ='Detailed Summary'!BJ89 -> 0 | G27: =SUM(E27:F27) -> 0 | H27: ='Detailed Summary'!BJ150 -> 0 | I27: 0 | J27: =+'Detailed Summary'!BJ211 -> 0 | K27: 0 | L27: =+'Detailed Summary'!BJ272 -> 0 | M27: 0 | N27: =+'Detailed Summary'!BJ333 -> 0 | O27: 0 | P27: =+'Detailed Summary'!BJ394 -> 0 | Q27: 0
A28: =ROW() -> 28 | B28: TOTAL PRODUCTION EXPENSES | C28: =SUM(C24:C27) -> 1889407497 | D28: 29075989.43 | E28: 1918483486 | F28: 54208.72897 | G28: 1918537695 | H28: 22553.27808 | I28: 1918560248 | J28: -298157660.1 | K28: 1620402588 | L28: -140804411.3 | M28: 1479598177 | N28: 0 | O28: =SUM(O24:O27) -> 0 | P28: 0 | Q28: =SUM(Q24:Q27) -> 0
A29: =ROW() -> 29
A30: =ROW() -> 30 | B30: OTHER POWER SUPPLY EXPENSES | C30: ='Detailed Summary'!D31 -> 122361883.9 | D30: ='Detailed Summary'!BJ31 -> -26935262.48 | E30: =SUM(C30:D30) -> 95426621.43 | F30: ='Detailed Summary'!BJ92 -> 145899.1828 | G30: =SUM(E30:F30) -> 95572520.61 | H30: ='Detailed Summary'!BJ153 -> 60700.64551 | I30: =SUM(G30:H30) -> 95633221.26 | J30: =+'Detailed Summary'!BJ214 -> 4296053.016 | K30: =SUM(I30:J30) -> 99929274.28 | L30: =+'Detailed Summary'!BJ275 -> 9528835.465 | M30: =SUM(K30:L30) -> 109458109.7 | N30: =+'Detailed Summary'!BJ336 -> 0 | P30: =+'Detailed Summary'!BJ397 -> 0 | Q30: =SUM(O30:P30) -> 0
A31: =ROW() -> 31 | B31: TRANSMISSION EXPENSE | C31: ='Detailed Summary'!D32 -> 25498629.28 | D31: ='Detailed Summary'!BJ32 -> 522026.3757 | E31: =SUM(C31:D31) -> 26020655.66 | F31: ='Detailed Summary'!BJ93 -> 77980.94573 | G31: =SUM(E31:F31) -> 26098636.6 | H31: ='Detailed Summary'!BJ154 -> 32443.59327 | I31: 26131080.19 | J31: =+'Detailed Summary'!BJ215 -> 5866673.286 | K31: 31997753.48 | L31: =+'Detailed Summary'!BJ276 -> 4016575.73 | M31: 36014329.21 | N31: =+'Detailed Summary'!BJ337 -> 0 | P31: =+'Detailed Summary'!BJ398 -> 0 | Q31: 0
A32: =ROW() -> 32 | B32: DISTRIBUTION EXPENSE | C32: ='Detailed Summary'!D33 -> 103169980 | D32: ='Detailed Summary'!BJ33 -> 1228200.986 | E32: 104398181 | F32: ='Detailed Summary'!BJ94 -> 238125.9048 | G32: 104636306.9 | H32: ='Detailed Summary'!BJ155 -> 99071.12473 | I32: 104735378 | J32: =+'Detailed Summary'!BJ216 -> 15612674.93 | K32: 120348052.9 | L32: =+'Detailed Summary'!BJ277 -> 6717844.369 | M32: 127065897.3 | N32: =+'Detailed Summary'!BJ338 -> 0 | P32: =+'Detailed Summary'!BJ399 -> 0 | Q32: 0
A33: =ROW() -> 33 | B33: CUSTOMER ACCTS EXPENSES | C33: ='Detailed Summary'!D34 -> 56519137.12 | D33: ='Detailed Summary'!BJ34 -> -2215432.149 | E33: 54303704.97 | F33: ='Detailed Summary'!BJ95 -> -1601054.514 | G33: 52702650.46 | H33: ='Detailed Summary'!BJ156 -> 115934.9891 | I33: 52818585.45 | J33: =+'Detailed Summary'!BJ217 -> -10531488.59 | K33: 42287096.85 | L33: =+'Detailed Summary'!BJ278 -> -452205.3603 | M33: 41834891.49 | N33: =+'Detailed Summary'!BJ339 -> 0 | P33: =+'Detailed Summary'!BJ400 -> 0 | Q33: 0
A34: =ROW() -> 34 | B34: CUSTOMER SERVICE EXPENSES | C34: ='Detailed Summary'!D35 -> 52218524.41 | D34: ='Detailed Summary'!BJ35 -> -47949725.09 | E34: 4268799.323 | F34: ='Detailed Summary'!BJ96 -> 15473.66371 | G34: 4284272.986 | H34: ='Detailed Summary'!BJ157 -> 8673.87709 | I34: 4292946.864 | J34: =+'Detailed Summary'!BJ218 -> -607663.688 | K34: 3685283.176 | L34: =+'Detailed Summary'!BJ279 -> 115534.695 | M34: 3800817.871 | N34: =+'Detailed Summary'!BJ340 -> 0 | P34: =+'Detailed Summary'!BJ401 -> 0 | Q34: 0
A35: =ROW() -> 35 | B35: CONSERVATION AMORTIZATION | C35: ='Detailed Summary'!D36 -> 102976391.1 | D35: ='Detailed Summary'!BJ36 -> -102976391.1 | E35: 0 | F35: ='Detailed Summary'!BJ97 -> 0 | G35: 0 | H35: ='Detailed Summary'!BJ158 -> 0 | I35: 0 | J35: =+'Detailed Summary'!BJ219 -> 0 | K35: 0 | L35: =+'Detailed Summary'!BJ280 -> 0 | M35: 0 | N35: =+'Detailed Summary'!BJ341 -> 0 | P35: =+'Detailed Summary'!BJ402 -> 0 | Q35: 0
A36: =ROW() -> 36 | B36: ADMIN & GENERAL EXPENSE | C36: ='Detailed Summary'!D37 -> 166863451.1 | D36: ='Detailed Summary'!BJ37 -> 5142121.353 | E36: 172005572.5 | F36: ='Detailed Summary'!BJ98 -> -56709.78674 | G36: 171948862.7 | H36: ='Detailed Summary'!BJ159 -> 174512.1699 | I36: 172123374.9 | J36: =+'Detailed Summary'!BJ220 -> 23634332.71 | K36: 195757707.6 | L36: =+'Detailed Summary'!BJ281 -> 9851713.275 | M36: 205609420.9 | N36: =+'Detailed Summary'!BJ342 -> 0 | P36: =+'Detailed Summary'!BJ403 -> 0 | Q36: 0
A37: =ROW() -> 37 | B37: DEPRECIATION | C37: ='Detailed Summary'!D38 -> 388725218.4 | D37: ='Detailed Summary'!BJ38 -> -23259312.8 | E37: 365465905.6 | F37: ='Detailed Summary'!BJ99 -> 1560985.675 | G37: 367026891.3 | H37: ='Detailed Summary'!BJ160 -> 24155832.4 | I37: 391182723.7 | J37: =+'Detailed Summary'!BJ221 -> 41038250.17 | K37: 432220973.8 | L37: =+'Detailed Summary'!BJ282 -> 47563731.51 | M37: 479784705.3 | N37: =+'Detailed Summary'!BJ343 -> 0 | P37: =+'Detailed Summary'!BJ404 -> 0 | Q37: 0
A38: =ROW() -> 38 | B38: AMORTIZATION | C38: ='Detailed Summary'!D39 -> 77431123.16 | D38: ='Detailed Summary'!BJ39 -> -15493959.22 | E38: 61937163.94 | F38: ='Detailed Summary'!BJ100 -> 1073456.018 | G38: 63010619.95 | H38: ='Detailed Summary'!BJ161 -> 15575227.77 | I38: 78585847.72 | J38: =+'Detailed Summary'!BJ222 -> 12669068.87 | K38: 91254916.59 | L38: =+'Detailed Summary'!BJ283 -> 19581352.18 | M38: 110836268.8 | N38: =+'Detailed Summary'!BJ344 -> 0 | P38: =+'Detailed Summary'!BJ405 -> 0 | Q38: 0
A39: =ROW() -> 39 | B39: AMORTIZ OF PROPERTY GAIN/LOSS | C39: ='Detailed Summary'!D40 -> 27712466 | D39: ='Detailed Summary'!BJ40 -> 6532622.45 | E39: 34245088.45 | F39: ='Detailed Summary'!BJ101 -> 0 | G39: 34245088.45 | H39: ='Detailed Summary'!BJ162 -> 0 | I39: 34245088.45 | J39: =+'Detailed Summary'!BJ223 -> -5309457.847 | K39: 28935630.6 | L39: =+'Detailed Summary'!BJ284 -> -9923258.586 | M39: 19012372.02 | N39: =+'Detailed Summary'!BJ345 -> 0 | P39: =+'Detailed Summary'!BJ406 -> 0 | Q39: 0
A40: =ROW() -> 40 | B40: OTHER OPERATING EXPENSES | C40: ='Detailed Summary'!D41 -> -89556412.82 | D40: ='Detailed Summary'!BJ41 -> 111033265.6 | E40: 21476852.73 | F40: ='Detailed Summary'!BJ102 -> 3387452.545 | G40: 24864305.28 | H40: ='Detailed Summary'!BJ163 -> -6060850.755 | I40: 18803454.52 | J40: =+'Detailed Summary'!BJ224 -> 44877813.6 | K40: 63681268.12 | L40: =+'Detailed Summary'!BJ285 -> -6537115.686 | M40: 57144152.43 | N40: =+'Detailed Summary'!BJ346 -> 0 | P40: =+'Detailed Summary'!BJ407 -> 0 | Q40: 0
A41: =ROW() -> 41 | B41: TAXES OTHER THAN INCOME TAXES | C41: ='Detailed Summary'!D42 -> 267182421 | D41: ='Detailed Summary'!BJ42 -> -160179142.3 | E41: 107003278.7 | F41: ='Detailed Summary'!BJ103 -> -9760504.333 | G41: 97242774.36 | H41: ='Detailed Summary'!BJ164 -> 577826.2331 | I41: 97820600.6 | J41: =+'Detailed Summary'!BJ225 -> -1386385.652 | K41: 96434214.94 | L41: =+'Detailed Summary'!BJ286 -> 2420401.089 | M41: 98854616.03 | N41: =+'Detailed Summary'!BJ347 -> 0 | P41: =+'Detailed Summary'!BJ408 -> 0 | Q41: 0
A42: =ROW() -> 42 | B42: INCOME TAXES | C42: ='Detailed Summary'!D43 -> 159200857.4 | D42: ='Detailed Summary'!BJ43 -> -88401094.95 | E42: 70799762.43 | F42: ='Detailed Summary'!BJ104 -> -55799349.18 | G42: 15000413.25 | H42: ='Detailed Summary'!BJ165 -> -6797456.534 | I42: 8202956.715 | J42: =+'Detailed Summary'!BJ226 -> -18438101.56 | K42: -10235144.85 | L42: =+'Detailed Summary'!BJ287 -> -41272385.85 | M42: -51507530.7 | N42: =+'Detailed Summary'!BJ348 -> 0 | P42: =+'Detailed Summary'!BJ409 -> 0 | Q42: 0
A43: =ROW() -> 43 | B43: DEFERRED INCOME TAXES | C43: ='Detailed Summary'!D44 -> -92361480.74 | D43: ='Detailed Summary'!BJ44 -> 48944521.45 | E43: -43416959.29 | F43: ='Detailed Summary'!BJ105 -> -3832342.767 | G43: -47249302.06 | H43: ='Detailed Summary'!BJ166 -> 1299233.389 | I43: -45950068.67 | J43: =+'Detailed Summary'!BJ227 -> -455130.5394 | K43: -46405199.21 | L43: =+'Detailed Summary'!BJ288 -> -560044.4514 | M43: -46965243.66 | N43: =+'Detailed Summary'!BJ349 -> 0 | P43: =+'Detailed Summary'!BJ410 -> 0 | Q43: 0
A44: =ROW() -> 44 | B44: TOTAL OPERATING EXPENSES | C44: =SUM(C30:C43) -> 1367942189 | D44: -294007562 | E44: 1073934627 | F44: -64550586.65 | G44: 1009384041 | H44: 29241148.91 | I44: 1038625190 | J44: =(J19-J28)*0.21 -> 12065675.03 | K44: =SUM(K30:K43) -> 1149891828 | L44: 41050978.37 | M44: 1190942807 | N44: 0 | O44: 0 | P44: 0 | Q44: 0
A45: =ROW() -> 45 | B45: TOTAL OPERATING REV. DEDUCT. | C45: =SUM(C28:C43) -> 3257349686 | D45: -264931572.5 | E45: 2992418114 | F45: -64496377.92 | G45: 2927921736 | H45: 29263702.18 | I45: 2957185438 | J45: -186891021.4 | K45: 2770294416 | L45: -99753432.97 | M45: 2670540984 | N45: =SUM(N28:N43) -> 0 | O45: =SUM(O28:O43) -> 0 | P45: =SUM(P28:P43) -> 0 | Q45: =SUM(Q28:Q43) -> 0
A46: =ROW() -> 46
A47: =ROW() -> 47 | B47: NET OPERATING INCOME | C47: =C19-C45 -> 311728415.3 | D47: -6413264.807 | E47: 305315150.5 | F47: -192443320.8 | G47: 112871829.7 | H47: -15152744.64 | I47: 97719085.07 | J47: -53811043.33 | K47: 43908041.74 | L47: -121460261 | M47: -77552219.23 | N47: =N19-N45 -> 0 | O47: =O19-O45 -> 0 | P47: =P19-P45 -> 0 | Q47: =Q19-Q45 -> 0
A48: =ROW() -> 48
A49: =ROW() -> 49 | B49: ACTUAL RATE OF RETURN | C49: =ROUND(C47/C58,4) -> 0.0558 | E49: =ROUND(E47/E58,4) -> 0.0546 | G49: =ROUND(G47/G58,4) -> 0.0185 | I49: =ROUND(I47/I58,4) -> 0.0149 | K49: =ROUND(K47/K58,4) -> 0.0064 | M49: =ROUND(M47/M58,4) -> -0.0097
A50: =ROW() -> 50
A51: =ROW() -> 51 | B51: GROSS UTILITY PLANT IN SERVICE | C51: ='Detailed Summary'!D54 -> 1.182512479e+10 | D51: ='Detailed Summary'!BJ54 -> -632016687 | E51: =SUM(C51:D51) -> 1.119310811e+10 | F51: ='Detailed Summary'!BJ115 -> 747237437 | G51: =SUM(E51:F51) -> 1.194034554e+10 | H51: ='Detailed Summary'!BJ176 -> 823787405.6 | I51: =SUM(G51:H51) -> 1.276413295e+10 | J51: =+'Detailed Summary'!BJ237 -> 512797149.7 | K51: =SUM(I51:J51) -> 1.32769301e+10 | L51: =+'Detailed Summary'!BJ298 -> 1242707165 | M51: =SUM(K51:L51) -> 1.451963726e+10 | N51: =+'Detailed Summary'!BJ359 -> 0 | P51: =+'Detailed Summary'!BJ420 -> 0 | Q51: =SUM(O51:P51) -> 0
A52: =ROW() -> 52 | B52: ACCUM DEPR AND AMORT | C52: ='Detailed Summary'!D55 -> -5578520719 | D52: ='Detailed Summary'!BJ55 -> 479037657.3 | E52: -5099483061 | F52: ='Detailed Summary'!BJ116 -> -281870848.6 | G52: -5381353910 | H52: ='Detailed Summary'!BJ177 -> -369607441.7 | I52: -5750961352 | J52: =+'Detailed Summary'!BJ238 -> -232424162.8 | K52: -5983385514 | L52: =+'Detailed Summary'!BJ299 -> -56177463.79 | M52: -6039562978 | N52: =+'Detailed Summary'!BJ360 -> 0 | P52: =+'Detailed Summary'!BJ421 -> 0 | Q52: 0
A53: =ROW() -> 53 | B53: DEFERRED DEBITS AND CREDITS | C53: ='Detailed Summary'!D56 -> 456443722.3 | D53: ='Detailed Summary'!BJ56 -> 147951889.1 | E53: 604395611.4 | F53: ='Detailed Summary'!BJ117 -> 66015830.38 | G53: 670411441.7 | H53: ='Detailed Summary'!BJ178 -> -34141796.81 | I53: 636269644.9 | J53: =+'Detailed Summary'!BJ239 -> -16047877.55 | K53: 620221767.4 | L53: =+'Detailed Summary'!BJ300 -> -27518408.29 | M53: 592703359.1 | N53: =+'Detailed Summary'!BJ361 -> 0 | P53: =+'Detailed Summary'!BJ422 -> 0 | Q53: 0
A54: =ROW() -> 54 | B54: DEFERRED TAXES | C54: ='Detailed Summary'!D57 -> -1224323797 | D54: ='Detailed Summary'!BJ57 -> 37288600.1 | E54: -1187035196 | F54: ='Detailed Summary'!BJ118 -> -12896720.71 | G54: -1199931917 | H54: ='Detailed Summary'!BJ179 -> 25508329.32 | I54: -1174423588 | J54: =+'Detailed Summary'!BJ240 -> -1432139.183 | K54: -1175855727 | L54: =+'Detailed Summary'!BJ301 -> -8152365.837 | M54: -1184008093 | N54: =+'Detailed Summary'!BJ362 -> 0 | P54: =+'Detailed Summary'!BJ423 -> 0 | Q54: 0
A55: =ROW() -> 55 | B55: ALLOWANCE FOR WORKING CAPITAL | C55: ='Detailed Summary'!D58 -> 240993567.3 | D55: ='Detailed Summary'!BJ58 -> -18474761.51 | E55: 222518805.8 | F55: ='Detailed Summary'!BJ119 -> 0 | G55: 222518805.8 | H55: ='Detailed Summary'!BJ180 -> 0 | I55: 222518805.8 | J55: =+'Detailed Summary'!BJ241 -> 0 | K55: 222518805.8 | L55: =+'Detailed Summary'!BJ302 -> 0 | M55: 222518805.8 | N55: =+'Detailed Summary'!BJ363 -> 0 | P55: =+'Detailed Summary'!BJ424 -> 0 | Q55: 0
A56: =ROW() -> 56 | B56: OTHER | C56: ='Detailed Summary'!D59 -> -135953118.1 | D56: ='Detailed Summary'!BJ59 -> -6040411.669 | E56: -141993529.8 | F56: ='Detailed Summary'!BJ120 -> 0 | G56: -141993529.8 | H56: ='Detailed Summary'!BJ181 -> 0 | I56: -141993529.8 | J56: =+'Detailed Summary'!BJ242 -> 0 | K56: -141993529.8 | L56: =+'Detailed Summary'!BJ303 -> 0 | M56: -141993529.8 | N56: =+'Detailed Summary'!BJ364 -> 0 | P56: =+'Detailed Summary'!BJ425 -> 0 | Q56: 0
A57: =ROW() -> 57
A58: =ROW() -> 58 | B58: TOTAL RATE BASE | C58: =SUM(C51:C57) -> 5583764450 | D58: =SUM(D51:D57) -> 7746286.261 | E58: 5591510736 | F58: 518485698.1 | G58: 6109996434 | H58: =SUM(H51:H57) -> 445546496.4 | I58: 6555542930 | J58: =SUM(J51:J57) -> 262892970.2 | K58: 6818435901 | L58: =SUM(L51:L57) -> 1150858927 | M58: 7969294828 | N58: =SUM(N51:N57) -> 0 | O58: =SUM(O51:O57) -> 0 | P58: =SUM(P51:P57) -> 0 | Q58: =SUM(Q51:Q57) -> 0
A59: =ROW() -> 59
A60: =ROW() -> 60 | B60: REQUESTED RATE OF RETURN | C60: ='Def, COC, ConvF'!K27 -> 0.0736 | D60: =C60 -> 0.0736 | E60: 0.0736 | F60: 0.0736 | G60: 0.0736 | H60: 0.0736 | I60: 0.0736 | J60: 0.0736 | K60: ='Def, COC, ConvF'!$K$27 -> 0.0736 | L60: =+'Def, COC, ConvF'!D13 -> 0.0737 | M60: =L60 -> 0.0737
A61: =ROW() -> 61
A62: =ROW() -> 62 | B62: OPERATING INCOME (DEFICIENCY) SURPLUS | C62: =+C47-(C58*C60) -> -99236648.2 | D62: -6983391.476 | E62: -106220039.7 | F62: -230603868.2 | G62: -336823907.8 | H62: -47944966.77 | I62: -384768874.6 | J62: -73159965.94 | K62: =+K47-(K58*K60) -> -457928840.5 | L62: -206278563.9 | M62: -664889248 | N62: 0 | O62: 0 | P62: 0 | Q62: 0
A63: =ROW() -> 63 | B63: CONVERSION FACTOR | C63: ='Def, COC, ConvF'!P20 -> 0.751313 | D63: =C63 -> 0.751313 | E63: 0.751313 | F63: 0.751313 | G63: 0.751313 | H63: 0.751313 | I63: 0.751313 | J63: 0.751313 | K63: ='Def, COC, ConvF'!P20 -> 0.751313 | L63: =K63 -> 0.751313 | M63: =L63 -> 0.751313
A64: =ROW() -> 64
A65: =ROW() -> 65 | B65: CUMULATIVE REVENUE CHANGE | C65: =-C62/C63 -> 132084295.4 | D65: 9294916.334 | E65: 141379211.7 | F65: 306934484.2 | G65: 448313695.9 | H65: 63814903.74 | I65: 512128599.7 | J65: 97376148.08 | K65: 609504747.7 | L65: 274557426.6 | M65: 884969710.4
A66: =ROW() -> 66
A67: =ROW() -> 67
A68: =ROW() -> 68
A69: =ROW() -> 69
A70: =ROW() -> 70
A71: =ROW() -> 71 | B71: NET CHANGE TO BE MADE AT: | J71: BEG OF RY 1 → | K71: =K65 -> 609504747.7 | L71: BEG OF RY 2 → | M71: =M65-K65 -> 275464962.6 | N71: BEG OF RY 3 → | P71: BEG OF RY 4 → | Q71: =Q65-O65 -> 0
A72: =ROW() -> 72
A73: =ROW() -> 73 | B73: BASE RATES
A74: =ROW() -> 74 | B74: TARGETED ELECTRIFICATION ACTIVITIES DEFERRAL | K74: ='Targ Elec Pilot RR'!D25 -> 8688515.555 | M74: ='Targ Elec Pilot RR'!E25 -> -534652.4019 | O74: =O71-O75 -> 0 | Q74: =Q71-Q75 -> 0
A75: =ROW() -> 75 | B75: REMAINING | K75: =K76-K74 -> 600816232.2 | M75: =M76-M74 -> 275999615 | O75: ='Subject to Refund'!G25 -> 0 | Q75: ='Subject to Refund'!I25 -> 0
A76: =ROW() -> 76 | B76: REVENUE CHANGE BEFORE RIDERS | K76: =K71 -> 609504747.7 | M76: =M71 -> 275464962.6 | O76: =O71 -> 0 | Q76: =Q71 -> 0
A77: =ROW() -> 77
A78: =ROW() -> 78
A79: =ROW() -> 79 | B79: CHANGES TO OTHER PRICE SCHEDULES | K79: ='Def, COC, ConvF'!C39-K78 -> -499034932.1 | M79: ='Def, COC, ConvF'!D39-M78 -> 0 | Q79: ='Def, COC, ConvF'!I37-Q78 -> 0
A80: =ROW() -> 80
A81: =ROW() -> 81 | B81: NET REVENUE CHANGE | K81: =K71+K79 -> 110469815.7 | M81: =M71+M79 -> 275464962.6 | O81: =SUM(O76:O80) -> 0 | Q81: =SUM(Q76:Q80) -> 0
A82: =ROW() -> 82
O85: ='Detailed Summary'!BK365-O58 -> 0 | Q85: ='Detailed Summary'!BK426-Q58 -> 0
A91: PUGET SOUND ENERGY - NATURAL GAS | D91: EXH. DPK-5 page 5 of 5
A92: COMPARISION OF REVENUE AND RATE CHANGE
A93: STAFF TO COMPANY
A94: UG-240005
A95: With Trackers Restored to Base Rates | W95: dpk -03 | X95: 110265603 | Y95: 275521174 | Z95: =+Y95-X95 -> 165255571
K96: =+K81 -> 110469815.7 | W96: dpk -04 | X96: 110469816 | Y96: =+M90 -> 0 | Z96: =+Y96-X96 -> -110469816
A97: LINE | B97: DESCRIPTION | C97: =+K7 -> AMA DEC 2025 | E97: =+M7 -> AMA DEC 2026 | K97: 110265603 | X97: =+X96-X95 -> 204213 | Y97: =+Y96-Y95 -> -275521174
K98: =+K96-K97 -> 204212.6908 | S98: =+M98-K98 -> -204212.6908
A99: 1 | B99: Staff | C99: AMA DEC 2025 | E99: AMA DEC 2026
A100: =+A99+1 -> 2
A101: 3 | B101: Revenue Deficiency - Grossed Up | C101: =+K71 -> 609504747.7 | E101: =+M71 -> 275464962.6
A102: 4 | B102: Rate schedules set to zero | C102: =+SUM('Def, COC, ConvF'!C28:C32) -> -499034932.1 | E102: 0
A103: 5 | B103: Deficiencies for Trackers
A104: 6 | B104: Total Revenue Rate Change | C104: =+SUM(C101:C103) -> 110469815.7 | E104: =+SUM(E101:E103) -> 275464962.6
A105: 7
A106: 8
A107: 9 | B107: PSE | C107: AMA DEC 2025 | E107: AMA DEC 2026
A108: 10
A109: 11 | B109: Revenue Deficiency - Grossed Up | C109: 584376758 | E109: 259901924
A110: 12 | B110: Rate schedules set to zero | C110: -499034932
A111: 13 | B111: Deficiencies for Trackers | C111: 106876213 | E111: 25266288
A112: 14 | B112: Total Revenue Rate Change | C112: =SUM(C109:C111) -> 192218039 | E112: =SUM(E109:E111) -> 285168212
A113: 15
A114: 16 | B114: Difference
A115: 17 | B115: Revenue Deficiency - Grossed Up | C115: =+C101-C109 -> 25127989.75 | E115: =+E101-E109 -> 15563038.63
A116: 18 | B116: Rate schedules set to zero | C116: =+C102-C110 -> -0.05890226364 | E116: 0
A117: 19 | B117: Deficiencies for Trackers | C117: -106876213 | E117: -25266288
A118: 20 | B118: Total Revenue Rate Change | C118: =SUM(C115:C117) -> -81748223.31 | E118: =SUM(E115:E117) -> -9703249.37

Sheet Detailed Summary
A1: PUGET SOUND ENERGY | Z1: =ROUND('Electric Adj'!EW32-'Detailed Summary'!Z49,0)+ROUND('Electric Adj'!EW45-'Detailed Summary'!Z47,0) -> 0 | AA1: =ROUND('Electric Adj'!EX32-'Detailed Summary'!AA49,0)+ROUND('Electric Adj'!EX45-'Detailed Summary'!AA47,0) -> 0 | AB1: =ROUND('Electric Adj'!EY32-'Detailed Summary'!AB49,0)+ROUND('Electric Adj'!EY45-'Detailed Summary'!AB47,0) -> 123590077 | AC1: =ROUND('Electric Adj'!EZ32-'Detailed Summary'!AC49,0)+ROUND('Electric Adj'!EZ45-'Detailed Summary'!AC47,0) -> 42170 | AD1: =ROUND('Electric Adj'!FA32-'Detailed Summary'!AD49,0)+ROUND('Electric Adj'!FA45-'Detailed Summary'!AD47,0) -> 0 | AE1: =ROUND('Electric Adj'!FB32-'Detailed Summary'!AE49,0)+ROUND('Electric Adj'!FB45-'Detailed Summary'!AE47,0) -> 0 | AF1: =ROUND('Electric Adj'!FC32-'Detailed Summary'!AF49,0)+ROUND('Electric Adj'!FC45-'Detailed Summary'!AF47,0) -> 0 | AG1: =ROUND('Electric Adj'!FD32-'Detailed Summary'!AG49,0)+ROUND('Electric Adj'!FD45-'Detailed Summary'!AG47,0) -> 0 | AH1: =ROUND('Electric Adj'!FE32-'Detailed Summary'!AH49,0)+ROUND('Electric Adj'!FE45-'Detailed Summary'!AH47,0) -> 0 | AI1: =ROUND('Electric Adj'!FF32-'Detailed Summary'!AI49,0)+ROUND('Electric Adj'!FF45-'Detailed Summary'!AI47,0) -> 0 | AJ1: =ROUND('Electric Adj'!FG32-'Detailed Summary'!AJ49,0)+ROUND('Electric Adj'!FG45-'Detailed Summary'!AJ47,0) -> 77 | AK1: =ROUND('Electric Adj'!FH32-'Detailed Summary'!AK49,0)+ROUND('Electric Adj'!FH45-'Detailed Summary'!AK47,0) ->  | AL1: =ROUND('Electric Adj'!FI32-'Detailed Summary'!AL49,0)+ROUND('Electric Adj'!FI45-'Detailed Summary'!AL47,0) -> 4296288 | AM1: =ROUND('Electric Adj'!FJ32-'Detailed Summary'!AM49,0)+ROUND('Electric Adj'!FJ45-'Detailed Summary'!AM47,0) -> 1904849 | AN1: =ROUND('Electric Adj'!FK32-'Detailed Summary'!AN49,0)+ROUND('Electric Adj'!FK45-'Detailed Summary'!AN47,0) -> -1896294 | AO1: =ROUND('Electric Adj'!FL32-'Detailed Summary'!AO49,0)+ROUND('Electric Adj'!FL45-'Detailed Summary'!AO47,0) -> 0 | AP1: =ROUND('Electric Adj'!FM32-'Detailed Summary'!AP49,0)+ROUND('Electric Adj'!FM45-'Detailed Summary'!AP47,0) -> 0 | AQ1: =ROUND('Electric Adj'!FN32-'Detailed Summary'!AQ49,0)+ROUND('Electric Adj'!FN45-'Detailed Summary'!AQ47,0) -> 0 | AR1: =ROUND('Electric Adj'!FO32-'Detailed Summary'!AR49,0)+ROUND('Electric Adj'!FO45-'Detailed Summary'!AR47,0) -> 0 | AS1: =ROUND('Electric Adj'!FP32-'Detailed Summary'!AS49,0)+ROUND('Electric Adj'!FP45-'Detailed Summary'!AS47,0) -> 0 | AT1: =ROUND('Electric Adj'!FQ32-'Detailed Summary'!AT49,0)+ROUND('Electric Adj'!FQ45-'Detailed Summary'!AT47,0) -> 0 | AU1: =ROUND('Electric Adj'!FR32-'Detailed Summary'!AU49,0)+ROUND('Electric Adj'!FR45-'Detailed Summary'!AU47,0) -> 0 | AV1: =ROUND('Electric Adj'!FS32-'Detailed Summary'!AV49,0)+ROUND('Electric Adj'!FS45-'Detailed Summary'!AV47,0) -> -902858 | AW1: =ROUND('Electric Adj'!FT32-'Detailed Summary'!AW49,0)+ROUND('Electric Adj'!FT45-'Detailed Summary'!AW47,0) -> 948062 | AX1: =ROUND('Electric Adj'!FU32-'Detailed Summary'!AX49,0)+ROUND('Electric Adj'!FU45-'Detailed Summary'!AX47,0) -> 1159983 | AY1: =ROUND('Electric Adj'!FV32-'Detailed Summary'!AY49,0)+ROUND('Electric Adj'!FV45-'Detailed Summary'!AY47,0) -> 0 | AZ1: =ROUND('Electric Adj'!FW32-'Detailed Summary'!AZ49,0)+ROUND('Electric Adj'!FW45-'Detailed Summary'!AZ47,0) -> -1065 | BA1: =ROUND('Electric Adj'!FX32-'Detailed Summary'!BA49,0)+ROUND('Electric Adj'!FX45-'Detailed Summary'!BA47,0) -> 5160772 | BB1: =ROUND('Electric Adj'!FY32-'Detailed Summary'!BB49,0)+ROUND('Electric Adj'!FY45-'Detailed Summary'!BB47,0) -> -129039952 | BC1: =ROUND('Electric Adj'!FZ32-'Detailed Summary'!BC49,0)+ROUND('Electric Adj'!FZ45-'Detailed Summary'!BC47,0) ->  | BD1: =ROUND('Electric Adj'!GA32-'Detailed Summary'!BD49,0)+ROUND('Electric Adj'!GA45-'Detailed Summary'!BD47,0) -> 532977 | BG1: 0 | BH1: 0 | BI1: 0
A2: ELECTRIC STATEMENT OF OPERATING INCOME | BJ2: EXH. DPK-6
A3: With TRACKERS RESTORED TO BASE RATS
A4: 2024 GENERAL RATE CASE | BG4: SEF-21 | BH4: SEF-22 | BI4: SEF-23
E8: COMMON | F8: COMMON | G8: COMMON | H8: COMMON | I8: COMMON | J8: COMMON | K8: COMMON | L8: COMMON | M8: COMMON | N8: COMMON | O8: COMMON | P8: COMMON | Q8: COMMON | R8: COMMON | S8: COMMON | T8: COMMON | U8: COMMON | V8: COMMON | W8: COMMON | X8: COMMON | Y8: COMMON | Z8: COMMON | AA8: COMMON | AB8: COMMON | AC8: COMMON | AD8: COMMON | AE8: COMMON | AF8: COMMON | AG8: COMMON | AH8: COMMON | AI8: COMMON | AJ8: COMMON | AK8: COMMON | AL8: COMMON | AM8: COMMON | AN8: COMMON | AO8: COMMON | AV8: ELECTRIC | AW8: ELECTRIC | AX8: ELECTRIC | AY8: ELECTRIC | AZ8: ELECTRIC | BA8: ELECTRIC | BB8: ELECTRIC | BC8: ELECTRIC | BD8: ELECTRIC | BE8: ELECTRIC | BF8: ELECTRIC | BG8: ELECTRIC | BH8: ELECTRIC | BI8: ELECTRIC
E9: =VLOOKUP(E10,'Adj List'!$A$7:$D$472,2,FALSE) -> 6.01 | F9: =VLOOKUP(F10,'Adj List'!$A$7:$D$472,2,FALSE) -> 6.02 | G9: =VLOOKUP(G10,'Adj List'!$A$7:$D$472,2,FALSE) -> 6.03 | H9: =VLOOKUP(H10,'Adj List'!$A$7:$D$472,2,FALSE) -> 6.04 | I9: =VLOOKUP(I10,'Adj List'!$A$7:$D$472,2,FALSE) -> 6.05 | J9: =VLOOKUP(J10,'Adj List'!$A$7:$D$472,2,FALSE) -> 6.06 | K9: =VLOOKUP(K10,'Adj List'!$A$7:$D$472,2,FALSE) -> 6.07 | L9: =VLOOKUP(L10,'Adj List'!$A$7:$D$472,2,FALSE) -> 6.08 | M9: =VLOOKUP(M10,'Adj List'!$A$7:$D$472,2,FALSE) -> 6.09 | N9: =VLOOKUP(N10,'Adj List'!$A$7:$D$472,2,FALSE) -> 6.1 | O9: =VLOOKUP(O10,'Adj List'!$A$7:$D$472,2,FALSE) -> 6.11 | P9: =VLOOKUP(P10,'Adj List'!$A$7:$D$472,2,FALSE) -> 6.12 | Q9: =VLOOKUP(Q10,'Adj List'!$A$7:$D$472,2,FALSE) -> 6.13 | R9: =VLOOKUP(R10,'Adj List'!$A$7:$D$472,2,FALSE) -> 6.14 | S9: =VLOOKUP(S10,'Adj List'!$A$7:$D$472,2,FALSE) -> 6.15 | T9: =VLOOKUP(T10,'Adj List'!$A$7:$D$472,2,FALSE) -> 6.16 | U9: =VLOOKUP(U10,'Adj List'!$A$7:$D$472,2,FALSE) -> 6.17 | V9: =VLOOKUP(V10,'Adj List'!$A$7:$D$472,2,FALSE) -> 6.18 | W9: =VLOOKUP(W10,'Adj List'!$A$7:$D$472,2,FALSE) -> 6.19 | X9: =VLOOKUP(X10,'Adj List'!$A$7:$D$472,2,FALSE) -> 6.2 | Y9: =VLOOKUP(Y10,'Adj List'!$A$7:$D$472,2,FALSE) -> 6.21 | Z9: =VLOOKUP(Z10,'Adj List'!$A$7:$D$472,2,FALSE) -> 6.22 | AA9: =VLOOKUP(AA10,'Adj List'!$A$7:$D$472,2,FALSE) -> 6.23 | AB9: =VLOOKUP(AB10,'Adj List'!$A$7:$D$472,2,FALSE) -> 6.24 | AC9: =VLOOKUP(AC10,'Adj List'!$A$7:$D$472,2,FALSE) -> 6.25 | AD9: =VLOOKUP(AD10,'Adj List'!$A$7:$D$472,2,FALSE) -> 6.26 | AE9: =VLOOKUP(AE10,'Adj List'!$A$7:$D$472,2,FALSE) -> 6.27 | AF9: =VLOOKUP(AF10,'Adj List'!$A$7:$D$472,2,FALSE) -> 6.28 | AG9: =VLOOKUP(AG10,'Adj List'!$A$7:$D$472,2,FALSE) -> 6.29 | AH9: =VLOOKUP(AH10,'Adj List'!$A$7:$D$472,2,FALSE) -> 6.3 | AI9: =VLOOKUP(AI10,'Adj List'!$A$7:$D$472,2,FALSE) -> 6.31 | AJ9: =VLOOKUP(AJ10,'Adj List'!$A$7:$D$472,2,FALSE) -> 6.32 | AK9: =VLOOKUP(AK10,'Adj List'!$A$7:$D$472,2,FALSE) -> 6.33 | AL9: =VLOOKUP(AL10,'Adj List'!$A$7:$D$472,2,FALSE) -> 6.34 | AM9: =VLOOKUP(AM10,'Adj List'!$A$7:$D$472,2,FALSE) -> 6.35 | AN9: =VLOOKUP(AN10,'Adj List'!$A$7:$D$472,2,FALSE) -> 6.36 | AO9: =VLOOKUP(AO10,'Adj List'!$A$7:$D$472,2,FALSE) -> 6.37 | AP9: =VLOOKUP(AP10,'Adj List'!$A$7:$D$472,2,FALSE) ->  | AQ9: =VLOOKUP(AQ10,'Adj List'!$A$7:$D$472,2,FALSE) ->  | AR9: =VLOOKUP(AR10,'Adj List'!$A$7:$D$472,2,FALSE) ->  | AS9: =VLOOKUP(AS10,'Adj List'!$A$7:$D$472,2,FALSE) ->  | AT9: =VLOOKUP(AT10,'Adj List'!$A$7:$D$472,2,FALSE) ->  | AU9: =VLOOKUP(AU10,'Adj List'!$A$7:$D$472,2,FALSE) ->  | AV9: =VLOOKUP(AV10,'Adj List'!$A$58:$D$108,2,FALSE) -> 6.38 | AW9: =VLOOKUP(AW10,'Adj List'!$A$58:$D$108,2,FALSE) -> 6.39 | AX9: =VLOOKUP(AX10,'Adj List'!$A$58:$D$108,2,FALSE) -> 6.4 | AY9: =VLOOKUP(AY10,'Adj List'!$A$58:$D$108,2,FALSE) -> 6.41 | AZ9: =VLOOKUP(AZ10,'Adj List'!$A$58:$D$108,2,FALSE) -> 6.42 | BA9: =VLOOKUP(BA10,'Adj List'!$A$58:$D$108,2,FALSE) -> 6.43 | BB9: =VLOOKUP(BB10,'Adj List'!$A$58:$D$108,2,FALSE) -> 6.44 | BC9: =VLOOKUP(BC10,'Adj List'!$A$58:$D$108,2,FALSE) -> 6.45 | BD9: =VLOOKUP(BD10,'Adj List'!$A$58:$D$108,2,FALSE) -> 6.46 | BE9: 6.47 | BF9: =VLOOKUP(BF10,'Adj List'!$A$58:$D$108,2,FALSE) -> 6.48 | BG9: S-6.49 | BH9: S-6.51 | BI9: S-6.50
A10: LINE | B10: DESCRIPTION | D10: Period Beginning Balance | E10: =+'Adj List'!A7 -> REVENUES AND EXPENSES | F10: =+'Adj List'!A8 -> PASS-THROUGH REVENUE & EXPENSE | G10: =+'Adj List'!A9 -> TEMPERATURE NORMALIZATION | H10: =+'Adj List'!A10 -> FEDERAL INCOME TAX | I10: =+'Adj List'!A11 -> TAX BENEFIT OF INTEREST | J10: =+'Adj List'!A12 -> BAD DEBT EXPENSE | K10: =+'Adj List'!A13 -> RATE CASE EXPENSE | L10: =+'Adj List'!A14 -> EXCISE TAX | M10: =+'Adj List'!A15 -> EMPLOYEE INSURANCE | N10: =+'Adj List'!A16 -> INJURIES & DAMAGES | O10: =+'Adj List'!A17 -> INCENTIVE PAY | P10: =+'Adj List'!A18 -> INVESTMENT PLAN | Q10: =+'Adj List'!A19 -> INTEREST ON CUSTOMER DEPOSITS | R10: =+'Adj List'!A20 -> PROPERTY AND LIAB INSURANCE | S10: =+'Adj List'!A21 -> DEFERRED GAINS AND LOSSES ON PROPERTY SALES | T10: =+'Adj List'!A22 -> D&O INSURANCE | U10: =+'Adj List'!A23 -> PENSION PLAN | V10: =+'Adj List'!A24 -> WAGE INCREASE | W10: =+'Adj List'!A25 -> AMA TO EOP RATE BASE | X10: =+'Adj List'!A26 -> UPDATE DEPR RATES | Y10: =+'Adj List'!A27 -> WUTC FILING FEE | Z10: =+'Adj List'!A28 -> PRO FORMA O&M | AA10: =+'Adj List'!A29 -> REMOVE AMR PLANT AND DEPRECIATION | AB10: =+'Adj List'!A30 -> AMI PLANT AND DEFERRAL | AC10: =+'Adj List'!A31 -> ENVIRONMENTAL REMEDIATION | AD10: =+'Adj List'!A32 -> ESTIMATED PLANT RETIREMENTS RATE BASE | AE10: =+'Adj List'!A33 -> TEST YEAR PLANT ROLL FORWARD | AF10: =+'Adj List'!A34 -> PROVISIONAL PROFORMA RETIREMENTS DEPRECIATION | AG10: =+'Adj List'!A35 -> PROGRAMMATIC PROVISIONAL PROFORMA | AH10: =+'Adj List'!A36 -> CUSTOMER DRIVEN PROGRAMMATIC PROVISIONAL PROFORMA | AI10: =+'Adj List'!A37 -> SPECIFIC PROVISIONAL PROFORMA | AJ10: =+'Adj List'!A38 -> PROJECTED PROVISIONAL PROFORMA | AK10: =+'Adj List'!A39 -> REMOVE TEST YEAR DEFERRALS | AL10: =+'Adj List'!A40 -> REGULATORY FILING FEE DEFERRAL | AM10: ='Adj List'!A41 -> PARTICIPATORY FUNDING GRANTS | AN10: =+'Adj List'!A42 -> TARGETED ELECTRIFICATION ACTIVITIES DEFERRAL AMORTIZATION | AO10: LTIP | AP10: Open 5 | AQ10: Open 6 | AR10: Open 7 | AS10: Open 8 | AT10: Open 9 | AU10: Open 10 | AV10: =+'Adj List'!A58 -> POWER COSTS | AW10: =+'Adj List'!A59 -> WILD HORSE SOLAR | AX10: =+'Adj List'!A60 -> STORM EXPENSE NORMALIZATION | AY10: =+'Adj List'!A61 -> ELECTRIC REGULATORY ASSETS & LIAB | AZ10: =+'Adj List'!A62 -> GREEN DIRECT | BA10: =+'Adj List'!A63 -> STORM DEFERRAL AMORTIZATION | BB10: =+'Adj List'!A64 -> COLSTRIP REMOVAL | BC10: =+'Adj List'!A65 -> ACQUISITION ADJUSTMENT | BD10: =+'Adj List'!A66 -> TEP TRACKER | BE10: =+'Adj List'!A67 -> CETA DR PPA DEFERRALS | BF10: =+'Adj List'!A68 -> CEIP DEFERRAL | BG10: RESTORE CGR TRACKER COSTS | BH10: RESTORE WILDFIRE TRACKER COSTS | BI10: RESTORE DCARB TRACKER COSTS | BJ10: TOTAL RESTATING ADJUSTMENTS | BK10: RESTATED RESULTS OF OPERATIONS
D11: =VLOOKUP(COLUMN(D70),'Named Ranges E'!$A$17:$B$569,2,FALSE) -> d | E11: =VLOOKUP(COLUMN(E70),'Named Ranges E'!$A$17:$B$569,2,FALSE) -> e | F11: =VLOOKUP(COLUMN(F70),'Named Ranges E'!$A$17:$B$569,2,FALSE) -> f | G11: =VLOOKUP(COLUMN(G70),'Named Ranges E'!$A$17:$B$569,2,FALSE) -> g | H11: =VLOOKUP(COLUMN(H70),'Named Ranges E'!$A$17:$B$569,2,FALSE) -> h | I11: =VLOOKUP(COLUMN(I70),'Named Ranges E'!$A$17:$B$569,2,FALSE) -> i | J11: =VLOOKUP(COLUMN(J70),'Named Ranges E'!$A$17:$B$569,2,FALSE) -> j | K11: =VLOOKUP(COLUMN(K70),'Named Ranges E'!$A$17:$B$569,2,FALSE) -> k | L11: =VLOOKUP(COLUMN(L70),'Named Ranges E'!$A$17:$B$569,2,FALSE) -> l | M11: =VLOOKUP(COLUMN(M70),'Named Ranges E'!$A$17:$B$569,2,FALSE) -> m | N11: =VLOOKUP(COLUMN(N70),'Named Ranges E'!$A$17:$B$569,2,FALSE) -> n | O11: =VLOOKUP(COLUMN(O70),'Named Ranges E'!$A$17:$B$569,2,FALSE) -> o | P11: =VLOOKUP(COLUMN(P70),'Named Ranges E'!$A$17:$B$569,2,FALSE) -> p | Q11: =VLOOKUP(COLUMN(Q70),'Named Ranges E'!$A$17:$B$569,2,FALSE) -> q | R11: =VLOOKUP(COLUMN(R70),'Named Ranges E'!$A$17:$B$569,2,FALSE) -> r | S11: =VLOOKUP(COLUMN(S70),'Named Ranges E'!$A$17:$B$569,2,FALSE) -> s | T11: =VLOOKUP(COLUMN(T70),'Named Ranges E'!$A$17:$B$569,2,FALSE) -> t | U11: =VLOOKUP(COLUMN(U70),'Named Ranges E'!$A$17:$B$569,2,FALSE) -> u | V11: =VLOOKUP(COLUMN(V70),'Named Ranges E'!$A$17:$B$569,2,FALSE) -> v | W11: =VLOOKUP(COLUMN(W70),'Named Ranges E'!$A$17:$B$569,2,FALSE) -> w | X11: =VLOOKUP(COLUMN(X70),'Named Ranges E'!$A$17:$B$569,2,FALSE) -> x | Y11: =VLOOKUP(COLUMN(Y70),'Named Ranges E'!$A$17:$B$569,2,FALSE) -> y | Z11: =VLOOKUP(COLUMN(Z70),'Named Ranges E'!$A$17:$B$569,2,FALSE) -> z | AA11: =VLOOKUP(COLUMN(AA70),'Named Ranges E'!$A$17:$B$569,2,FALSE) -> aa | AB11: =VLOOKUP(COLUMN(AB70),'Named Ranges E'!$A$17:$B$569,2,FALSE) -> ab | AC11: =VLOOKUP(COLUMN(AC70),'Named Ranges E'!$A$17:$B$569,2,FALSE) -> ac | AD11: =VLOOKUP(COLUMN(AD70),'Named Ranges E'!$A$17:$B$569,2,FALSE) -> ad | AE11: =VLOOKUP(COLUMN(AE70),'Named Ranges E'!$A$17:$B$569,2,FALSE) -> ae | AF11: =VLOOKUP(COLUMN(AF70),'Named Ranges E'!$A$17:$B$569,2,FALSE) -> af | AG11: =VLOOKUP(COLUMN(AG70),'Named Ranges E'!$A$17:$B$569,2,FALSE) -> ag | AH11: =VLOOKUP(COLUMN(AH70),'Named Ranges E'!$A$17:$B$569,2,FALSE) -> ah | AI11: =VLOOKUP(COLUMN(AI70),'Named Ranges E'!$A$17:$B$569,2,FALSE) -> ai | AJ11: =VLOOKUP(COLUMN(AJ70),'Named Ranges E'!$A$17:$B$569,2,FALSE) -> aj | AK11: =VLOOKUP(COLUMN(AK70),'Named Ranges E'!$A$17:$B$569,2,FALSE) -> ak | AL11: =VLOOKUP(COLUMN(AL70),'Named Ranges E'!$A$17:$B$569,2,FALSE) -> al | AM11: =VLOOKUP(COLUMN(AM70),'Named Ranges E'!$A$17:$B$569,2,FALSE) -> am | AN11: =VLOOKUP(COLUMN(AN70),'Named Ranges E'!$A$17:$B$569,2,FALSE) -> an | AO11: =VLOOKUP(COLUMN(AO70),'Named Ranges E'!$A$17:$B$569,2,FALSE) -> ao | AP11: =VLOOKUP(COLUMN(AP70),'Named Ranges E'!$A$17:$B$569,2,FALSE) -> ap | AQ11: =VLOOKUP(COLUMN(AQ70),'Named Ranges E'!$A$17:$B$569,2,FALSE) -> aq | AR11: =VLOOKUP(COLUMN(AR70),'Named Ranges E'!$A$17:$B$569,2,FALSE) -> ar | AS11: =VLOOKUP(COLUMN(AS70),'Named Ranges E'!$A$17:$B$569,2,FALSE) -> as | AT11: =VLOOKUP(COLUMN(AT70),'Named Ranges E'!$A$17:$B$569,2,FALSE) -> at | AU11: =VLOOKUP(COLUMN(AU70),'Named Ranges E'!$A$17:$B$569,2,FALSE) -> au | AV11: =VLOOKUP(COLUMN(AV70),'Named Ranges E'!$A$17:$B$569,2,FALSE) -> av | AW11: =VLOOKUP(COLUMN(AW70),'Named Ranges E'!$A$17:$B$569,2,FALSE) -> aw | AX11: =VLOOKUP(COLUMN(AX70),'Named Ranges E'!$A$17:$B$569,2,FALSE) -> ax | AY11: =VLOOKUP(COLUMN(AY70),'Named Ranges E'!$A$17:$B$569,2,FALSE) -> ay | AZ11: =VLOOKUP(COLUMN(AZ70),'Named Ranges E'!$A$17:$B$569,2,FALSE) -> az | BA11: =VLOOKUP(COLUMN(BA70),'Named Ranges E'!$A$17:$B$569,2,FALSE) -> ba | BB11: =VLOOKUP(COLUMN(BB1),'Named Ranges E'!$A$17:$B$569,2,FALSE) -> bb | BC11: =VLOOKUP(COLUMN(BC1),'Named Ranges E'!$A$17:$B$569,2,FALSE) -> bc | BD11: =VLOOKUP(COLUMN(BD1),'Named Ranges E'!$A$17:$B$569,2,FALSE) -> bd | BE11: =VLOOKUP(COLUMN(BE1),'Named Ranges E'!$A$17:$B$569,2,FALSE) -> be | BF11: =VLOOKUP(COLUMN(BF1),'Named Ranges E'!$A$17:$B$569,2,FALSE) -> bf | BG11: bg | BH11: bh | BI11: bi | BJ11: =VLOOKUP(COLUMN(BJ1),'Named Ranges E'!A$17:B$569,2,FALSE)&" = ∑ "&E11&" thru "&BF11 -> bj = ∑ e thru bf | BK11: =VLOOKUP(COLUMN(BK1),'Named Ranges E'!A$17:B569,2,FALSE)&" = "&LEFT(D11,2)&" + "&LEFT(BJ11,2) -> bk = d + bj
C13: Restating | E13: 2023-06-01 | F13: 2023-06-01 | G13: 2023-06-01 | H13: 2023-06-01 | I13: 2023-06-01 | J13: 2023-06-01 | K13: 2023-06-01 | L13: 2023-06-01 | M13: 2023-06-01 | N13: 2023-06-01 | O13: 2023-06-01 | P13: 2023-06-01 | Q13: 2023-06-01 | R13: 2023-06-01 | S13: 2023-06-01 | T13: 2023-06-01 | U13: 2023-06-01 | V13: 2023-06-01 | W13: 2023-06-01 | X13: 2023-06-01 | Y13: 2023-06-01 | Z13: 2023-06-01 | AA13: 2023-06-01 | AB13: 2023-06-01 | AC13: 2023-06-01 | AD13: 2023-06-01 | AE13: 2023-06-01 | AF13: 2023-06-01 | AG13: 2023-06-01 | AH13: 2023-06-01 | AI13: 2023-06-01 | AJ13: 2023-06-01 | AK13: 2023-06-01 | AL13: 2023-06-01 | AM13: 2023-06-01 | AV13: 2023-06-01 | AW13: 2023-06-01 | AX13: 2023-06-01 | AY13: 2023-06-01 | AZ13: 2023-06-01 | BA13: 2023-06-01 | BB13: 2023-06-01 | BC13: 2023-06-01 | BD13: 2023-06-01 | BE13: 2023-06-01 | BF13: 2023-06-01 | BG13: 2023-06-01 | BH13: 2023-06-01 | BI13: 2023-06-01
C14: 2023-06-01
A15: =A76 -> 1 | B15: OPERATING REVENUES | C15: Restating
A16: 2 | B16: SALES TO CUSTOMERS | C16: Restating | D16: 2655527874 | E16: ='Common Adj'!E$46-'Detailed Summary'!E$17 -> 117015981.7 | F16: ='Common Adj'!W62 -> -286618901.9 | G16: ='Common Adj'!AO32 -> -62918624 | BB16: ='Electric Adj'!EA58 -> -26265550.76 | BD16: ='Electric Adj'!FK18 -> -2017272.72 | BJ16: =SUM(E16:BI16) -> -260804367.7 | BK16: =+BJ16+D16 -> 2394723507
A17: 3 | B17: SALES FROM RESALE-FIRM/SPECIAL CONTRACT | C17: Restating | D17: 335744.31 | E17: ='Common Adj'!E$45 -> 147017.8761 | F17: ='Common Adj'!W63 -> 0 | G17: ='Common Adj'!AO33 -> -14206 | BJ17: =SUM(E17:BI17) -> 132811.8761 | BK17: =+BJ17+D17 -> 468556.1861
A18: 4 | B18: SALES TO OTHER UTILITIES | C18: Restating | D18: 763721180.9 | BJ18: =SUM(E18:BI18) -> 0 | BK18: =+BJ18+D18 -> 763721180.9
A19: 5 | B19: OTHER OPERATING REVENUES | C19: Restating | D19: 149493301.8 | E19: ='Common Adj'!E$62 -> -4832032.66 | F19: ='Common Adj'!W64 -> 1969166.39 | AB19: =+'Common Adj'!PA38 -> -7727414.6 | AK19: ='Common Adj'!TJ19 -> -42710.67 | BF19: ='Electric Adj'!GU18 -> -40290 | BJ19: =SUM(E19:BI19) -> -10673281.54 | BK19: =+BJ19+D19 -> 138820020.2
A20: 6 | B20: TOTAL OPERATING REVENUES | C20: Restating | D20: =SUM(D16:D19) -> 3569078101 | E20: 112330966.9 | F20: -284649735.5 | G20: -62932830 | H20: 0 | I20: 0 | J20: 0 | K20: 0 | L20: 0 | M20: 0 | N20: 0 | O20: 0 | P20: 0 | Q20: 0 | R20: 0 | S20: 0 | T20: 0 | U20: 0 | V20: 0 | W20: 0 | X20: 0 | Y20: =SUM(Y16:Y19) -> 0 | Z20: 0 | AA20: 0 | AB20: -7727414.6 | AC20: 0 | AK20: =SUM(AK16:AK19) -> -42710.67 | AL20: 0 | AM20: 0 | AN20: 0 | AO20: 0 | AP20: 0 | AQ20: 0 | AR20: 0 | AS20: 0 | AT20: 0 | AU20: 0 | AV20: 0 | AW20: 0 | AX20: 0 | AY20: 0 | AZ20: 0 | BA20: 0 | BB20: -26265550.76 | BC20: 0 | BD20: -2017272.72 | BE20: =SUM(BE16:BE19) -> 0 | BF20: -40290 | BG20: 0 | BH20: =SUM(BH16:BH19) -> 0 | BI20: 0 | BJ20: =SUM(E20:BI20) -> -271344837.3 | BK20: =SUM(BK16:BK19) -> 3297733264
A21: 7 | C21: Restating
A22: 8 | B22: OPERATING REVENUE DEDUCTIONS: | C22: Restating
A23: 9 | C23: Restating
A24: 10 | B24: POWER COSTS: | C24: Restating
A25: 11 | B25: FUEL | C25: Restating | D25: 455418278.8 | BJ25: =SUM(E25:BI25) -> 0 | BK25: =+BJ25+D25 -> 455418278.8
A26: 12 | B26: PURCHASED AND INTERCHANGED | C26: Restating | D26: 1350026211 | F26: ='Common Adj'!W67 -> -47690607.92 | O26: ='Common Adj'!GA17 -> -225833.9662 | V26: ='Common Adj'!KW17 -> 561855.3885 | AV26: =SUM('Electric Adj'!E27,'Electric Adj'!E34) -> -1142858.61 | BJ26: -48497445.11 | BK26: =+BJ26+D26 -> 1301528766
A27: 13 | B27: WHEELING | C27: Restating | D27: 161536441.1 | BJ27: 0 | BK27: =+BJ27+D27 -> 161536441.1
A28: 14 | B28: RESIDENTIAL EXCHANGE | C28: Restating | D28: -77573434.54 | F28: ='Common Adj'!W68 -> 77573434.54 | M28: ` | BJ28: 77573434.54 | BK28: =+BJ28+D28 -> 0
A29: 15 | B29: TOTAL PRODUCTION EXPENSES | C29: Restating | D29: =SUM(D24:D28) -> 1889407497 | E29: 0 | F29: 29882826.62 | G29: 0 | H29: 0 | I29: 0 | J29: 0 | K29: 0 | L29: 0 | M29: 0 | N29: 0 | O29: -225833.9662 | P29: 0 | Q29: 0 | R29: 0 | S29: 0 | T29: 0 | U29: 0 | V29: 561855.3885 | W29: 0 | X29: 0 | Y29: =SUM(Y24:Y28) -> 0 | Z29: 0 | AA29: 0 | AB29: 0 | AC29: 0 | AK29: =SUM(AK24:AK28) -> 0 | AL29: =SUM(AL24:AL28) -> 0 | AM29: 0 | AN29: 0 | AO29: 0 | AP29: 0 | AQ29: 0 | AR29: 0 | AS29: 0 | AT29: 0 | AU29: 0 | AV29: -1142858.61 | AW29: 0 | AX29: 0 | AY29: 0 | AZ29: 0 | BA29: 0 | BB29: 0 | BC29: 0 | BD29: 0 | BE29: =SUM(BE24:BE28) -> 0 | BF29: 0 | BG29: 0 | BH29: =SUM(BH24:BH28) -> 0 | BI29: 0 | BJ29: 29075989.43 | BK29: =SUM(BK24:BK28) -> 1918483486
A30: 16 | C30: Restating | BJ30: 0
A31: 17 | B31: OTHER POWER SUPPLY EXPENSES | C31: Restating | D31: 122361883.9 | O31: ='Common Adj'!GA18 -> -669735.2052 | V31: ='Common Adj'!KW18 -> 741815.0964 | BB31: ='Electric Adj'!EA60 -> -27007342.37 | BJ31: -26935262.48 | BK31: =+BJ31+D31 -> 95426621.43
A32: 18 | B32: TRANSMISSION EXPENSE | C32: Restating | D32: 25498629.28 | O32: ='Common Adj'!GA19 -> -330553.4828 | V32: ='Common Adj'!KW19 -> 738146.3585 | AX32: =+'Electric Adj'!BG18 -> 114433.5 | BJ32: 522026.3757 | BK32: 26020655.66
A33: 19 | B33: DISTRIBUTION EXPENSE | C33: Restating | D33: 103169980 | O33: ='Common Adj'!GA20 -> -1103596.461 | V33: ='Common Adj'!KW20 -> 1079252.415 | AX33: =+'Electric Adj'!BG17 -> 1252545.032 | BJ33: 1228200.986 | BK33: 104398181
A34: 20 | B34: CUSTOMER ACCTS EXPENSES | C34: Restating | D34: 56519137.12 | E34: ='Common Adj'!E$74 -> 728803.3132 | F34: ='Common Adj'!W69 -> -1845516.747 | G34: ='Common Adj'!AO22 -> -408308.201 | J34: ='Common Adj'!CO17 -> -455334.7858 | O34: ='Common Adj'!GA21 -> -266154.7777 | V34: ='Common Adj'!KW21 -> 265251.9821 | AB34: ='Common Adj'!PA41 -> -50135.46592 | AK34: ='Common Adj'!TJ21 -> -277.106827 | BB34: ='Electric Adj'!EA64 -> -170410.8933 | BD34: ='Electric Adj'!FK22 -> -13088.06541 | BF34: ='Electric Adj'!GU21 -> -261.40152 | BG34: 0 | BJ34: -2215432.149 | BK34: 54303704.97
A35: 21 | B35: CUSTOMER SERVICE EXPENSES | C35: Restating | D35: 52218524.41 | F35: ='Common Adj'!W70 -> -48233851.56 | O35: ='Common Adj'!GA22 -> -64455.82615 | Q35: ='Common Adj'!HK16 -> 131317.9369 | V35: ='Common Adj'!KW22+'Common Adj'!KW23 -> 217264.362 | BJ35: -47949725.09 | BK35: 4268799.323
A36: 22 | B36: CONSERVATION AMORTIZATION | C36: Restating | D36: 102976391.1 | F36: ='Common Adj'!W71 -> -102976391.1 | BJ36: -102976391.1 | BK36: 0
A37: 23 | B37: ADMIN & GENERAL EXPENSE | C37: Restating | D37: 166863451.1 | E37: ='Common Adj'!E$75 -> 449323.8675 | F37: ='Common Adj'!W72 -> -1261967.613 | G37: ='Common Adj'!AO23 -> -251731.32 | K37: ='Common Adj'!DG23 -> -226618.6914 | M37: ='Common Adj'!EQ23 -> -45443.68343 | N37: ='Common Adj'!FI20 -> -167050.6548 | O37: ='Common Adj'!GA23+'Common Adj'!GA24 -> -1086154.447 | P37: =+'Common Adj'!GS33 -> 502786.5411 | R37: ='Common Adj'!IC20 -> 1035921.811 | T37: =+'Common Adj'!JM20 -> -23123.58504 | U37: ='Common Adj'!KE16 -> 3717058.125 | V37: ='Common Adj'!KW24 -> 4379415.048 | Y37: ='Common Adj'!MY19 -> 287386.4751 | AB37: ='Common Adj'!PA42 -> -30909.6584 | AK37: ='Common Adj'!TJ22 -> -170.84268 | AM37: ='Common Adj'!UN18 -> -127874 | AX37: =+'Electric Adj'!BG19 -> 83596.115 | AZ37: =+'Electric Adj'!CQ25 -> -4140 | BB37: ='Electric Adj'!EA62+'Electric Adj'!EA65 -> -1322052.023 | BD37: ='Electric Adj'!FK37+'Electric Adj'!FK23 -> -765968.9509 | BF37: ='Electric Adj'!GU22 -> -161.16 | BG37: 0 | BH37: 0 | BI37: 0 | BJ37: 5142121.353 | BK37: 172005572.5
A38: 24 | B38: DEPRECIATION | C38: Restating | D38: 388725218.4 | X38: ='Common Adj'!MG16+'Common Adj'!MG17+'Common Adj'!MG21+'Common Adj'!MG22 -> 9792076.954 | AA38: ='Common Adj'!OI28 -> 0 | AW38: ='Electric Adj'!AO26 -> -219566 | BB38: ='Electric Adj'!EA66 -> -32823061.17 | BD38: ='Electric Adj'!FK38 -> -8762.581757 | BJ38: -23259312.8 | BK38: 365465905.6
A39: 25 | B39: AMORTIZATION | C39: Restating | D39: 77431123.16 | X39: ='Common Adj'!MG18+'Common Adj'!MG19+'Common Adj'!MG23+'Common Adj'!MG24 -> -13780499.8 | AZ39: =+'Electric Adj'!CQ24 -> -113868.56 | BB39: ='Electric Adj'!EA67 -> -715282.68 | BC39: ='Electric Adj'!ES37 -> -884308.18 | BJ39: -15493959.22 | BK39: 61937163.94
A40: 26 | B40: AMORTIZ OF PROPERTY GAIN/LOSS | C40: Restating | D40: 27712466 | BA40: ='Electric Adj'!DI26 -> 6532622.45 | BJ40: 6532622.45 | BK40: 34245088.45
A41: 27 | B41: OTHER OPERATING EXPENSES | C41: Restating | D41: -89556412.82 | E41: ='Common Adj'!E$72 -> 11032590.69 | F41: ='Common Adj'!W73 -> 11274.67 | S41: ='Common Adj'!IU19 -> 1470046.73 | AC41: ='Common Adj'!PW17 -> 53379.85434 | AK41: ='Common Adj'!TJ31 -> 94787979.61 | AL41: ='Common Adj'!TY24 -> 5438339.73 | AN41: ='Common Adj'!VC16 -> 138703.19 | AY41: ='Electric Adj'!BY62 -> 0 | BB41: ='Electric Adj'!EA63 -> -2863862.07 | BD41: ='Electric Adj'!FK41+'Electric Adj'!FK42+'Electric Adj'!FK43 -> -1109325.01 | BF41: ='Electric Adj'!GU29 -> 2074138.16 | BG41: 0 | BH41: 0 | BI41: 0 | BJ41: 111033265.6 | BK41: 21476852.73
A42: 28 | B42: TAXES OTHER THAN INCOME TAXES | C42: Restating | D42: 267182421 | E42: ='Common Adj'!E$76 -> 4322832.599 | F42: ='Common Adj'!W74 -> -159787914 | G42: ='Common Adj'!AO24 -> -2421844.097 | L42: ='Common Adj'!$DY$20 -> 27398.91112 | O42: ='Common Adj'!GA27 -> -329317.6554 | V42: ='Common Adj'!KW27 -> 365630.7377 | AB42: ='Common Adj'!PA43 -> -297374.0961 | AK42: ='Common Adj'!TJ23 -> -1643.634714 | AX42: =+'Electric Adj'!BG20 -> 17757.79333 | BB42: ='Electric Adj'!EA61+'Electric Adj'!EA68 -> -1956284 | BD42: ='Electric Adj'!FK24+'Electric Adj'!FK39 -> -116834.3461 | BF42: ='Electric Adj'!GU23 -> -1550.48007 | BG42: 0 | BH42: 0 | BI42: 0 | BJ42: -160179142.3 | BK42: 107003278.7
A43: 29 | B43: INCOME TAXES | C43: Restating | D43: 159200857.4 | E43: ='Common Adj'!E$81 -> 20117457.45 | F43: ='Common Adj'!W75 -> -92021.0906 | G43: ='Common Adj'!AO29 -> -12568698.74 | H43: =+'Common Adj'!BE16 -> -51655882.22 | I43: =+'Common Adj'!BW23 -> -30881913.79 | J43: ='Common Adj'!CO20 -> 95620.30503 | K43: ='Common Adj'!DG25 -> 47589.9252 | L43: ='Common Adj'!DY21 -> -5753.771335 | M43: ='Common Adj'!EQ25 -> 9543.173521 | N43: ='Common Adj'!FI21 -> 35080.6375 | O43: ='Common Adj'!GA30 -> 855918.3824 | P43: =+'Common Adj'!GS35 -> -105585.1736 | R43: ='Common Adj'!IC22 -> -217543.5804 | S43: ='Common Adj'!IU21 -> -308709.8133 | T43: =+'Common Adj'!JM22 -> 4855.952859 | U43: ='Common Adj'!KE19 -> -780582.2063 | V43: ='Common Adj'!KW31 -> -1753212.591 | X43: ='Common Adj'!MG29 -> 837568.7985 | Y43: ='Common Adj'!MY20 -> -60351.15977 | AA43: ='Common Adj'!OI34 -> 0 | AB43: =+'Common Adj'!PA52 -> -1543289.03 | AC43: ='Common Adj'!PW20 -> -11209.76941 | AK43: ='Common Adj'!TJ34 -> -19914005.73 | AL43: ='Common Adj'!TY26 -> -1142051.343 | AM43: ='Common Adj'!UN23 -> 26853.54 | AN43: ='Common Adj'!VC30 -> -29127.6699 | AV43: =-AV29*FIT -> 240000.3082 | AW43: ='Electric Adj'!AO28 -> 46108.86 | AX43: =+'Electric Adj'!BG28 -> -308349.8124 | AY43: ='Electric Adj'!BY64 -> 0 | AZ43: =+'Electric Adj'!CQ28 -> 24781.7976 | BA43: ='Electric Adj'!DI28 -> -1371850.714 | BB43: ='Electric Adj'!EA69+'Electric Adj'!EA70+'Electric Adj'!EA73 -> 12266266.68 | BC43: ='Electric Adj'!ES41 -> 185704.7178 | BD43: ='Electric Adj'!FK49 -> -691.6908331 | BF43: ='Electric Adj'!GU36 -> -443615.5749 | BG43: 0 | BH43: 0 | BI43: 0 | BJ43: -88401094.95 | BK43: 70799762.43
A44: 30 | B44: DEFERRED INCOME TAXES | C44: Restating | D44: -92361480.74 | H44: =SUM('Common Adj'!BE17:BE21) -> 48944521.45 | BJ44: 48944521.45 | BK44: -43416959.29
A45: 31 | B45: TOTAL OPERATING REV. DEDUCT. | C45: Restating | D45: =SUM(D29:D44) -> 3257349686 | E45: 36651007.92 | F45: -284303560.9 | G45: -15650582.36 | H45: -2711360.772 | I45: -30881913.79 | J45: -359714.4808 | K45: -179028.7662 | L45: 21645.13978 | M45: -35900.50991 | N45: -131970.0173 | O45: -3219883.439 | P45: 397201.3674 | Q45: 131317.9369 | R45: 818378.2309 | S45: 1161336.917 | T45: -18267.63218 | U45: 2936475.919 | V45: 6595418.797 | W45: 0 | X45: -3150854.052 | Y45: =SUM(Y29:Y44) -> 227035.3153 | Z45: 0 | AA45: 0 | AB45: -1921708.25 | AC45: 42170.08493 | AD45: 0 | AE45: 0 | AF45: 0 | AG45: 0 | AH45: 0 | AI45: 0 | AJ45: 0 | AK45: 74871882.3 | AL45: =SUM(AL29:AL44) -> 4296288.387 | AM45: =SUM(AM29:AM44) -> -101020.46 | AN45: 109575.5201 | AO45: 0 | AP45: 0 | AQ45: 0 | AR45: 0 | AS45: 0 | AT45: 0 | AU45: 0 | AV45: =SUM(AV29:AV44) -> -902858.3022 | AW45: =SUM(AW29:AW44) -> -173457.14 | AX45: 1159982.628 | AY45: 0 | AZ45: -93226.7624 | BA45: 5160771.735 | BB45: -54592028.53 | BC45: -698603.4622 | BD45: -2014670.645 | BE45: =SUM(BE29:BE44) -> 0 | BF45: 1628549.544 | BG45: 0 | BH45: =SUM(BH29:BH44) -> 0 | BI45: 0 | BJ45: =SUM(BH29:BJ44) -> -264931572.5 | BK45: 2992418114
A46: 32 | C46: Restating
A47: 33 | B47: NET OPERATING INCOME | C47: Restating | D47: =+D20-D45 -> 311728415.3 | E47: 75679958.97 | F47: -346174.5789 | G47: =+G20-G45 -> -47282247.64 | H47: 2711360.772 | I47: 30881913.79 | J47: 359714.4808 | K47: 179028.7662 | L47: -21645.13978 | M47: 35900.50991 | N47: 131970.0173 | O47: 3219883.439 | P47: -397201.3674 | Q47: -131317.9369 | R47: -818378.2309 | S47: -1161336.917 | T47: 18267.63218 | U47: -2936475.919 | V47: -6595418.797 | W47: 0 | X47: 3150854.052 | Y47: =+Y20-Y45 -> -227035.3153 | Z47: 0 | AA47: 0 | AB47: -5805706.35 | AC47: -42170.08493 | AD47: 0 | AE47: 0 | AF47: 0 | AG47: 0 | AH47: 0 | AI47: 0 | AJ47: 0 | AK47: -74914592.97 | AL47: =+AL20-AL45 -> -4296288.387 | AM47: 101020.46 | AN47: -109575.5201 | AO47: 0 | AP47: 0 | AQ47: 0 | AR47: 0 | AS47: 0 | AT47: 0 | AU47: 0 | AV47: 902858.3022 | AW47: =+AW20-AW45 -> 173457.14 | AX47: -1159982.628 | AY47: 0 | AZ47: 93226.7624 | BA47: -5160771.735 | BB47: 28326477.77 | BC47: 698603.4622 | BD47: -2602.075039 | BE47: =+BE20-BE45 -> 0 | BF47: -1668839.544 | BG47: 0 | BH47: =+BH20-BH45 -> 0 | BI47: 0 | BJ47: -6413264.807 | BK47: 305315150.5
A48: 34 | C48: Restating
A49: 35 | B49: RATE BASE | C49: Restating | D49: =D60 -> 5583764450 | E49: 0 | F49: 0 | G49: 0 | H49: 0 | I49: 0 | J49: 0 | K49: 0 | L49: 0 | M49: 0 | N49: 0 | O49: 0 | P49: 0 | Q49: 0 | R49: 0 | S49: 0 | T49: 0 | U49: 0 | V49: 0 | W49: 23410353.12 | X49: 3150854.052 | Y49: =Y60 -> 0 | Z49: 0 | AA49: 0 | AB49: -117784370.6 | AC49: 0 | AK49: =AK60 -> 0 | AL49: 0 | AM49: 0 | AN49: 0 | AO49: 0 | AP49: 0 | AQ49: 0 | AR49: 0 | AS49: 0 | AT49: 0 | AU49: 0 | AV49: 0 | AW49: -1121518.772 | AX49: =AX60 -> 0 | AY49: 0 | AZ49: -92162.36575 | BA49: 0 | BB49: 100713505.5 | BC49: 0 | BD49: -530374.6464 | BE49: =BE60 -> 0 | BF49: 0 | BG49: 0 | BH49: =BH60 -> 0 | BI49: 0 | BJ49: =BJ60 -> 7746286.261 | BK49: =BK60 -> 5591510736
A50: 36 | C50: Restating
A51: 37 | B51: RATE OF RETURN | C51: Restating | D51: =+D47/D49 -> 0.05582764425 | BK51: =+BK47/BK49 -> 0.05460333797
A52: 38 | C52: Restating
A53: 39 | B53: RATE BASE: | C53: Restating
A54: 40 | B54: GROSS UTILITY PLANT IN SERVICE | C54: Restating | D54: 1.182512479e+10 | W54: ='Common Adj'!LO16 -> 66164287.26 | AA54: ='Common Adj'!OI18 -> 0 | AB54: =+'Common Adj'!PA21 -> -161479731.4 | AW54: ='Electric Adj'!AO18 -> -4539303 | AZ54: =+'Electric Adj'!CQ18 -> -341605.68 | BB54: ='Electric Adj'!EA51 -> -531269628.9 | BC54: ='Electric Adj'!ES23 -> 0 | BD54: ='Electric Adj'!FK29 -> -550705.2458 | BE54: ='Electric Adj'!GC22 -> 0 | BJ54: =SUM(E54:BI54) -> -632016687 | BK54: =+BJ54+D54 -> 1.119310811e+10
A55: 41 | B55: ACCUM DEPR AND AMORT | C55: Restating | D55: -5578520719 | W55: ='Common Adj'!LO17 -> -55333202.81 | X55: ='Common Adj'!MG34 -> 3988422.85 | AA55: ='Common Adj'!OI19 -> 0 | AB55: =+'Common Adj'!PA27 -> 26856211.23 | AW55: ='Electric Adj'!AO19 -> 2970263 | AZ55: =+'Electric Adj'!CQ19 -> 241970.69 | BB55: ='Electric Adj'!EA52 -> 500301770.8 | BC55: ='Electric Adj'!ES29 -> 0 | BD55: ='Electric Adj'!FK30 -> 12221.55648 | BE55: ='Electric Adj'!GC26 -> 0 | BJ55: 479037657.3 | BK55: -5099483061
A56: 42 | B56: DEFERRED DEBITS AND CREDITS | C56: Restating | D56: 456443722.3 | W56: ='Common Adj'!LO18 -> 7014230.626 | AL56: ='Common Adj'!TY17 -> 0 | AY56: ='Electric Adj'!BY36 -> 0 | BB56: ='Electric Adj'!EA53 -> 140937658.4 | BD56: ='Electric Adj'!FK31 -> 0 | BJ56: 147951889.1 | BK56: 604395611.4
A57: 43 | B57: DEFERRED TAXES | C57: Restating | D57: -1224323797 | W57: ='Common Adj'!LO19 -> 30080211.23 | X57: ='Common Adj'!MG35 -> -837568.7985 | AA57: ='Common Adj'!OI20 -> 0 | AB57: =+'Common Adj'!PA33 -> 16839149.56 | AL57: ='Common Adj'!TY18 -> 0 | AW57: ='Electric Adj'!AO20 -> 447521.2277 | AY57: ='Electric Adj'!BY37 -> 0 | AZ57: =+'Electric Adj'!CQ20 -> 7472.62425 | BB57: ='Electric Adj'!EA54 -> -9256294.791 | BD57: ='Electric Adj'!FK32 -> 8109.042959 | BE57: ='Electric Adj'!GC30 -> 0 | BJ57: 37288600.1 | BK57: -1187035196
A58: 44 | B58: ALLOWANCE FOR WORKING CAPITAL | C58: Restating | D58: 240993567.3 | W58: ='Common Adj'!LO20 -> -18474761.51 | BJ58: -18474761.51 | BK58: 222518805.8
A59: 45 | B59: OTHER | C59: Restating | D59: -135953118.1 | W59: ='Common Adj'!LO21 -> -6040411.669 | BJ59: -6040411.669 | BK59: -141993529.8
A60: 46 | B60: TOTAL RATE BASE | C60: Restating | D60: =SUM(D54:D59) -> 5583764450 | E60: 0 | F60: 0 | G60: 0 | H60: 0 | I60: 0 | J60: 0 | K60: 0 | L60: 0 | M60: 0 | N60: 0 | O60: 0 | P60: 0 | Q60: 0 | R60: 0 | S60: 0 | T60: 0 | U60: 0 | V60: 0 | W60: 23410353.12 | X60: 3150854.052 | Y60: =SUM(Y54:Y59) -> 0 | Z60: 0 | AA60: 0 | AB60: -117784370.6 | AC60: 0 | AD60: 0 | AE60: 0 | AF60: 0 | AG60: 0 | AH60: 0 | AI60: 0 | AJ60: 0 | AK60: 0 | AL60: =SUM(AL54:AL59) -> 0 | AM60: 0 | AN60: 0 | AO60: 0 | AP60: 0 | AQ60: 0 | AR60: 0 | AS60: 0 | AT60: 0 | AU60: 0 | AV60: =SUM(AV54:AV59) -> 0 | AW60: -1121518.772 | AX60: 0 | AY60: 0 | AZ60: -92162.36575 | BA60: 0 | BB60: 100713505.5 | BC60: 0 | BD60: -530374.6464 | BE60: =SUM(BE54:BE59) -> 0 | BF60: 0 | BG60: 0 | BH60: =SUM(BH54:BH59) -> 0 | BI60: 0 | BJ60: =SUM(BH54:BJ59) -> 7746286.261 | BK60: 5591510736
A61: 47 | C61: Restating
A62: 48 | B62: REQUESTED RATE OF RETURN | C62: Restating | D62: =+'Def, COC, ConvF'!$C$13 -> 0.0736 | E62: =+'Def, COC, ConvF'!$C$13 -> 0.0736 | F62: =+'Def, COC, ConvF'!$C$13 -> 0.0736 | G62: =+'Def, COC, ConvF'!$C$13 -> 0.0736 | H62: =+'Def, COC, ConvF'!$C$13 -> 0.0736 | I62: =+'Def, COC, ConvF'!$C$13 -> 0.0736 | J62: =+'Def, COC, ConvF'!$C$13 -> 0.0736 | K62: =+'Def, COC, ConvF'!$C$13 -> 0.0736 | L62: =+'Def, COC, ConvF'!$C$13 -> 0.0736 | M62: =+'Def, COC, ConvF'!$C$13 -> 0.0736 | N62: =+'Def, COC, ConvF'!$C$13 -> 0.0736 | O62: =+'Def, COC, ConvF'!$C$13 -> 0.0736 | P62: =+'Def, COC, ConvF'!$C$13 -> 0.0736 | Q62: =+'Def, COC, ConvF'!$C$13 -> 0.0736 | R62: =+'Def, COC, ConvF'!$C$13 -> 0.0736 | S62: =+'Def, COC, ConvF'!$C$13 -> 0.0736 | T62: =+'Def, COC, ConvF'!$C$13 -> 0.0736 | U62: =+'Def, COC, ConvF'!$C$13 -> 0.0736 | V62: =+'Def, COC, ConvF'!$C$13 -> 0.0736 | W62: =+'Def, COC, ConvF'!$C$13 -> 0.0736 | X62: =+'Def, COC, ConvF'!$C$13 -> 0.0736 | Y62: =+'Def, COC, ConvF'!$C$13 -> 0.0736 | Z62: =+'Def, COC, ConvF'!$C$13 -> 0.0736 | AA62: =+'Def, COC, ConvF'!$C$13 -> 0.0736 | AB62: =+'Def, COC, ConvF'!$C$13 -> 0.0736 | AC62: =+'Def, COC, ConvF'!$C$13 -> 0.0736 | AD62: =+'Def, COC, ConvF'!$C$13 -> 0.0736 | AE62: =+'Def, COC, ConvF'!$C$13 -> 0.0736 | AF62: =+'Def, COC, ConvF'!$C$13 -> 0.0736 | AG62: =+'Def, COC, ConvF'!$C$13 -> 0.0736 | AH62: =+'Def, COC, ConvF'!$C$13 -> 0.0736 | AI62: =+'Def, COC, ConvF'!$C$13 -> 0.0736 | AJ62: =+'Def, COC, ConvF'!$C$13 -> 0.0736 | AK62: =+'Def, COC, ConvF'!$C$13 -> 0.0736 | AL62: =+'Def, COC, ConvF'!$C$13 -> 0.0736 | AM62: =+'Def, COC, ConvF'!$C$13 -> 0.0736 | AN62: =+'Def, COC, ConvF'!$C$13 -> 0.0736 | AO62: =+'Def, COC, ConvF'!$C$13 -> 0.0736 | AP62: =+'Def, COC, ConvF'!$C$13 -> 0.0736 | AQ62: =+'Def, COC, ConvF'!$C$13 -> 0.0736 | AR62: =+'Def, COC, ConvF'!$C$13 -> 0.0736 | AS62: =+'Def, COC, ConvF'!$C$13 -> 0.0736 | AT62: =+'Def, COC, ConvF'!$C$13 -> 0.0736 | AU62: =+'Def, COC, ConvF'!$C$13 -> 0.0736 | AV62: =+'Def, COC, ConvF'!$C$13 -> 0.0736 | AW62: =+'Def, COC, ConvF'!$C$13 -> 0.0736 | AX62: =+'Def, COC, ConvF'!$C$13 -> 0.0736 | AY62: =+'Def, COC, ConvF'!$C$13 -> 0.0736 | AZ62: =+'Def, COC, ConvF'!$C$13 -> 0.0736 | BA62: =+'Def, COC, ConvF'!$C$13 -> 0.0736 | BB62: =+'Def, COC, ConvF'!$C$13 -> 0.0736 | BC62: =+'Def, COC, ConvF'!$C$13 -> 0.0736 | BD62: =+'Def, COC, ConvF'!$C$13 -> 0.0736 | BE62: =+'Def, COC, ConvF'!$C$13 -> 0.0736 | BF62: =+'Def, COC, ConvF'!$C$13 -> 0.0736 | BG62: 0.0736 | BH62: 0.0736 | BI62: 0.0736 | BJ62: =+'Def, COC, ConvF'!$C$13 -> 0.0736 | BK62: =+'Def, COC, ConvF'!$C$13 -> 0.0736
A63: 49 | B63: CONVERSION FACTOR | C63: Restating | D63: =+'Def, COC, ConvF'!$P$20 -> 0.751313 | E63: =+'Def, COC, ConvF'!$P$20 -> 0.751313 | F63: =+'Def, COC, ConvF'!$P$20 -> 0.751313 | G63: =+'Def, COC, ConvF'!$P$20 -> 0.751313 | H63: =+'Def, COC, ConvF'!$P$20 -> 0.751313 | I63: =+'Def, COC, ConvF'!$P$20 -> 0.751313 | J63: =+'Def, COC, ConvF'!$P$20 -> 0.751313 | K63: =+'Def, COC, ConvF'!$P$20 -> 0.751313 | L63: =+'Def, COC, ConvF'!$P$20 -> 0.751313 | M63: =+'Def, COC, ConvF'!$P$20 -> 0.751313 | N63: =+'Def, COC, ConvF'!$P$20 -> 0.751313 | O63: =+'Def, COC, ConvF'!$P$20 -> 0.751313 | P63: =+'Def, COC, ConvF'!$P$20 -> 0.751313 | Q63: =+'Def, COC, ConvF'!$P$20 -> 0.751313 | R63: =+'Def, COC, ConvF'!$P$20 -> 0.751313 | S63: =+'Def, COC, ConvF'!$P$20 -> 0.751313 | T63: =+'Def, COC, ConvF'!$P$20 -> 0.751313 | U63: =+'Def, COC, ConvF'!$P$20 -> 0.751313 | V63: =+'Def, COC, ConvF'!$P$20 -> 0.751313 | W63: =+'Def, COC, ConvF'!$P$20 -> 0.751313 | X63: =+'Def, COC, ConvF'!$P$20 -> 0.751313 | Y63: =+'Def, COC, ConvF'!$P$20 -> 0.751313 | Z63: =+'Def, COC, ConvF'!$P$20 -> 0.751313 | AA63: =+'Def, COC, ConvF'!$P$20 -> 0.751313 | AB63: =+'Def, COC, ConvF'!$P$20 -> 0.751313 | AC63: =+'Def, COC, ConvF'!$P$20 -> 0.751313 | AD63: =+'Def, COC, ConvF'!$P$20 -> 0.751313 | AE63: =+'Def, COC, ConvF'!$P$20 -> 0.751313 | AF63: =+'Def, COC, ConvF'!$P$20 -> 0.751313 | AG63: =+'Def, COC, ConvF'!$P$20 -> 0.751313 | AH63: =+'Def, COC, ConvF'!$P$20 -> 0.751313 | AI63: =+'Def, COC, ConvF'!$P$20 -> 0.751313 | AJ63: =+'Def, COC, ConvF'!$P$20 -> 0.751313 | AK63: =+'Def, COC, ConvF'!$P$20 -> 0.751313 | AL63: =+'Def, COC, ConvF'!$P$20 -> 0.751313 | AM63: =+'Def, COC, ConvF'!$P$20 -> 0.751313 | AN63: =+'Def, COC, ConvF'!$P$20 -> 0.751313 | AO63: =+'Def, COC, ConvF'!$P$20 -> 0.751313 | AP63: =+'Def, COC, ConvF'!$P$20 -> 0.751313 | AQ63: =+'Def, COC, ConvF'!$P$20 -> 0.751313 | AR63: =+'Def, COC, ConvF'!$P$20 -> 0.751313 | AS63: =+'Def, COC, ConvF'!$P$20 -> 0.751313 | AT63: =+'Def, COC, ConvF'!$P$20 -> 0.751313 | AU63: =+'Def, COC, ConvF'!$P$20 -> 0.751313 | AV63: =+'Def, COC, ConvF'!$P$20 -> 0.751313 | AW63: =+'Def, COC, ConvF'!$P$20 -> 0.751313 | AX63: =+'Def, COC, ConvF'!$P$20 -> 0.751313 | AY63: =+'Def, COC, ConvF'!$P$20 -> 0.751313 | AZ63: =+'Def, COC, ConvF'!$P$20 -> 0.751313 | BA63: =+'Def, COC, ConvF'!$P$20 -> 0.751313 | BB63: =+'Def, COC, ConvF'!$P$20 -> 0.751313 | BC63: =+'Def, COC, ConvF'!$P$20 -> 0.751313 | BD63: =+'Def, COC, ConvF'!$P$20 -> 0.751313 | BE63: =+'Def, COC, ConvF'!$P$20 -> 0.751313 | BF63: =+'Def, COC, ConvF'!$P$20 -> 0.751313 | BG63: 0.751313 | BH63: 0.751313 | BI63: 0.751313 | BJ63: =+'Def, COC, ConvF'!$P$20 -> 0.751313 | BK63: =+'Def, COC, ConvF'!$P$20 -> 0.751313
A64: 50 | B64: SURPLUS / (DEFICIENCY) | C64: Restating | D64: =+D47-(D60*D62) -> -99236648.2 | E64: =+E47-(E60*E62) -> 75679958.97 | F64: -346174.5789 | G64: -47282247.64 | H64: 2711360.772 | I64: 30881913.79 | J64: 359714.4808 | K64: 179028.7662 | L64: -21645.13978 | M64: 35900.50991 | N64: 131970.0173 | O64: 3219883.439 | P64: -397201.3674 | Q64: -131317.9369 | R64: -818378.2309 | S64: -1161336.917 | T64: 18267.63218 | U64: -2936475.919 | V64: -6595418.797 | W64: -1723001.99 | X64: 2918951.193 | Y64: -227035.3153 | Z64: 0 | AA64: 0 | AB64: 2863223.33 | AC64: -42170.08493 | AD64: 0 | AE64: 0 | AF64: 0 | AG64: 0 | AH64: 0 | AI64: 0 | AJ64: 0 | AK64: =+AK47-(AK60*AK62) -> -74914592.97 | AL64: -4296288.387 | AM64: 101020.46 | AN64: -109575.5201 | AO64: 0 | AP64: 0 | AQ64: 0 | AR64: 0 | AS64: 0 | AT64: 0 | AU64: 0 | AV64: 902858.3022 | AW64: 256000.9216 | AX64: -1159982.628 | AY64: 0 | AZ64: 100009.9125 | BA64: -5160771.735 | BB64: 20913963.76 | BC64: 698603.4622 | BD64: 36433.49894 | BE64: =+BE47-(BE60*BE62) -> 0 | BF64: -1668839.544 | BG64: 0 | BH64: =+BH47-(BH60*BH62) -> 0 | BI64: 0 | BJ64: =SUM(E64:BI64) -> -6983391.476 | BK64: =+BK47-(BK60*BK62) -> -106220039.7
A65: 51 | B65: REVENUE REQUIREMENT OR (SURPLUS) | C65: Restating | D65: =-D64/D63 -> 132084295.4 | E65: =-E64/E63 -> -100730266.8 | F65: 460759.469 | G65: 62932822.46 | H65: -3608829.838 | I65: -41103925.79 | J65: -478781.1216 | K65: -238287.859 | L65: 28809.75011 | M65: =-M64/M63 -> -47783.69323 | N65: -175652.514 | O65: =-O64/O63 -> -4285675.129 | P65: 528676.2873 | Q65: 174784.593 | R65: 1089264.036 | S65: 1545743.141 | T65: -24314.27672 | U65: 3908458.816 | V65: 8778523.46 | W65: 2293321.146 | X65: -3885133.351 | Y65: 302184.729 | Z65: 0 | AA65: 0 | AB65: -3810959.387 | AC65: 56128.51758 | AD65: 0 | AE65: 0 | AF65: 0 | AG65: 0 | AH65: 0 | AI65: 0 | AJ65: 0 | AK65: =-AK64/AK63 -> 99711562.25 | AL65: =-AL64/AL63 -> 5718373.55 | AM65: -134458.5546 | AN65: 145845.3668 | AO65: 0 | AP65: 0 | AQ65: 0 | AR65: 0 | AS65: 0 | AT65: 0 | AU65: 0 | AV65: -1201707.281 | AW65: -340738.0435 | AX65: 1543940.578 | AY65: 0 | AZ65: -133113.5126 | BA65: 6869003.645 | BB65: -27836552.49 | BC65: -929843.437 | BD65: -48493.10332 | BE65: =-BE64/BE63 -> 0 | BF65: 2221230.757 | BG65: 0 | BH65: =-BH64/BH63 -> 0 | BI65: 0 | BJ65: =-BJ64/BJ63 -> 9294916.334 | BK65: =-BK64/BK63 -> 141379211.7
A66: 52 | B66: CHANGES TO OTHER PRICE SCHEDULES | C66: Restating
A67: 53 | B67: NET REVENUE CHANGE | C67: Restating
C68: Restating
C69: Restating
C70: Restating | E70: =ROUND('Common Adj'!E82-E47,0)+E49 -> 0 | F70: =ROUND('Common Adj'!W59-F47,0)+F49 -> 0 | G70: =ROUND('Common Adj'!AO30-G47,0)+G49 -> 0 | H70: =ROUND('Common Adj'!BE24-H47,0)+H49 -> 0 | I70: =ROUND('Common Adj'!BW24-I47,0)+I49 -> 0 | J70: =ROUND('Common Adj'!CO21-J47,0)+J49 -> 0 | K70: =ROUND('Common Adj'!DG26-K47,0)+K49 -> 0 | L70: =ROUND('Common Adj'!DY22-L47,0)+L49 -> 0 | M70: =ROUND('Common Adj'!EQ27-M47,0)+M49 -> 0 | N70: =ROUND('Common Adj'!FI23-N47,0)+N49 -> 0 | O70: =ROUND('Common Adj'!GA31-O47,0)+O49 -> 0 | P70: =ROUND('Common Adj'!GS37-P47,0)+P49 -> 0 | Q70: =ROUND('Common Adj'!HK18-Q47,0)+Q49 -> 0 | R70: =ROUND('Common Adj'!IC23-R47,0)+R49 -> 0 | S70: =ROUND('Common Adj'!IU22-S47,0)+S49 -> 0 | T70: =ROUND('Common Adj'!JM23-T47,0)+T49 -> 0 | U70: =ROUND('Common Adj'!KE20-U47,0)+U49 -> 0 | V70: =ROUND('Common Adj'!KW32-V47,0)+V49 -> 0 | W70: =ROUND('Common Adj'!LO22-W49,0) -> 0 | X70: =ROUND('Common Adj'!MG31-X47,0)+ROUND('Common Adj'!MG36-X49,0) -> 0 | Y70: =ROUND('Common Adj'!MY21-Y47,0)+Y49 -> 0 | Z70: =ROUND('Common Adj'!NQ33-Z47,0)+Z49 -> 0 | AA70: =ROUND('Common Adj'!OI24-AA49+'Common Adj'!OI35-'Detailed Summary'!AA47,0) -> 0 | AB70: =ROUND('Common Adj'!PA53-AB47,0)+ROUND('Common Adj'!PA35-AB49,0) -> 0 | AC70: =ROUND('Common Adj'!PW21-AC47,0)+AC49 -> 0 | AD70: =+ROUND('Common Adj'!QO21-AD49,0)+ROUND(-AD47,0) -> 0 | AE70: =ROUND('Common Adj'!RG31-AE47,0)+ROUND('Common Adj'!RG36-AE49,0) -> 0 | AF70: =ROUND('Common Adj'!RY30-AF47,0)+ROUND('Common Adj'!RY35-AF49,0) -> 0 | AG70: =ROUND('Common Adj'!SQ26-AG47,0)+ROUND('Common Adj'!SQ31-AG49,0) -> 0 | AH70: =ROUND('Common Adj'!SQ44-AH47,0)+ROUND('Common Adj'!SQ49-AH49,0) -> 0 | AI70: =ROUND('Common Adj'!SQ62-AI47,0)+ROUND('Common Adj'!SQ67-AI49,0) -> 0 | AJ70: =ROUND('Common Adj'!SQ80-AJ47,0)+ROUND('Common Adj'!SQ85-AJ49,0) -> 0 | AK70: =ROUND('Common Adj'!TJ35-AK47,0) -> 0 | AL70: =ROUND('Common Adj'!TY27-AL47,0)+ROUND('Common Adj'!TY19-AL49,0) -> 0 | AM70: =ROUND('Common Adj'!UN25-AM47,0) -> 0 | AN70: =ROUND('Common Adj'!VC31-AN47,0) -> 0 | AO70: =ROUND('Common Adj'!UP25-AO47,0) -> 0 | AU70: =ROUND('Common Adj'!UV25-AU47,0) -> 0 | AV70: =ROUND('Electric Adj'!E41-'Detailed Summary'!AV47,0)+AV49 -> 0 | AW70: =ROUND('Electric Adj'!AO29-'Detailed Summary'!AW47,0)+ROUND('Electric Adj'!AO21-'Detailed Summary'!AW49,0) -> 0 | AX70: =ROUND('Electric Adj'!BG30-'Detailed Summary'!AX47,0)+AX49 -> 0 | AY70: =ROUND('Electric Adj'!BY32-AY49,0)+ROUND('Electric Adj'!BY66-AY47,0) -> 0 | AZ70: =ROUND('Electric Adj'!CQ29-'Detailed Summary'!AZ47,0)+ROUND('Electric Adj'!CQ21-'Detailed Summary'!AZ49,0) -> 0 | BA70: =ROUND('Electric Adj'!DI30-'Detailed Summary'!BA47,0)+BA49 -> 0 | BB70: =ROUND('Electric Adj'!EA55-'Detailed Summary'!BB49,0)+ROUND('Electric Adj'!EA75-'Detailed Summary'!BB47,0) -> 0 | BC70: =ROUND('Electric Adj'!ES42-'Detailed Summary'!BC47,0)+ROUND('Electric Adj'!ES31-'Detailed Summary'!BC49,0) -> 0 | BD70: =ROUND('Electric Adj'!FK33-BD49,0)+ROUND('Electric Adj'!FK51-BD47,0) -> 0 | BE70: =ROUND('Electric Adj'!GC42-'Detailed Summary'!BE47,0)+ROUND('Electric Adj'!GC32-'Detailed Summary'!BE49,0) -> 0 | BF70: =ROUND('Electric Adj'!GU37-'Detailed Summary'!BF47,0)+BF49 -> 0 | BG70: 0 | BH70: 0 | BI70: 0
C71: Restating | D71: =Summary!C47-D47 -> 0 | BK71: =Summary!E47-BK47 -> 0
C72: Restating | D72: =Summary!C58-D60 -> 0 | BK72: =Summary!E58-BK60 -> 0
C74: Traditional Profoma | E74: 2023-12-01 | F74: 2023-12-01 | G74: 2023-12-01 | H74: 2023-12-01 | I74: 2023-12-01 | J74: 2023-12-01 | K74: 2023-12-01 | L74: 2023-12-01 | M74: 2023-12-01 | N74: 2023-12-01 | O74: 2023-12-01 | P74: 2023-12-01 | Q74: 2023-12-01 | R74: 2023-12-01 | S74: 2023-12-01 | T74: 2023-12-01 | U74: 2023-12-01 | V74: 2023-12-01 | W74: 2023-12-01 | X74: 2023-12-01 | Y74: 2023-12-01 | Z74: 2023-12-01 | AA74: 2023-12-01 | AB74: 2023-12-01 | AC74: 2023-12-01 | AD74: 2023-12-01 | AE74: 2023-12-01 | AF74: 2023-12-01 | AG74: 2023-12-01 | AH74: 2023-12-01 | AI74: 2023-12-01 | AJ74: 2023-12-01 | AK74: 2023-12-01 | AL74: 2023-12-01 | AM74: 2023-12-01 | AN74: 2023-12-01 | AO74: 2023-12-01 | AP74: 2023-12-01 | AQ74: 2023-12-01 | AR74: 2023-12-01 | AS74: 2023-12-01 | AT74: 2023-12-01 | AU74: 2023-12-01 | AV74: 2023-12-01 | AW74: 2023-12-01 | AX74: 2023-12-01 | AY74: 2023-12-01 | AZ74: 2023-12-01 | BA74: 2023-12-01 | BB74: 2023-12-01 | BC74: 2023-12-01 | BD74: 2023-12-01 | BE74: 2023-12-01 | BF74: 2023-12-01 | BG74: 2023-12-01 | BH74: 2023-12-01 | BI74: 2023-12-01
A76: =A137 -> 1 | B76: OPERATING REVENUES | C76: 2023-12-31
A77: 2 | B77: SALES TO CUSTOMERS | C77: 2023-12-31 | D77: =+BK16 -> 2394723507 | E77: ='Common Adj'!G$46-E78 -> -282972303.9 | F77: ='Common Adj'!Y62 -> -17506569.71 | G77: ='Common Adj'!AQ32 -> 0 | BJ77: =SUM(E77:BI77) -> -300478873.6 | BK77: =+BJ77+BK16 -> 2094244633
A78: 3 | B78: SALES FROM RESALE-FIRM/SPECIAL CONTRACT | C78: 2023-12-31 | D78: =+BK17 -> 468556.1861 | E78: ='Common Adj'!G$45 -> -34111.14608 | G78: ='Common Adj'!AQ33 -> 0 | BJ78: =SUM(E78:BI78) -> -34111.14608 | BK78: =+BJ78+BK17 -> 434445.04
A79: 4 | B79: SALES TO OTHER UTILITIES | C79: 2023-12-31 | D79: =+BK18 -> 763721180.9 | BJ79: =SUM(E79:BI79) -> 0 | BK79: =+BJ79+BK18 -> 763721180.9
A80: 5 | B80: OTHER OPERATING REVENUES | C80: 2023-12-31 | D80: =+BK19 -> 138820020.2 | E80: ='Common Adj'!G$62 -> 42410003.58 | F80: ='Common Adj'!Y32 -> 2466633.94 | AB80: =+'Common Adj'!PC38 -> 0 | AY80: =-'Electric Adj'!CA51 -> -1303351.488 | BJ80: =SUM(E80:BI80) -> 43573286.03 | BK80: =+BJ80+BK19 -> 182393306.3
A81: 6 | B81: TOTAL OPERATING REVENUES | C81: 2023-12-31 | D81: =SUM(D77:D80) -> 3297733264 | E81: =SUM(E77:E80) -> -240596411.4 | F81: =SUM(F77:F80) -> -15039935.77 | G81: 0 | H81: 0 | I81: 0 | J81: 0 | K81: 0 | L81: 0 | M81: 0 | N81: 0 | O81: 0 | P81: 0 | Q81: 0 | R81: 0 | S81: 0 | T81: 0 | U81: 0 | V81: 0 | W81: 0 | X81: 0 | Y81: 0 | Z81: 0 | AA81: 0 | AB81: 0 | AC81: 0 | AD81: =SUM(AD77:AD80) -> 0 | AE81: 0 | AF81: 0 | AG81: 0 | AH81: 0 | AI81: =SUM(AI77:AI80) -> 0 | AJ81: =SUM(AJ77:AJ80) -> 0 | AK81: =SUM(AK77:AK80) -> 0 | AL81: =SUM(AL77:AL80) -> 0 | AM81: =SUM(AM77:AM80) -> 0 | AN81: =SUM(AN77:AN80) -> 0 | AO81: 0 | AP81: 0 | AQ81: 0 | AR81: 0 | AS81: 0 | AT81: 0 | AU81: 0 | AV81: 0 | AW81: 0 | AX81: 0 | AY81: -1303351.488 | AZ81: 0 | BA81: 0 | BB81: 0 | BC81: 0 | BD81: 0 | BE81: =SUM(BE77:BE80) -> 0 | BF81: 0 | BG81: 0 | BH81: =SUM(BH77:BH80) -> 0 | BI81: 0 | BJ81: =SUM(BH77:BJ80) -> -256939698.7 | BK81: =SUM(BK77:BK80) -> 3040793565
A82: 7 | C82: 2023-12-31
A83: 8 | B83: OPERATING REVENUE DEDUCTIONS: | C83: 2023-12-31
A84: 9 | C84: 2023-12-31
A85: 10 | B85: POWER COSTS: | C85: 2023-12-31
A86: 11 | B86: FUEL | C86: 2023-12-31 | D86: =+BK25 -> 455418278.8 | BJ86: =SUM(E86:BI86) -> 0 | BK86: =+BJ86+BK25 -> 455418278.8
A87: 12 | B87: PURCHASED AND INTERCHANGED | C87: 2023-12-31 | D87: =+BK26 -> 1301528766 | O87: ='Common Adj'!GC17 -> 54208.72897 | BJ87: =SUM(E87:BI87) -> 54208.72897 | BK87: =+BJ87+BK26 -> 1301582975
A88: 13 | B88: WHEELING | C88: 2023-12-31 | D88: =+BK27 -> 161536441.1 | BJ88: =SUM(E88:BI88) -> 0 | BK88: =+BJ88+BK27 -> 161536441.1
A89: 14 | B89: RESIDENTIAL EXCHANGE | C89: 2023-12-31 | D89: =+BK28 -> 0 | BJ89: =SUM(E89:BI89) -> 0 | BK89: =+BJ89+BK28 -> 0
A90: 15 | B90: TOTAL PRODUCTION EXPENSES | C90: 2023-12-31 | D90: =SUM(D85:D89) -> 1918483486 | E90: =SUM(E85:E89) -> 0 | F90: =SUM(F85:F89) -> 0 | G90: 0 | H90: 0 | I90: 0 | J90: 0 | K90: 0 | L90: 0 | M90: 0 | N90: 0 | O90: 54208.72897 | P90: 0 | Q90: 0 | R90: 0 | S90: 0 | T90: 0 | U90: 0 | V90: 0 | W90: 0 | X90: 0 | Y90: 0 | Z90: 0 | AA90: 0 | AB90: 0 | AC90: 0 | AD90: =SUM(AD85:AD89) -> 0 | AE90: 0 | AF90: 0 | AG90: 0 | AH90: 0 | AI90: =SUM(AI85:AI89) -> 0 | AJ90: =SUM(AJ85:AJ89) -> 0 | AK90: =SUM(AK85:AK89) -> 0 | AL90: =SUM(AL85:AL89) -> 0 | AM90: =SUM(AM85:AM89) -> 0 | AN90: =SUM(AN85:AN89) -> 0 | AO90: 0 | AP90: 0 | AQ90: 0 | AR90: 0 | AS90: 0 | AT90: 0 | AU90: 0 | AV90: 0 | AW90: 0 | AX90: 0 | AY90: 0 | AZ90: 0 | BA90: 0 | BB90: 0 | BC90: 0 | BD90: 0 | BE90: =SUM(BE85:BE89) -> 0 | BF90: 0 | BG90: 0 | BH90: =SUM(BH85:BH89) -> 0 | BI90: 0 | BJ90: =SUM(BJ85:BJ89) -> 54208.72897 | BK90: =SUM(BK85:BK89) -> 1918537695
A91: 16 | C91: 2023-12-31
A92: 17 | B92: OTHER POWER SUPPLY EXPENSES | C92: 2023-12-31 | D92: =+BK31 -> 95426621.43 | O92: ='Common Adj'!GC18 -> 145899.1828 | BB92: ='Electric Adj'!EC61 -> 0 | BJ92: =SUM(E92:BI92) -> 145899.1828 | BK92: =+BJ92+BK31 -> 95572520.61
A93: 18 | B93: TRANSMISSION EXPENSE | C93: 2023-12-31 | D93: 26020655.66 | O93: ='Common Adj'!GC19 -> 77980.94573 | BJ93: 77980.94573 | BK93: 26098636.6
A94: 19 | B94: DISTRIBUTION EXPENSE | C94: 2023-12-31 | D94: 104398181 | O94: ='Common Adj'!GC20 -> 238125.9048 | BJ94: 238125.9048 | BK94: 104636306.9
A95: 20 | B95: CUSTOMER ACCTS EXPENSES | C95: 2023-12-31 | D95: 54303704.97 | E95: ='Common Adj'!G$74 -> -1560989.517 | F95: ='Common Adj'!Y$37 -> -97579.10328 | G95: ='Common Adj'!AQ22 -> 0 | O95: ='Common Adj'!GC21 -> 57514.10716 | BJ95: -1601054.514 | BK95: 52702650.46
A96: 21 | B96: CUSTOMER SERVICE EXPENSES | C96: 2023-12-31 | D96: 4268799.323 | O96: ='Common Adj'!GC22 -> 15473.66371 | BJ96: 15473.66371 | BK96: 4284272.986
A97: 22 | B97: CONSERVATION AMORTIZATION | C97: 2023-12-31 | D97: 0 | BJ97: 0 | BK97: 0
A98: 23 | B98: ADMIN & GENERAL EXPENSE | C98: 2023-12-31 | D98: 172005572.5 | E98: ='Common Adj'!G$75 -> -962385.6458 | F98: ='Common Adj'!Y$38 -> -60159.74308 | G98: ='Common Adj'!AQ23 -> 0 | M98: ='Common Adj'!ES23 -> 677349.6363 | O98: ='Common Adj'!GC23+'Common Adj'!GC24 -> 288485.9658 | R98: ='Common Adj'!IE20 -> 0 | U98: ='Common Adj'!KG16 -> 0 | AZ98: =+'Electric Adj'!CS25 -> 0 | BB98: ='Electric Adj'!EC66 -> 0 | BJ98: -56709.78674 | BK98: 171948862.7
A99: 24 | B99: DEPRECIATION | C99: 2023-12-31 | D99: 365465905.6 | AA99: ='Common Adj'!OK32 -> -4730967.98 | AE99: ='Common Adj'!$RI$17+'Common Adj'!$RI$18+'Common Adj'!RI22+'Common Adj'!RI23 -> 1153244.5 | AF99: ='Common Adj'!$SA$16+'Common Adj'!$SA$17 -> -174784.55 | AG99: ='Common Adj'!$SS$16+'Common Adj'!$SS$17 -> 3130403.33 | AH99: ='Common Adj'!$SS$34+'Common Adj'!$SS$35 -> 301743.54 | AI99: ='Common Adj'!$SS$52+'Common Adj'!$SS$53 -> 1286931.13 | AJ99: ='Common Adj'!$SS$70+'Common Adj'!$SS$71 -> 594415.7043 | BB99: ='Electric Adj'!EC62 -> 0 | BJ99: 1560985.675 | BK99: 367026891.3
A100: 25 | B100: AMORTIZATION | C100: 2023-12-31 | D100: 61937163.94 | AE100: ='Common Adj'!$RI$19+'Common Adj'!$RI$20 -> -31809.37097 | AF100: ='Common Adj'!$SA$18+'Common Adj'!$SA$19 -> 0 | AG100: ='Common Adj'!$SS$18+'Common Adj'!$SS$19 -> 361037.5227 | AH100: ='Common Adj'!$SS$36+'Common Adj'!$SS$37 -> 2048.95 | AI100: ='Common Adj'!$SS$54+'Common Adj'!$SS$55 -> 0 | AJ100: ='Common Adj'!$SS$72+'Common Adj'!$SS$73 -> 742178.9159 | AZ100: =+'Electric Adj'!CS24 -> 0 | BC100: ='Electric Adj'!EU37 -> 0 | BE100: ='Electric Adj'!GE38 -> 0 | BJ100: 1073456.018 | BK100: 63010619.95
A101: 26 | B101: AMORTIZ OF PROPERTY GAIN/LOSS | C101: 2023-12-31 | D101: 34245088.45 | AX101: =+'Electric Adj'!BI24 -> 0 | BA101: ='Electric Adj'!DK$26 -> 0 | BJ101: 0 | BK101: 34245088.45
A102: 27 | B102: OTHER OPERATING EXPENSES | C102: 2023-12-31 | D102: 21476852.73 | E102: ='Common Adj'!G$72 -> 0 | S102: ='Common Adj'!IW19 -> 0 | AC102: ='Common Adj'!PY17 -> -2720.430509 | AL102: ='Common Adj'!UA24 -> 0 | AY102: ='Electric Adj'!CA62-'Electric Adj'!CA51 -> 3390172.976 | BJ102: 3387452.545 | BK102: 24864305.28
A103: 28 | B103: TAXES OTHER THAN INCOME TAXES | C103: 2023-12-31 | D103: 107003278.7 | E103: ='Common Adj'!G$76 -> -9258871.701 | F103: ='Common Adj'!Y$39 -> -578781.8482 | G103: ='Common Adj'!AQ24 -> 0 | O103: ='Common Adj'!GC27 -> 77149.21668 | BB103: ='Electric Adj'!EC69 -> 0 | BJ103: -9760504.333 | BK103: 97242774.36
A104: 29 | B104: INCOME TAXES | C104: 2023-12-31 | D104: 70799762.43 | E104: ='Common Adj'!G$81 -> -48050974.56 | F104: ='Common Adj'!Y58 -> -3003717.166 | G104: ='Common Adj'!AQ29 -> 0 | H104: =+'Common Adj'!BG16 -> 0 | I104: =+'Common Adj'!BY23 -> -2863596.511 | M104: ='Common Adj'!ES25 -> -142243.4236 | O104: ='Common Adj'!GC30 -> -200515.9203 | R104: ='Common Adj'!IE22 -> 0 | S104: ='Common Adj'!IW21 -> 0 | U104: ='Common Adj'!KG19 -> 0 | AA104: ='Common Adj'!OK34 -> 993503.2758 | AB104: ='Common Adj'!PC52 -> 0 | AC104: ='Common Adj'!PY20 -> 571.2904069 | AE104: ='Common Adj'!$RI$29 -> -235501.3771 | AF104: ='Common Adj'!$SA$28 -> 36704.7555 | AG104: ='Common Adj'!$SS$24 -> -733202.5792 | AH104: ='Common Adj'!$SS$42 -> -63796.4229 | AI104: ='Common Adj'!$SS$60 -> -270255.5373 | AJ104: ='Common Adj'!$SS$78 -> -280684.8702 | AL104: ='Common Adj'!UA26 -> 0 | AX104: =+'Electric Adj'!BI28 -> 0 | AY104: ='Electric Adj'!CA64 -> -985640.1375 | AZ104: =+'Electric Adj'!CS28 -> 0 | BA104: ='Electric Adj'!DK$28 -> 0 | BB104: ='Electric Adj'!EC70+'Electric Adj'!EC73+'Electric Adj'!EC75 -> 0 | BC104: ='Electric Adj'!EU41 -> 0 | BE104: ='Electric Adj'!GE44 -> 0 | BJ104: -55799349.18 | BK104: 15000413.25
A105: 30 | B105: DEFERRED INCOME TAXES | C105: 2023-12-31 | D105: -43416959.29 | H105: =SUM('Common Adj'!BG17:BG21) -> -3832342.767 | BJ105: -3832342.767 | BK105: -47249302.06
A106: 31 | B106: TOTAL OPERATING REV. DEDUCT. | C106: 2023-12-31 | D106: =SUM(D90:D105) -> 2992418114 | E106: =SUM(E90:E105) -> -59833221.43 | F106: -3740237.86 | G106: 0 | H106: -3832342.767 | I106: -2863596.511 | J106: 0 | K106: 0 | L106: 0 | M106: 535106.2127 | N106: 0 | O106: 754321.7953 | P106: 0 | Q106: 0 | R106: 0 | S106: 0 | T106: 0 | U106: 0 | V106: 0 | W106: 0 | X106: 0 | Y106: 0 | Z106: 0 | AA106: -3737464.704 | AB106: 0 | AC106: -2149.140102 | AD106: 0 | AE106: 885933.7521 | AF106: -138079.7945 | AG106: 2758238.274 | AH106: 239996.0671 | AI106: =SUM(AI90:AI105) -> 1016675.593 | AJ106: =SUM(AJ90:AJ105) -> 1055909.75 | AK106: =SUM(AK90:AK105) -> 0 | AL106: =SUM(AL90:AL105) -> 0 | AM106: =SUM(AM90:AM105) -> 0 | AN106: =SUM(AN90:AN105) -> 0 | AO106: 0 | AP106: 0 | AQ106: 0 | AR106: 0 | AS106: 0 | AT106: 0 | AU106: 0 | AV106: 0 | AW106: 0 | AX106: =SUM(AX90:AX105) -> 0 | AY106: 2404532.838 | AZ106: 0 | BA106: 0 | BB106: 0 | BC106: 0 | BD106: 0 | BE106: =SUM(BE90:BE105) -> 0 | BF106: 0 | BG106: 0 | BH106: =SUM(BH90:BH105) -> 0 | BI106: 0 | BJ106: -64496377.92 | BK106: 2927921736
A107: 32 | C107: 2023-12-31
A108: 33 | B108: NET OPERATING INCOME | C108: 2023-12-31 | D108: =+D81-D106 -> 305315150.5 | E108: =+E81-E106 -> -180763190 | F108: -11299697.91 | G108: 0 | H108: 3832342.767 | I108: 2863596.511 | J108: 0 | K108: 0 | L108: 0 | M108: -535106.2127 | N108: 0 | O108: -754321.7953 | P108: 0 | Q108: 0 | R108: 0 | S108: 0 | T108: 0 | U108: 0 | V108: 0 | W108: 0 | X108: 0 | Y108: 0 | Z108: 0 | AA108: 3737464.704 | AB108: 0 | AC108: 2149.140102 | AD108: 0 | AE108: -885933.7521 | AF108: 138079.7945 | AG108: -2758238.274 | AH108: -239996.0671 | AI108: =+AI81-AI106 -> -1016675.593 | AJ108: =+AJ81-AJ106 -> -1055909.75 | AK108: =+AK81-AK106 -> 0 | AL108: =+AL81-AL106 -> 0 | AM108: =+AM81-AM106 -> 0 | AN108: =+AN81-AN106 -> 0 | AO108: 0 | AP108: 0 | AQ108: 0 | AR108: 0 | AS108: 0 | AT108: 0 | AU108: 0 | AV108: 0 | AW108: 0 | AX108: =+AX81-AX106 -> 0 | AY108: =+AY81-AY106 -> -3707884.327 | AZ108: 0 | BA108: 0 | BB108: 0 | BC108: 0 | BD108: 0 | BE108: =+BE81-BE106 -> 0 | BF108: 0 | BG108: 0 | BH108: =+BH81-BH106 -> 0 | BI108: 0 | BJ108: -192443320.8 | BK108: 112871829.7
A109: 34 | C109: 2023-12-31
A110: 35 | B110: RATE BASE | C110: 2023-12-31 | D110: =D121 -> 5591510736 | E110: =E121 -> 0 | F110: 0 | G110: 0 | H110: 0 | I110: 0 | J110: 0 | K110: 0 | L110: 0 | M110: 0 | N110: 0 | O110: 0 | P110: 0 | Q110: 0 | R110: 0 | S110: 0 | T110: 0 | U110: 0 | V110: 0 | W110: 0 | X110: 0 | Y110: 0 | Z110: 0 | AA110: -60657666.76 | AB110: 117784370.6 | AC110: 0 | AD110: =AD121 -> 0 | AE110: -213417265.8 | AF110: 174784.55 | AG110: 193636571.1 | AH110: 48794218.92 | AI110: 245365929.8 | AJ110: 133865024.7 | AL110: =AL121 -> 0 | AM110: =AM121 -> 0 | AN110: =AN121 -> 2889649.992 | AO110: 0 | AP110: 0 | AQ110: 0 | AR110: 0 | AS110: 0 | AT110: 0 | AU110: 0 | AV110: 0 | AW110: 53549.595 | AX110: =AX121 -> 0 | AY110: 52195374.08 | AZ110: 0 | BA110: 0 | BB110: 0 | BC110: -2880746.58 | BD110: 0 | BE110: 681903.8892 | BF110: 0 | BG110: 0 | BH110: =BH121 -> 0 | BI110: 0 | BJ110: 518485698.1 | BK110: 6109996434
A111: 36 | C111: 2023-12-31
A112: 37 | B112: RATE OF RETURN | C112: 2023-12-31 | D112: =+D108/D110 -> 0.05460333797 | BK112: =+BK108/BK110 -> 0.01847330533
A113: 38 | C113: 2023-12-31
A114: 39 | B114: RATE BASE: | C114: 2023-12-31
A115: 40 | B115: GROSS UTILITY PLANT IN SERVICE | C115: 2023-12-31 | D115: =+BK54 -> 1.119310811e+10 | AA115: ='Common Adj'!OK18 -> -28770635.39 | AB115: ='Common Adj'!PC21 -> 161479731.4 | AD115: ='Common Adj'!QQ19 -> -16261754.54 | AG115: ='Common Adj'!$SS$28 -> 198533936.6 | AH115: ='Common Adj'!$SS$46 -> 44198350.35 | AI115: ='Common Adj'!$SS$64 -> 248858085.7 | AJ115: =+'Common Adj'!$SS$82 -> 135541938 | AN115: ='Common Adj'!VE19 -> 3657784.8 | AZ115: =+'Electric Adj'!CS18 -> 0 | BB115: ='Electric Adj'!EC48 -> 0 | BC115: ='Electric Adj'!EU23 -> 0 | BE115: ='Electric Adj'!GE24 -> 0 | BJ115: =SUM(E115:BI115) -> 747237437 | BK115: =+BJ115+BK54 -> 1.194034554e+10
A116: 41 | B116: ACCUM DEPR AND AMORT | C116: 2023-12-31 | D116: -5099483061 | AA116: ='Common Adj'!OK19 -> -52057610.18 | AB116: ='Common Adj'!PC27 -> -26856211.23 | AD116: ='Common Adj'!QQ20 -> 16261754.54 | AE116: ='Common Adj'!$RI$34 -> -210203843.6 | AF116: ='Common Adj'!$SA$33 -> 174784.55 | AG116: ='Common Adj'!$SS$29 -> -3491440.853 | AH116: ='Common Adj'!$SS$47 -> -303792.49 | AI116: ='Common Adj'!$SS$65 -> -1286931.13 | AJ116: =+'Common Adj'!$SS$83 -> -1336594.62 | AN116: ='Common Adj'!VE20 -> 0 | AW116: ='Electric Adj'!AQ19 -> 109783 | AZ116: =+'Electric Adj'!CS19 -> 0 | BB116: ='Electric Adj'!EC54 -> 0 | BC116: ='Electric Adj'!EU29 -> -2880746.58 | BJ116: -281870848.6 | BK116: -5381353910
A117: 42 | B117: DEFERRED DEBITS AND CREDITS | C117: 2023-12-31 | D117: 604395611.4 | AL117: ='Common Adj'!UA17 -> 0 | AY117: ='Electric Adj'!CA36 -> 65152660.9 | BB117: ='Electric Adj'!EC55 -> 0 | BD117: ='Electric Adj'!FM18+'Electric Adj'!FM19+'Electric Adj'!FM20 -> 0 | BE117: ='Electric Adj'!GE22 -> 863169.48 | BJ117: 66015830.38 | BK117: 670411441.7
A118: 43 | B118: DEFERRED TAXES | C118: 2023-12-31 | D118: -1187035196 | H118: =+'Common Adj'!BG29 -> 0 | AA118: ='Common Adj'!OK20 -> 20170578.81 | AB118: ='Common Adj'!PC33 -> -16839149.56 | AE118: ='Common Adj'!$RI$35 -> -3213422.246 | AF118: ='Common Adj'!$SA$34 -> 0 | AG118: ='Common Adj'!$SS$30 -> -1405924.732 | AH118: ='Common Adj'!$SS$48 -> 4899661.06 | AI118: ='Common Adj'!$SS$66 -> -2205224.7 | AJ118: =+'Common Adj'!$SS$84 -> -340318.7114 | AL118: ='Common Adj'!UA18 -> 0 | AN118: ='Common Adj'!VE21 -> -768134.808 | AW118: ='Electric Adj'!AQ20 -> -56233.405 | AY118: ='Electric Adj'!CA37 -> -12957286.82 | AZ118: =+'Electric Adj'!CS20 -> 0 | BB118: ='Electric Adj'!EC56 -> 0 | BC118: ='Electric Adj'!EU21 -> 0 | BD118: ='Electric Adj'!FM21 -> 0 | BE118: ='Electric Adj'!GE30 -> -181265.5908 | BJ118: -12896720.71 | BK118: -1199931917
A119: 44 | B119: ALLOWANCE FOR WORKING CAPITAL | C119: 2023-12-31 | D119: 222518805.8 | BJ119: 0 | BK119: 222518805.8
A120: 45 | B120: OTHER | C120: 2023-12-31 | D120: -141993529.8 | BJ120: 0 | BK120: -141993529.8
A121: 46 | B121: TOTAL RATE BASE | C121: 2023-12-31 | D121: =SUM(D115:D120) -> 5591510736 | E121: =SUM(E115:E120) -> 0 | F121: 0 | G121: 0 | H121: 0 | I121: 0 | J121: 0 | K121: 0 | L121: 0 | M121: 0 | N121: 0 | O121: 0 | P121: 0 | Q121: 0 | R121: 0 | S121: 0 | T121: 0 | U121: 0 | V121: 0 | W121: 0 | X121: 0 | Y121: 0 | Z121: 0 | AA121: -60657666.76 | AB121: 117784370.6 | AC121: 0 | AD121: =SUM(AD115:AD120) -> 0 | AE121: -213417265.8 | AF121: 174784.55 | AG121: 193636571.1 | AH121: 48794218.92 | AI121: 245365929.8 | AJ121: 133865024.7 | AK121: 0 | AL121: 0 | AM121: =SUM(AM115:AM120) -> 0 | AN121: 2889649.992 | AO121: 0 | AP121: 0 | AQ121: 0 | AR121: 0 | AS121: 0 | AT121: 0 | AU121: 0 | AV121: 0 | AW121: 53549.595 | AX121: =SUM(AX115:AX120) -> 0 | AY121: 52195374.08 | AZ121: 0 | BA121: 0 | BB121: 0 | BC121: -2880746.58 | BD121: 0 | BE121: 681903.8892 | BF121: 0 | BG121: 0 | BH121: =SUM(BH115:BH120) -> 0 | BI121: 0 | BJ121: 518485698.1 | BK121: 6109996434
A122: 47 | C122: 2023-12-31
A123: 48 | B123: REQUESTED RATE OF RETURN | C123: 2023-12-31 | D123: =+'Def, COC, ConvF'!$C$13 -> 0.0736 | E123: =+'Def, COC, ConvF'!$C$13 -> 0.0736 | F123: =+'Def, COC, ConvF'!$C$13 -> 0.0736 | G123: =+'Def, COC, ConvF'!$C$13 -> 0.0736 | H123: =+'Def, COC, ConvF'!$C$13 -> 0.0736 | I123: =+'Def, COC, ConvF'!$C$13 -> 0.0736 | J123: =+'Def, COC, ConvF'!$C$13 -> 0.0736 | K123: =+'Def, COC, ConvF'!$C$13 -> 0.0736 | L123: =+'Def, COC, ConvF'!$C$13 -> 0.0736 | M123: =+'Def, COC, ConvF'!$C$13 -> 0.0736 | N123: =+'Def, COC, ConvF'!$C$13 -> 0.0736 | O123: =+'Def, COC, ConvF'!$C$13 -> 0.0736 | P123: =+'Def, COC, ConvF'!$C$13 -> 0.0736 | Q123: =+'Def, COC, ConvF'!$C$13 -> 0.0736 | R123: =+'Def, COC, ConvF'!$C$13 -> 0.0736 | S123: =+'Def, COC, ConvF'!$C$13 -> 0.0736 | T123: =+'Def, COC, ConvF'!$C$13 -> 0.0736 | U123: =+'Def, COC, ConvF'!$C$13 -> 0.0736 | V123: =+'Def, COC, ConvF'!$C$13 -> 0.0736 | W123: =+'Def, COC, ConvF'!$C$13 -> 0.0736 | X123: =+'Def, COC, ConvF'!$C$13 -> 0.0736 | Y123: =+'Def, COC, ConvF'!$C$13 -> 0.0736 | Z123: =+'Def, COC, ConvF'!$C$13 -> 0.0736 | AA123: =+'Def, COC, ConvF'!$C$13 -> 0.0736 | AB123: =+'Def, COC, ConvF'!$C$13 -> 0.0736 | AC123: =+'Def, COC, ConvF'!$C$13 -> 0.0736 | AD123: =+'Def, COC, ConvF'!$C$13 -> 0.0736 | AE123: =+'Def, COC, ConvF'!$C$13 -> 0.0736 | AF123: =+'Def, COC, ConvF'!$C$13 -> 0.0736 | AG123: =+'Def, COC, ConvF'!$C$13 -> 0.0736 | AH123: =+'Def, COC, ConvF'!$C$13 -> 0.0736 | AI123: =+'Def, COC, ConvF'!$C$13 -> 0.0736 | AJ123: =+'Def, COC, ConvF'!$C$13 -> 0.0736 | AK123: =+'Def, COC, ConvF'!$C$13 -> 0.0736 | AL123: =+'Def, COC, ConvF'!$C$13 -> 0.0736 | AM123: =+'Def, COC, ConvF'!$C$13 -> 0.0736 | AN123: =+'Def, COC, ConvF'!$C$13 -> 0.0736 | AV123: =+'Def, COC, ConvF'!$C$13 -> 0.0736 | AW123: =+'Def, COC, ConvF'!$C$13 -> 0.0736 | AX123: =+'Def, COC, ConvF'!$C$13 -> 0.0736 | AY123: =+'Def, COC, ConvF'!$C$13 -> 0.0736 | AZ123: =+'Def, COC, ConvF'!$C$13 -> 0.0736 | BA123: =+'Def, COC, ConvF'!$C$13 -> 0.0736 | BB123: =+'Def, COC, ConvF'!$C$13 -> 0.0736 | BC123: =+'Def, COC, ConvF'!$C$13 -> 0.0736 | BD123: =+'Def, COC, ConvF'!$C$13 -> 0.0736 | BE123: =+'Def, COC, ConvF'!$C$13 -> 0.0736 | BF123: =+'Def, COC, ConvF'!$C$13 -> 0.0736 | BG123: 0.0736 | BH123: 0.0736 | BI123: 0.0736 | BJ123: =+'Def, COC, ConvF'!$C$13 -> 0.0736 | BK123: =+'Def, COC, ConvF'!$C$13 -> 0.0736
A124: 49 | B124: CONVERSION FACTOR | C124: 2023-12-31 | D124: =+'Def, COC, ConvF'!$P$20 -> 0.751313 | E124: =+'Def, COC, ConvF'!$P$20 -> 0.751313 | F124: =+'Def, COC, ConvF'!$P$20 -> 0.751313 | G124: =+'Def, COC, ConvF'!$P$20 -> 0.751313 | H124: =+'Def, COC, ConvF'!$P$20 -> 0.751313 | I124: =+'Def, COC, ConvF'!$P$20 -> 0.751313 | J124: =+'Def, COC, ConvF'!$P$20 -> 0.751313 | K124: =+'Def, COC, ConvF'!$P$20 -> 0.751313 | L124: =+'Def, COC, ConvF'!$P$20 -> 0.751313 | M124: =+'Def, COC, ConvF'!$P$20 -> 0.751313 | N124: =+'Def, COC, ConvF'!$P$20 -> 0.751313 | O124: =+'Def, COC, ConvF'!$P$20 -> 0.751313 | P124: =+'Def, COC, ConvF'!$P$20 -> 0.751313 | Q124: =+'Def, COC, ConvF'!$P$20 -> 0.751313 | R124: =+'Def, COC, ConvF'!$P$20 -> 0.751313 | S124: =+'Def, COC, ConvF'!$P$20 -> 0.751313 | T124: =+'Def, COC, ConvF'!$P$20 -> 0.751313 | U124: =+'Def, COC, ConvF'!$P$20 -> 0.751313 | V124: =+'Def, COC, ConvF'!$P$20 -> 0.751313 | W124: =+'Def, COC, ConvF'!$P$20 -> 0.751313 | X124: =+'Def, COC, ConvF'!$P$20 -> 0.751313 | Y124: =+'Def, COC, ConvF'!$P$20 -> 0.751313 | Z124: =+'Def, COC, ConvF'!$P$20 -> 0.751313 | AA124: =+'Def, COC, ConvF'!$P$20 -> 0.751313 | AB124: =+'Def, COC, ConvF'!$P$20 -> 0.751313 | AC124: =+'Def, COC, ConvF'!$P$20 -> 0.751313 | AD124: =+'Def, COC, ConvF'!$P$20 -> 0.751313 | AE124: =+'Def, COC, ConvF'!$P$20 -> 0.751313 | AF124: =+'Def, COC, ConvF'!$P$20 -> 0.751313 | AG124: =+'Def, COC, ConvF'!$P$20 -> 0.751313 | AH124: =+'Def, COC, ConvF'!$P$20 -> 0.751313 | AI124: =+'Def, COC, ConvF'!$P$20 -> 0.751313 | AJ124: =+'Def, COC, ConvF'!$P$20 -> 0.751313 | AK124: =+'Def, COC, ConvF'!$P$20 -> 0.751313 | AL124: =+'Def, COC, ConvF'!$P$20 -> 0.751313 | AM124: =+'Def, COC, ConvF'!$P$20 -> 0.751313 | AN124: =+'Def, COC, ConvF'!$P$20 -> 0.751313 | AV124: =+'Def, COC, ConvF'!$P$20 -> 0.751313 | AW124: =+'Def, COC, ConvF'!$P$20 -> 0.751313 | AX124: =+'Def, COC, ConvF'!$P$20 -> 0.751313 | AY124: =+'Def, COC, ConvF'!$P$20 -> 0.751313 | AZ124: =+'Def, COC, ConvF'!$P$20 -> 0.751313 | BA124: =+'Def, COC, ConvF'!$P$20 -> 0.751313 | BB124: =+'Def, COC, ConvF'!$P$20 -> 0.751313 | BC124: =+'Def, COC, ConvF'!$P$20 -> 0.751313 | BD124: =+'Def, COC, ConvF'!$P$20 -> 0.751313 | BE124: =+'Def, COC, ConvF'!$P$20 -> 0.751313 | BF124: =+'Def, COC, ConvF'!$P$20 -> 0.751313 | BG124: 0.751313 | BH124: 0.751313 | BI124: 0.751313 | BJ124: =+'Def, COC, ConvF'!$P$20 -> 0.751313 | BK124: =+'Def, COC, ConvF'!$P$20 -> 0.751313
A125: 50 | B125: SURPLUS / (DEFICIENCY) | C125: 2023-12-31 | D125: =+D108-(D121*D123) -> -106220039.7 | E125: =+E108-(E121*E123) -> -180763190 | F125: -11299697.91 | G125: 0 | H125: 3832342.767 | I125: 2863596.511 | J125: 0 | K125: 0 | L125: 0 | M125: -535106.2127 | N125: 0 | O125: -754321.7953 | P125: 0 | Q125: 0 | R125: 0 | S125: 0 | T125: 0 | U125: 0 | V125: 0 | W125: 0 | X125: 0 | Y125: 0 | Z125: 0 | AA125: 8201868.978 | AB125: -8668929.68 | AC125: 2149.140102 | AD125: =+AD108-(AD121*AD123) -> 0 | AE125: 14821577.01 | AF125: 125215.6516 | AG125: -17009889.9 | AH125: -3831250.58 | AI125: =+AI108-(AI121*AI123) -> -19075608.03 | AJ125: -10908375.57 | AK125: 0 | AL125: 0 | AM125: 0 | AN125: -212678.2394 | AV125: 0 | AW125: -3941.250192 | AX125: 0 | AY125: -7549463.859 | AZ125: 0 | BA125: 0 | BB125: 0 | BC125: 212022.9483 | BD125: 0 | BE125: =+BE108-(BE121*BE123) -> -50188.12625 | BF125: 0 | BG125: 0 | BH125: =+BH108-(BH121*BH123) -> 0 | BI125: 0 | BJ125: =SUM(E125:BI125) -> -230603868.2 | BK125: =+BK108-(BK121*BK123) -> -336823907.8
A126: 51 | B126: REVENUE REQUIREMENT OR (SURPLUS) | C126: 2023-12-31 | D126: =-D125/D124 -> 141379211.7 | E126: =-E125/E124 -> 240596382.6 | F126: 15039933.97 | G126: 0 | H126: -5100860.449 | I126: -3811456.092 | J126: 0 | K126: 0 | L126: 0 | M126: 712228.0763 | N126: 0 | O126: 1004004.716 | P126: 0 | Q126: 0 | R126: 0 | S126: 0 | T126: 0 | U126: 0 | V126: 0 | W126: 0 | X126: 0 | Y126: 0 | Z126: 0 | AA126: -10916713.78 | AB126: 11538373.06 | AC126: -2860.512333 | AD126: =-AD125/AD124 -> 0 | AE126: -19727566.29 | AF126: -166662.4318 | AG126: 22640217.73 | AH126: 5099406.745 | AI126: =-AI125/AI124 -> 25389695.14 | AJ126: 14519082.68 | AK126: 0 | AL126: 0 | AM126: 0 | AN126: 283075.4152 | AV126: 0 | AW126: 5245.81658 | AX126: 0 | AY126: 10048360.48 | AZ126: 0 | BA126: 0 | BB126: 0 | BC126: -282203.2206 | BD126: 0 | BE126: =-BE125/BE124 -> 66800.55615 | BF126: 0 | BG126: 0 | BH126: =-BH125/BH124 -> 0 | BI126: 0 | BJ126: =SUM(E126:BI126) -> 306934484.2 | BK126: =-BK125/BK124 -> 448313695.9
A127: 52 | B127: CHANGES TO OTHER PRICE SCHEDULES | C127: 2023-12-31 | BK127: ='Def, COC, ConvF'!C39+'Def, COC, ConvF'!C40 -> -499034932.1
A128: 53 | B128: NET REVENUE CHANGE | C128: 2023-12-31 | BK128: =SUM(BK126:BK127) -> -50721236.12
C129: 2023-12-31
C130: 2023-12-31 | BJ130: =+'Def, COC, ConvF'!$K$27 -> 0.0736 | BK130: =+'Def, COC, ConvF'!$K$27 -> 0.0736
B131: Check to Stand-alone Adjustment | C131: 2023-12-31 | E131: =ROUND('Common Adj'!G82-E108,0)+E110 -> 0 | F131: =ROUND('Common Adj'!Y59-F108,0)+F110 -> 0 | G131: =ROUND('Common Adj'!AQ30-G108,0)+G110 -> 0 | H131: =ROUND('Common Adj'!BG24-H108,0)+ROUND('Common Adj'!BG29-H110,0) -> 0 | I131: =ROUND('Common Adj'!BY24-I108,0)+I110 -> 0 | J131: =ROUND('Common Adj'!CQ21-J108,0)+J110 -> 0 | K131: =ROUND('Common Adj'!DI26-K108,0)+K110 -> 0 | L131: =ROUND('Common Adj'!EA22-L108,0)+L110 -> 0 | M131: =ROUND('Common Adj'!ES27-M108,0)+M110 -> 0 | N131: =ROUND('Common Adj'!FK23-N108,0)+N110 -> 0 | O131: =ROUND('Common Adj'!GC31-O108,0)+O110 -> 0 | P131: =ROUND('Common Adj'!GU37-P108,0)+P110 -> 0 | Q131: =ROUND('Common Adj'!HM18-Q108,0)+Q110 -> 0 | R131: =ROUND('Common Adj'!IE23-R108,0)+R110 -> 0 | S131: =ROUND('Common Adj'!IW22-S108,0)+S110 -> 0 | T131: =ROUND('Common Adj'!JO23-T108,0)+T110 -> 0 | U131: =ROUND('Common Adj'!KG20-U108,0)+U110 -> 0 | V131: =ROUND('Common Adj'!KY32-V108,0)+V110 -> 0 | W131: =ROUND('Common Adj'!LQ22-W108,0)+W110 -> 0 | X131: =ROUND('Common Adj'!MI31-X108,0)+ROUND('Common Adj'!MI36-X110,0) -> 0 | Y131: =ROUND('Common Adj'!NA21-Y108,0)+Y110 -> 0 | Z131: =ROUND('Common Adj'!NS33-Z108,0)+Z110 -> 0 | AA131: =ROUND('Common Adj'!OK24-AA110+'Common Adj'!OK35-'Detailed Summary'!AA108,0) -> 0 | AB131: =ROUND('Common Adj'!PC53-AB108,0)+ROUND('Common Adj'!PC35-AB110,0) -> 0 | AC131: =ROUND('Common Adj'!PY21-AC108,0)+AC110 -> 0 | AD131: =+ROUND('Common Adj'!QQ21-AD110,0)+ROUND(-AD108,0) -> 0 | AE131: =ROUND('Common Adj'!RI31-AE108,0)+ROUND('Common Adj'!RI36-AE110,0) -> 0 | AF131: =ROUND('Common Adj'!SA30-AF108,0)+ROUND('Common Adj'!SA35-AF110,0) -> 0 | AG131: =ROUND('Common Adj'!SS26-AG108,0)+ROUND('Common Adj'!SS31-AG110,0) -> 0 | AH131: =ROUND('Common Adj'!SS44-AH108,0)+ROUND('Common Adj'!SS49-AH110,0) -> 0 | AI131: =ROUND('Common Adj'!SS62-AI108,0)+ROUND('Common Adj'!SS67-AI110,0) -> 0 | AJ131: =ROUND('Common Adj'!SS80-AJ108,0)+ROUND('Common Adj'!SS85-AJ110,0) -> 0 | AK131: =ROUND('Common Adj'!TL35-AK108,0)+ROUND('Common Adj'!TL100-AK110,0) -> 0 | AL131: =ROUND('Common Adj'!UA27-AL108,0)+ROUND('Common Adj'!UA19-AL110,0) -> 0 | AM131: =ROUND('Common Adj'!UP25-AM108,0) -> 0 | AN131: =ROUND('Common Adj'!VE31-AN108,0)+ROUND(AN110-'Common Adj'!VE23,0) -> 0 | AO131: =ROUND('Common Adj'!UR25-AO108,0) -> 0 | AV131: =ROUND('Electric Adj'!G41-'Detailed Summary'!AV108,0)+AV110 -> 0 | AW131: =ROUND('Electric Adj'!AQ29-'Detailed Summary'!AW108,0)+ROUND('Electric Adj'!AQ21-'Detailed Summary'!AW110,0) -> 0 | AX131: =ROUND('Electric Adj'!BI30-'Detailed Summary'!AX108,0)+AX110 -> 0 | AY131: =ROUND('Electric Adj'!CA32-AY110,0)+ROUND('Electric Adj'!CA66-AY108,0) -> 0 | AZ131: =ROUND('Electric Adj'!CS29-'Detailed Summary'!AZ108,0)+ROUND('Electric Adj'!CS21-'Detailed Summary'!AZ110,0) -> 0 | BA131: =ROUND('Electric Adj'!DK30-'Detailed Summary'!BA108,0)+BA110 -> 0 | BB131: ='Electric Adj'!EC55-BB121+'Electric Adj'!EC75-BB108 -> 0 | BC131: =ROUND('Electric Adj'!EU42-'Detailed Summary'!BC108,0)+ROUND('Electric Adj'!EU31-'Detailed Summary'!BC110,0) -> 0 | BD131: =ROUND('Electric Adj'!FM24-'Detailed Summary'!BD108,0)+BD110 -> 0 | BE131: =ROUND('Electric Adj'!GE42-'Detailed Summary'!BE108,0)+ROUND('Electric Adj'!GE32-'Detailed Summary'!BE110,0) -> 0 | BF131: =ROUND('Electric Adj'!GW37-'Detailed Summary'!BF108,0) -> 0 | BG131: 0 | BH131: 0 | BI131: 0
B132: Check BB and EB NOI Period Balances to Summary | C132: 2023-12-31 | D132: =Summary!E47-D108 -> 0 | BK132: =Summary!G47-BK108 -> 0
B133: Check BB and EB Rate Base Period Balances to Summary | C133: 2023-12-31 | D133: =Summary!E58-D121 -> 0 | BK133: =Summary!G58-BK121 -> 0
C135: Gap Year | E135: 2024-12-01 | F135: 2024-12-01 | G135: 2024-12-01 | H135: 2024-12-01 | I135: 2024-12-01 | J135: 2024-12-01 | K135: 2024-12-01 | L135: 2024-12-01 | M135: 2024-12-01 | N135: 2024-12-01 | O135: 2024-12-01 | P135: 2024-12-01 | Q135: 2024-12-01 | R135: 2024-12-01 | S135: 2024-12-01 | T135: 2024-12-01 | U135: 2024-12-01 | V135: 2024-12-01 | W135: 2024-12-01 | X135: 2024-12-01 | Y135: 2024-12-01 | Z135: 2024-12-01 | AA135: 2024-12-01 | AB135: 2024-12-01 | AC135: 2024-12-01 | AD135: 2024-12-01 | AE135: 2024-12-01 | AF135: 2024-12-01 | AG135: 2024-12-01 | AH135: 2024-12-01 | AI135: 2024-12-01 | AJ135: 2024-12-01 | AK135: 2024-12-01 | AL135: 2024-12-01 | AM135: 2024-12-01 | AN135: 2024-12-01 | AO135: 2024-12-01 | AP135: 2024-12-01 | AQ135: 2024-12-01 | AR135: 2024-12-01 | AS135: 2024-12-01 | AT135: 2024-12-01 | AU135: 2024-12-01 | AV135: 2024-12-01 | AW135: 2024-12-01 | AX135: 2024-12-01 | AY135: 2024-12-01 | AZ135: 2024-12-01 | BA135: 2024-12-01 | BB135: 2024-12-01 | BC135: 2024-12-01 | BD135: 2024-12-01 | BE135: 2024-12-01 | BF135: 2024-12-01 | BG135: 2024-12-01 | BH135: 2024-12-01 | BI135: 2024-12-01
C136: 2024
A137: =A198 -> 1 | B137: OPERATING REVENUES | C137: Gap 2024
A138: 2 | B138: SALES TO CUSTOMERS | C138: Gap 2024 | D138: =+BK77 -> 2094244633 | E138: ='Common Adj'!I$46-E139 -> 14181030.29 | BJ138: =SUM(E138:BI138) -> 14181030.29 | BK138: =+BJ138+BK77 -> 2108425664
A139: 3 | B139: SALES FROM RESALE-FIRM/SPECIAL CONTRACT | C139: Gap 2024 | D139: =+BK78 -> 434445.04 | E139: ='Common Adj'!I$45 -> 0 | BJ139: =SUM(E139:BI139) -> 0 | BK139: =+BJ139+BK78 -> 434445.04
A140: 4 | B140: SALES TO OTHER UTILITIES | C140: Gap 2024 | D140: =+BK79 -> 763721180.9 | BJ140: =SUM(E140:BI140) -> 0 | BK140: =+BJ140+BK79 -> 763721180.9
A141: 5 | B141: OTHER OPERATING REVENUES | C141: Gap 2024 | D141: =+BK80 -> 182393306.3 | E141: ='Common Adj'!I$62 -> 0 | AY141: =-'Electric Adj'!CC51 -> -70072.74412 | BJ141: =SUM(E141:BI141) -> -70072.74412 | BK141: =+BJ141+BK80 -> 182323233.5
A142: 6 | B142: TOTAL OPERATING REVENUES | C142: Gap 2024 | D142: =SUM(D138:D141) -> 3040793565 | E142: =SUM(E138:E141) -> 14181030.29 | F142: =SUM(F138:F141) -> 0 | G142: 0 | H142: 0 | I142: 0 | J142: 0 | K142: 0 | L142: 0 | M142: 0 | N142: 0 | O142: 0 | P142: 0 | Q142: 0 | R142: 0 | S142: 0 | T142: 0 | U142: 0 | V142: 0 | W142: 0 | X142: 0 | Y142: 0 | Z142: 0 | AA142: 0 | AB142: 0 | AC142: 0 | AD142: 0 | AE142: 0 | AF142: 0 | AG142: =SUM(AG138:AG141) -> 0 | AH142: 0 | AI142: 0 | AJ142: 0 | AK142: 0 | AL142: 0 | AM142: 0 | AN142: =SUM(AN138:AN141) -> 0 | AO142: 0 | AP142: 0 | AQ142: 0 | AR142: 0 | AS142: 0 | AT142: 0 | AU142: 0 | AV142: 0 | AW142: 0 | AX142: 0 | AY142: -70072.74412 | AZ142: 0 | BA142: 0 | BB142: 0 | BC142: 0 | BD142: 0 | BE142: =SUM(BE138:BE141) -> 0 | BF142: 0 | BG142: 0 | BH142: =SUM(BH138:BH141) -> 0 | BI142: 0 | BJ142: =SUM(BJ138:BJ141) -> 14110957.55 | BK142: =SUM(BK138:BK141) -> 3054904523
A143: 7 | C143: Gap 2024
A144: 8 | B144: OPERATING REVENUE DEDUCTIONS: | C144: Gap 2024
A145: 9 | C145: Gap 2024
A146: 10 | B146: POWER COSTS: | C146: Gap 2024
A147: 11 | B147: FUEL | C147: Gap 2024 | D147: =+BK86 -> 455418278.8 | BJ147: =SUM(E147:BI147) -> 0 | BK147: =+BJ147+BK86 -> 455418278.8
A148: 12 | B148: PURCHASED AND INTERCHANGED | C148: Gap 2024 | D148: =+BK87 -> 1301582975 | O148: ='Common Adj'!GE17 -> 22553.27808 | BJ148: =SUM(E148:BI148) -> 22553.27808 | BK148: =+BJ148+BK87 -> 1301605528
A149: 13 | B149: WHEELING | C149: Gap 2024 | D149: =+BK88 -> 161536441.1 | BJ149: =SUM(E149:BI149) -> 0 | BK149: =+BJ149+BK88 -> 161536441.1
A150: 14 | B150: RESIDENTIAL EXCHANGE | C150: Gap 2024 | D150: =+BK89 -> 0 | BJ150: =SUM(E150:BI150) -> 0 | BK150: =+BJ150+BK89 -> 0
A151: 15 | B151: TOTAL PRODUCTION EXPENSES | C151: Gap 2024 | D151: =SUM(D146:D150) -> 1918537695 | E151: =SUM(E146:E150) -> 0 | F151: =SUM(F146:F150) -> 0 | G151: 0 | H151: 0 | I151: 0 | J151: 0 | K151: 0 | L151: 0 | M151: 0 | N151: 0 | O151: 22553.27808 | P151: 0 | Q151: 0 | R151: 0 | S151: 0 | T151: 0 | U151: 0 | V151: 0 | W151: 0 | X151: 0 | Y151: 0 | Z151: 0 | AA151: 0 | AB151: 0 | AC151: 0 | AD151: 0 | AE151: 0 | AF151: 0 | AG151: =SUM(AG146:AG150) -> 0 | AH151: 0 | AI151: 0 | AJ151: 0 | AK151: 0 | AL151: 0 | AM151: 0 | AN151: =SUM(AN146:AN150) -> 0 | AO151: 0 | AP151: 0 | AQ151: 0 | AR151: 0 | AS151: 0 | AT151: 0 | AU151: 0 | AV151: 0 | AW151: 0 | AX151: 0 | AY151: 0 | AZ151: 0 | BA151: 0 | BB151: 0 | BC151: 0 | BD151: 0 | BE151: =SUM(BE146:BE150) -> 0 | BF151: 0 | BG151: 0 | BH151: =SUM(BH146:BH150) -> 0 | BI151: 0 | BJ151: =SUM(BJ146:BJ150) -> 22553.27808 | BK151: =SUM(BK146:BK150) -> 1918560248
A152: 16 | C152: Gap 2024
A153: 17 | B153: OTHER POWER SUPPLY EXPENSES | C153: Gap 2024 | D153: =+BK92 -> 95572520.61 | O153: ='Common Adj'!GE18 -> 60700.64551 | BB153: ='Electric Adj'!EE61 -> 0 | BJ153: =SUM(E153:BI153) -> 60700.64551 | BK153: =+BJ153+BK92 -> 95633221.26
A154: 18 | B154: TRANSMISSION EXPENSE | C154: Gap 2024 | D154: 26098636.6 | O154: ='Common Adj'!GE19 -> 32443.59327 | BJ154: 32443.59327 | BK154: 26131080.19
A155: 19 | B155: DISTRIBUTION EXPENSE | C155: Gap 2024 | D155: 104636306.9 | O155: ='Common Adj'!GE20 -> 99071.12473 | BJ155: 99071.12473 | BK155: 104735378
A156: 20 | B156: CUSTOMER ACCTS EXPENSES | C156: Gap 2024 | D156: 52702650.46 | E156: ='Common Adj'!I$74 -> 92006.52454 | O156: ='Common Adj'!GE21 -> 23928.46461 | BJ156: 115934.9891 | BK156: 52818585.45
A157: 21 | B157: CUSTOMER SERVICE EXPENSES | C157: Gap 2024 | D157: 4284272.986 | O157: ='Common Adj'!GE22+'Common Adj'!GE23 -> 8673.87709 | BJ157: 8673.87709 | BK157: 4292946.864
A158: 22 | B158: CONSERVATION AMORTIZATION | C158: Gap 2024 | D158: 0 | BJ158: 0 | BK158: 0
A159: 23 | B159: ADMIN & GENERAL EXPENSE | C159: Gap 2024 | D159: 171948862.7 | E159: ='Common Adj'!I$75 -> 56724.12117 | O159: ='Common Adj'!GE24 -> 117788.0487 | AZ159: =+'Electric Adj'!CU25 -> 0 | BB159: ='Electric Adj'!EE66 -> 0 | BJ159: 174512.1699 | BK159: 172123374.9
A160: 24 | B160: DEPRECIATION | C160: Gap 2024 | D160: 367026891.3 | AE160: ='Common Adj'!$RK$17+'Common Adj'!$RK$18+'Common Adj'!RK22+'Common Adj'!RK23 -> -1613.90955 | AF160: ='Common Adj'!$SC$16+'Common Adj'!$SC$17 -> -1552531.01 | AG160: ='Common Adj'!$SU$16+'Common Adj'!$SU$17 -> 13244868.64 | AH160: ='Common Adj'!$SU$34+'Common Adj'!$SU$35 -> 2874771.14 | AI160: ='Common Adj'!$SU$52+'Common Adj'!$SU$53 -> 5436371.78 | AJ160: ='Common Adj'!$SU$70+'Common Adj'!$SU$71 -> 4153965.759 | BB160: ='Electric Adj'!EE62 -> 0 | BJ160: 24155832.4 | BK160: 391182723.7
A161: 25 | B161: AMORTIZATION | C161: Gap 2024 | D161: 63010619.95 | AE161: ='Common Adj'!$RK$19+'Common Adj'!$RK$20 -> -4040918.752 | AF161: ='Common Adj'!$SC$18+'Common Adj'!$SC$19 -> 0 | AG161: ='Common Adj'!$SU$18+'Common Adj'!$SU$19 -> 6356910.945 | AH161: ='Common Adj'!$SU$36+'Common Adj'!$SU$37 -> 55344.95 | AI161: ='Common Adj'!$SU$54+'Common Adj'!$SU$55 -> 0 | AJ161: ='Common Adj'!$SU$72+'Common Adj'!$SU$73 -> 13203890.63 | AZ161: =+'Electric Adj'!CU24 -> 0 | BC161: ='Electric Adj'!EW37 -> 0 | BJ161: 15575227.77 | BK161: 78585847.72
A162: 26 | B162: AMORTIZ OF PROPERTY GAIN/LOSS | C162: Gap 2024 | D162: 34245088.45 | BA162: ='Electric Adj'!DM$26 -> 0 | BJ162: 0 | BK162: 34245088.45
A163: 27 | B163: OTHER OPERATING EXPENSES | C163: Gap 2024 | D163: 24864305.28 | E163: ='Common Adj'!I$72 -> 0 | S163: ='Common Adj'!IY19 -> 0 | AC163: ='Common Adj'!QA17 -> 2723.732167 | AL163: ='Common Adj'!UC24 -> 0 | AY163: ='Electric Adj'!CC62-'Electric Adj'!CC51 -> -6063574.487 | BJ163: -6060850.755 | BK163: 18803454.52
A164: 28 | B164: TAXES OTHER THAN INCOME TAXES | C164: Gap 2024 | D164: 97242774.36 | E164: ='Common Adj'!I$76 -> 545728.5888 | O164: ='Common Adj'!GE27 -> 32097.64434 | BB164: ='Electric Adj'!EE69 -> 0 | BJ164: 577826.2331 | BK164: 97820600.6
A165: 29 | B165: INCOME TAXES | C165: Gap 2024 | D165: 15000413.25 | E165: ='Common Adj'!I$81 -> 2832179.922 | H165: =+'Common Adj'!BI16 -> 0 | I165: =+'Common Adj'!CA23 -> -2460753.3 | O165: ='Common Adj'!GE30 -> -83423.90203 | S165: ='Common Adj'!IY21 -> 0 | AC165: ='Common Adj'!QA20 -> -571.983755 | AE165: ='Common Adj'!$RK$29 -> 848931.859 | AF165: ='Common Adj'!$SC$28 -> 326031.5121 | AG165: ='Common Adj'!$SU$24 -> -4116373.713 | AH165: ='Common Adj'!$SU$42 -> -615324.3789 | AI165: ='Common Adj'!$SU$60 -> -1141638.074 | AJ165: ='Common Adj'!$SU$78 -> -3645149.841 | AL165: ='Common Adj'!UC26 -> 0 | AY165: ='Electric Adj'!CC64 -> 1258635.366 | AZ165: =+'Electric Adj'!CU28 -> 0 | BA165: ='Electric Adj'!DM$28 -> 0 | BB165: ='Electric Adj'!EE70+'Electric Adj'!EE73+'Electric Adj'!EE75 -> 0 | BC165: ='Electric Adj'!EW41 -> 0 | BJ165: -6797456.534 | BK165: 8202956.715
A166: 30 | B166: DEFERRED INCOME TAXES | C166: Gap 2024 | D166: -47249302.06 | H166: =SUM('Common Adj'!BI17:BI21) -> 1299233.389 | BJ166: 1299233.389 | BK166: -45950068.67
A167: 31 | B167: TOTAL OPERATING REV. DEDUCT. | C167: Gap 2024 | D167: =SUM(D151:D166) -> 2927921736 | E167: =SUM(E151:E166) -> 3526639.157 | F167: 0 | G167: 0 | H167: 1299233.389 | I167: -2460753.3 | J167: 0 | K167: 0 | L167: 0 | M167: 0 | N167: 0 | O167: 313832.7743 | P167: 0 | Q167: 0 | R167: 0 | S167: 0 | T167: 0 | U167: 0 | V167: 0 | W167: 0 | X167: 0 | Y167: 0 | Z167: 0 | AA167: 0 | AB167: 0 | AC167: 2151.748412 | AD167: 0 | AE167: -3193600.803 | AF167: -1226499.498 | AG167: =SUM(AG151:AG166) -> 15485405.87 | AH167: 2314791.711 | AI167: 4294733.706 | AJ167: 13712706.55 | AK167: 0 | AL167: 0 | AM167: 0 | AN167: =SUM(AN151:AN166) -> 0 | AO167: 0 | AP167: 0 | AQ167: 0 | AR167: 0 | AS167: 0 | AT167: 0 | AU167: 0 | AV167: 0 | AW167: 0 | AX167: 0 | AY167: -4804939.121 | AZ167: 0 | BA167: 0 | BB167: 0 | BC167: 0 | BD167: 0 | BE167: =SUM(BE151:BE166) -> 0 | BF167: 0 | BG167: 0 | BH167: =SUM(BH151:BH166) -> 0 | BI167: 0 | BJ167: =SUM(BJ151:BJ166) -> 29263702.18 | BK167: =SUM(BK151:BK166) -> 2957185438
A168: 32 | C168: Gap 2024
A169: 33 | B169: NET OPERATING INCOME | C169: Gap 2024 | D169: =+D142-D167 -> 112871829.7 | E169: =+E142-E167 -> 10654391.14 | F169: 0 | G169: 0 | H169: -1299233.389 | I169: 2460753.3 | J169: 0 | K169: 0 | L169: 0 | M169: 0 | N169: 0 | O169: -313832.7743 | P169: 0 | Q169: 0 | R169: 0 | S169: 0 | T169: 0 | U169: 0 | V169: 0 | W169: 0 | X169: 0 | Y169: 0 | Z169: 0 | AA169: 0 | AB169: 0 | AC169: -2151.748412 | AD169: 0 | AE169: 3193600.803 | AF169: 1226499.498 | AG169: =+AG142-AG167 -> -15485405.87 | AH169: -2314791.711 | AI169: -4294733.706 | AJ169: -13712706.55 | AK169: 0 | AL169: 0 | AM169: 0 | AN169: =+AN142-AN167 -> 0 | AO169: 0 | AP169: 0 | AQ169: 0 | AR169: 0 | AS169: 0 | AT169: 0 | AU169: 0 | AV169: 0 | AW169: 0 | AX169: 0 | AY169: 4734866.377 | AZ169: 0 | BA169: 0 | BB169: 0 | BC169: 0 | BD169: 0 | BE169: =+BE142-BE167 -> 0 | BF169: 0 | BG169: 0 | BH169: =+BH142-BH167 -> 0 | BI169: 0 | BJ169: =+BJ142-BJ167 -> -15152744.64 | BK169: =+BK142-BK167 -> 97719085.07
A170: 34 | C170: Gap 2024 | AA170: f
A171: 35 | B171: RATE BASE | C171: Gap 2024 | D171: =D182 -> 6109996434 | E171: =E182 -> 0 | F171: =F182 -> 0 | G171: 0 | H171: 0 | I171: 0 | J171: 0 | K171: 0 | L171: 0 | M171: 0 | N171: 0 | O171: 0 | P171: 0 | Q171: 0 | R171: 0 | S171: 0 | T171: 0 | U171: 0 | V171: 0 | W171: 0 | X171: 0 | Y171: 0 | Z171: 0 | AA171: 0 | AB171: 0 | AC171: 0 | AD171: 0 | AE171: -382029793.4 | AF171: 1727315.56 | AG171: =AG182 -> 372227780.4 | AH171: 117993802.4 | AI171: 194852408.7 | AJ171: 167403102.1 | AL171: 0 | AN171: 8960350.008 | AW171: 85798.285 | AX171: 0 | AY171: -29912774.44 | AZ171: 0 | BA171: 0 | BB171: 0 | BC171: -5761493.16 | BD171: 0 | BE171: =BE182 -> 0 | BF171: 0 | BG171: 0 | BH171: =BH182 -> 0 | BI171: 0 | BJ171: =BJ182 -> 445546496.4 | BK171: =BK182 -> 6555542930
A172: 36 | C172: Gap 2024
A173: 37 | B173: RATE OF RETURN | C173: Gap 2024 | D173: =+D169/D171 -> 0.01847330533 | BK173: =+BK169/BK171 -> 0.01490632982
A174: 38 | C174: Gap 2024
A175: 39 | B175: RATE BASE: | C175: Gap 2024
A176: 40 | B176: GROSS UTILITY PLANT IN SERVICE | C176: Gap 2024 | D176: =+BK115 -> 1.194034554e+10 | AB176: ='Common Adj'!PE21 -> 0 | AD176: ='Common Adj'!QS19 -> -97245889.01 | AG176: ='Common Adj'!$SU$28 -> 400416901.5 | AH176: ='Common Adj'!$SU$46 -> 112269526 | AI176: ='Common Adj'!$SU$64 -> 207087159.3 | AJ176: =+'Common Adj'!$SU$82 -> 189917492.7 | AN176: ='Common Adj'!VG19 -> 11342215.2 | AZ176: =+'Electric Adj'!CU18 -> 0 | BB176: ='Electric Adj'!EE48 -> 0 | BC176: ='Electric Adj'!EW23 -> 0 | BJ176: =SUM(E176:BI176) -> 823787405.6 | BK176: =+BJ176+BK115 -> 1.276413295e+10
A177: 41 | B177: ACCUM DEPR AND AMORT | C177: Gap 2024 | D177: -5381353910 | AB177: ='Common Adj'!PE27 -> 0 | AD177: ='Common Adj'!QS20 -> 97245889.01 | AE177: ='Common Adj'!$RK$34 -> -411293836.2 | AF177: ='Common Adj'!$SC$33 -> 1727315.56 | AG177: ='Common Adj'!$SU$29 -> -23093220.44 | AH177: ='Common Adj'!$SU$47 -> -3233908.58 | AI177: ='Common Adj'!$SU$65 -> -6723302.91 | AJ177: =+'Common Adj'!$SU$83 -> -18694451.01 | AN177: ='Common Adj'!VG20 -> 0 | AW177: ='Electric Adj'!AS19 -> 219566 | AZ177: =+'Electric Adj'!CU19 -> 0 | BB177: ='Electric Adj'!EE54 -> 0 | BC177: ='Electric Adj'!EW29 -> -5761493.16 | BJ177: -369607441.7 | BK177: -5750961352
A178: 42 | B178: DEFERRED DEBITS AND CREDITS | C178: Gap 2024 | D178: 670411441.7 | AL178: ='Common Adj'!UC17 -> 0 | AY178: ='Electric Adj'!CC36 -> -34141796.81 | BB178: ='Electric Adj'!EE55 -> 0 | BD178: ='Electric Adj'!FO18+'Electric Adj'!FO19 -> 0 | BE178: ='Electric Adj'!GG22 -> 0 | BJ178: -34141796.81 | BK178: 636269644.9
A179: 43 | B179: DEFERRED TAXES | C179: Gap 2024 | D179: -1199931917 | H179: =+'Common Adj'!BI29 -> 0 | AB179: ='Common Adj'!PE33 -> 0 | AE179: ='Common Adj'!$RK$35 -> 29264042.8 | AF179: ='Common Adj'!$SC$34 -> 0 | AG179: ='Common Adj'!$SU$30 -> -5095900.69 | AH179: ='Common Adj'!$SU$48 -> 8958185.01 | AI179: ='Common Adj'!$SU$66 -> -5511447.69 | AJ179: =+'Common Adj'!$SU$84 -> -3819939.567 | AL179: ='Common Adj'!UC18 -> 0 | AN179: ='Common Adj'!VG21 -> -2381865.192 | AW179: ='Electric Adj'!AS20 -> -133767.715 | AY179: ='Electric Adj'!CC37 -> 4229022.369 | AZ179: =+'Electric Adj'!CU20 -> 0 | BB179: ='Electric Adj'!EE56 -> 0 | BC179: ='Electric Adj'!EW21 -> 0 | BD179: ='Electric Adj'!FO21 -> 0 | BE179: ='Electric Adj'!GG30 -> 0 | BJ179: 25508329.32 | BK179: -1174423588
A180: 44 | B180: ALLOWANCE FOR WORKING CAPITAL | C180: Gap 2024 | D180: 222518805.8 | BJ180: 0 | BK180: 222518805.8
A181: 45 | B181: OTHER | C181: Gap 2024 | D181: -141993529.8 | BJ181: 0 | BK181: -141993529.8
A182: 46 | B182: TOTAL RATE BASE | C182: Gap 2024 | D182: =SUM(D176:D181) -> 6109996434 | E182: =SUM(E176:E181) -> 0 | F182: =SUM(F176:F181) -> 0 | G182: 0 | H182: 0 | I182: 0 | J182: 0 | K182: 0 | L182: 0 | M182: 0 | N182: 0 | O182: 0 | P182: 0 | Q182: 0 | R182: 0 | S182: 0 | T182: 0 | U182: 0 | V182: 0 | W182: 0 | X182: 0 | Y182: 0 | Z182: 0 | AA182: 0 | AB182: 0 | AC182: 0 | AD182: 0 | AE182: -382029793.4 | AF182: 1727315.56 | AG182: =SUM(AG176:AG181) -> 372227780.4 | AH182: 117993802.4 | AI182: 194852408.7 | AJ182: =SUM(AJ176:AJ181) -> 167403102.1 | AK182: 0 | AL182: 0 | AM182: 0 | AN182: =SUM(AN176:AN181) -> 8960350.008 | AO182: 0 | AP182: 0 | AQ182: 0 | AR182: 0 | AS182: 0 | AT182: 0 | AU182: 0 | AV182: 0 | AW182: =SUM(AW177:AW181) -> 85798.285 | AX182: 0 | AY182: -29912774.44 | AZ182: 0 | BA182: 0 | BB182: 0 | BC182: -5761493.16 | BD182: 0 | BE182: =SUM(BE176:BE181) -> 0 | BF182: 0 | BG182: 0 | BH182: =SUM(BH176:BH181) -> 0 | BI182: 0 | BJ182: =SUM(BJ176:BJ181) -> 445546496.4 | BK182: =SUM(BK176:BK181) -> 6555542930
A183: 47 | C183: Gap 2024
A184: 48 | B184: REQUESTED RATE OF RETURN | C184: Gap 2024 | D184: =+'Def, COC, ConvF'!$C$13 -> 0.0736 | E184: =+'Def, COC, ConvF'!$C$13 -> 0.0736 | F184: =+'Def, COC, ConvF'!$C$13 -> 0.0736 | G184: =+'Def, COC, ConvF'!$C$13 -> 0.0736 | H184: =+'Def, COC, ConvF'!$C$13 -> 0.0736 | I184: =+'Def, COC, ConvF'!$C$13 -> 0.0736 | J184: =+'Def, COC, ConvF'!$C$13 -> 0.0736 | K184: =+'Def, COC, ConvF'!$C$13 -> 0.0736 | L184: =+'Def, COC, ConvF'!$C$13 -> 0.0736 | M184: =+'Def, COC, ConvF'!$C$13 -> 0.0736 | N184: =+'Def, COC, ConvF'!$C$13 -> 0.0736 | O184: =+'Def, COC, ConvF'!$C$13 -> 0.0736 | P184: =+'Def, COC, ConvF'!$C$13 -> 0.0736 | Q184: =+'Def, COC, ConvF'!$C$13 -> 0.0736 | R184: =+'Def, COC, ConvF'!$C$13 -> 0.0736 | S184: =+'Def, COC, ConvF'!$C$13 -> 0.0736 | T184: =+'Def, COC, ConvF'!$C$13 -> 0.0736 | U184: =+'Def, COC, ConvF'!$C$13 -> 0.0736 | V184: =+'Def, COC, ConvF'!$C$13 -> 0.0736 | W184: =+'Def, COC, ConvF'!$C$13 -> 0.0736 | X184: =+'Def, COC, ConvF'!$C$13 -> 0.0736 | Y184: =+'Def, COC, ConvF'!$C$13 -> 0.0736 | Z184: =+'Def, COC, ConvF'!$C$13 -> 0.0736 | AA184: =+'Def, COC, ConvF'!$C$13 -> 0.0736 | AB184: =+'Def, COC, ConvF'!$C$13 -> 0.0736 | AC184: =+'Def, COC, ConvF'!$C$13 -> 0.0736 | AD184: =+'Def, COC, ConvF'!$C$13 -> 0.0736 | AE184: =+'Def, COC, ConvF'!$C$13 -> 0.0736 | AF184: =+'Def, COC, ConvF'!$C$13 -> 0.0736 | AG184: =+'Def, COC, ConvF'!$C$13 -> 0.0736 | AH184: =+'Def, COC, ConvF'!$C$13 -> 0.0736 | AI184: =+'Def, COC, ConvF'!$C$13 -> 0.0736 | AJ184: =+'Def, COC, ConvF'!$C$13 -> 0.0736 | AK184: =+'Def, COC, ConvF'!$C$13 -> 0.0736 | AL184: =+'Def, COC, ConvF'!$C$13 -> 0.0736 | AM184: =+'Def, COC, ConvF'!$C$13 -> 0.0736 | AN184: =+'Def, COC, ConvF'!$C$13 -> 0.0736 | AO184: =+'Def, COC, ConvF'!$C$13 -> 0.0736 | AP184: =+'Def, COC, ConvF'!$C$13 -> 0.0736 | AQ184: =+'Def, COC, ConvF'!$C$13 -> 0.0736 | AR184: =+'Def, COC, ConvF'!$C$13 -> 0.0736 | AS184: =+'Def, COC, ConvF'!$C$13 -> 0.0736 | AT184: =+'Def, COC, ConvF'!$C$13 -> 0.0736 | AU184: =+'Def, COC, ConvF'!$C$13 -> 0.0736 | AV184: =+'Def, COC, ConvF'!$C$13 -> 0.0736 | AW184: =+'Def, COC, ConvF'!$C$13 -> 0.0736 | AX184: =+'Def, COC, ConvF'!$C$13 -> 0.0736 | AY184: =+'Def, COC, ConvF'!$C$13 -> 0.0736 | AZ184: =+'Def, COC, ConvF'!$C$13 -> 0.0736 | BA184: =+'Def, COC, ConvF'!$C$13 -> 0.0736 | BB184: =+'Def, COC, ConvF'!$C$13 -> 0.0736 | BC184: =+'Def, COC, ConvF'!$C$13 -> 0.0736 | BD184: =+'Def, COC, ConvF'!$C$13 -> 0.0736 | BE184: =+'Def, COC, ConvF'!$C$13 -> 0.0736 | BF184: =+'Def, COC, ConvF'!$C$13 -> 0.0736 | BG184: 0.0736 | BH184: 0.0736 | BI184: 0.0736 | BJ184: =+'Def, COC, ConvF'!$C$13 -> 0.0736 | BK184: =+'Def, COC, ConvF'!$C$13 -> 0.0736
A185: 49 | B185: CONVERSION FACTOR | C185: Gap 2024 | D185: =+'Def, COC, ConvF'!$P$20 -> 0.751313 | E185: =+'Def, COC, ConvF'!$P$20 -> 0.751313 | F185: =+'Def, COC, ConvF'!$P$20 -> 0.751313 | G185: =+'Def, COC, ConvF'!$P$20 -> 0.751313 | H185: =+'Def, COC, ConvF'!$P$20 -> 0.751313 | I185: =+'Def, COC, ConvF'!$P$20 -> 0.751313 | J185: =+'Def, COC, ConvF'!$P$20 -> 0.751313 | K185: =+'Def, COC, ConvF'!$P$20 -> 0.751313 | L185: =+'Def, COC, ConvF'!$P$20 -> 0.751313 | M185: =+'Def, COC, ConvF'!$P$20 -> 0.751313 | N185: =+'Def, COC, ConvF'!$P$20 -> 0.751313 | O185: =+'Def, COC, ConvF'!$P$20 -> 0.751313 | P185: =+'Def, COC, ConvF'!$P$20 -> 0.751313 | Q185: =+'Def, COC, ConvF'!$P$20 -> 0.751313 | R185: =+'Def, COC, ConvF'!$P$20 -> 0.751313 | S185: =+'Def, COC, ConvF'!$P$20 -> 0.751313 | T185: =+'Def, COC, ConvF'!$P$20 -> 0.751313 | U185: =+'Def, COC, ConvF'!$P$20 -> 0.751313 | V185: =+'Def, COC, ConvF'!$P$20 -> 0.751313 | W185: =+'Def, COC, ConvF'!$P$20 -> 0.751313 | X185: =+'Def, COC, ConvF'!$P$20 -> 0.751313 | Y185: =+'Def, COC, ConvF'!$P$20 -> 0.751313 | Z185: =+'Def, COC, ConvF'!$P$20 -> 0.751313 | AA185: =+'Def, COC, ConvF'!$P$20 -> 0.751313 | AB185: =+'Def, COC, ConvF'!$P$20 -> 0.751313 | AC185: =+'Def, COC, ConvF'!$P$20 -> 0.751313 | AD185: =+'Def, COC, ConvF'!$P$20 -> 0.751313 | AE185: =+'Def, COC, ConvF'!$P$20 -> 0.751313 | AF185: =+'Def, COC, ConvF'!$P$20 -> 0.751313 | AG185: =+'Def, COC, ConvF'!$P$20 -> 0.751313 | AH185: =+'Def, COC, ConvF'!$P$20 -> 0.751313 | AI185: =+'Def, COC, ConvF'!$P$20 -> 0.751313 | AJ185: =+'Def, COC, ConvF'!$P$20 -> 0.751313 | AK185: =+'Def, COC, ConvF'!$P$20 -> 0.751313 | AL185: =+'Def, COC, ConvF'!$P$20 -> 0.751313 | AM185: =+'Def, COC, ConvF'!$P$20 -> 0.751313 | AN185: =+'Def, COC, ConvF'!$P$20 -> 0.751313 | AO185: =+'Def, COC, ConvF'!$P$20 -> 0.751313 | AP185: =+'Def, COC, ConvF'!$P$20 -> 0.751313 | AQ185: =+'Def, COC, ConvF'!$P$20 -> 0.751313 | AR185: =+'Def, COC, ConvF'!$P$20 -> 0.751313 | AS185: =+'Def, COC, ConvF'!$P$20 -> 0.751313 | AT185: =+'Def, COC, ConvF'!$P$20 -> 0.751313 | AU185: =+'Def, COC, ConvF'!$P$20 -> 0.751313 | AV185: =+'Def, COC, ConvF'!$P$20 -> 0.751313 | AW185: =+'Def, COC, ConvF'!$P$20 -> 0.751313 | AX185: =+'Def, COC, ConvF'!$P$20 -> 0.751313 | AY185: =+'Def, COC, ConvF'!$P$20 -> 0.751313 | AZ185: =+'Def, COC, ConvF'!$P$20 -> 0.751313 | BA185: =+'Def, COC, ConvF'!$P$20 -> 0.751313 | BB185: =+'Def, COC, ConvF'!$P$20 -> 0.751313 | BC185: =+'Def, COC, ConvF'!$P$20 -> 0.751313 | BD185: =+'Def, COC, ConvF'!$P$20 -> 0.751313 | BE185: =+'Def, COC, ConvF'!$P$20 -> 0.751313 | BF185: =+'Def, COC, ConvF'!$P$20 -> 0.751313 | BG185: 0.751313 | BH185: 0.751313 | BI185: 0.751313 | BJ185: =+'Def, COC, ConvF'!$P$20 -> 0.751313 | BK185: =+'Def, COC, ConvF'!$P$20 -> 0.751313
A186: 50 | B186: SURPLUS / (DEFICIENCY) | C186: Gap 2024 | D186: =+D169-(D182*D184) -> -336823907.8 | E186: =+E169-(E182*E184) -> 10654391.14 | F186: 0 | G186: 0 | H186: -1299233.389 | I186: 2460753.3 | J186: 0 | K186: 0 | L186: 0 | M186: 0 | N186: 0 | O186: -313832.7743 | P186: 0 | Q186: 0 | R186: 0 | S186: 0 | T186: 0 | U186: 0 | V186: 0 | W186: 0 | X186: 0 | Y186: 0 | Z186: 0 | AA186: 0 | AB186: 0 | AC186: -2151.748412 | AD186: 0 | AE186: 31310993.6 | AF186: 1099369.073 | AG186: =+AG169-(AG182*AG184) -> -42881370.51 | AH186: -10999135.57 | AI186: -18635870.99 | AJ186: -26033574.86 | AK186: 0 | AL186: 0 | AM186: =+AM169-(AM182*AM184) -> 0 | AN186: -659481.7606 | AO186: 0 | AP186: 0 | AQ186: 0 | AR186: 0 | AS186: 0 | AT186: 0 | AU186: 0 | AV186: 0 | AW186: -6314.753776 | AX186: 0 | AY186: 6936446.576 | AZ186: 0 | BA186: 0 | BB186: 0 | BC186: 424045.8966 | BD186: 0 | BE186: =+BE169-(BE182*BE184) -> 0 | BF186: 0 | BG186: 0 | BH186: =+BH169-(BH182*BH184) -> 0 | BI186: 0 | BJ186: =SUM(E186:BI186) -> -47944966.77 | BK186: =+BK169-(BK182*BK184) -> -384768874.6
A187: 51 | B187: REVENUE REQUIREMENT OR (SURPLUS) | C187: Gap 2024 | D187: =-D186/D185 -> 448313695.9 | E187: =-E186/E185 -> -14181028.59 | F187: 0 | G187: 0 | H187: 1729283.786 | I187: -3275270.493 | J187: 0 | K187: 0 | L187: 0 | M187: 0 | N187: 0 | O187: 417712.4238 | P187: 0 | Q187: 0 | R187: 0 | S187: 0 | T187: 0 | U187: 0 | V187: 0 | W187: 0 | X187: 0 | Y187: 0 | Z187: 0 | AA187: 0 | AB187: 0 | AC187: 2863.984001 | AD187: 0 | AE187: -41675032.37 | AF187: -1463263.743 | AG187: =-AG186/AG185 -> 57075240.96 | AH187: 14639884.53 | AI187: 24804403.74 | AJ187: 34650771.2 | AK187: 0 | AL187: 0 | AM187: =-AM186/AM185 -> 0 | AN187: 877772.3274 | AO187: 0 | AP187: 0 | AQ187: 0 | AR187: 0 | AS187: 0 | AT187: 0 | AU187: 0 | AV187: 0 | AW187: 8404.957423 | AX187: 0 | AY187: -9232432.522 | AZ187: 0 | BA187: 0 | BB187: 0 | BC187: -564406.4412 | BD187: 0 | BE187: =-BE186/BE185 -> 0 | BF187: 0 | BG187: 0 | BH187: =-BH186/BH185 -> 0 | BI187: 0 | BJ187: =SUM(E187:BI187) -> 63814903.74 | BK187: =-BK186/BK185 -> 512128599.7
A188: 52 | B188: CHANGES TO OTHER PRICE SCHEDULES | C188: Gap 2024 | BK188: =BK127 -> -499034932.1
A189: 53 | B189: NET REVENUE CHANGE | C189: Gap 2024 | BK189: =SUM(BK187:BK188) -> 13093667.62
C190: Gap 2024
C191: Gap 2024 | BJ191: =+'Def, COC, ConvF'!$K$27 -> 0.0736 | BK191: =+'Def, COC, ConvF'!$K$27 -> 0.0736
B192: Check to Stand-alone Adjustment | C192: Gap 2024 | E192: =ROUND('Common Adj'!I82-E169,0)+E171 -> 0 | F192: =ROUND('Common Adj'!AA76-F169,0)+F171 -> 0 | G192: 0 | H192: =ROUND('Common Adj'!BI24-H169,0)+ROUND('Common Adj'!BI29-H171,0) -> 0 | I192: =ROUND('Common Adj'!CA24-I169,0)+I171 -> 0 | J192: =ROUND('Common Adj'!CS21-J169,0)+J171 -> 0 | K192: =ROUND('Common Adj'!DK26-K169,0)+K171 -> 0 | L192: =ROUND('Common Adj'!EC22-L169,0)+L171 -> 0 | M192: =ROUND('Common Adj'!EU27-M169,0)+M171 -> 0 | N192: =ROUND('Common Adj'!FM23-N169,0)+N171 -> 0 | O192: =ROUND('Common Adj'!GE31-O169,0)+O171 -> 0 | P192: =ROUND('Common Adj'!GW37-P169,0)+P171 -> 0 | Q192: =ROUND('Common Adj'!HO18-Q169,0)+Q171 -> 0 | R192: =ROUND('Common Adj'!IG23-R169,0)+R171 -> 0 | S192: =ROUND('Common Adj'!IY22-S169,0)+S171 -> 0 | T192: =ROUND('Common Adj'!JQ23-T169,0)+T171 -> 0 | U192: =ROUND('Common Adj'!KI20-U169,0)+U171 -> 0 | V192: =ROUND('Common Adj'!LA32-V169,0)+V171 -> 0 | W192: =ROUND('Common Adj'!LS22-W169,0)+W171 -> 0 | X192: =ROUND('Common Adj'!MK31-X169,0)+ROUND('Common Adj'!MK36-X171,0) -> 0 | Y192: =ROUND('Common Adj'!NC21-Y169,0)+Y171 -> 0 | Z192: =ROUND('Common Adj'!NU33-Z169,0)+Z171 -> 0 | AA192: =ROUND('Common Adj'!OM24-'Detailed Summary'!AA171+'Common Adj'!OM35-'Detailed Summary'!AA169,0) -> 0 | AB192: =ROUND('Common Adj'!PE53-AB169,0)+ROUND('Common Adj'!PE35-AB171,0) -> 0 | AC192: =ROUND('Common Adj'!QA21-AC169,0)+AC171 -> 0 | AD192: =+ROUND('Common Adj'!QS21-AD171,0)+ROUND(-AD169,0) -> 0 | AE192: =ROUND('Common Adj'!RK31-AE169,0)+ROUND('Common Adj'!RK36-AE171,0) -> 0 | AF192: =ROUND('Common Adj'!SC30-AF169,0)+ROUND('Common Adj'!SC35-AF171,0) -> 0 | AG192: =ROUND('Common Adj'!SU26-AG169,0)+ROUND('Common Adj'!SU31-AG171,0) -> 0 | AH192: =ROUND('Common Adj'!SU44-AH169,0)+ROUND('Common Adj'!SU49-AH171,0) -> 0 | AI192: =ROUND('Common Adj'!SU62-AI169,0)+ROUND('Common Adj'!SU67-AI171,0) -> 0 | AJ192: =ROUND('Common Adj'!SU80-AJ169,0)+ROUND('Common Adj'!SU85-AJ171,0) -> 0 | AK192: =ROUND('Common Adj'!TN35-AK169,0)+ROUND('Common Adj'!TN100-AK171,0) -> 0 | AL192: =ROUND('Common Adj'!UC27-AL173,0)+ROUND('Common Adj'!UC19-AL171,0) -> 0 | AM192: =ROUND('Common Adj'!UR25-AM169,0) -> 0 | AN192: =ROUND('Common Adj'!VG31-AN169,0)+ROUND('Common Adj'!VG23-'Detailed Summary'!AN182,0) -> 0 | AO192: =ROUND('Common Adj'!VV2125-AO169,0) -> 0 | AV192: =ROUND('Electric Adj'!I$41-'Detailed Summary'!AV169,0)+AV171 -> 0 | AW192: =ROUND('Electric Adj'!AS$29-'Detailed Summary'!AW169,0)+ROUND('Electric Adj'!AS$21-'Detailed Summary'!AW171,0) -> 0 | AX192: =ROUND('Electric Adj'!BK$30-'Detailed Summary'!AX169,0)+AX171 -> 0 | AY192: =ROUND('Electric Adj'!CC$32-AY171,0)+ROUND('Electric Adj'!CC$66-AY169,0) -> 0 | AZ192: =ROUND('Electric Adj'!CU$29-'Detailed Summary'!AZ169,0)+ROUND('Electric Adj'!CU$21-'Detailed Summary'!AZ171,0) -> 0 | BA192: =ROUND('Electric Adj'!DM$30-'Detailed Summary'!BA169,0)+BA171 -> 0 | BB192: ='Electric Adj'!EE75+'Electric Adj'!EE55-BB182-BB169 -> 0 | BC192: =ROUND('Electric Adj'!EW$42-'Detailed Summary'!BC169,0)+ROUND('Electric Adj'!EW$31-'Detailed Summary'!BC171,0) -> 0 | BD192: =ROUND('Electric Adj'!FO$24-'Detailed Summary'!BD169,0)+BD171 -> 0 | BE192: =ROUND('Electric Adj'!GG$42-'Detailed Summary'!BE169,0)+ROUND('Electric Adj'!GG$32-'Detailed Summary'!BE171,0) -> 0 | BF192: =ROUND('Electric Adj'!GY37-'Detailed Summary'!BF169,0) -> 0
B193: Check BB and EB NOI Period Balances to Summary | C193: Gap 2024 | D193: =Summary!G47-D169 -> 0 | BK193: =Summary!I47-BK169 -> 0
B194: Check BB and EB Rate Base Period Balances to Summary | C194: Gap 2024 | D194: =Summary!G58-D182 -> 0 | BK194: =Summary!I58-BK182 -> 0
C196: Rate Yr 1 | E196: 2025-12-01 | F196: 2025-12-01 | G196: 2025-12-01 | H196: 2025-12-01 | I196: 2025-12-01 | J196: 2025-12-01 | K196: 2025-12-01 | L196: 2025-12-01 | M196: 2025-12-01 | N196: 2025-12-01 | O196: 2025-12-01 | P196: 2025-12-01 | Q196: 2025-12-01 | R196: 2025-12-01 | S196: 2025-12-01 | T196: 2025-12-01 | U196: 2025-12-01 | V196: 2025-12-01 | W196: 2025-12-01 | X196: 2025-12-01 | Y196: 2025-12-01 | Z196: 2025-12-01 | AA196: 2025-12-01 | AB196: 2025-12-01 | AC196: 2025-12-01 | AD196: 2025-12-01 | AE196: 2025-12-01 | AF196: 2025-12-01 | AG196: 2025-12-01 | AH196: 2025-12-01 | AI196: 2025-12-01 | AJ196: 2025-12-01 | AK196: 2025-12-01 | AL196: 2025-12-01 | AM196: 2025-12-01 | AN196: 2025-12-01 | AO196: 2025-12-01 | AP196: 2025-12-01 | AQ196: 2025-12-01 | AR196: 2025-12-01 | AS196: 2025-12-01 | AT196: 2025-12-01 | AU196: 2025-12-01 | AV196: 2025-12-01 | AW196: 2025-12-01 | AX196: 2025-12-01 | AY196: 2025-12-01 | AZ196: 2025-12-01 | BA196: 2025-12-01 | BB196: 2025-12-01 | BC196: 2025-12-01 | BD196: 2025-12-01 | BE196: 2025-12-01 | BF196: 2025-12-01 | BG196: 2025-12-01 | BH196: 2025-12-01 | BI196: 2025-12-01
C197: 2025
A198: =A259 -> 1 | B198: OPERATING REVENUES | C198: RY1 2025
A199: =A260 -> 2 | B199: SALES TO CUSTOMERS | C199: RY1 2025 | D199: =+BK138 -> 2108425664 | E199: ='Common Adj'!K$46-E200 -> 9749529.13 | BJ199: =SUM(E199:BI199) -> 9749529.13 | BK199: =+BJ199+D199 -> 2118175193
A200: 3 | B200: SALES FROM RESALE-FIRM/SPECIAL CONTRACT | C200: RY1 2025 | D200: =+BK139 -> 434445.04 | E200: ='Common Adj'!K$45 -> 0 | BJ200: =SUM(E200:BI200) -> 0 | BK200: =+BJ200+D200 -> 434445.04
A201: 4 | B201: SALES TO OTHER UTILITIES | C201: RY1 2025 | D201: =+BK140 -> 763721180.9 | AV201: =-'Electric Adj'!K25 -> -257319990.7 | BJ201: =SUM(E201:BI201) -> -257319990.7 | BK201: =+BJ201+D201 -> 506401190.1
A202: 5 | B202: OTHER OPERATING REVENUES | C202: RY1 2025 | D202: =+BK141 -> 182323233.5 | E202: ='Common Adj'!K$62 -> -1935796.938 | AB202: ='Common Adj'!PG38 -> 0 | AV202: =-SUM('Electric Adj'!K26,'Electric Adj'!K32) -> 8825773.073 | AY202: =-'Electric Adj'!CE51 -> 0 | BE202: =-'Electric Adj'!GI36 -> -21579.237 | BJ202: =SUM(E202:BI202) -> 6868396.898 | BK202: =+BJ202+D202 -> 189191630.4
A203: 6 | B203: TOTAL OPERATING REVENUES | C203: RY1 2025 | D203: =SUM(D199:D202) -> 3054904523 | E203: =SUM(E199:E202) -> 7813732.193 | F203: =SUM(F199:F202) -> 0 | G203: 0 | H203: 0 | I203: 0 | J203: 0 | K203: 0 | L203: 0 | M203: 0 | N203: 0 | O203: 0 | P203: 0 | Q203: 0 | R203: 0 | S203: 0 | T203: 0 | U203: 0 | V203: 0 | W203: 0 | X203: 0 | Y203: 0 | Z203: 0 | AA203: 0 | AB203: 0 | AC203: 0 | AD203: 0 | AE203: 0 | AF203: 0 | AG203: 0 | AH203: 0 | AI203: 0 | AJ203: 0 | AK203: =SUM(AK199:AK202) -> 0 | AL203: 0 | AM203: 0 | AN203: 0 | AO203: 0 | AP203: 0 | AQ203: 0 | AR203: 0 | AS203: 0 | AT203: 0 | AU203: 0 | AV203: -248494217.7 | AW203: 0 | AX203: 0 | AY203: 0 | AZ203: 0 | BA203: 0 | BB203: 0 | BC203: 0 | BD203: 0 | BE203: =SUM(BE199:BE202) -> -21579.237 | BF203: 0 | BG203: 0 | BH203: =SUM(BH199:BH202) -> 0 | BI203: 0 | BJ203: =SUM(BJ199:BJ202) -> -240702064.7 | BK203: =SUM(BK199:BK202) -> 2814202458
A204: 7 | C204: RY1 2025
A205: 8 | B205: OPERATING REVENUE DEDUCTIONS: | C205: RY1 2025
A206: 9 | C206: RY1 2025
A207: 10 | B207: POWER COSTS: | C207: RY1 2025
A208: 11 | B208: FUEL | C208: RY1 2025 | D208: =+BK147 -> 455418278.8 | AV208: =SUM('Electric Adj'!K18:K19) -> 124271945.1 | BJ208: =SUM(E208:BI208) -> 124271945.1 | BK208: =+BJ208+D208 -> 579690223.9
... 202 more rows

Sheet Tracker Distr
B2: Schedule to allocate Tracker Costs
B3: Puget Sound Energy Workpaper
B4: Staff Adjustments S6.49, S6.50, S6.51
C7: RY2026 Cumlative Totals | G7: RY2025 | K7: RY2026
C9: RESTORE CGR TRACKER COSTS | D9: RESTORE WILDFIRE TRACKER COSTS | E9: RESTORE CARB TRACKER COSTS | G9: RESTORE CGR TRACKER COSTS | H9: RESTORE WILDFIRE TRACKER COSTS | I9: RESTORE CARB TRACKER COSTS | K9: RESTORE CGR TRACKER COSTS | L9: RESTORE WILDFIRE TRACKER COSTS | M9: RESTORE CARB TRACKER COSTS
A11: Line | B11: ACCOUNT DESCRIPTION | C11: SEF-21 | D11: SEF-22 | E11: SEF-23 | G11: SEF-21 | H11: SEF-22 | I11: SEF-23 | K11: SEF-21 | L11: SEF-22 | M11: SEF-23
A12: 1 | B12: ADMIN & GENERAL EXPENSE | D12: =6425884+14336418-2580555 -> 18181747 | G12: 0 | H12: =5628712+14460814-2602947 -> 17486579 | I12: 0 | K12: 0 | L12: =+D12-H12 -> 695168 | M12: 0
A13: =+A12+1 -> 2 | B13: DEPRECIATION | C13: 28800620.65 | D13: 3282561 | E13: 0 | G13: 10800233 | H13: 1178635 | I13: 0 | K13: 18000387.9 | L13: 2103926 | M13: 0
A14: =+A13+1 -> 3 | B14: AMORTIZATION | D14: 0 | E14: 0 | G14: 0 | H14: 0 | I14: 0 | K14: 0 | L14: 0 | M14: 0
A15: 4 | B15: AMORTIZ OF PROPERTY GAIN/LOSS | G15: 0 | H15: 0 | I15: 0 | K15: 0 | L15: 0 | M15: 0
A16: 5 | B16: OTHER OPERATING EXPENSES | C16: 13904238 | E16: 7297675 | G16: 13631606 | H16: 0 | I16: =+E16 -> 7297675 | K16: 272632 | L16: 0 | M16: 0
A17: 6 | B17: TAXES OTHER THAN INCOME TAXES | G17: 0 | H17: 0 | I17: 0 | K17: 0 | L17: 0 | M17: 0
A18: 7 | B18: INCOME TAXES | C18: -8968020.316 | D18: =+SUM(D12:D14)*-0.21 -> -4507504.68 | E18: 0 | G18: =+(G13+G16)*-0.21 -> -5130686.19 | H18: =+(H12+H13)*-0.21 -> -3919694.94 | K18: -3837334.18 | L18: =+(L12+L13)*-0.21 -> -587809.74
A19: 8 | C19: =SUM(C12:C18) -> 33736838.33 | D19: =SUM(D12:D18) -> 16956803.32 | E19: =SUM(E12:E18) -> 7297675 | G19: =SUM(G12:G18) -> 19301152.81 | H19: =SUM(H12:H18) -> 14745519.06 | I19: =SUM(I12:I18) -> 7297675 | K19: =SUM(K12:K18) -> 14435685.72 | L19: =SUM(L12:L18) -> 2211284.26 | M19: =SUM(M12:M18) -> 0
A20: 9
A21: 10 | B21: GROSS UTILITY PLANT IN SERVICE | C21: 554003963.8 | D21: 66179843.13 | G21: 207751486 | H21: 19481526 | I21: 0 | K21: 346252477.3 | L21: =+D21-H21 -> 46698317.13 | M21: 0
A22: 11 | B22: ACCUM DEPR AND AMORT | C22: -25200543.07 | D22: -4876420.26 | G22: -2050044 | H22: -1593859 | I22: 0 | K22: -23150498.89 | L22: =+D22-H22 -> -3282561.26 | M22: 0
A23: 12 | B23: DEFERRED DEBITS AND CREDITS | C23: -36590585.62 | H23: 0 | I23: 0 | K23: -36590585.62 | L23: =+D23-H23 -> 0 | M23: 0
A24: 13 | B24: DEFERRED TAXES | D24: -1206446.01 | G24: -11203574 | H24: -352386 | I24: 0 | K24: 11203573.96 | L24: =+D24-H24 -> -854060.01 | M24: 0
A25: 14 | C25: =SUM(C21:C24) -> 492212835.1 | D25: =SUM(D21:D24) -> 60096976.86 | E25: =SUM(E21:E24) -> 0 | G25: =SUM(G21:G24) -> 194497868 | H25: =SUM(H21:H24) -> 17535281 | I25: =SUM(I21:I24) -> 0 | K25: =SUM(K21:K24) -> 297714966.8 | L25: =SUM(L21:L24) -> 42561695.86 | M25: =SUM(M21:M24) -> 0
A26: 15
A27: 16

Sheet Common Adj
V1: =V66+V77 -> 0 | W1: =W66+W77+W78 -> 0 | X1: =X66+X77+X78 -> 0
N2: UE-__________ | AF2: UE-__________ | AX2: UE-__________ | BN2: UE-__________ | CF2: UE-240004 | CX2: UE-__________ | DP2: UE-__________ | EH2: UE-__________ | EZ2: UE-__________ | FR2: UE-__________ | GJ2: UE-__________ | HB2: UE-__________ | HT2: UE-__________ | IL2: UE-__________ | JD2: UE-__________ | JV2: UE-__________ | KN2: UE-__________ | LF2: UE-__________ | LX2: UE-__________ | MP2: UE-__________ | NH2: UE-__________ | NZ2: UE-__________ | OR2: UE-__________ | PJ2: UE-__________ | QF2: UE-__________ | QX2: UE-__________ | RP2: UE-__________ | SH2: UE-__________ | SZ2: UE-__________ | TS2: UE-__________ | UH2: UE-__________ | UW2: UE-__________ | VL2: UE-__________ | WA2: UE-__________
N3: =CONCATENATE("Exh. DPK-04 page "&VLOOKUP(A6,'Adj List'!$A:$E,5,FALSE)&" of "&'Adj List'!$E$1) -> Exh. DPK-04 page 1 of 45 | AF3: =CONCATENATE("Exh. DPK-04 page "&VLOOKUP(S6,'Adj List'!$A:$E,5,FALSE)&" of "&'Adj List'!$E$1) -> Exh. DPK-04 page 2 of 45 | AX3: =CONCATENATE("Exh. DPK-04 page "&VLOOKUP(AK6,'Adj List'!$A:$E,5,FALSE)&" of "&'Adj List'!$E$1) -> Exh. DPK-04 page 3 of 45 | BN3: =CONCATENATE("Exh. DPK-04 page "&VLOOKUP(BA6,'Adj List'!$A:$E,5,FALSE)&" of "&'Adj List'!$E$1) -> Exh. DPK-04 page 4 of 45 | CF3: =CONCATENATE("Exh. DPK-04 page "&VLOOKUP(BS6,'Adj List'!$A:$E,5,FALSE)&" of "&'Adj List'!$E$1) -> Exh. DPK-04 page 5 of 45 | CX3: =CONCATENATE("Exh. DPK-04 page "&VLOOKUP(CK6,'Adj List'!$A:$E,5,FALSE)&" of "&'Adj List'!$E$1) -> Exh. DPK-04 page 6 of 45 | DP3: =CONCATENATE("Exh. DPK-04 page "&VLOOKUP(DC6,'Adj List'!$A:$E,5,FALSE)&" of "&'Adj List'!$E$1) -> Exh. DPK-04 page 7 of 45 | EH3: =CONCATENATE("Exh. DPK-04 page "&VLOOKUP(DU6,'Adj List'!$A:$E,5,FALSE)&" of "&'Adj List'!$E$1) -> Exh. DPK-04 page 8 of 45 | EZ3: =CONCATENATE("Exh. DPK-04 page "&VLOOKUP(EM6,'Adj List'!$A:$E,5,FALSE)&" of "&'Adj List'!$E$1) -> Exh. DPK-04 page 9 of 45 | FR3: =CONCATENATE("Exh. DPK-04 page "&VLOOKUP(FE6,'Adj List'!$A:$E,5,FALSE)&" of "&'Adj List'!$E$1) -> Exh. DPK-04 page 10 of 45 | GJ3: =CONCATENATE("Exh. DPK-04 page "&VLOOKUP(FW6,'Adj List'!$A:$E,5,FALSE)&" of "&'Adj List'!$E$1) -> Exh. DPK-04 page 11 of 45 | HB3: =CONCATENATE("Exh. DPK-04 page "&VLOOKUP(GO6,'Adj List'!$A:$E,5,FALSE)&" of "&'Adj List'!$E$1) -> Exh. DPK-04 page 12 of 45 | HT3: =CONCATENATE("Exh. DPK-04 page "&VLOOKUP(HG6,'Adj List'!$A:$E,5,FALSE)&" of "&'Adj List'!$E$1) -> Exh. DPK-04 page 13 of 45 | IL3: =CONCATENATE("Exh. DPK-04 page "&VLOOKUP(HY6,'Adj List'!$A:$E,5,FALSE)&" of "&'Adj List'!$E$1) -> Exh. DPK-04 page 14 of 45 | JD3: =CONCATENATE("Exh. DPK-04 page "&VLOOKUP(IQ6,'Adj List'!$A:$E,5,FALSE)&" of "&'Adj List'!$E$1) -> Exh. DPK-04 page 15 of 45 | JV3: =CONCATENATE("Exh. DPK-04 page "&VLOOKUP(JI6,'Adj List'!$A:$E,5,FALSE)&" of "&'Adj List'!$E$1) -> Exh. DPK-04 page 16 of 45 | KN3: =CONCATENATE("Exh. DPK-04 page "&VLOOKUP(KA6,'Adj List'!$A:$E,5,FALSE)&" of "&'Adj List'!$E$1) -> Exh. DPK-04 page 17 of 45 | LF3: =CONCATENATE("Exh. DPK-04 page "&VLOOKUP(KS6,'Adj List'!$A:$E,5,FALSE)&" of "&'Adj List'!$E$1) -> Exh. DPK-04 page 18 of 45 | LX3: =CONCATENATE("Exh. DPK-04 page "&VLOOKUP(LK6,'Adj List'!$A:$E,5,FALSE)&" of "&'Adj List'!$E$1) -> Exh. DPK-04 page 19 of 45 | MP3: =CONCATENATE("Exh. DPK-04 page "&VLOOKUP(MC6,'Adj List'!$A:$E,5,FALSE)&" of "&'Adj List'!$E$1) -> Exh. DPK-04 page 20 of 45 | NH3: =CONCATENATE("Exh. DPK-04 page "&VLOOKUP(MU6,'Adj List'!$A:$E,5,FALSE)&" of "&'Adj List'!$E$1) -> Exh. DPK-04 page 21 of 45 | NZ3: =CONCATENATE("Exh. DPK-04 page "&VLOOKUP(NM6,'Adj List'!$A:$E,5,FALSE)&" of "&'Adj List'!$E$1) -> Exh. DPK-04 page 22 of 45 | OR3: =CONCATENATE("Exh. DPK-04 page "&VLOOKUP(OE6,'Adj List'!$A:$E,5,FALSE)&" of "&'Adj List'!$E$1) -> Exh. DPK-04 page 23 of 45 | PJ3: =CONCATENATE("Exh. DPK-04 page "&VLOOKUP(OW6,'Adj List'!$A:$E,5,FALSE)&" of "&'Adj List'!$E$1) -> Exh. DPK-04 page 24 of 45 | QF3: =CONCATENATE("Exh. DPK-04 page "&VLOOKUP(PS6,'Adj List'!$A:$E,5,FALSE)&" of "&'Adj List'!$E$1) -> Exh. DPK-04 page 25 of 45 | QX3: =CONCATENATE("Exh. DPK-04 page "&VLOOKUP(QK6,'Adj List'!$A:$E,5,FALSE)&" of "&'Adj List'!$E$1) -> Exh. DPK-04 page 26 of 45 | RP3: =CONCATENATE("Exh. DPK-04 page "&VLOOKUP(RC6,'Adj List'!$A:$E,5,FALSE)&" of "&'Adj List'!$E$1) -> Exh. DPK-04 page 27 of 45 | SH3: =CONCATENATE("Exh. DPK-04 page "&VLOOKUP(RU6,'Adj List'!$A:$E,5,FALSE)&" of "&'Adj List'!$E$1) -> Exh. DPK-04 page 28 of 45 | SZ3: Exh. DPK-04 page 29 of 45 | TS3: =CONCATENATE("Exh. DPK-04 page "&VLOOKUP(TF6,'Adj List'!$A:$E,5,FALSE)&" of "&'Adj List'!$E$1) -> Exh. DPK-04 page 30 of 45 | UH3: =CONCATENATE("Exh. DPK-04 page "&VLOOKUP(TU6,'Adj List'!$A:$E,5,FALSE)&" of "&'Adj List'!$E$1) -> Exh. DPK-04 page 31 of 45 | UW3: =CONCATENATE("Exh. DPK-04 page "&VLOOKUP(UJ6,'Adj List'!$A:$E,5,FALSE)&" of "&'Adj List'!$E$1) -> Exh. DPK-04 page 32 of 45 | VL3: =CONCATENATE("Exh. DPK-04 page "&VLOOKUP(UY6,'Adj List'!$A:$E,5,FALSE)&" of "&'Adj List'!$E$1) -> Exh. DPK-04 page 33 of 45 | WA3: =CONCATENATE("Exh. DPK-04 page "&VLOOKUP(VN6,'Adj List'!$A:$E,5,FALSE)&" of "&'Adj List'!$E$1) -> Exh. DPK-04 page 34 of 45
M4: Adj. | N4: =VLOOKUP(A6,'Adj List'!$A$7:$C$474,2,FALSE) -> 6.01 | AE4: Adj. | AF4: =VLOOKUP(S6,'Adj List'!$A$7:$C$474,2,FALSE) -> 6.02 | AW4: Adj. | AX4: =VLOOKUP(AK6,'Adj List'!$A$7:$C$474,2,FALSE) -> 6.03 | BM4: Adj. | BN4: =VLOOKUP(BA6,'Adj List'!$A$7:$C$474,2,FALSE) -> 6.04 | CE4: Adj. | CF4: =VLOOKUP(BS6,'Adj List'!$A$7:$C$474,2,FALSE) -> 6.05 | CW4: Adj. | CX4: =VLOOKUP(CK6,'Adj List'!$A$7:$C$474,2,FALSE) -> 6.06 | DO4: Adj. | DP4: =VLOOKUP(DC6,'Adj List'!$A$7:$C$474,2,FALSE) -> 6.07 | EG4: Adj. | EH4: =VLOOKUP(DU6,'Adj List'!$A$7:$C$474,2,FALSE) -> 6.08 | EY4: Adj. | EZ4: =VLOOKUP(EM6,'Adj List'!$A$7:$C$474,2,FALSE) -> 6.09 | FQ4: Adj. | FR4: =VLOOKUP(FE6,'Adj List'!$A$7:$C$474,2,FALSE) -> 6.1 | GI4: Adj. | GJ4: =VLOOKUP(FW6,'Adj List'!$A$7:$C$474,2,FALSE) -> 6.11 | HA4: Adj. | HB4: =VLOOKUP(GO6,'Adj List'!$A$7:$C$474,2,FALSE) -> 6.12 | HS4: Adj. | HT4: =VLOOKUP(HG6,'Adj List'!$A$7:$C$474,2,FALSE) -> 6.13 | IK4: Adj. | IL4: =VLOOKUP(HY6,'Adj List'!$A$7:$C$474,2,FALSE) -> 6.14 | JC4: Adj. | JD4: =VLOOKUP(IQ6,'Adj List'!$A$7:$C$474,2,FALSE) -> 6.15 | JU4: Adj. | JV4: =VLOOKUP(JI6,'Adj List'!$A$7:$C$474,2,FALSE) -> 6.16 | KM4: Adj. | KN4: =VLOOKUP(KA6,'Adj List'!$A$7:$C$474,2,FALSE) -> 6.17 | LE4: Adj. | LF4: =VLOOKUP(KS6,'Adj List'!$A$7:$C$474,2,FALSE) -> 6.18 | LW4: Adj. | LX4: =VLOOKUP(LK6,'Adj List'!$A$7:$C$474,2,FALSE) -> 6.19 | MO4: Adj. | MP4: =VLOOKUP(MC6,'Adj List'!$A$7:$C$474,2,FALSE) -> 6.2 | NG4: Adj. | NH4: =VLOOKUP(MU6,'Adj List'!$A$7:$C$474,2,FALSE) -> 6.21 | NY4: Adj. | NZ4: =VLOOKUP(NM6,'Adj List'!$A$7:$C$474,2,FALSE) -> 6.22 | OQ4: Adj. | OR4: =VLOOKUP(OE6,'Adj List'!$A$7:$C$474,2,FALSE) -> 6.23 | PI4: Adj. | PJ4: =VLOOKUP(OW6,'Adj List'!$A$7:$C$474,2,FALSE) -> 6.24 | QE4: Adj. | QF4: =VLOOKUP(PS6,'Adj List'!$A$7:$C$474,2,FALSE) -> 6.25 | QW4: Adjs. | QX4: =VLOOKUP(QK6,'Adj List'!$A$7:$C$474,2,FALSE) -> 6.26 | RO4: Adj. | RP4: =VLOOKUP(RC6,'Adj List'!$A$7:$C$474,2,FALSE) -> 6.27 | SG4: Adjs. | SH4: =VLOOKUP(RU6,'Adj List'!$A$7:$C$474,2,FALSE) -> 6.28 | SY4: Adj. | SZ4: 6.29, 6.30, 6.31, 6.32 | TR4: Adj. | TS4: =VLOOKUP(TF6,'Adj List'!$A$7:$C$474,2,FALSE) -> 6.33 | UG4: Adj. | UH4: =VLOOKUP(TU6,'Adj List'!$A$7:$C$474,2,FALSE) -> 6.34 | UV4: Adj. | UW4: =VLOOKUP(UJ6,'Adj List'!$A$7:$C$474,2,FALSE) -> 6.35 | VK4: Adj. | VL4: =VLOOKUP(UY6,'Adj List'!$A$7:$C$474,2,FALSE) -> 6.36 | VZ4: Adj. | WA4: =VLOOKUP(VN6,'Adj List'!$A$7:$C$474,2,FALSE) -> 6.37
A5: =Company -> PUGET SOUND ENERGY - ELECTRIC | S5: =Company -> PUGET SOUND ENERGY - ELECTRIC | AK5: =Company -> PUGET SOUND ENERGY - ELECTRIC | BA5: =Company -> PUGET SOUND ENERGY - ELECTRIC | BS5: =Company -> PUGET SOUND ENERGY - ELECTRIC | CK5: =Company -> PUGET SOUND ENERGY - ELECTRIC | DC5: =Company -> PUGET SOUND ENERGY - ELECTRIC | DU5: =Company -> PUGET SOUND ENERGY - ELECTRIC | EM5: =Company -> PUGET SOUND ENERGY - ELECTRIC | FE5: =Company -> PUGET SOUND ENERGY - ELECTRIC | FW5: =Company -> PUGET SOUND ENERGY - ELECTRIC | GO5: =Company -> PUGET SOUND ENERGY - ELECTRIC | HG5: =Company -> PUGET SOUND ENERGY - ELECTRIC | HY5: =Company -> PUGET SOUND ENERGY - ELECTRIC | IQ5: =Company -> PUGET SOUND ENERGY - ELECTRIC | JI5: =Company -> PUGET SOUND ENERGY - ELECTRIC | KA5: =Company -> PUGET SOUND ENERGY - ELECTRIC | KS5: =Company -> PUGET SOUND ENERGY - ELECTRIC | LK5: =Company -> PUGET SOUND ENERGY - ELECTRIC | MC5: =Company -> PUGET SOUND ENERGY - ELECTRIC | MU5: =Company -> PUGET SOUND ENERGY - ELECTRIC | NM5: =Company -> PUGET SOUND ENERGY - ELECTRIC | OE5: =Company -> PUGET SOUND ENERGY - ELECTRIC | OW5: =Company -> PUGET SOUND ENERGY - ELECTRIC | PS5: =Company -> PUGET SOUND ENERGY - ELECTRIC | QK5: =Company -> PUGET SOUND ENERGY - ELECTRIC | RC5: =Company -> PUGET SOUND ENERGY - ELECTRIC | RU5: =Company -> PUGET SOUND ENERGY - ELECTRIC | SM5: =Company -> PUGET SOUND ENERGY - ELECTRIC | TF5: =Company -> PUGET SOUND ENERGY - ELECTRIC | TU5: =Company -> PUGET SOUND ENERGY - ELECTRIC | UJ5: =Company -> PUGET SOUND ENERGY - ELECTRIC | UY5: =Company -> PUGET SOUND ENERGY - ELECTRIC | VN5: =Company -> PUGET SOUND ENERGY - ELECTRIC
A6: ='Adj List'!A7 -> REVENUES AND EXPENSES | S6: ='Adj List'!A8 -> PASS-THROUGH REVENUE & EXPENSE | AK6: ='Adj List'!A9 -> TEMPERATURE NORMALIZATION | BA6: ='Adj List'!A10 -> FEDERAL INCOME TAX | BS6: ='Adj List'!A11 -> TAX BENEFIT OF INTEREST | CK6: ='Adj List'!A12 -> BAD DEBT EXPENSE | DC6: ='Adj List'!A13 -> RATE CASE EXPENSE | DU6: ='Adj List'!A14 -> EXCISE TAX | EM6: ='Adj List'!A15 -> EMPLOYEE INSURANCE | FE6: ='Adj List'!A16 -> INJURIES & DAMAGES | FW6: ='Adj List'!A17 -> INCENTIVE PAY | GO6: ='Adj List'!A18 -> INVESTMENT PLAN | HG6: ='Adj List'!A19 -> INTEREST ON CUSTOMER DEPOSITS | HY6: ='Adj List'!A20 -> PROPERTY AND LIAB INSURANCE | IQ6: ='Adj List'!A21 -> DEFERRED GAINS AND LOSSES ON PROPERTY SALES | JI6: ='Adj List'!A22 -> D&O INSURANCE | KA6: ='Adj List'!A23 -> PENSION PLAN | KS6: ='Adj List'!A24 -> WAGE INCREASE | LK6: ='Adj List'!A25 -> AMA TO EOP RATE BASE | MC6: ='Adj List'!A26 -> UPDATE DEPR RATES | MU6: ='Adj List'!A27 -> WUTC FILING FEE | NM6: ='Adj List'!A28 -> PRO FORMA O&M | OE6: ='Adj List'!A29 -> REMOVE AMR PLANT AND DEPRECIATION | OW6: ='Adj List'!A30 -> AMI PLANT AND DEFERRAL | PS6: ='Adj List'!A31 -> ENVIRONMENTAL REMEDIATION | QK6: ='Adj List'!A32 -> ESTIMATED PLANT RETIREMENTS RATE BASE | RC6: ='Adj List'!A33 -> TEST YEAR PLANT ROLL FORWARD | RU6: ='Adj List'!A34 -> PROVISIONAL PROFORMA RETIREMENTS DEPRECIATION | SM6: PROVISIONAL PROFORMA ADDITIONS | TF6: ='Adj List'!A39 -> REMOVE TEST YEAR DEFERRALS | TU6: ='Adj List'!A40 -> REGULATORY FILING FEE DEFERRAL | UJ6: ='Adj List'!A41 -> PARTICIPATORY FUNDING GRANTS | UY6: ='Adj List'!A42 -> TARGETED ELECTRIFICATION ACTIVITIES DEFERRAL AMORTIZATION | VN6: ='Adj List'!A43 -> LTIP
A7: =TestYear -> 12 MONTHS ENDED JUNE 30, 2023 | S7: =TestYear -> 12 MONTHS ENDED JUNE 30, 2023 | AK7: =TestYear -> 12 MONTHS ENDED JUNE 30, 2023 | BA7: =TestYear -> 12 MONTHS ENDED JUNE 30, 2023 | BS7: =TestYear -> 12 MONTHS ENDED JUNE 30, 2023 | CK7: =TestYear -> 12 MONTHS ENDED JUNE 30, 2023 | DC7: =TestYear -> 12 MONTHS ENDED JUNE 30, 2023 | DU7: =TestYear -> 12 MONTHS ENDED JUNE 30, 2023 | EM7: =TestYear -> 12 MONTHS ENDED JUNE 30, 2023 | FE7: =TestYear -> 12 MONTHS ENDED JUNE 30, 2023 | FW7: =TestYear -> 12 MONTHS ENDED JUNE 30, 2023 | GO7: =TestYear -> 12 MONTHS ENDED JUNE 30, 2023 | HG7: =TestYear -> 12 MONTHS ENDED JUNE 30, 2023 | HY7: =TestYear -> 12 MONTHS ENDED JUNE 30, 2023 | IQ7: =TestYear -> 12 MONTHS ENDED JUNE 30, 2023 | JI7: =TestYear -> 12 MONTHS ENDED JUNE 30, 2023 | KA7: =TestYear -> 12 MONTHS ENDED JUNE 30, 2023 | KS7: =TestYear -> 12 MONTHS ENDED JUNE 30, 2023 | LK7: =TestYear -> 12 MONTHS ENDED JUNE 30, 2023 | MC7: =TestYear -> 12 MONTHS ENDED JUNE 30, 2023 | MU7: =TestYear -> 12 MONTHS ENDED JUNE 30, 2023 | NM7: =TestYear -> 12 MONTHS ENDED JUNE 30, 2023 | OE7: =TestYear -> 12 MONTHS ENDED JUNE 30, 2023 | OW7: =TestYear -> 12 MONTHS ENDED JUNE 30, 2023 | PS7: =TestYear -> 12 MONTHS ENDED JUNE 30, 2023 | QK7: =TestYear -> 12 MONTHS ENDED JUNE 30, 2023 | RC7: =TestYear -> 12 MONTHS ENDED JUNE 30, 2023 | RU7: =TestYear -> 12 MONTHS ENDED JUNE 30, 2023 | SM7: =TestYear -> 12 MONTHS ENDED JUNE 30, 2023 | TF7: =TestYear -> 12 MONTHS ENDED JUNE 30, 2023 | TU7: =TestYear -> 12 MONTHS ENDED JUNE 30, 2023 | UJ7: =TestYear -> 12 MONTHS ENDED JUNE 30, 2023 | UY7: =TestYear -> 12 MONTHS ENDED JUNE 30, 2023 | VN7: =TestYear -> 12 MONTHS ENDED JUNE 30, 2023
A8: =RateCase -> 2024 GENERAL RATE CASE | S8: =RateCase -> 2024 GENERAL RATE CASE | AK8: =RateCase -> 2024 GENERAL RATE CASE | BA8: =RateCase -> 2024 GENERAL RATE CASE | BS8: =RateCase -> 2024 GENERAL RATE CASE | CK8: =RateCase -> 2024 GENERAL RATE CASE | DC8: =RateCase -> 2024 GENERAL RATE CASE | DU8: =RateCase -> 2024 GENERAL RATE CASE | EM8: =RateCase -> 2024 GENERAL RATE CASE | FE8: =RateCase -> 2024 GENERAL RATE CASE | FW8: =RateCase -> 2024 GENERAL RATE CASE | GO8: =RateCase -> 2024 GENERAL RATE CASE | HG8: =RateCase -> 2024 GENERAL RATE CASE | HY8: =RateCase -> 2024 GENERAL RATE CASE | IQ8: =RateCase -> 2024 GENERAL RATE CASE | JI8: =RateCase -> 2024 GENERAL RATE CASE | KA8: =RateCase -> 2024 GENERAL RATE CASE | KS8: =RateCase -> 2024 GENERAL RATE CASE | LK8: =RateCase -> 2024 GENERAL RATE CASE | MC8: =RateCase -> 2024 GENERAL RATE CASE | MU8: =RateCase -> 2024 GENERAL RATE CASE | NM8: =RateCase -> 2024 GENERAL RATE CASE | OE8: =RateCase -> 2024 GENERAL RATE CASE | OW8: =RateCase -> 2024 GENERAL RATE CASE | PS8: =RateCase -> 2024 GENERAL RATE CASE | QK8: =RateCase -> 2024 GENERAL RATE CASE | RC8: =RateCase -> 2024 GENERAL RATE CASE | RU8: =RateCase -> 2024 GENERAL RATE CASE | SM8: =RateCase -> 2024 GENERAL RATE CASE | TF8: =RateCase -> 2024 GENERAL RATE CASE | TU8: =RateCase -> 2024 GENERAL RATE CASE | UJ8: =RateCase -> 2024 GENERAL RATE CASE | UY8: =RateCase -> 2024 GENERAL RATE CASE | VN8: =RateCase -> 2024 GENERAL RATE CASE
D9: AMA | F9: EOP | H9: EOP | J9: EOP | L9: AMA | N9: AMA | P9: AMA | R9: AMA | V9: AMA | X9: EOP | Z9: EOP | AB9: EOP | AD9: AMA | AF9: AMA | AH9: AMA | AJ9: AMA | AN9: AMA | AP9: EOP | AR9: EOP | AT9: EOP | AV9: AMA | AX9: AMA | AZ9: AMA | BD9: AMA | BF9: EOP | BH9: EOP | BJ9: EOP | BL9: AMA | BN9: AMA | BP9: AMA | BR9: AMA | BV9: AMA | BX9: EOP | BZ9: EOP | CB9: EOP | CD9: AMA | CF9: AMA | CH9: AMA | CJ9: AMA | CN9: AMA | CP9: EOP | CR9: EOP | CT9: EOP | CV9: AMA | CX9: AMA | CZ9: AMA | DB9: AMA | DF9: AMA | DH9: EOP | DJ9: EOP | DL9: EOP | DN9: AMA | DP9: AMA | DR9: AMA | DT9: AMA | DX9: AMA | DZ9: EOP | EB9: EOP | ED9: EOP | EF9: AMA | EH9: AMA | EJ9: AMA | EL9: AMA | EP9: AMA | ER9: EOP | ET9: EOP | EV9: EOP | EX9: AMA | EZ9: AMA | FB9: AMA | FD9: AMA | FH9: AMA | FJ9: EOP | FL9: EOP | FN9: EOP | FP9: AMA | FR9: AMA | FT9: AMA | FV9: AMA | FZ9: AMA | GB9: EOP | GD9: EOP | GF9: EOP | GH9: AMA | GJ9: AMA | GL9: AMA | GN9: AMA | GR9: AMA | GT9: EOP | GV9: EOP | GX9: EOP | GZ9: AMA | HB9: AMA | HD9: AMA | HF9: AMA | HJ9: AMA | HL9: EOP | HN9: EOP | HP9: EOP | HR9: AMA | HT9: AMA | HV9: AMA | HX9: AMA | IB9: AMA | ID9: EOP | IF9: EOP | IH9: EOP | IJ9: AMA | IL9: AMA | IN9: AMA | IP9: AMA | IT9: AMA | IV9: EOP | IX9: EOP | IZ9: EOP | JB9: AMA | JD9: AMA | JF9: AMA | JH9: AMA | JL9: AMA | JN9: EOP | JP9: EOP | JR9: EOP | JT9: AMA | JV9: AMA | JX9: AMA | JZ9: AMA | KD9: AMA | KF9: EOP | KH9: EOP | KJ9: EOP | KL9: AMA | KN9: AMA | KP9: AMA | KR9: AMA | KV9: AMA | KX9: EOP | KZ9: EOP | LB9: EOP | LD9: AMA | LF9: AMA | LH9: AMA | LJ9: AMA | LN9: AMA | LP9: EOP | LR9: EOP | LT9: EOP | LV9: AMA | LX9: AMA | LZ9: AMA | MB9: AMA | MF9: AMA | MH9: EOP | MJ9: EOP | ML9: EOP | MN9: AMA | MP9: AMA | MR9: AMA | MT9: AMA | MX9: AMA | MZ9: EOP | NB9: EOP | ND9: EOP | NF9: AMA | NH9: AMA | NJ9: AMA | NL9: AMA | NP9: AMA | NR9: EOP | NT9: EOP | NV9: EOP | NX9: AMA | NZ9: AMA | OB9: AMA | OD9: AMA | OH9: AMA | OJ9: EOP | OL9: EOP | ON9: EOP | OP9: AMA | OR9: AMA | OT9: AMA | OV9: AMA | OZ9: AMA | PB9: EOP | PD9: EOP | PF9: EOP | PH9: AMA | PJ9: AMA | PL9: AMA | PN9: AMA | PV9: AMA | PX9: EOP | PZ9: EOP | QB9: EOP | QD9: AMA | QF9: AMA | QH9: AMA | QJ9: AMA | QN9: AMA | QP9: EOP | QR9: EOP | QT9: EOP | QV9: AMA | QX9: AMA | QZ9: AMA | RB9: AMA | RF9: AMA | RH9: EOP | RJ9: EOP | RL9: EOP | RN9: AMA | RP9: AMA | RR9: AMA | RT9: AMA | RX9: AMA | RZ9: EOP | SB9: EOP | SD9: EOP | SF9: AMA | SH9: AMA | SJ9: AMA | SL9: AMA | SP9: AMA | SR9: EOP | ST9: EOP | SV9: EOP | SX9: AMA | SZ9: AMA | TB9: AMA | TD9: AMA | TI9: EOP | TK9: EOP | TM9: EOP | TO9: EOP | TQ9: AMA | TS9: AMA | TX9: EOP | TZ9: EOP | UB9: EOP | UD9: EOP | UF9: AMA | UH9: AMA | UM9: EOP | UO9: EOP | UQ9: EOP | US9: EOP | UU9: AMA | UW9: AMA | VB9: AMA | VD9: EOP | VF9: EOP | VH9: EOP | VJ9: AMA | VL9: AMA | VQ9: AMA | VS9: EOP | VU9: EOP | VW9: EOP | VY9: AMA | WA9: AMA
H11: DEC 2023 | I11: 2024 | J11: ADJUSTED | K11: 2025 | L11: ADJUSTED | M11: 2026 | N11: ADJUSTED | P11: ADJUSTED | R11: ADJUSTED | Z11: DEC 2023 | AA11: 2024 | AB11: ADJUSTED | AC11: 2025 | AD11: ADJUSTED | AE11: 2026 | AF11: ADJUSTED | AH11: ADJUSTED | AJ11: ADJUSTED | AR11: DEC 2023 | AS11: 2024 | AT11: ADJUSTED | AU11: 2025 | AV11: ADJUSTED | AW11: 2026 | AX11: ADJUSTED | AZ11: ADJUSTED | BH11: DEC 2023 | BI11: 2024 | BJ11: ADJUSTED | BK11: 2025 | BL11: ADJUSTED | BM11: 2026 | BN11: ADJUSTED | BP11: ADJUSTED | BR11: ADJUSTED | BZ11: DEC 2023 | CA11: 2024 | CB11: ADJUSTED | CC11: 2025 | CD11: ADJUSTED | CE11: 2026 | CF11: ADJUSTED | CH11: ADJUSTED | CJ11: ADJUSTED | CR11: DEC 2023 | CS11: 2024 | CT11: ADJUSTED | CU11: 2025 | CV11: ADJUSTED | CW11: 2026 | CX11: ADJUSTED | CZ11: ADJUSTED | DB11: ADJUSTED | DJ11: DEC 2023 | DK11: 2024 | DL11: ADJUSTED | DM11: 2025 | DN11: ADJUSTED | DO11: 2026 | DP11: ADJUSTED | DR11: ADJUSTED | DT11: ADJUSTED | EB11: DEC 2023 | EC11: 2024 | ED11: ADJUSTED | EE11: 2025 | EF11: ADJUSTED | EG11: 2026 | EH11: ADJUSTED | EJ11: ADJUSTED | EL11: ADJUSTED | ET11: DEC 2023 | EU11: 2024 | EV11: ADJUSTED | EW11: 2025 | EX11: ADJUSTED | EY11: 2026 | EZ11: ADJUSTED | FB11: ADJUSTED | FD11: ADJUSTED | FL11: DEC 2023 | FM11: 2024 | FN11: ADJUSTED | FO11: 2025 | FP11: ADJUSTED | FQ11: 2026 | FR11: ADJUSTED | FT11: ADJUSTED | FV11: ADJUSTED | GD11: DEC 2023 | GE11: 2024 | GF11: ADJUSTED | GG11: 2025 | GH11: ADJUSTED | GI11: 2026 | GJ11: ADJUSTED | GL11: ADJUSTED | GN11: ADJUSTED | GV11: DEC 2023 | GW11: 2024 | GX11: ADJUSTED | GY11: 2025 | GZ11: ADJUSTED | HA11: 2026 | HB11: ADJUSTED | HD11: ADJUSTED | HF11: ADJUSTED | HN11: DEC 2023 | HO11: 2024 | HP11: ADJUSTED | HQ11: 2025 | HR11: ADJUSTED | HS11: 2026 | HT11: ADJUSTED | HV11: ADJUSTED | HX11: ADJUSTED | IF11: DEC 2023 | IG11: 2024 | IH11: ADJUSTED | II11: 2025 | IJ11: ADJUSTED | IK11: 2026 | IL11: ADJUSTED | IN11: ADJUSTED | IP11: ADJUSTED | IX11: DEC 2023 | IY11: 2024 | IZ11: ADJUSTED | JA11: 2025 | JB11: ADJUSTED | JC11: 2026 | JD11: ADJUSTED | JF11: ADJUSTED | JH11: ADJUSTED | JP11: DEC 2023 | JQ11: 2024 | JR11: ADJUSTED | JS11: 2025 | JT11: ADJUSTED | JU11: 2026 | JV11: ADJUSTED | JX11: ADJUSTED | JZ11: ADJUSTED | KH11: DEC 2023 | KI11: 2024 | KJ11: ADJUSTED | KK11: 2025 | KL11: ADJUSTED | KM11: 2026 | KN11: ADJUSTED | KP11: ADJUSTED | KR11: ADJUSTED | KZ11: DEC 2023 | LA11: 2024 | LB11: ADJUSTED | LC11: 2025 | LD11: ADJUSTED | LE11: 2026 | LF11: ADJUSTED | LH11: ADJUSTED | LJ11: ADJUSTED | LR11: DEC 2023 | LS11: 2024 | LT11: ADJUSTED | LU11: 2025 | LV11: ADJUSTED | LW11: 2026 | LX11: ADJUSTED | LZ11: ADJUSTED | MB11: ADJUSTED | MJ11: DEC 2023 | MK11: 2024 | ML11: ADJUSTED | MM11: 2025 | MN11: ADJUSTED | MO11: 2026 | MP11: ADJUSTED | MR11: ADJUSTED | MT11: ADJUSTED | NB11: DEC 2023 | NC11: 2024 | ND11: ADJUSTED | NE11: 2025 | NF11: ADJUSTED | NG11: 2026 | NH11: ADJUSTED | NJ11: ADJUSTED | NL11: ADJUSTED | NT11: DEC 2023 | NU11: 2024 | NV11: ADJUSTED | NW11: 2025 | NX11: ADJUSTED | NY11: 2026 | NZ11: ADJUSTED | OB11: ADJUSTED | OD11: ADJUSTED | OL11: DEC 2023 | OM11: 2024 | ON11: ADJUSTED | OO11: 2025 | OP11: ADJUSTED | OQ11: 2026 | OR11: ADJUSTED | OT11: ADJUSTED | OV11: ADJUSTED | PD11: DEC 2023 | PE11: 2024 | PF11: ADJUSTED | PG11: 2025 | PH11: ADJUSTED | PI11: 2026 | PJ11: ADJUSTED | PL11: ADJUSTED | PN11: ADJUSTED | PZ11: DEC 2023 | QA11: 2024 | QB11: ADJUSTED | QC11: 2025 | QD11: ADJUSTED | QE11: 2026 | QF11: ADJUSTED | QH11: ADJUSTED | QJ11: ADJUSTED | QR11: DEC 2023 | QS11: 2024 | QT11: ADJUSTED | QU11: 2025 | QV11: ADJUSTED | QW11: 2026 | QX11: ADJUSTED | QZ11: ADJUSTED | RB11: ADJUSTED | RJ11: DEC 2023 | RK11: 2024 | RL11: ADJUSTED | RM11: 2025 | RN11: ADJUSTED | RO11: 2026 | RP11: ADJUSTED | RR11: ADJUSTED | RT11: ADJUSTED | SB11: DEC 2023 | SC11: 2024 | SD11: ADJUSTED | SE11: 2025 | SF11: ADJUSTED | SG11: 2026 | SH11: ADJUSTED | SJ11: ADJUSTED | SL11: ADJUSTED | ST11: DEC 2023 | SU11: 2024 | SV11: ADJUSTED | SW11: 2025 | SX11: ADJUSTED | SY11: 2026 | SZ11: ADJUSTED | TB11: ADJUSTED | TD11: ADJUSTED | TM11: DEC 2023 | TN11: 2024 | TO11: ADJUSTED | TP11: 2025 | TQ11: ADJUSTED | TR11: 2026 | TS11: ADJUSTED | UB11: DEC 2023 | UC11: 2024 | UD11: ADJUSTED | UE11: 2025 | UF11: ADJUSTED | UG11: 2026 | UH11: ADJUSTED | UQ11: DEC 2023 | UR11: 2024 | US11: ADJUSTED | UT11: 2025 | UU11: ADJUSTED | UV11: 2026 | UW11: ADJUSTED | VF11: DEC 2023 | VG11: 2024 | VH11: ADJUSTED | VI11: 2025 | VJ11: ADJUSTED | VK11: 2026 | VL11: ADJUSTED | VU11: DEC 2023 | VV11: 2024 | VW11: ADJUSTED | VX11: 2025 | VY11: ADJUSTED | VZ11: 2026 | WA11: ADJUSTED
D12: 12ME JUNE 2023 | F12: RESTATED | G12: PROFORMA | H12: ADJUSTED | I12: GAP YEAR | J12: RESULTS | K12: RATE YEAR 1 | L12: RESULTS | M12: RATE YEAR 2 | N12: RESULTS | O12: RATE YEAR 3 | P12: RESULTS | Q12: RATE YEAR 4 | R12: RESULTS | V12: 12ME JUNE 2023 | X12: RESTATED | Y12: PROFORMA | Z12: ADJUSTED | AA12: GAP YEAR | AB12: RESULTS | AC12: RATE YEAR 1 | AD12: RESULTS | AE12: RATE YEAR 2 | AF12: RESULTS | AG12: RATE YEAR 3 | AH12: RESULTS | AI12: RATE YEAR 4 | AJ12: RESULTS | AN12: 12ME JUNE 2023 | AP12: RESTATED | AQ12: PROFORMA | AR12: ADJUSTED | AS12: GAP YEAR | AT12: RESULTS | AU12: RATE YEAR 1 | AV12: RESULTS | AW12: RATE YEAR 2 | AX12: RESULTS | AY12: RATE YEAR 3 | AZ12: RESULTS | BD12: 12ME JUNE 2023 | BF12: RESTATED | BG12: PROFORMA | BH12: ADJUSTED | BI12: GAP YEAR | BJ12: RESULTS | BK12: RATE YEAR 1 | BL12: RESULTS | BM12: RATE YEAR 2 | BN12: RESULTS | BO12: RATE YEAR 3 | BP12: RESULTS | BQ12: RATE YEAR 4 | BR12: RESULTS | BV12: 12ME JUNE 2023 | BX12: RESTATED | BY12: PROFORMA | BZ12: ADJUSTED | CA12: GAP YEAR | CB12: RESULTS | CC12: RATE YEAR 1 | CD12: RESULTS | CE12: RATE YEAR 2 | CF12: RESULTS | CG12: RATE YEAR 3 | CH12: RESULTS | CI12: RATE YEAR 4 | CJ12: RESULTS | CN12: 12ME JUNE 2023 | CP12: RESTATED | CQ12: PROFORMA | CR12: ADJUSTED | CS12: GAP YEAR | CT12: RESULTS | CU12: RATE YEAR 1 | CV12: RESULTS | CW12: RATE YEAR 2 | CX12: RESULTS | CY12: RATE YEAR 3 | CZ12: RESULTS | DA12: RATE YEAR 4 | DB12: RESULTS | DF12: 12ME JUNE 2023 | DH12: RESTATED | DI12: PROFORMA | DJ12: ADJUSTED | DK12: GAP YEAR | DL12: RESULTS | DM12: RATE YEAR 1 | DN12: RESULTS | DO12: RATE YEAR 2 | DP12: RESULTS | DQ12: RATE YEAR 3 | DR12: RESULTS | DS12: RATE YEAR 4 | DT12: RESULTS | DX12: 12ME JUNE 2023 | DZ12: RESTATED | EA12: PROFORMA | EB12: ADJUSTED | EC12: GAP YEAR | ED12: RESULTS | EE12: RATE YEAR 1 | EF12: RESULTS | EG12: RATE YEAR 2 | EH12: RESULTS | EI12: RATE YEAR 3 | EJ12: RESULTS | EK12: RATE YEAR 4 | EL12: RESULTS | EP12: 12ME JUNE 2023 | ER12: RESTATED | ES12: PROFORMA | ET12: ADJUSTED | EU12: GAP YEAR | EV12: RESULTS | EW12: RATE YEAR 1 | EX12: RESULTS | EY12: RATE YEAR 2 | EZ12: RESULTS | FA12: RATE YEAR 3 | FB12: RESULTS | FC12: RATE YEAR 4 | FD12: RESULTS | FH12: 12ME JUNE 2023 | FJ12: RESTATED | FK12: PROFORMA | FL12: ADJUSTED | FM12: GAP YEAR | FN12: RESULTS | FO12: RATE YEAR 1 | FP12: RESULTS | FQ12: RATE YEAR 2 | FR12: RESULTS | FS12: RATE YEAR 3 | FT12: RESULTS | FU12: RATE YEAR 4 | FV12: RESULTS | FZ12: 12ME JUNE 2023 | GB12: RESTATED | GC12: PROFORMA | GD12: ADJUSTED | GE12: GAP YEAR | GF12: RESULTS | GG12: RATE YEAR 1 | GH12: RESULTS | GI12: RATE YEAR 2 | GJ12: RESULTS | GK12: RATE YEAR 3 | GL12: RESULTS | GM12: RATE YEAR 4 | GN12: RESULTS | GR12: 12ME JUNE 2023 | GT12: RESTATED | GU12: PROFORMA | GV12: ADJUSTED | GW12: GAP YEAR | GX12: RESULTS | GY12: RATE YEAR 1 | GZ12: RESULTS | HA12: RATE YEAR 2 | HB12: RESULTS | HC12: RATE YEAR 3 | HD12: RESULTS | HE12: RATE YEAR 4 | HF12: RESULTS | HJ12: 12ME JUNE 2023 | HL12: RESTATED | HM12: PROFORMA | HN12: ADJUSTED | HO12: GAP YEAR | HP12: RESULTS | HQ12: RATE YEAR 1 | HR12: RESULTS | HS12: RATE YEAR 2 | HT12: RESULTS | HU12: RATE YEAR 3 | HV12: RESULTS | HW12: RATE YEAR 4 | HX12: RESULTS | IB12: 12ME JUNE 2023 | ID12: RESTATED | IE12: PROFORMA | IF12: ADJUSTED | IG12: GAP YEAR | IH12: RESULTS | II12: RATE YEAR 1 | IJ12: RESULTS | IK12: RATE YEAR 2 | IL12: RESULTS | IM12: RATE YEAR 3 | IN12: RESULTS | IO12: RATE YEAR 4 | IP12: RESULTS | IT12: 12ME JUNE 2023 | IV12: RESTATED | IW12: PROFORMA | IX12: ADJUSTED | IY12: GAP YEAR | IZ12: RESULTS | JA12: RATE YEAR 1 | JB12: RESULTS | JC12: RATE YEAR 2 | JD12: RESULTS | JE12: RATE YEAR 3 | JF12: RESULTS | JG12: RATE YEAR 4 | JH12: RESULTS | JL12: 12ME JUNE 2023 | JN12: RESTATED | JO12: PROFORMA | JP12: ADJUSTED | JQ12: GAP YEAR | JR12: RESULTS | JS12: RATE YEAR 1 | JT12: RESULTS | JU12: RATE YEAR 2 | JV12: RESULTS | JW12: RATE YEAR 3 | JX12: RESULTS | JY12: RATE YEAR 4 | JZ12: RESULTS | KD12: 12ME JUNE 2023 | KF12: RESTATED | KG12: PROFORMA | KH12: ADJUSTED | KI12: GAP YEAR | KJ12: RESULTS | KK12: RATE YEAR 1 | KL12: RESULTS | KM12: RATE YEAR 2 | KN12: RESULTS | KO12: RATE YEAR 3 | KP12: RESULTS | KQ12: RATE YEAR 4 | KR12: RESULTS | KV12: 12ME JUNE 2023 | KX12: RESTATED | KY12: PROFORMA | KZ12: ADJUSTED | LA12: GAP YEAR | LB12: RESULTS | LC12: RATE YEAR 1 | LD12: RESULTS | LE12: RATE YEAR 2 | LF12: RESULTS | LG12: RATE YEAR 3 | LH12: RESULTS | LI12: RATE YEAR 4 | LJ12: RESULTS | LN12: 12ME JUNE 2023 | LP12: RESTATED | LQ12: PROFORMA | LR12: ADJUSTED | LS12: GAP YEAR | LT12: RESULTS | LU12: RATE YEAR 1 | LV12: RESULTS | LW12: RATE YEAR 2 | LX12: RESULTS | LY12: RATE YEAR 3 | LZ12: RESULTS | MA12: RATE YEAR 4 | MB12: RESULTS | MF12: 12ME JUNE 2023 | MH12: RESTATED | MI12: PROFORMA | MJ12: ADJUSTED | MK12: GAP YEAR | ML12: RESULTS | MM12: RATE YEAR 1 | MN12: RESULTS | MO12: RATE YEAR 2 | MP12: RESULTS | MQ12: RATE YEAR 3 | MR12: RESULTS | MS12: RATE YEAR 4 | MT12: RESULTS | MX12: 12ME JUNE 2023 | MZ12: RESTATED | NA12: PROFORMA | NB12: ADJUSTED | NC12: GAP YEAR | ND12: RESULTS | NE12: RATE YEAR 1 | NF12: RESULTS | NG12: RATE YEAR 2 | NH12: RESULTS | NI12: RATE YEAR 3 | NJ12: RESULTS | NK12: RATE YEAR 4 | NL12: RESULTS | NP12: 12ME JUNE 2023 | NR12: RESTATED | NS12: PROFORMA | NT12: ADJUSTED | NU12: GAP YEAR | NV12: RESULTS | NW12: RATE YEAR 1 | NX12: RESULTS | NY12: RATE YEAR 2 | NZ12: RESULTS | OA12: RATE YEAR 3 | OB12: RESULTS | OC12: RATE YEAR 4 | OD12: RESULTS | OH12: 12ME JUNE 2023 | OJ12: RESTATED | OK12: PROFORMA | OL12: ADJUSTED | OM12: GAP YEAR | ON12: RESULTS | OO12: RATE YEAR 1 | OP12: RESULTS | OQ12: RATE YEAR 2 | OR12: RESULTS | OS12: RATE YEAR 3 | OT12: RESULTS | OU12: RATE YEAR 4 | OV12: RESULTS | OZ12: 12ME JUNE 2023 | PB12: RESTATED | PC12: PROFORMA | PD12: ADJUSTED | PE12: GAP YEAR | PF12: RESULTS | PG12: RATE YEAR 1 | PH12: RESULTS | PI12: RATE YEAR 2 | PJ12: RESULTS | PK12: RATE YEAR 3 | PL12: RESULTS | PM12: RATE YEAR 4 | PN12: RESULTS | PV12: 12ME JUNE 2023 | PX12: RESTATED | PY12: PROFORMA | PZ12: ADJUSTED | QA12: GAP YEAR | QB12: RESULTS | QC12: RATE YEAR 1 | QD12: RESULTS | QE12: RATE YEAR 2 | QF12: RESULTS | QG12: RATE YEAR 3 | QH12: RESULTS | QI12: RATE YEAR 4 | QJ12: RESULTS | QN12: 12ME JUNE 2023 | QP12: RESTATED | QQ12: PROFORMA | QR12: ADJUSTED | QS12: GAP YEAR | QT12: RESULTS | QU12: RATE YEAR 1 | QV12: RESULTS | QW12: RATE YEAR 2 | QX12: RESULTS | QY12: RATE YEAR 3 | QZ12: RESULTS | RA12: RATE YEAR 4 | RB12: RESULTS | RF12: 12ME JUNE 2023 | RH12: RESTATED | RI12: PROFORMA | RJ12: ADJUSTED | RK12: GAP YEAR | RL12: RESULTS | RM12: RATE YEAR 1 | RN12: RESULTS | RO12: RATE YEAR 2 | RP12: RESULTS | RQ12: RATE YEAR 3 | RR12: RESULTS | RS12: RATE YEAR 4 | RT12: RESULTS | RX12: 12ME JUNE 2023 | RZ12: RESTATED | SA12: PROFORMA | SB12: ADJUSTED | SC12: GAP YEAR | SD12: RESULTS | SE12: RATE YEAR 1 | SF12: RESULTS | SG12: RATE YEAR 2 | SH12: RESULTS | SI12: RATE YEAR 3 | SJ12: RESULTS | SK12: RATE YEAR 4 | SL12: RESULTS | SP12: 12ME JUNE 2023 | SR12: RESTATED | SS12: PROFORMA | ST12: ADJUSTED | SU12: GAP YEAR | SV12: RESULTS | SW12: RATE YEAR 1 | SX12: RESULTS | SY12: RATE YEAR 2 | SZ12: RESULTS | TA12: RATE YEAR 3 | TB12: RESULTS | TC12: RATE YEAR 4 | TD12: RESULTS | TI12: 12ME JUNE 2023 | TK12: RESTATED | TL12: PROFORMA | TM12: ADJUSTED | TN12: GAP YEAR | TO12: RESULTS | TP12: RATE YEAR 1 | TQ12: RESULTS | TR12: RATE YEAR 2 | TS12: RESULTS | TX12: 12ME JUNE 2023 | TZ12: RESTATED | UA12: PROFORMA | UB12: ADJUSTED | UC12: GAP YEAR | UD12: RESULTS | UE12: RATE YEAR 1 | UF12: RESULTS | UG12: RATE YEAR 2 | UH12: RESULTS | UM12: 12ME JUNE 2023 | UO12: RESTATED | UP12: PROFORMA | UQ12: ADJUSTED | UR12: GAP YEAR | US12: RESULTS | UT12: RATE YEAR 1 | UU12: RESULTS | UV12: RATE YEAR 2 | UW12: RESULTS | VB12: 12ME JUNE 2023 | VD12: RESTATED | VE12: PROFORMA | VF12: ADJUSTED | VG12: GAP YEAR | VH12: RESULTS | VI12: RATE YEAR 1 | VJ12: RESULTS | VK12: RATE YEAR 2 | VL12: RESULTS | VQ12: 12ME JUNE 2023 | VS12: RESTATED | VT12: PROFORMA | VU12: ADJUSTED | VV12: GAP YEAR | VW12: RESULTS | VX12: RATE YEAR 1 | VY12: RESULTS | VZ12: RATE YEAR 2 | WA12: RESULTS
A13: LINE | D13: TEST | E13: RESTATING | F13: RESULTS OF | G13: PERIOD | H13: RESULTS OF | I13: PROVISIONAL | J13: START OF | K13: PROVISIONAL | L13: END OF | M13: PROVISIONAL | N13: END OF | O13: PROVISIONAL | P13: END OF | Q13: PROVISIONAL | R13: END OF | S13: LINE | V13: TEST | W13: RESTATING | X13: RESULTS OF | Y13: PERIOD | Z13: RESULTS OF | AA13: PROVISIONAL | AB13: START OF | AC13: PROVISIONAL | AD13: END OF | AE13: PROVISIONAL | AF13: END OF | AG13: PROVISIONAL | AH13: END OF | AI13: PROVISIONAL | AJ13: END OF | AK13: LINE | AN13: TEST | AO13: RESTATING | AP13: RESULTS OF | AQ13: PERIOD | AR13: RESULTS OF | AS13: PROVISIONAL | AT13: START OF | AU13: PROVISIONAL | AV13: END OF | AW13: PROVISIONAL | AX13: END OF | AY13: PROVISIONAL | AZ13: END OF | BA13: LINE | BD13: TEST | BE13: RESTATING | BF13: RESULTS OF | BG13: PERIOD | BH13: RESULTS OF | BI13: PROVISIONAL | BJ13: START OF | BK13: PROVISIONAL | BL13: END OF | BM13: PROVISIONAL | BN13: END OF | BO13: PROVISIONAL | BP13: END OF | BQ13: PROVISIONAL | BR13: END OF | BS13: LINE | BV13: TEST | BW13: RESTATING | BX13: RESULTS OF | BY13: PERIOD | BZ13: RESULTS OF | CA13: PROVISIONAL | CB13: START OF | CC13: PROVISIONAL | CD13: END OF | CE13: PROVISIONAL | CF13: END OF | CG13: PROVISIONAL | CH13: END OF | CI13: PROVISIONAL | CJ13: END OF | CK13: LINE | CN13: TEST | CO13: RESTATING | CP13: RESULTS OF | CQ13: PERIOD | CR13: RESULTS OF | CS13: PROVISIONAL | CT13: START OF | CU13: PROVISIONAL | CV13: END OF | CW13: PROVISIONAL | CX13: END OF | CY13: PROVISIONAL | CZ13: END OF | DA13: PROVISIONAL | DB13: END OF | DC13: LINE | DF13: TEST | DG13: RESTATING | DH13: RESULTS OF | DI13: PERIOD | DJ13: RESULTS OF | DK13: PROVISIONAL | DL13: START OF | DM13: PROVISIONAL | DN13: END OF | DO13: PROVISIONAL | DP13: END OF | DQ13: PROVISIONAL | DR13: END OF | DS13: PROVISIONAL | DT13: END OF | DU13: LINE | DX13: TEST | DY13: RESTATING | DZ13: RESULTS OF | EA13: PERIOD | EB13: RESULTS OF | EC13: PROVISIONAL | ED13: START OF | EE13: PROVISIONAL | EF13: END OF | EG13: PROVISIONAL | EH13: END OF | EI13: PROVISIONAL | EJ13: END OF | EK13: PROVISIONAL | EL13: END OF | EM13: LINE | EP13: TEST | EQ13: RESTATING | ER13: RESULTS OF | ES13: PERIOD | ET13: RESULTS OF | EU13: PROVISIONAL | EV13: START OF | EW13: PROVISIONAL | EX13: END OF | EY13: PROVISIONAL | EZ13: END OF | FA13: PROVISIONAL | FB13: END OF | FC13: PROVISIONAL | FD13: END OF | FE13: LINE | FH13: TEST | FI13: RESTATING | FJ13: RESULTS OF | FK13: PERIOD | FL13: RESULTS OF | FM13: PROVISIONAL | FN13: START OF | FO13: PROVISIONAL | FP13: END OF | FQ13: PROVISIONAL | FR13: END OF | FS13: PROVISIONAL | FT13: END OF | FU13: PROVISIONAL | FV13: END OF | FW13: LINE | FZ13: TEST | GA13: RESTATING | GB13: RESULTS OF | GC13: PERIOD | GD13: RESULTS OF | GE13: PROVISIONAL | GF13: START OF | GG13: PROVISIONAL | GH13: END OF | GI13: PROVISIONAL | GJ13: END OF | GK13: PROVISIONAL | GL13: END OF | GM13: PROVISIONAL | GN13: END OF | GO13: LINE | GR13: TEST | GS13: RESTATING | GT13: RESULTS OF | GU13: PERIOD | GV13: RESULTS OF | GW13: PROVISIONAL | GX13: START OF | GY13: PROVISIONAL | GZ13: END OF | HA13: PROVISIONAL | HB13: END OF | HC13: PROVISIONAL | HD13: END OF | HE13: PROVISIONAL | HF13: END OF | HG13: LINE | HJ13: TEST | HK13: RESTATING | HL13: RESULTS OF | HM13: PERIOD | HN13: RESULTS OF | HO13: PROVISIONAL | HP13: START OF | HQ13: PROVISIONAL | HR13: END OF | HS13: PROVISIONAL | HT13: END OF | HU13: PROVISIONAL | HV13: END OF | HW13: PROVISIONAL | HX13: END OF | HY13: LINE | IB13: TEST | IC13: RESTATING | ID13: RESULTS OF | IE13: PERIOD | IF13: RESULTS OF | IG13: PROVISIONAL | IH13: START OF | II13: PROVISIONAL | IJ13: END OF | IK13: PROVISIONAL | IL13: END OF | IM13: PROVISIONAL | IN13: END OF | IO13: PROVISIONAL | IP13: END OF | IQ13: LINE | IT13: TEST | IU13: RESTATING | IV13: RESULTS OF | IW13: PERIOD | IX13: RESULTS OF | IY13: PROVISIONAL | IZ13: START OF | JA13: PROVISIONAL | JB13: END OF | JC13: PROVISIONAL | JD13: END OF | JE13: PROVISIONAL | JF13: END OF | JG13: PROVISIONAL | JH13: END OF | JI13: LINE | JL13: TEST | JM13: RESTATING | JN13: RESULTS OF | JO13: PERIOD | JP13: RESULTS OF | JQ13: PROVISIONAL | JR13: START OF | JS13: PROVISIONAL | JT13: END OF | JU13: PROVISIONAL | JV13: END OF | JW13: PROVISIONAL | JX13: END OF | JY13: PROVISIONAL | JZ13: END OF | KA13: LINE | KD13: TEST | KE13: RESTATING | KF13: RESULTS OF | KG13: PERIOD | KH13: RESULTS OF | KI13: PROVISIONAL | KJ13: START OF | KK13: PROVISIONAL | KL13: END OF | KM13: PROVISIONAL | KN13: END OF | KO13: PROVISIONAL | KP13: END OF | KQ13: PROVISIONAL | KR13: END OF | KS13: LINE | KV13: TEST | KW13: RESTATING | KX13: RESULTS OF | KY13: PERIOD | KZ13: RESULTS OF | LA13: PROVISIONAL | LB13: START OF | LC13: PROVISIONAL | LD13: END OF | LE13: PROVISIONAL | LF13: END OF | LG13: PROVISIONAL | LH13: END OF | LI13: PROVISIONAL | LJ13: END OF | LK13: LINE | LN13: TEST | LO13: RESTATING | LP13: RESULTS OF | LQ13: PERIOD | LR13: RESULTS OF | LS13: PROVISIONAL | LT13: START OF | LU13: PROVISIONAL | LV13: END OF | LW13: PROVISIONAL | LX13: END OF | LY13: PROVISIONAL | LZ13: END OF | MA13: PROVISIONAL | MB13: END OF | MC13: LINE | MF13: TEST | MG13: RESTATING | MH13: RESULTS OF | MI13: PERIOD | MJ13: RESULTS OF | MK13: PROVISIONAL | ML13: START OF | MM13: PROVISIONAL | MN13: END OF | MO13: PROVISIONAL | MP13: END OF | MQ13: PROVISIONAL | MR13: END OF | MS13: PROVISIONAL | MT13: END OF | MU13: LINE | MX13: TEST | MY13: RESTATING | MZ13: RESULTS OF | NA13: PERIOD | NB13: RESULTS OF | NC13: PROVISIONAL | ND13: START OF | NE13: PROVISIONAL | NF13: END OF | NG13: PROVISIONAL | NH13: END OF | NI13: PROVISIONAL | NJ13: END OF | NK13: PROVISIONAL | NL13: END OF | NM13: LINE | NP13: TEST | NQ13: RESTATING | NR13: RESULTS OF | NS13: PERIOD | NT13: RESULTS OF | NU13: PROVISIONAL | NV13: START OF | NW13: PROVISIONAL | NX13: END OF | NY13: PROVISIONAL | NZ13: END OF | OA13: PROVISIONAL | OB13: END OF | OC13: PROVISIONAL | OD13: END OF | OE13: LINE | OH13: TEST | OI13: RESTATING | OJ13: RESULTS OF | OK13: PERIOD | OL13: RESULTS OF | OM13: PROVISIONAL | ON13: START OF | OO13: PROVISIONAL | OP13: END OF | OQ13: PROVISIONAL | OR13: END OF | OS13: PROVISIONAL | OT13: END OF | OU13: PROVISIONAL | OV13: END OF | OW13: LINE | OZ13: TEST | PA13: RESTATING | PB13: RESULTS OF | PC13: PERIOD | PD13: RESULTS OF | PE13: PROVISIONAL | PF13: START OF | PG13: PROVISIONAL | PH13: END OF | PI13: PROVISIONAL | PJ13: END OF | PK13: PROVISIONAL | PL13: END OF | PM13: PROVISIONAL | PN13: END OF | PS13: LINE | PV13: TEST | PW13: RESTATING | PX13: RESULTS OF | PY13: PERIOD | PZ13: RESULTS OF | QA13: PROVISIONAL | QB13: START OF | QC13: PROVISIONAL | QD13: END OF | QE13: PROVISIONAL | QF13: END OF | QG13: PROVISIONAL | QH13: END OF | QI13: PROVISIONAL | QJ13: END OF | QK13: LINE | QN13: TEST | QO13: RESTATING | QP13: RESULTS OF | QQ13: PERIOD | QR13: RESULTS OF | QS13: PROVISIONAL | QT13: START OF | QU13: PROVISIONAL | QV13: END OF | QW13: PROVISIONAL | QX13: END OF | QY13: PROVISIONAL | QZ13: END OF | RA13: PROVISIONAL | RB13: END OF | RC13: LINE | RF13: TEST | RG13: RESTATING | RH13: RESULTS OF | RI13: PERIOD | RJ13: RESULTS OF | RK13: PROVISIONAL | RL13: START OF | RM13: PROVISIONAL | RN13: END OF | RO13: PROVISIONAL | RP13: END OF | RQ13: PROVISIONAL | RR13: END OF | RS13: PROVISIONAL | RT13: END OF | RU13: LINE | RX13: TEST | RY13: RESTATING | RZ13: RESULTS OF | SA13: PERIOD | SB13: RESULTS OF | SC13: PROVISIONAL | SD13: START OF | SE13: PROVISIONAL | SF13: END OF | SG13: PROVISIONAL | SH13: END OF | SI13: PROVISIONAL | SJ13: END OF | SK13: PROVISIONAL | SL13: END OF | SM13: LINE | SP13: TEST | SQ13: RESTATING | SR13: RESULTS OF | SS13: PERIOD | ST13: RESULTS OF | SU13: PROVISIONAL | SV13: START OF | SW13: PROVISIONAL | SX13: END OF | SY13: PROVISIONAL | SZ13: END OF | TA13: PROVISIONAL | TB13: END OF | TC13: PROVISIONAL | TD13: END OF | TF13: LINE | TI13: TEST | TJ13: RESTATING | TK13: RESULTS OF | TL13: PERIOD | TM13: RESULTS OF | TN13: PROVISIONAL | TO13: START OF | TP13: PROVISIONAL | TQ13: END OF | TR13: PROVISIONAL | TS13: END OF | TU13: LINE | TX13: TEST | TY13: RESTATING | TZ13: RESULTS OF | UA13: PERIOD | UB13: RESULTS OF | UC13: PROVISIONAL | UD13: START OF | UE13: PROVISIONAL | UF13: END OF | UG13: PROVISIONAL | UH13: END OF | UJ13: LINE | UM13: TEST | UN13: RESTATING | UO13: RESULTS OF | UP13: PERIOD | UQ13: RESULTS OF | UR13: PROVISIONAL | US13: START OF | UT13: PROVISIONAL | UU13: END OF | UV13: PROVISIONAL | UW13: END OF | UY13: LINE | VB13: TEST | VC13: RESTATING | VD13: RESULTS OF | VE13: PERIOD | VF13: RESULTS OF | VG13: PROVISIONAL | VH13: START OF | VI13: PROVISIONAL | VJ13: END OF | VK13: PROVISIONAL | VL13: END OF | VN13: LINE | VQ13: TEST | VR13: RESTATING | VS13: RESULTS OF | VT13: PERIOD | VU13: RESULTS OF | VV13: PROVISIONAL | VW13: START OF | VX13: PROVISIONAL | VY13: END OF | VZ13: PROVISIONAL | WA13: END OF
A14: NO. | B14: DESCRIPTION | C14: %'s | D14: YEAR | E14: ADJUSTMENTS | F14: OPERATIONS | G14: ADJUSTMENTS | H14: OPERATIONS | I14: ADJUSTMENTS | J14: RATE YEAR 1 | K14: ADJUSTMENTS | L14: RATE YEAR 1 | M14: ADJUSTMENTS | N14: RATE YEAR 2 | O14: ADJUSTMENTS | P14: RATE YEAR 3 | Q14: ADJUSTMENTS | R14: RATE YEAR 4 | S14: NO. | T14: DESCRIPTION | U14: %'s | V14: YEAR | W14: ADJUSTMENTS | X14: OPERATIONS | Y14: ADJUSTMENTS | Z14: OPERATIONS | AA14: ADJUSTMENTS | AB14: RATE YEAR 1 | AC14: ADJUSTMENTS | AD14: RATE YEAR 1 | AE14: ADJUSTMENTS | AF14: RATE YEAR 2 | AG14: ADJUSTMENTS | AH14: RATE YEAR 3 | AI14: ADJUSTMENTS | AJ14: RATE YEAR 4 | AK14: NO. | AL14: DESCRIPTION | AM14: %'s | AN14: YEAR | AO14: ADJUSTMENTS | AP14: OPERATIONS | AQ14: ADJUSTMENTS | AR14: OPERATIONS | AS14: ADJUSTMENTS | AT14: RATE YEAR 1 | AU14: ADJUSTMENTS | AV14: RATE YEAR 1 | AW14: ADJUSTMENTS | AX14: RATE YEAR 2 | AY14: ADJUSTMENTS | AZ14: RATE YEAR 3 | BA14: NO. | BB14: DESCRIPTION | BC14: %'s | BD14: YEAR | BE14: ADJUSTMENTS | BF14: OPERATIONS | BG14: ADJUSTMENTS | BH14: OPERATIONS | BI14: ADJUSTMENTS | BJ14: RATE YEAR 1 | BK14: ADJUSTMENTS | BL14: RATE YEAR 1 | BM14: ADJUSTMENTS | BN14: RATE YEAR 2 | BO14: ADJUSTMENTS | BP14: RATE YEAR 3 | BQ14: ADJUSTMENTS | BR14: RATE YEAR 4 | BS14: NO. | BT14: DESCRIPTION | BU14: %'s | BV14: YEAR | BW14: ADJUSTMENTS | BX14: OPERATIONS | BY14: ADJUSTMENTS | BZ14: OPERATIONS | CA14: ADJUSTMENTS | CB14: RATE YEAR 1 | CC14: ADJUSTMENTS | CD14: RATE YEAR 1 | CE14: ADJUSTMENTS | CF14: RATE YEAR 2 | CG14: ADJUSTMENTS | CH14: RATE YEAR 3 | CI14: ADJUSTMENTS | CJ14: RATE YEAR 4 | CK14: NO. | CL14: DESCRIPTION | CM14: %'s | CN14: YEAR | CO14: ADJUSTMENTS | CP14: OPERATIONS | CQ14: ADJUSTMENTS | CR14: OPERATIONS | CS14: ADJUSTMENTS | CT14: RATE YEAR 1 | CU14: ADJUSTMENTS | CV14: RATE YEAR 1 | CW14: ADJUSTMENTS | CX14: RATE YEAR 2 | CY14: ADJUSTMENTS | CZ14: RATE YEAR 3 | DA14: ADJUSTMENTS | DB14: RATE YEAR 4 | DC14: NO. | DD14: DESCRIPTION | DE14: %'s | DF14: YEAR | DG14: ADJUSTMENTS | DH14: OPERATIONS | DI14: ADJUSTMENTS | DJ14: OPERATIONS | DK14: ADJUSTMENTS | DL14: RATE YEAR 1 | DM14: ADJUSTMENTS | DN14: RATE YEAR 1 | DO14: ADJUSTMENTS | DP14: RATE YEAR 2 | DQ14: ADJUSTMENTS | DR14: RATE YEAR 3 | DS14: ADJUSTMENTS | DT14: RATE YEAR 4 | DU14: NO. | DV14: DESCRIPTION | DW14: %'s | DX14: YEAR | DY14: ADJUSTMENTS | DZ14: OPERATIONS | EA14: ADJUSTMENTS | EB14: OPERATIONS | EC14: ADJUSTMENTS | ED14: RATE YEAR 1 | EE14: ADJUSTMENTS | EF14: RATE YEAR 1 | EG14: ADJUSTMENTS | EH14: RATE YEAR 2 | EI14: ADJUSTMENTS | EJ14: RATE YEAR 3 | EK14: ADJUSTMENTS | EL14: RATE YEAR 4 | EM14: NO. | EN14: DESCRIPTION | EP14: YEAR | EQ14: ADJUSTMENTS | ER14: OPERATIONS | ES14: ADJUSTMENTS | ET14: OPERATIONS | EU14: ADJUSTMENTS | EV14: RATE YEAR 1 | EW14: ADJUSTMENTS | EX14: RATE YEAR 1 | EY14: ADJUSTMENTS | EZ14: RATE YEAR 2 | FA14: ADJUSTMENTS | FB14: RATE YEAR 3 | FC14: ADJUSTMENTS | FD14: RATE YEAR 4 | FE14: NO. | FF14: DESCRIPTION | FG14: %'s | FH14: YEAR | FI14: ADJUSTMENTS | FJ14: OPERATIONS | FK14: ADJUSTMENTS | FL14: OPERATIONS | FM14: ADJUSTMENTS | FN14: RATE YEAR 1 | FO14: ADJUSTMENTS | FP14: RATE YEAR 1 | FQ14: ADJUSTMENTS | FR14: RATE YEAR 2 | FS14: ADJUSTMENTS | FT14: RATE YEAR 3 | FU14: ADJUSTMENTS | FV14: RATE YEAR 4 | FW14: NO. | FX14: DESCRIPTION | FY14: %'s | FZ14: YEAR | GA14: ADJUSTMENTS | GB14: OPERATIONS | GC14: ADJUSTMENTS | GD14: OPERATIONS | GE14: ADJUSTMENTS | GF14: RATE YEAR 1 | GG14: ADJUSTMENTS | GH14: RATE YEAR 1 | GI14: ADJUSTMENTS | GJ14: RATE YEAR 2 | GK14: ADJUSTMENTS | GL14: RATE YEAR 3 | GM14: ADJUSTMENTS | GN14: RATE YEAR 4 | GO14: NO. | GP14: DESCRIPTION | GQ14: %'s | GR14: YEAR | GS14: ADJUSTMENTS | GT14: OPERATIONS | GU14: ADJUSTMENTS | GV14: OPERATIONS | GW14: ADJUSTMENTS | GX14: RATE YEAR 1 | GY14: ADJUSTMENTS | GZ14: RATE YEAR 1 | HA14: ADJUSTMENTS | HB14: RATE YEAR 2 | HC14: ADJUSTMENTS | HD14: RATE YEAR 3 | HE14: ADJUSTMENTS | HF14: RATE YEAR 4 | HG14: NO. | HH14: DESCRIPTION | HI14: %'s | HJ14: YEAR | HK14: ADJUSTMENTS | HL14: OPERATIONS | HM14: ADJUSTMENTS | HN14: OPERATIONS | HO14: ADJUSTMENTS | HP14: RATE YEAR 1 | HQ14: ADJUSTMENTS | HR14: RATE YEAR 1 | HS14: ADJUSTMENTS | HT14: RATE YEAR 2 | HU14: ADJUSTMENTS | HV14: RATE YEAR 3 | HW14: ADJUSTMENTS | HX14: RATE YEAR 4 | HY14: NO. | HZ14: DESCRIPTION | IA14: %'s | IB14: YEAR | IC14: ADJUSTMENTS | ID14: OPERATIONS | IE14: ADJUSTMENTS | IF14: OPERATIONS | IG14: ADJUSTMENTS | IH14: RATE YEAR 1 | II14: ADJUSTMENTS | IJ14: RATE YEAR 1 | IK14: ADJUSTMENTS | IL14: RATE YEAR 2 | IM14: ADJUSTMENTS | IN14: RATE YEAR 3 | IO14: ADJUSTMENTS | IP14: RATE YEAR 4 | IQ14: NO. | IR14: DESCRIPTION | IS14: %'s | IT14: YEAR | IU14: ADJUSTMENTS | IV14: OPERATIONS | IW14: ADJUSTMENTS | IX14: OPERATIONS | IY14: ADJUSTMENTS | IZ14: RATE YEAR 1 | JA14: ADJUSTMENTS | JB14: RATE YEAR 1 | JC14: ADJUSTMENTS | JD14: RATE YEAR 2 | JE14: ADJUSTMENTS | JF14: RATE YEAR 3 | JG14: ADJUSTMENTS | JH14: RATE YEAR 4 | JI14: NO. | JJ14: DESCRIPTION | JK14: %'s | JL14: YEAR | JM14: ADJUSTMENTS | JN14: OPERATIONS | JO14: ADJUSTMENTS | JP14: OPERATIONS | JQ14: ADJUSTMENTS | JR14: RATE YEAR 1 | JS14: ADJUSTMENTS | JT14: RATE YEAR 1 | JU14: ADJUSTMENTS | JV14: RATE YEAR 2 | JW14: ADJUSTMENTS | JX14: RATE YEAR 3 | JY14: ADJUSTMENTS | JZ14: RATE YEAR 4 | KA14: NO. | KB14: DESCRIPTION | KC14: %'s | KD14: YEAR | KE14: ADJUSTMENTS | KF14: OPERATIONS | KG14: ADJUSTMENTS | KH14: OPERATIONS | KI14: ADJUSTMENTS | KJ14: RATE YEAR 1 | KK14: ADJUSTMENTS | KL14: RATE YEAR 1 | KM14: ADJUSTMENTS | KN14: RATE YEAR 2 | KO14: ADJUSTMENTS | KP14: RATE YEAR 3 | KQ14: ADJUSTMENTS | KR14: RATE YEAR 4 | KS14: NO. | KT14: DESCRIPTION | KU14: %'s | KV14: YEAR | KW14: ADJUSTMENTS | KX14: OPERATIONS | KY14: ADJUSTMENTS | KZ14: OPERATIONS | LA14: ADJUSTMENTS | LB14: RATE YEAR 1 | LC14: ADJUSTMENTS | LD14: RATE YEAR 1 | LE14: ADJUSTMENTS | LF14: RATE YEAR 2 | LG14: ADJUSTMENTS | LH14: RATE YEAR 3 | LI14: ADJUSTMENTS | LJ14: RATE YEAR 4 | LK14: NO. | LL14: DESCRIPTION | LN14: YEAR | LO14: ADJUSTMENTS | LP14: OPERATIONS | LQ14: ADJUSTMENTS | LR14: OPERATIONS | LS14: ADJUSTMENTS | LT14: RATE YEAR 1 | LU14: ADJUSTMENTS | LV14: RATE YEAR 1 | LW14: ADJUSTMENTS | LX14: RATE YEAR 2 | LY14: ADJUSTMENTS | LZ14: RATE YEAR 3 | MA14: ADJUSTMENTS | MB14: RATE YEAR 4 | MC14: NO. | MD14: DESCRIPTION | MF14: YEAR | MG14: ADJUSTMENTS | MH14: OPERATIONS | MI14: ADJUSTMENTS | MJ14: OPERATIONS | MK14: ADJUSTMENTS | ML14: RATE YEAR 1 | MM14: ADJUSTMENTS | MN14: RATE YEAR 1 | MO14: ADJUSTMENTS | MP14: RATE YEAR 2 | MQ14: ADJUSTMENTS | MR14: RATE YEAR 3 | MS14: ADJUSTMENTS | MT14: RATE YEAR 4 | MU14: NO. | MV14: DESCRIPTION | MX14: YEAR | MY14: ADJUSTMENTS | MZ14: OPERATIONS | NA14: ADJUSTMENTS | NB14: OPERATIONS | NC14: ADJUSTMENTS | ND14: RATE YEAR 1 | NE14: ADJUSTMENTS | NF14: RATE YEAR 1 | NG14: ADJUSTMENTS | NH14: RATE YEAR 2 | NI14: ADJUSTMENTS | NJ14: RATE YEAR 3 | NK14: ADJUSTMENTS | NL14: RATE YEAR 4 | NM14: NO. | NN14: DESCRIPTION | NO14: %'s | NP14: YEAR | NQ14: ADJUSTMENTS | NR14: OPERATIONS | NS14: ADJUSTMENTS | NT14: OPERATIONS | NU14: ADJUSTMENTS | NV14: RATE YEAR 1 | NW14: ADJUSTMENTS | NX14: RATE YEAR 1 | NY14: ADJUSTMENTS | NZ14: RATE YEAR 2 | OA14: ADJUSTMENTS | OB14: RATE YEAR 3 | OC14: ADJUSTMENTS | OD14: RATE YEAR 4 | OE14: NO. | OF14: DESCRIPTION | OG14: %'s | OH14: YEAR | OI14: ADJUSTMENTS | OJ14: OPERATIONS | OK14: ADJUSTMENTS | OL14: OPERATIONS | OM14: ADJUSTMENTS | ON14: RATE YEAR 1 | OO14: ADJUSTMENTS | OP14: RATE YEAR 1 | OQ14: ADJUSTMENTS | OR14: RATE YEAR 2 | OS14: ADJUSTMENTS | OT14: RATE YEAR 3 | OU14: ADJUSTMENTS | OV14: RATE YEAR 4 | OW14: NO. | OX14: DESCRIPTION | OY14: %'s | OZ14: YEAR | PA14: ADJUSTMENTS | PB14: OPERATIONS | PC14: ADJUSTMENTS | PD14: OPERATIONS | PE14: ADJUSTMENTS | PF14: RATE YEAR 1 | PG14: ADJUSTMENTS | PH14: RATE YEAR 1 | PI14: ADJUSTMENTS | PJ14: RATE YEAR 2 | PK14: ADJUSTMENTS | PL14: RATE YEAR 3 | PM14: ADJUSTMENTS | PN14: RATE YEAR 4 | PS14: NO. | PT14: DESCRIPTION | PV14: YEAR | PW14: ADJUSTMENTS | PX14: OPERATIONS | PY14: ADJUSTMENTS | PZ14: OPERATIONS | QA14: ADJUSTMENTS | QB14: RATE YEAR 1 | QC14: ADJUSTMENTS | QD14: RATE YEAR 1 | QE14: ADJUSTMENTS | QF14: RATE YEAR 2 | QG14: ADJUSTMENTS | QH14: RATE YEAR 3 | QI14: ADJUSTMENTS | QJ14: RATE YEAR 4 | QK14: NO. | QL14: DESCRIPTION | QM14: %'s | QN14: YEAR | QO14: ADJUSTMENTS | QP14: OPERATIONS | QQ14: ADJUSTMENTS | QR14: OPERATIONS | QS14: ADJUSTMENTS | QT14: RATE YEAR 1 | QU14: ADJUSTMENTS | QV14: RATE YEAR 1 | QW14: ADJUSTMENTS | QX14: RATE YEAR 2 | QY14: ADJUSTMENTS | QZ14: RATE YEAR 3 | RA14: ADJUSTMENTS | RB14: RATE YEAR 4 | RC14: NO. | RD14: DESCRIPTION | RE14: %'s | RF14: YEAR | RG14: ADJUSTMENTS | RH14: OPERATIONS | RI14: ADJUSTMENTS | RJ14: OPERATIONS | RK14: ADJUSTMENTS | RL14: RATE YEAR 1 | RM14: ADJUSTMENTS | RN14: RATE YEAR 1 | RO14: ADJUSTMENTS | RP14: RATE YEAR 2 | RQ14: ADJUSTMENTS | RR14: RATE YEAR 3 | RS14: ADJUSTMENTS | RT14: RATE YEAR 4 | RU14: NO. | RV14: DESCRIPTION | RW14: %'s | RX14: YEAR | RY14: ADJUSTMENTS | RZ14: OPERATIONS | SA14: ADJUSTMENTS | SB14: OPERATIONS | SC14: ADJUSTMENTS | SD14: RATE YEAR 1 | SE14: ADJUSTMENTS | SF14: RATE YEAR 1 | SG14: ADJUSTMENTS | SH14: RATE YEAR 2 | SI14: ADJUSTMENTS | SJ14: RATE YEAR 3 | SK14: ADJUSTMENTS | SL14: RATE YEAR 4 | SM14: NO. | SN14: DESCRIPTION | SO14: %'s | SP14: YEAR | SQ14: ADJUSTMENTS | SR14: OPERATIONS | SS14: ADJUSTMENTS | ST14: OPERATIONS | SU14: ADJUSTMENTS | SV14: RATE YEAR 1 | SW14: ADJUSTMENTS | SX14: RATE YEAR 1 | SY14: ADJUSTMENTS | SZ14: RATE YEAR 2 | TA14: ADJUSTMENTS | TB14: RATE YEAR 3 | TC14: ADJUSTMENTS | TD14: RATE YEAR 4 | TF14: NO. | TG14: DESCRIPTION | TH14: %'s | TI14: YEAR | TJ14: ADJUSTMENTS | TK14: OPERATIONS | TL14: ADJUSTMENTS | TM14: OPERATIONS | TN14: ADJUSTMENTS | TO14: RATE YEAR 1 | TP14: ADJUSTMENTS | TQ14: RATE YEAR 1 | TR14: ADJUSTMENTS | TS14: RATE YEAR 2 | TU14: NO. | TV14: DESCRIPTION | TW14: %'s | TX14: YEAR | TY14: ADJUSTMENTS | TZ14: OPERATIONS | UA14: ADJUSTMENTS | UB14: OPERATIONS | UC14: ADJUSTMENTS | UD14: RATE YEAR 1 | UE14: ADJUSTMENTS | UF14: RATE YEAR 1 | UG14: ADJUSTMENTS | UH14: RATE YEAR 2 | UJ14: NO. | UK14: DESCRIPTION | UL14: %'s | UM14: YEAR | UN14: ADJUSTMENTS | UO14: OPERATIONS | UP14: ADJUSTMENTS | UQ14: OPERATIONS | UR14: ADJUSTMENTS | US14: RATE YEAR 1 | UT14: ADJUSTMENTS | UU14: RATE YEAR 1 | UV14: ADJUSTMENTS | UW14: RATE YEAR 2 | UY14: NO. | UZ14: DESCRIPTION | VA14: %'s | VB14: YEAR | VC14: ADJUSTMENTS | VD14: OPERATIONS | VE14: ADJUSTMENTS | VF14: OPERATIONS | VG14: ADJUSTMENTS | VH14: RATE YEAR 1 | VI14: ADJUSTMENTS | VJ14: RATE YEAR 1 | VK14: ADJUSTMENTS | VL14: RATE YEAR 2 | VN14: NO. | VO14: DESCRIPTION | VP14: %'s | VQ14: YEAR | VR14: ADJUSTMENTS | VS14: OPERATIONS | VT14: ADJUSTMENTS | VU14: OPERATIONS | VV14: ADJUSTMENTS | VW14: RATE YEAR 1 | VX14: ADJUSTMENTS | VY14: RATE YEAR 1 | VZ14: ADJUSTMENTS | WA14: RATE YEAR 2
A15: =ROW() -> 15 | B15: SALES TO CUSTOMERS | LL15: RATE BASE: | NM15: =ROW() -> 15 | OH15: from EOP Adj. | QK15: =ROW() -> 15 | RU15: =ROW() -> 15 | SM15: =ROW() -> 15 | SN15: PROGRAMMATC (ADJUSTMENT 6.31) | TF15: =ROW() -> 15 | TU15: =ROW() -> 15 | UJ15: =ROW() -> 15 | UY15: =ROW() -> 15 | UZ15: TEST YEAR DEFERRAL REMOVAL | VN15: =ROW() -> 15
A16: =ROW() -> 16 | S16: =ROW() -> 16 | T16: REMOVE REVENUES ASSOCIATED WITH RIDERS: | AK16: =ROW() -> 16 | AL16: GPI IN KWH | AN16: 2.389585217e+10 | AO16: =AP16-AN16 -> -603690944.1 | AP16: 2.329216123e+10 | AR16: =SUM(AP16:AQ16) -> 2.329216123e+10 | AS16: 0 | AT16: =SUM(AR16:AS16) -> 2.329216123e+10 | AU16: 0 | AV16: =SUM(AT16:AU16) -> 2.329216123e+10 | AW16: 0 | AX16: =SUM(AV16:AW16) -> 2.329216123e+10 | BA16: =ROW() -> 16 | BB16: INCREASE(DECREASE) FIT | BD16: 159200857.4 | BE16: -51655882.22 | BF16: =SUM(BD16:BE16) -> 107544975.2 | BG16: 0 | BH16: =SUM(BF16:BG16) -> 107544975.2 | BI16: 0 | BJ16: =SUM(BH16:BI16) -> 107544975.2 | BK16: 0 | BL16: =SUM(BJ16:BK16) -> 107544975.2 | BM16: 0 | BN16: =SUM(BL16:BM16) -> 107544975.2 | BP16: =SUM(BN16:BO16) -> 107544975.2 | BR16: =SUM(BP16:BQ16) -> 107544975.2 | BS16: =ROW() -> 16 | BT16: RATE BASE | BV16: 0 | BW16: =+Summary!E58 -> 5591510736 | BX16: =SUM(BV16:BW16) -> 5591510736 | BY16: =+Summary!F58 -> 518485698.1 | BZ16: =SUM(BX16:BY16) -> 6109996434 | CA16: =+Summary!H58 -> 445546496.4 | CB16: =SUM(BZ16:CA16) -> 6555542930 | CC16: =+Summary!J58 -> 262892970.2 | CD16: =SUM(CB16:CC16) -> 6818435901 | CE16: =+Summary!L58 -> 1150858927 | CF16: =SUM(CD16:CE16) -> 7969294828 | CG16: =+Summary!N58 -> 0 | CK16: =ROW() -> 16 | DC16: =ROW() -> 16 | DD16: EXPENSES TO BE NORMALIZED: | DU16: =ROW() -> 16 | DV16: EXCISE TAXES | DX16: 106401075.9 | DY16: 27398.91112 | DZ16: =DX16+DY16 -> 106428474.8 | EA16: 0 | EB16: =DZ16+EA16 -> 106428474.8 | EC16: 0 | ED16: =EB16+EC16 -> 106428474.8 | EE16: 0 | EF16: =ED16+EE16 -> 106428474.8 | EG16: 0 | EH16: =EF16+EG16 -> 106428474.8 | EL16: =EJ16+EK16 -> 0 | EM16: =ROW() -> 16 | EN16: BENEFIT CONTRIBUTION: | FE16: =ROW() -> 16 | FF16: INJURIES & DAMAGES ACCRUALS | FH16: -15000 | FI16: -90000 | FJ16: =FH16+FI16 -> -105000 | FK16: 0 | FL16: =FJ16+FK16 -> -105000 | FM16: 0 | FN16: =FL16+FM16 -> -105000 | FO16: 0 | FP16: =FN16+FO16 -> -105000 | FQ16: 0 | FR16: =FP16+FQ16 -> -105000 | FV16: =FT16+FU16 -> 0 | FW16: =ROW() -> 16 | FX16: INCENTIVE / MERIT PAY: | HG16: =ROW() -> 16 | HH16: INTEREST EXPENSE AT MOST CURRENT INTEREST RATE | HK16: 131317.9369 | HL16: =HJ16+HK16 -> 131317.9369 | HM16: 0 | HN16: =SUM(HL16:HM16) -> 131317.9369 | HO16: 0 | HP16: =SUM(HN16:HO16) -> 131317.9369 | HQ16: 0 | HR16: =SUM(HP16:HQ16) -> 131317.9369 | HS16: 0 | HT16: =SUM(HR16:HS16) -> 131317.9369 | HX16: =SUM(HV16:HW16) -> 0 | HY16: =ROW() -> 16 | HZ16: PROPERTY INSURANCE EXPENSE | IB16: 4926664.063 | IC16: 547949.9263 | ID16: =SUM(IB16:IC16) -> 5474613.989 | IE16: 0 | IF16: =SUM(ID16:IE16) -> 5474613.989 | IH16: =SUM(IF16:IG16) -> 5474613.989 | IJ16: =SUM(IH16:II16) -> 5474613.989 | IL16: =SUM(IJ16:IK16) -> 5474613.989 | IN16: =SUM(IL16:IM16) -> 5474613.989 | IP16: =SUM(IN16:IO16) -> 5474613.989 | IQ16: =ROW() -> 16 | IR16: AMORTIZATION OF NET DEFERRED GAIN / LOSS | JI16: =ROW() -> 16 | JJ16: D & O INS. CHG EXPENSE | JL16: 140630.8529 | JM16: -23123.58504 | JN16: =SUM(JL16:JM16) -> 117507.2679 | JP16: =+JO16+JN16 -> 117507.2679 | JR16: =+JQ16+JP16 -> 117507.2679 | JT16: =+JS16+JR16 -> 117507.2679 | JV16: =+JU16+JT16 -> 117507.2679 | JX16: =+JW16+JV16 -> 117507.2679 | JZ16: =+JY16+JX16 -> 117507.2679 | KA16: =ROW() -> 16 | KB16: QUALIFIED RETIREMENT FUND | KD16: 2356222.518 | KE16: 3717058.125 | KF16: =KD16+KE16 -> 6073280.643 | KH16: =KF16+KG16 -> 6073280.643 | KJ16: =KH16+KI16 -> 6073280.643 | KL16: =KJ16+KK16 -> 6073280.643 | KN16: =KL16+KM16 -> 6073280.643 | KR16: =KP16+KQ16 -> 0 | KS16: =ROW() -> 16 | KT16: WAGES: | LK16: =ROW() -> 16 | LL16: GROSS UTILITY PLANT IN SERVICE | LN16: 1.182512479e+10 | LO16: 66164287.26 | LP16: =SUM(LN16:LO16) -> 1.189128908e+10 | LQ16: 0 | LR16: =LP16+LQ16 -> 1.189128908e+10 | LS16: 0 | LT16: =LR16+LS16 -> 1.189128908e+10 | LU16: 0 | LV16: =LT16+LU16 -> 1.189128908e+10 | LW16: 0 | LX16: =LV16+LW16 -> 1.189128908e+10 | LY16: 0 | MA16: 0 | MB16: =LZ16+MA16 -> 0 | MC16: =ROW() -> 16 | MD16: 403 ELEC. DEPRECIATION EXPENSE | MF16: 363282802 | MG16: 17425234.52 | MH16: =MF16+MG16 -> 380708036.5 | MI16: 0 | MJ16: =MH16+MI16 -> 380708036.5 | ML16: =MJ16+MK16 -> 380708036.5 | MN16: =ML16+MM16 -> 380708036.5 | MP16: =MN16+MO16 -> 380708036.5 | MU16: =ROW() -> 16 | MV16: WUTC FILING FEE | MX16: 10777556.53 | MY16: 287386.4751 | MZ16: =SUM(MX16:MY16) -> 11064943.01 | NB16: =SUM(MZ16:NA16) -> 11064943.01 | ND16: =SUM(NB16:NC16) -> 11064943.01 | NF16: =SUM(ND16:NE16) -> 11064943.01 | NH16: =SUM(NF16:NG16) -> 11064943.01 | NL16: =SUM(NJ16:NK16) -> 0 | NM16: =ROW() -> 16 | OE16: =ROW() -> 16 | OF16: RATEBASE: | OW16: =ROW() -> 16 | OX16: RATEBASE: | OZ16: From EOP Adj. | PS16: =ROW() -> 16 | QK16: =ROW() -> 16 | RC16: =ROW() -> 16 | RU16: =ROW() -> 16 | RV16: 403 ELEC. DEPRECIATION EXPENSE | SA16: -174784.55 | SB16: =SA16+RZ16 -> -174784.55 | SC16: -1552531.01 | SD16: =SC16+SB16 -> -1727315.56 | SE16: -1738872.72 | SF16: =SE16+SD16 -> -3466188.28 | SG16: -1738872.72 | SH16: =SG16+SF16 -> -5205061 | SJ16: =SI16+SH16 -> -5205061 | SL16: =SK16+SJ16 -> -5205061 | SM16: =ROW() -> 16 | SN16: 403 ELEC. DEPRECIATION EXPENSE | SS16: 3031344.69 | ST16: =SS16 -> 3031344.69 | SU16: 10957173.79 | SV16: =SU16+ST16 -> 13988518.48 | SW16: 13672938.01 | SX16: =SW16+SV16 -> 27661456.49 | SY16: 17959711.22 | SZ16: =SY16+SX16 -> 45621167.71 | TB16: =TA16+SZ16 -> 45621167.71 | TD16: =TC16+TB16 -> 45621167.71 | TF16: =ROW() -> 16 | TG16: REMOVE TY REVENUE DEFERRALS | TU16: =ROW() -> 16 | UJ16: =ROW() -> 16 | UY16: =ROW() -> 16 | UZ16: DECARBONIZATION STUDY - ELECTRIFICATION PILOT DEFERRAL | VB16: -138703.19 | VC16: 138703.19 | VD16: =VB16+VC16 -> 0 | VN16: =ROW() -> 16 | VO16: LTIP EXPENSE | VX16: =VY16-VW16 -> 563096.6867 | VY16: 563096.6867 | VZ16: =WA16-VY16 -> 19708.38404 | WA16: 582805.0708
A17: =ROW() -> 17 | B17: REMOVE SCHEDULE 95A - FEDERAL INCENTIVE TRACKER (NOTE 2) | D17: =-'CTM Exh Summary'!D7 -> -14173244.6 | E17: =-D17 -> 14173244.6 | F17: =D17+E17 -> 0 | H17: =F17+G17 -> 0 | J17: =H17+I17 -> 0 | L17: =J17+K17 -> 0 | N17: =L17+M17 -> 0 | P17: =N17+O17 -> 0 | R17: =P17+Q17 -> 0 | S17: =ROW() -> 17 | T17: REMOVE CONSERVATION RIDER - SCHEDULE 120 | V17: =-'CTM Exh Summary'!$E$10 -> 108286041.1 | W17: =-V17 -> -108286041.1 | X17: =+W17+V17 -> 0 | Z17: =+Y17+X17 -> 0 | AB17: =+AA17+Z17 -> 0 | AD17: =+AC17+AB17 -> 0 | AF17: =+AE17+AD17 -> 0 | AK17: =ROW() -> 17 | BA17: =ROW() -> 17 | BB17: DFIT ALL OTHER | BD17: -92361480.74 | BE17: 67081450.64 | BF17: -25280030.1 | BG17: 0 | BH17: =SUM(BF17:BG17) -> -25280030.1 | BI17: 0 | BJ17: -25280030.1 | BK17: 0 | BL17: =SUM(BJ17:BK17) -> -25280030.1 | BM17: 0 | BN17: =SUM(BL17:BM17) -> -25280030.1 | BP17: -25280030.1 | BR17: -25280030.1 | BS17: =ROW() -> 17 | CK17: =ROW() -> 17 | CL17: INCREASE (DECREASE) EXPENSE IN UNCOLLECTIBLES | CM17: 0.006488 | CN17: 17684399.79 | CO17: -455334.7858 | CP17: =SUM(CN17:CO17) -> 17229065 | CR17: =SUM(CP17:CQ17) -> 17229065 | CT17: =SUM(CR17:CS17) -> 17229065 | CV17: =SUM(CT17:CU17) -> 17229065 | CX17: =SUM(CV17:CW17) -> 17229065 | DB17: =SUM(CZ17:DA17) -> 0 | DC17: =ROW() -> 17 | DD17: EXPENSES OF LAST 2 COMPLETED GRCS | DU17: =ROW() -> 17 | EM17: =ROW() -> 17 | EN17: NON-UNION EMPLOYEES | EP17: 23997008.81 | EQ17: =ER17-EP17 -> -40466.1668 | ER17: 23956542.65 | ES17: =ET17-ER17 -> 981398.3076 | ET17: 24937940.95 | EV17: =SUM(ET17:EU17) -> 24937940.95 | EX17: =SUM(EV17:EW17) -> 24937940.95 | EZ17: =SUM(EX17:EY17) -> 24937940.95 | FD17: =SUM(FB17:FC17) -> 0 | FE17: =ROW() -> 17 | FF17: INJURIES & DAMAGES PAYMENTS IN EXCESS OF ACCRUALS | FH17: 506615.1133 | FI17: -77050.65476 | FJ17: =FH17+FI17 -> 429564.4585 | FK17: 0 | FL17: =FJ17+FK17 -> 429564.4585 | FM17: 0 | FN17: =FL17+FM17 -> 429564.4585 | FO17: 0 | FP17: =FN17+FO17 -> 429564.4585 | FQ17: 0 | FR17: =FP17+FQ17 -> 429564.4585 | FV17: =FT17+FU17 -> 0 | FW17: =ROW() -> 17 | FX17: PURCHASED POWER | FZ17: 651454.0508 | GA17: -225833.9662 | GB17: =SUM(FZ17:GA17) -> 425620.0846 | GC17: 54208.72897 | GD17: =SUM(GB17:GC17) -> 479828.8135 | GE17: 22553.27808 | GF17: =SUM(GD17:GE17) -> 502382.0916 | GG17: 106193.0983 | GH17: =SUM(GF17:GG17) -> 608575.1899 | GI17: 350.7458856 | GJ17: =SUM(GH17:GI17) -> 608925.9358 | GL17: =SUM(GJ17:GK17) -> 608925.9358 | GN17: =SUM(GL17:GM17) -> 608925.9358 | GO17: =ROW() -> 17 | GP17: NON-UNION (INC. EXECUTIVES) | HG17: =ROW() -> 17 | HY17: =ROW() -> 17 | HZ17: COLSTRIP PROPERTY INSURANCE | ID17: =SUM(IB17:IC17) -> 0 | IF17: 0 | IH17: 0 | IJ17: 0 | IL17: 0 | IN17: 0 | IP17: 0 | IQ17: =ROW() -> 17 | IR17: APPROVED & PENDING DEFERRED GAIN/LOSS (3 yr amort.) | IT17: -298431.94 | IU17: -333409.1 | IV17: =SUM(IT17:IU17) -> -631841.04 | IX17: =SUM(IV17:IW17) -> -631841.04 | IZ17: =SUM(IX17:IY17) -> -631841.04 | JA17: -20379.00667 | JB17: =SUM(IZ17:JA17) -> -652220.0467 | JD17: =SUM(JB17:JC17) -> -652220.0467 | JF17: =SUM(JD17:JE17) -> -652220.0467 | JH17: =SUM(JF17:JG17) -> -652220.0467 | JI17: =ROW() -> 17 | KA17: =ROW() -> 17 | KB17: INCREASE(DECREASE) EXPENSE | KD17: =SUM(KD16:KD16) -> 2356222.518 | KE17: =SUM(KE16:KE16) -> 3717058.125 | KF17: =SUM(KF16:KF16) -> 6073280.643 | KG17: =SUM(KG16) -> 0 | KH17: =SUM(KH16) -> 6073280.643 | KI17: =SUM(KI16) -> 0 | KJ17: 6073280.643 | KK17: 0 | KL17: 6073280.643 | KM17: 0 | KN17: 6073280.643 | KO17: 0 | KP17: 0 | KQ17: 0 | KR17: 0 | KS17: =ROW() -> 17 | KT17: PURCHASED POWER | KV17: 8121855.398 | KW17: 561855.3885 | KX17: =SUM(KV17:KW17) -> 8683710.787 | KY17: 0 | KZ17: =SUM(KX17:KY17) -> 8683710.787 | LA17: 0 | LB17: =SUM(KZ17:LA17) -> 8683710.787 | LD17: =SUM(LB17:LC17) -> 8683710.787 | LF17: =SUM(LD17:LE17) -> 8683710.787 | LJ17: =SUM(LH17:LI17) -> 0 | LK17: =ROW() -> 17 | LL17: ACCUM DEPR AND AMORT | LN17: -5578520719 | LO17: -55333202.81 | LP17: -5633853921 | LQ17: 0 | LR17: -5633853921 | LS17: 0 | LT17: -5633853921 | LU17: 0 | LV17: -5633853921 | LW17: 0 | LX17: -5633853921 | LY17: 0 | MA17: 0 | MB17: 0 | MC17: =ROW() -> 17 | MD17: 403 ELEC. PORTION OF COMMON | MF17: 19060442.14 | MG17: -1251183.249 | MH17: =MF17+MG17 -> 17809258.89 | MI17: 0 | MJ17: =MH17+MI17 -> 17809258.89 | ML17: =MJ17+MK17 -> 17809258.89 | MN17: =ML17+MM17 -> 17809258.89 | MP17: =MN17+MO17 -> 17809258.89 | MU17: =ROW() -> 17 | MV17: INCREASE(DECREASE) WUTC FILING FEE | MX17: =SUM(MX16) -> 10777556.53 | MY17: 287386.4751 | MZ17: 11064943.01 | NA17: 0 | NB17: 11064943.01 | NC17: 0 | ND17: 11064943.01 | NE17: 0 | NF17: 11064943.01 | NG17: =SUM(NG16) -> 0 | NH17: 11064943.01 | NI17: 0 | NJ17: 0 | NK17: 0 | NL17: 0 | NM17: =ROW() -> 17 | NN17: O&M TOTAL ESCALATIONS: | OE17: =ROW() -> 17 | OF17: PLANT: | OW17: =ROW() -> 17 | OX17: Plant: | PS17: =ROW() -> 17 | PT17: AMORTIZATION OF DEFERRED ENVIRONMENTAL REMEDIATION COSTS AND RECOVERIES | PV17: 846674.35 | PW17: =PX17-PV17 -> 53379.85434 | PX17: 900054.2043 | PY17: =PZ17-PX17 -> -2720.430509 | PZ17: 897333.7738 | QA17: =QB17-PZ17 -> 2723.732167 | QB17: 900057.506 | QC17: =QD17-QB17 -> -289207.7288 | QD17: 610849.7772 | QE17: =QF17-QD17 -> -495824.03 | QF17: 115025.7472 | QH17: =SUM(QF17:QG17) -> 115025.7472 | QJ17: =SUM(QH17:QI17) -> 115025.7472 | QK17: =ROW() -> 17 | RC17: =ROW() -> 17 | RD17: 403 ELEC. DEPRECIATION EXPENSE | RH17: 360963266.2 | RI17: =RJ17-RH17 -> 1153244.5 | RJ17: 362116510.7 | RK17: =RL17-RJ17 -> -1613.90955 | RL17: 362114896.8 | RM17: =RN17-RL17 -> -27441.33 | RN17: 362087455.5 | RO17: =RP17-RN17 -> -13572607.09 | RP17: 348514848.4 | RS17: =RT17-RR17 -> 0 | RU17: =ROW() -> 17 | RV17: 403 ELEC. PORTION OF COMMON | SA17: 0 | SB17: =SA17+RZ17 -> 0 | SC17: 0 | SD17: 0 | SE17: 0 | SF17: 0 | SG17: 0 | SH17: 0 | SJ17: 0 | SL17: 0 | SM17: =ROW() -> 17 | SN17: 403 ELEC. PORTION OF COMMON | SS17: 99058.64045 | ST17: =SS17 -> 99058.64045 | SU17: 2287694.853 | SV17: =SU17+ST17 -> 2386753.493 | SW17: 1012053.252 | SX17: 3398806.745 | SY17: 1022585.544 | SZ17: 4421392.29 | TB17: 4421392.29 | TD17: 4421392.29 | TF17: =ROW() -> 17 | TG17: EV SCH 551/552 ROI AND OTHER REVENUE DEFERRAL (NOTE 1) | TI17: 42710.67 | TJ17: =-TI17 -> -42710.67 | TL17: =-TK17 -> 0 | TN17: =-TM17 -> 0 | TP17: =-TO17 -> 0 | TR17: =-TQ17 -> 0 | TU17: =ROW() -> 17 | UJ17: =ROW() -> 17 | UK17: Net Operating Income for: | UY17: =ROW() -> 17 | VN17: =ROW() -> 17
A18: =ROW() -> 18 | B18: SCH. 95 - POWER COST ONLY RATE CASE | D18: =-'CTM Exh Summary'!D9 -> 37289685.73 | E18: =-D18 -> -37289685.73 | F18: =D18+E18 -> 0 | H18: 0 | J18: 0 | L18: 0 | N18: 0 | P18: =N18+O18 -> 0 | R18: =P18+Q18 -> 0 | S18: =ROW() -> 18 | T18: REMOVE PROPERTY TAX TRACKER - SCHEDULE 140 | V18: =-'CTM Exh Summary'!$E$20 -> 52796511.96 | W18: -52796511.96 | X18: =+W18+V18 -> 0 | Z18: =+Y18+X18 -> 0 | AB18: =+AA18+Z18 -> 0 | AD18: =+AC18+AB18 -> 0 | AF18: =+AE18+AD18 -> 0 | AK18: =ROW() -> 18 | AL18: AVERAGE PRICING PER KWH | AN18: =AO18 -> 0.1042467684 | AO18: =AO20/AO16 -> 0.1042467684 | AP18: =AP20/AP16 -> 0.1042467684 | AR18: =AR20/AR16 -> 0 | AS18: =AT18-AR18 -> 0 | AT18: =AT20/AT16 -> 0 | AU18: =AV18-AT18 -> 0 | AV18: =AV20/AV16 -> 0 | AW18: =AX18-AV18 -> 0 | AX18: =AX20/AX16 -> 0 | BA18: =ROW() -> 18 | BB18: DFIT TREASURY GRANT AMORTIZATION | BD18: 0 | BE18: -864206.9562 | BF18: -864206.9562 | BG18: 0 | BH18: =SUM(BF18:BG18) -> -864206.9562 | BI18: 0 | BJ18: -864206.9562 | BK18: 0 | BL18: =SUM(BJ18:BK18) -> -864206.9562 | BM18: 0 | BN18: =SUM(BL18:BM18) -> -864206.9562 | BP18: -864206.9562 | BR18: -864206.9562 | BS18: =ROW() -> 18 | CK18: =ROW() -> 18 | DC18: =ROW() -> 18 | DD18: 2021 AND 2019 GRC EXPENSES TO BE NORMALIZED | DF18: 1719429.091 | DG18: -390429.0914 | DH18: =DF18+DG18 -> 1329000 | DJ18: =DH18+DI18 -> 1329000 | DL18: =DJ18+DK18 -> 1329000 | DN18: =DL18+DM18 -> 1329000 | DP18: =DN18+DO18 -> 1329000 | DR18: =DP18+DQ18 -> 1329000 | DT18: =DR18+DS18 -> 1329000 | DU18: =ROW() -> 18 | DV18: INCREASE(DECREASE) EXCISE TAX | DX18: =DX16+DX17 -> 106401075.9 | DY18: =DY16+DY17 -> 27398.91112 | DZ18: =DZ16+DZ17 -> 106428474.8 | EA18: =EA16+EA17 -> 0 | EB18: =EB16+EB17 -> 106428474.8 | EC18: =EC16+EC17 -> 0 | ED18: 106428474.8 | EE18: 0 | EF18: 106428474.8 | EG18: 0 | EH18: 106428474.8 | EI18: 0 | EJ18: =EJ16+EJ17 -> 0 | EK18: 0 | EL18: =EL16+EL17 -> 0 | EM18: =ROW() -> 18 | EN18: UNION EMPLOYEES | EP18: 10559692.85 | EQ18: =ER18-EP18 -> -57100.42231 | ER18: 10502592.43 | ES18: =ET18-ER18 -> 472856.4678 | ET18: 10975448.89 | EV18: =SUM(ET18:EU18) -> 10975448.89 | EX18: =SUM(EV18:EW18) -> 10975448.89 | EZ18: =SUM(EX18:EY18) -> 10975448.89 | FD18: =SUM(FB18:FC18) -> 0 | FE18: =ROW() -> 18 | FF18: INCREASE/(DECREASE) IN EXPENSE | FH18: =SUM(FH16:FH17) -> 491615.1133 | FI18: -167050.6548 | FJ18: 324564.4585 | FK18: 0 | FL18: 324564.4585 | FM18: 0 | FN18: 324564.4585 | FO18: 0 | FP18: 324564.4585 | FQ18: 0 | FR18: 324564.4585 | FS18: 0 | FT18: =SUM(FT16:FT17) -> 0 | FU18: 0 | FV18: =SUM(FV16:FV17) -> 0 | FW18: =ROW() -> 18 | FX18: OTHER POWER SUPPLY | FZ18: 1815263.309 | GA18: -669735.2052 | GB18: =SUM(FZ18:GA18) -> 1145528.104 | GC18: 145899.1828 | GD18: =SUM(GB18:GC18) -> 1291427.287 | GE18: 60700.64551 | GF18: =SUM(GD18:GE18) -> 1352127.932 | GG18: -1352127.932 | GH18: =SUM(GF18:GG18) -> 0 | GI18: 0 | GJ18: =SUM(GH18:GI18) -> 0 | GL18: =SUM(GJ18:GK18) -> 0 | GN18: =SUM(GL18:GM18) -> 0 | GO18: =ROW() -> 18 | GP18: INVESTMENT PLAN APPLICABLE TO MANAGEMENT | GR18: 14315394.31 | GS18: 996351.4443 | GT18: =SUM(GR18:GS18) -> 15311745.76 | GU18: 0 | GV18: =SUM(GT18:GU18) -> 15311745.76 | GW18: 0 | GX18: =SUM(GV18:GW18) -> 15311745.76 | GY18: 0 | GZ18: =SUM(GX18:GY18) -> 15311745.76 | HA18: 0 | HB18: =SUM(GZ18:HA18) -> 15311745.76 | HG18: =ROW() -> 18 | HH18: INCREASE (DECREASE) NOI | HJ18: =-SUM(HJ16:HJ17) -> 0 | HK18: -131317.9369 | HL18: -131317.9369 | HM18: 0 | HN18: -131317.9369 | HO18: 0 | HP18: -131317.9369 | HQ18: 0 | HR18: -131317.9369 | HS18: 0 | HT18: -131317.9369 | HU18: 0 | HV18: 0 | HW18: 0 | HX18: 0 | HY18: =ROW() -> 18 | HZ18: LIABILITY INSURANCE EXPENSE | IB18: 4943999.089 | IC18: 487971.8849 | ID18: 5431970.974 | IE18: 0 | IF18: 5431970.974 | IH18: 5431970.974 | IJ18: 5431970.974 | IL18: 5431970.974 | IN18: 5431970.974 | IP18: 5431970.974 | IQ18: =ROW() -> 18 | IR18: APPROVED SHUFFLETON GAIN (2 yr amort.) | IT18: -1794537.79 | IU18: 1803455.83 | IV18: =SUM(IT18:IU18) -> 8918.04 | IX18: =SUM(IV18:IW18) -> 8918.04 | IZ18: =SUM(IX18:IY18) -> 8918.04 | JA18: 0 | JB18: =SUM(IZ18:JA18) -> 8918.04 | JD18: =SUM(JB18:JC18) -> 8918.04 | JF18: =SUM(JD18:JE18) -> 8918.04 | JH18: =SUM(JF18:JG18) -> 8918.04 | JI18: =ROW() -> 18 | JJ18: INCREASE (DECREASE) IN EXPENSE | JL18: =+JL16 -> 140630.8529 | JM18: =+JN18-JL18 -> -23123.58504 | JN18: =+JN16 -> 117507.2679 | JO18: =+JO16 -> 0 | JP18: 117507.2679 | JQ18: 0 | JR18: 117507.2679 | JS18: 0 | JT18: 117507.2679 | JU18: 0 | JV18: 117507.2679 | JW18: 0 | JX18: 117507.2679 | JY18: 0 | JZ18: 117507.2679 | KA18: =ROW() -> 18 | KS18: =ROW() -> 18 | KT18: OTHER POWER SUPPLY | KV18: 22629695.4 | KW18: 741815.0964 | KX18: =SUM(KV18:KW18) -> 23371510.5 | KY18: 0 | KZ18: =SUM(KX18:KY18) -> 23371510.5 | LA18: 0 | LB18: =SUM(KZ18:LA18) -> 23371510.5 | LD18: 23371510.5 | LF18: 23371510.5 | LJ18: 0 | LK18: =ROW() -> 18 | LL18: DEFERRED DEBITS AND CREDITS | LN18: 456443722.3 | LO18: 7014230.626 | LP18: 463457952.9 | LQ18: 0 | LR18: 463457952.9 | LS18: 0 | LT18: 463457952.9 | LU18: 0 | LV18: 463457952.9 | LW18: 0 | LX18: 463457952.9 | LY18: 0 | MA18: 0 | MB18: 0 | MC18: =ROW() -> 18 | MD18: 404 ELEC. AMORTIZATION EXPENSE | MF18: 15918050.19 | MG18: -3514050.63 | MH18: =MF18+MG18 -> 12403999.56 | MI18: 0 | MJ18: =MH18+MI18 -> 12403999.56 | ML18: =MJ18+MK18 -> 12403999.56 | MN18: =ML18+MM18 -> 12403999.56 | MP18: =MN18+MO18 -> 12403999.56 | MU18: =ROW() -> 18 | NM18: =ROW() -> 18 | NN18: OTHER POWER SUPPLY EXPENSES | NV18: =Summary!I30 -> 95633221.26 | NW18: ='O&M'!H154 -> 1073448.213 | NX18: =NW18+NV18 -> 96706669.47 | NY18: ='O&M'!I154 -> 0 | NZ18: =NY18+NX18 -> 96706669.47 | OE18: =ROW() -> 18 | OF18: ELECTRIC AMR PLANT IN SERVICE | OH18: 28770635.39 | OJ18: 28770635.39 | OK18: =OL18-OJ18 -> -28770635.39 | OL18: 0 | OW18: =ROW() -> 18 | OX18: Electric AMI | OZ18: 210258940.8 | PA18: -135376217.5 | PB18: =SUM(OZ18:PA18) -> 74882723.32 | PC18: 135376217.5 | PD18: =SUM(PB18:PC18) -> 210258940.8 | PE18: 0 | PF18: =SUM(PD18:PE18) -> 210258940.8 | PG18: 0 | PH18: =SUM(PF18:PG18) -> 210258940.8 | PI18: 0 | PJ18: =SUM(PH18:PI18) -> 210258940.8 | PK18: 0 | PL18: =SUM(PJ18:PK18) -> 210258940.8 | PM18: 0 | PN18: =SUM(PL18:PM18) -> 210258940.8 | PS18: =ROW() -> 18 | PT18: TOTAL INCREASE (DECREASE) OPERATING EXPENSE | PV18: =PV17 -> 846674.35 | PW18: =PW17 -> 53379.85434 | PX18: =PX17 -> 900054.2043 | PY18: =PY17 -> -2720.430509 | PZ18: =PZ17 -> 897333.7738 | QA18: =QA17 -> 2723.732167 | QB18: 900057.506 | QC18: -289207.7288 | QD18: 610849.7772 | QE18: -495824.03 | QF18: 115025.7472 | QH18: =QH17 -> 115025.7472 | QJ18: =QJ17 -> 115025.7472 | QK18: =ROW() -> 18 | QL18: ADJUSTMENT TO RATE BASE: | RC18: =ROW() -> 18 | RD18: 403 ELEC. PORTION OF COMMON | RH18: 0 | RI18: =RJ18-RH18 -> 0 | RJ18: 0 | RK18: 0 | RL18: 0 | RM18: =RN18-RL18 -> 0 | RN18: 0 | RO18: 0 | RP18: 0 | RS18: =RT18-RR18 -> 0 | RU18: =ROW() -> 18 | RV18: 404 ELEC. AMORTIZATION EXPENSE | SA18: 0 | SB18: 0 | SC18: 0 | SD18: 0 | SE18: 0 | SF18: 0 | SG18: 0 | SH18: 0 | SJ18: 0 | SL18: 0 | SM18: =ROW() -> 18 | SN18: 404 ELEC. AMORTIZATION EXPENSE | SS18: 8963.83 | ST18: =SS18 -> 8963.83 | SU18: 1680364.9 | SV18: 1689328.73 | SW18: 3366168.63 | SX18: 5055497.36 | SY18: 768446.99 | SZ18: 5823944.35 | TB18: 5823944.35 | TD18: 5823944.35 | TF18: =ROW() -> 18 | TU18: =ROW() -> 18 | UJ18: =ROW() -> 18 | UK18: O&M 928 | UM18: 127874 | UN18: -127874 | UO18: =UM18+UN18 -> 0 | UQ18: =UO18+UP18 -> 0 | US18: =UQ18+UR18 -> 0 | UT18: 138000 | UU18: =US18+UT18 -> 138000 | UW18: =UU18+UV18 -> 138000 | UY18: =ROW() -> 18 | UZ18: RATEBASE (AMA) UTILITY PLANT RATEBASE | VN18: =ROW() -> 18 | VO18: INCREASE(DECREASE) IN OPERATING EXPENSE | VQ18: =SUM(VQ16:VQ16) -> 0 | VR18: 0 | VS18: 0 | VT18: 0 | VU18: 0 | VV18: 0 | VW18: 0 | VX18: 563096.6867 | VY18: 563096.6867 | VZ18: 19708.38404 | WA18: 582805.0708
A19: =ROW() -> 19 | B19: SCHEDULE 141 - EXPEDITED RATE FILING | D19: =-'CTM Exh Summary'!D21 -> 70646.04 | E19: =-D19 -> -70646.04 | F19: 0 | H19: 0 | J19: 0 | L19: 0 | N19: 0 | P19: 0 | R19: 0 | S19: =ROW() -> 19 | T19: REMOVE MUNICIPAL TAXES - SCHEDULE 81 - RETAIL CUSTOMERS | V19: =-'CTM Exh Summary'!$E$5 -> 103489694.3 | W19: -103489694.3 | X19: =+W19+V19 -> 0 | Z19: =+Y19+X19 -> 0 | AB19: =+AA19+Z19 -> 0 | AD19: =+AC19+AB19 -> 0 | AF19: =+AE19+AD19 -> 0 | AK19: =ROW() -> 19 | BA19: =ROW() -> 19 | BB19: DFIT COLSTRIP REMOVAL | BD19: 0 | BE19: 0 | BF19: 0 | BG19: -618325.6565 | BI19: -1471119.797 | BJ19: -1471119.797 | BK19: 1806.0362 | BM19: 864.5798 | BS19: =ROW() -> 19 | CK19: =ROW() -> 19 | DC19: =ROW() -> 19 | DU19: =ROW() -> 19 | EM19: =ROW() -> 19 | EN19: TOTAL INSURANCE COSTS | EP19: =SUM(EP17:EP18) -> 34556701.66 | EQ19: -97566.58911 | ER19: 34459135.07 | ES19: 1454254.775 | ET19: 35913389.85 | EU19: =SUM(EU17:EU18) -> 0 | EV19: 35913389.85 | EW19: =SUM(EW17:EW18) -> 0 | EX19: 35913389.85 | EY19: =SUM(EY17:EY18) -> 0 | EZ19: 35913389.85 | FA19: =SUM(FA17:FA18) -> 0 | FB19: =SUM(FB17:FB18) -> 0 | FC19: =SUM(FC17:FC18) -> 0 | FD19: =SUM(FD17:FD18) -> 0 | FE19: =ROW() -> 19 | FK19: ` | FM19: ` | FO19: ` | FQ19: ` | FW19: =ROW() -> 19 | FX19: TRANSMISSION | FZ19: 942821.2365 | GA19: -330553.4828 | GB19: =SUM(FZ19:GA19) -> 612267.7537 | GC19: 77980.94573 | GD19: =SUM(GB19:GC19) -> 690248.6994 | GE19: 32443.59327 | GF19: =SUM(GD19:GE19) -> 722692.2927 | GG19: 152762.0808 | GH19: =SUM(GF19:GG19) -> 875454.3735 | GI19: 504.5588855 | GJ19: =SUM(GH19:GI19) -> 875958.9324 | GL19: 875958.9324 | GN19: 875958.9324 | GO19: =ROW() -> 19 | HY19: =ROW() -> 19 | HZ19: COLSTRIP LIABILITY INSURANCE | ID19: 0 | IF19: 0 | IH19: 0 | IJ19: 0 | IL19: 0 | IN19: 0 | IP19: 0 | IQ19: =ROW() -> 19 | IR19: INCREASE (DECREASE) EXPENSE | IT19: =SUM(IT17:IT18) -> -2092969.73 | IU19: 1470046.73 | IV19: -622923 | IW19: 0 | IX19: -622923 | IY19: 0 | IZ19: -622923 | JA19: -20379.00667 | JB19: -643302.0067 | JC19: 0 | JD19: -643302.0067 | JE19: 0 | JF19: =SUM(JF17:JF18) -> -643302.0067 | JG19: 0 | JH19: =SUM(JH17:JH18) -> -643302.0067 | JI19: =ROW() -> 19 | KA19: =ROW() -> 19 | KB19: INCREASE (DECREASE) FIT | KC19: 0.21 | KD19: =-KD17*$KC$19 -> -494806.7287 | KE19: -780582.2063 | KF19: -1275388.935 | KG19: 0 | KH19: -1275388.935 | KI19: 0 | KJ19: -1275388.935 | KK19: 0 | KL19: -1275388.935 | KM19: =-KM17*$KC$19 -> 0 | KN19: -1275388.935 | KO19: 0 | KP19: 0 | KQ19: 0 | KR19: 0 | KS19: =ROW() -> 19 | KT19: TRANSMISSION | KV19: 11753566.28 | KW19: 738146.3585 | KX19: =SUM(KV19:KW19) -> 12491712.64 | KY19: 0 | KZ19: =SUM(KX19:KY19) -> 12491712.64 | LA19: 0 | LB19: =SUM(KZ19:LA19) -> 12491712.64 | LD19: =SUM(LB19:LC19) -> 12491712.64 | LF19: =SUM(LD19:LE19) -> 12491712.64 | LJ19: =SUM(LH19:LI19) -> 0 | LK19: =ROW() -> 19 | LL19: DEFERRED TAXES | LN19: -1224323797 | LO19: 30080211.23 | LP19: -1194243585 | LQ19: 0 | LR19: -1194243585 | LS19: 0 | LT19: -1194243585 | LU19: 0 | LV19: -1194243585 | LW19: 0 | LX19: -1194243585 | LY19: 0 | MA19: 0 | MB19: 0 | MC19: =ROW() -> 19 | MD19: 404 ELEC. PORTION OF COMMON | MF19: 47872207.88 | MG19: -7024539.951 | MH19: =MF19+MG19 -> 40847667.93 | MI19: 0 | MJ19: =MH19+MI19 -> 40847667.93 | ML19: =MJ19+MK19 -> 40847667.93 | MN19: =ML19+MM19 -> 40847667.93 | MP19: =MN19+MO19 -> 40847667.93 | MU19: =ROW() -> 19 | MV19: INCREASE(DECREASE) OPERATING EXPENSE | MX19: =MX17 -> 10777556.53 | MY19: =MY17 -> 287386.4751 | MZ19: =SUM(MX19:MY19) -> 11064943.01 | NA19: =NA17 -> 0 | NB19: =SUM(MZ19:NA19) -> 11064943.01 | NC19: =NC17 -> 0 | ND19: =SUM(NB19:NC19) -> 11064943.01 | NE19: =NE17 -> 0 | NF19: =SUM(ND19:NE19) -> 11064943.01 | NG19: =NG17 -> 0 | NH19: 11064943.01 | NI19: 0 | NJ19: 0 | NK19: 0 | NL19: 0 | NM19: =ROW() -> 19 | NN19: TRANSMISSION EXPENSE | NV19: =Summary!I31 -> 26131080.19 | NW19: ='O&M'!H155 -> 4788149.941 | NX19: =NW19+NV19 -> 30919230.14 | NY19: ='O&M'!I155 -> 4016071.171 | NZ19: =NY19+NX19 -> 34935301.31 | OE19: =ROW() -> 19 | OF19: ACCUMULATED DEPRECIATION FOR ELECTRIC AMR (NOTE 1) | OH19: 52057610.18 | OJ19: 52057610.18 | OK19: =OL19-OJ19 -> -52057610.18 | OL19: 0 | OS19: =OT19-OR19 -> 0 | OU19: =OV19-OT19 -> 0 | OW19: =ROW() -> 19 | OX19: Electric Portion of Common | OZ19: 40542551.01 | PA19: -26103513.99 | PB19: =SUM(OZ19:PA19) -> 14439037.02 | PC19: 26103513.99 | PD19: 40542551.01 | PE19: 0 | PF19: 40542551.01 | PG19: 0 | PH19: 40542551.01 | PI19: 0 | PJ19: 40542551.01 | PK19: 0 | PL19: 40542551.01 | PM19: 0 | PN19: 40542551.01 | PS19: =ROW() -> 19 | QK19: =ROW() -> 19 | QL19: GROSS PLANT | QP19: =QN19+QO19 -> 0 | QQ19: -16261754.54 | QR19: =QP19+QQ19 -> -16261754.54 | QS19: -97245889.01 | QT19: =QR19+QS19 -> -113507643.5 | QU19: -27191779.97 | QV19: =QT19+QU19 -> -140699423.5 | QW19: -510023142.4 | QX19: =QV19+QW19 -> -650722565.9 | RB19: =QZ19+RA19 -> 0 | RC19: =ROW() -> 19 | RD19: 404 ELEC. AMORTIZATION EXPENSE | RH19: 53251667.49 | RI19: -31809.37097 | RJ19: 53219858.12 | RK19: -4040918.752 | RL19: 49178939.37 | RM19: -6160680.098 | RN19: 43018259.27 | RO19: -8400529.461 | RP19: 34617729.81 | RS19: 0 | RU19: =ROW() -> 19 | RV19: 404 ELEC. PORTION OF COMMON | SA19: 0 | SB19: 0 | SC19: 0 | SD19: 0 | SE19: 0 | SF19: 0 | SG19: 0 | SH19: 0 | SJ19: 0 | SL19: 0 | SM19: =ROW() -> 19 | SN19: 404 ELEC. PORTION OF COMMON | SS19: 352073.6927 | ST19: =SS19 -> 352073.6927 | SU19: 4676546.045 | SV19: 5028619.738 | SW19: 2992614.509 | SX19: 8021234.247 | SY19: 6384846.304 | SZ19: 14406080.55 | TB19: 14406080.55 | TD19: 14406080.55 | TF19: =ROW() -> 19 | TG19: SUBTOTAL | TI19: =SUM(TI17:TI18) -> 42710.67 | TJ19: =SUM(TJ17:TJ18) -> -42710.67 | TL19: =SUM(TL17:TL18) -> 0 | TN19: =SUM(TN17:TN18) -> 0 | TP19: =SUM(TP17:TP18) -> 0 | TR19: =SUM(TR17:TR18) -> 0 | TU19: =ROW() -> 19 | UJ19: =ROW() -> 19 | UY19: =ROW() -> 19 | UZ19: DECARBONIZATION STUDY - ELECTRIFICATION PILOT DEFERRAL | VE19: =VF19-VD16 -> 3657784.8 | VF19: 3657784.8 | VG19: =VH19-VF19 -> 11342215.2 | VH19: 15000000 | VI19: =VJ19-VH19 -> 0 | VJ19: 15000000 | VK19: =VL19-VJ19 -> 0 | VL19: 15000000 | VN19: =ROW() -> 19
A20: =ROW() -> 20 | B20: SCH. 141CEI - (CLEAN ENERGY IMPLEMENTATION TRACKER) | F20: 0 | H20: 0 | J20: 0 | L20: 0 | N20: 0 | P20: 0 | R20: 0 | S20: =ROW() -> 20 | T20: REMOVE MUNICIPAL TAXES - SCHEDULE 81 - WHOLESALE CUSTOMERS | V20: =-'CTM Exh Summary'!$E$6 -> 0 | W20: 0 | X20: 0 | Z20: 0 | AB20: 0 | AD20: 0 | AF20: 0 | AK20: =ROW() -> 20 | AL20: TEMPERATURE NORMALIZATION ADJUSTMENT | AN20: =AN16*AN18 -> 2491065366 | AO20: ='CTM Exh Summary'!$H$48 -> -62932830 | AP20: =SUM(AN20:AO20) -> 2428132536 | AS20: 0 | AT20: =SUM(AR20:AS20) -> 0 | AU20: 0 | AV20: =SUM(AT20:AU20) -> 0 | AW20: 0 | AX20: =SUM(AV20:AW20) -> 0 | BA20: =ROW() -> 20 | BB20: DFIT EDIT REVERSALS | BD20: 0 | BE20: -20256855.52 | BF20: -20256855.52 | BG20: -2882650.856 | BH20: =SUM(BF20:BG20) -> -23139506.37 | BI20: 2771283.028 | BJ20: -20368223.34 | BK20: -421680.9916 | BL20: =SUM(BJ20:BK20) -> -20789904.34 | BM20: -473619.9783 | BN20: =SUM(BL20:BM20) -> -21263524.31 | BP20: =SUM(BN20:BO20) -> -21263524.31 | BR20: =SUM(BP20:BQ20) -> -21263524.31 | BS20: =ROW() -> 20 | BT20: WEIGHTED COST OF DEBT | BW20: =+'Def, COC, ConvF'!K13 -> 0.0263 | BX20: =+BW20 -> 0.0263 | BY20: =+BX20 -> 0.0263 | BZ20: 0.0263 | CA20: 0.0263 | CB20: 0.0263 | CC20: =+'Def, COC, ConvF'!K24 -> 0.0275 | CD20: =+CC20 -> 0.0275 | CE20: =+'Def, COC, ConvF'!K33 -> 0.0277 | CF20: =+CE20 -> 0.0277 | CK20: =ROW() -> 20 | CL20: INCREASE (DECREASE) FIT | CM20: 0.21 | CN20: =-CN17*$CM$20 -> -3713723.955 | CO20: =-CO17*$CM$20 -> 95620.30503 | CP20: =SUM(CN20:CO20) -> -3618103.65 | CR20: -3618103.65 | CT20: -3618103.65 | CV20: -3618103.65 | CX20: -3618103.65 | DB20: 0 | DC20: =ROW() -> 20 | DD20: EXPENSES OF LAST 2 COMPLETED PCORCS | DU20: =ROW() -> 20 | DV20: INCREASE(DECREASE) OPERATING EXPENSE | DX20: =DX18 -> 106401075.9 | DY20: =DY18 -> 27398.91112 | DZ20: =DX20+DY20 -> 106428474.8 | EA20: =EA18 -> 0 | EB20: =DZ20+EA20 -> 106428474.8 | EC20: =EC18 -> 0 | ED20: =SUM(EB20:EC20) -> 106428474.8 | EE20: =EE18 -> 0 | EF20: =SUM(ED20:EE20) -> 106428474.8 | EG20: =EG18 -> 0 | EH20: =SUM(EF20:EG20) -> 106428474.8 | EL20: =SUM(EJ20:EK20) -> 0 | EM20: =ROW() -> 20 | FE20: =ROW() -> 20 | FF20: INCREASE/(DECREASE) IN EXPENSE | FH20: =FH18 -> 491615.1133 | FI20: =FI18 -> -167050.6548 | FJ20: =FH20+FI20 -> 324564.4585 | FK20: =FK18 -> 0 | FL20: =FJ20+FK20 -> 324564.4585 | FM20: =FM18 -> 0 | FN20: =FL20+FM20 -> 324564.4585 | FO20: =FO18 -> 0 | FP20: =FN20+FO20 -> 324564.4585 | FQ20: =FQ18 -> 0 | FR20: =FP20+FQ20 -> 324564.4585 | FS20: =FS18 -> 0 | FU20: =FU18 -> 0 | FV20: =FT20+FU20 -> 0 | FW20: =ROW() -> 20 | FX20: DISTRIBUTION | FZ20: 2973243.096 | GA20: -1103596.461 | GB20: 1869646.635 | GC20: 238125.9048 | GD20: 2107772.54 | GE20: 99071.12473 | GF20: 2206843.665 | GG20: 466480.7328 | GH20: 2673324.398 | GI20: 1540.742293 | GJ20: 2674865.14 | GL20: 2674865.14 | GN20: 2674865.14 | GO20: =ROW() -> 20 | GP20: IBEW | HY20: =ROW() -> 20 | HZ20: INCREASE(DECREASE) EXPENSE | IB20: =SUM(IB16:IB19) -> 9870663.152 | IC20: =SUM(IC16:IC19) -> 1035921.811 | ID20: 10906584.96 | IE20: 0 | IF20: 10906584.96 | IG20: 0 | IH20: 10906584.96 | II20: 0 | IJ20: 10906584.96 | IK20: 0 | IL20: 10906584.96 | IM20: 0 | IN20: 10906584.96 | IO20: 0 | IP20: 10906584.96 | IQ20: =ROW() -> 20 | JI20: =ROW() -> 20 | JJ20: INCREASE(DECREASE) OPERATING EXPENSE (LINE 3) | JL20: =+JL18 -> 140630.8529 | JM20: -23123.58504 | JN20: 117507.2679 | JO20: 0 | JP20: 117507.2679 | JQ20: 0 | JR20: 117507.2679 | JS20: 0 | JT20: 117507.2679 | JU20: 0 | JV20: 117507.2679 | JW20: 0 | JX20: 117507.2679 | JY20: 0 | JZ20: 117507.2679 | KA20: =ROW() -> 20 | KB20: INCREASE (DECREASE) NOI | KD20: =-KD17-KD19 -> -1861415.789 | KE20: -2936475.919 | KF20: -4797891.708 | KG20: 0 | KH20: -4797891.708 | KI20: 0 | KJ20: -4797891.708 | KK20: 0 | KL20: -4797891.708 | KM20: =-KM17-KM19 -> 0 | KN20: -4797891.708 | KO20: 0 | KP20: 0 | KQ20: 0 | KR20: 0 | KS20: =ROW() -> 20 | KT20: DISTRIBUTION | KV20: 37065933.52 | KW20: 1079252.415 | KX20: 38145185.94 | KY20: 0 | KZ20: 38145185.94 | LA20: 0 | LB20: 38145185.94 | LD20: 38145185.94 | LF20: 38145185.94 | LJ20: 0 | LK20: =ROW() -> 20 | LL20: ALLOWANCE FOR WORKING CAPITAL | LN20: 240993567.3 | LO20: -18474761.51 | LP20: 222518805.8 | LQ20: 0 | LR20: 222518805.8 | LS20: 0 | LT20: 222518805.8 | LU20: 0 | LV20: 222518805.8 | LW20: 0 | LX20: 222518805.8 | LY20: 0 | MA20: 0 | MB20: 0 | MC20: =ROW() -> 20 | MD20: SUBTOTAL DEPRECIATION EXPENSE 403 | MF20: =SUM(MF16:MF19) -> 446133502.2 | MG20: 5635460.686 | MH20: 451768962.9 | MI20: 0 | MJ20: 451768962.9 | MK20: 0 | ML20: 451768962.9 | MM20: 0 | MN20: 451768962.9 | MO20: 0 | MP20: 451768962.9 | MQ20: 0 | MR20: 0 | MS20: 0 | MT20: 0 | MU20: =ROW() -> 20 | MV20: INCREASE(DECREASE) FIT @ | MW20: =FIT -> 0.21 | MX20: =-$MW$20*MX19 -> -2263286.871 | MY20: =-$MW$20*MY19 -> -60351.15977 | MZ20: =SUM(MX20:MY20) -> -2323638.031 | NA20: =-$MW$20*NA19 -> 0 | NB20: =SUM(MZ20:NA20) -> -2323638.031 | NC20: =-$MW$20*NC19 -> 0 | ND20: =SUM(NB20:NC20) -> -2323638.031 | NE20: =-$MW$20*NE19 -> 0 | NF20: =SUM(ND20:NE20) -> -2323638.031 | NG20: =-$MW$20*NG19 -> 0 | NH20: -2323638.031 | NI20: 0 | NJ20: 0 | NK20: 0 | NL20: 0 | NM20: =ROW() -> 20 | NN20: DISTRIBUTION EXPENSE | NV20: =Summary!I32 -> 104735378 | NW20: ='O&M'!H156 -> 15050610.62 | NX20: 119785988.6 | NY20: ='O&M'!I156 -> 6716303.627 | NZ20: 126502292.2 | OE20: =ROW() -> 20 | OF20: ACCUMULATED DEFERRED INCOME TAXES | OH20: -20170578.81 | OJ20: -20170578.81 | OK20: =OL20-OJ20 -> 20170578.81 | OL20: 0 | OW20: =ROW() -> 20 | OZ20: =-PA20 -> 0 | PB20: 0 | PD20: 0 | PF20: 0 | PH20: 0 | PJ20: 0 | PL20: 0 | PN20: 0 | PS20: =ROW() -> 20 | PT20: INCREASE (DECREASE) FIT @ 21% | PU20: 0.21 | PV20: =-PV18*$PU$20 -> -177801.6135 | PW20: -11209.76941 | PX20: -189011.3829 | PY20: 571.2904069 | PZ20: -188440.0925 | QA20: -571.983755 | QB20: -189012.0763 | QC20: 60733.62306 | QD20: =-QD18*$PU$20 -> -128278.4532 | QE20: 104123.0463 | QF20: -24155.4069 | QG20: 0 | QH20: -24155.4069 | QI20: 0 | QJ20: -24155.4069 | QK20: =ROW() -> 20 | QL20: ACCUM. DEPRECIATION & AMORTIZATION | QP20: =QN20+QO20 -> 0 | QQ20: 16261754.54 | QR20: =QP20+QQ20 -> 16261754.54 | QS20: 97245889.01 | QT20: =QR20+QS20 -> 113507643.5 | QU20: 27191779.97 | QV20: =QT20+QU20 -> 140699423.5 | QW20: 510023142.4 | QX20: =QV20+QW20 -> 650722565.9 | RB20: =QZ20+RA20 -> 0 | RC20: =ROW() -> 20 | RD20: 404 ELEC. PORTION OF COMMON | RH20: 0 | RI20: 0 | RJ20: 0 | RK20: 0 | RL20: 0 | RM20: 0 | RN20: 0 | RO20: 0 | RP20: 0 | RS20: 0 | RU20: =ROW() -> 20 | RV20: SUBTOTAL DEPRECIATION EXPENSE 403 | RZ20: =SUM(RZ16:RZ19) -> 0 | SA20: =SUM(SA16:SA19) -> -174784.55 | SB20: -174784.55 | SC20: =SUM(SC16:SC19) -> -1552531.01 | SD20: -1727315.56 | SE20: =SUM(SE16:SE19) -> -1738872.72 | SF20: -3466188.28 | SG20: =SUM(SG16:SG19) -> -1738872.72 | SH20: -5205061 | SI20: 0 | SJ20: -5205061 | SK20: 0 | SL20: -5205061 | SM20: =ROW() -> 20 | SN20: TOTAL DEPRECIATION AND AMORTIZATION EXPENSE | SS20: =SUM(SS16:SS19) -> 3491440.853 | ST20: 3491440.853 | SU20: 19601779.59 | SV20: 23093220.44 | SW20: 21043774.4 | SX20: 44136994.84 | SY20: 26135590.06 | SZ20: 70272584.9 | TA20: 0 | TB20: 70272584.9 | TC20: 0 | TD20: 70272584.9 | TF20: =ROW() -> 20 | TG20: DECREASE REVENUE SENSITIVE ITEMS FOR DECREASE IN REVENUES: | TU20: =ROW() -> 20 | UJ20: =ROW() -> 20 | UY20: =ROW() -> 20 | UZ20: ACCUMULATED AMORTIZATION | VE20: =VF20-VD17 -> 0 | VF20: 0 | VI20: =VJ20-VH20 -> -3750000 | VJ20: -3750000 | VK20: =VL20-VJ20 -> -7500000 | VL20: -11250000 | VN20: =ROW() -> 20 | VO20: INCREASE (DECREASE) FIT @ | VP20: 0.21 | VQ20: =-VQ18*$VA$30 -> 0 | VR20: 0 | VS20: 0 | VT20: 0 | VU20: 0 | VV20: 0 | VW20: 0 | VX20: -118250.3042 | VY20: -118250.3042 | VZ20: -4138.760647 | WA20: -122389.0649
A21: =ROW() -> 21 | P21: 0 | R21: 0 | S21: =ROW() -> 21 | T21: REMOVE LOW INCOME RIDER - SCHEDULE 129 | V21: =-'CTM Exh Summary'!$E$11 -> 49280129.74 | W21: -49280129.74 | X21: 0 | Z21: 0 | AB21: 0 | AD21: 0 | AF21: 0 | AK21: =ROW() -> 21 | BA21: =ROW() -> 21 | BB21: DFIT FLOW-THROUGH REVERSALS | BD21: 0 | BE21: 2984133.287 | BF21: 2984133.287 | BG21: -331366.2542 | BH21: =SUM(BF21:BG21) -> 2652767.032 | BI21: -929.8423714 | BJ21: 2651837.19 | BK21: -35255.58395 | BL21: =SUM(BJ21:BK21) -> 2616581.606 | BM21: -87289.0529 | BN21: =SUM(BL21:BM21) -> 2529292.553 | BP21: 2529292.553 | BR21: 2529292.553 | BS21: =ROW() -> 21 | BT21: PROFORMA INTEREST | BV21: 0 | BW21: =BX21-BV21 -> 147056732.4 | BX21: =+BX16*BX20 -> 147056732.4 | BY21: =BZ21-BX21 -> 13636173.86 | BZ21: =+BZ16*BZ20 -> 160692906.2 | CA21: =CB21-BZ21 -> 11717872.86 | CB21: =+CB16*CB20 -> 172410779.1 | CC21: =CD21-CB21 -> 15096208.2 | CD21: =+CD16*CD20 -> 187506987.3 | CE21: =CF21-CD21 -> 33242479.46 | CF21: =+CF16*CF20 -> 220749466.7 | CH21: =+CH16*CH20 -> 0 | CI21: =CJ21-CH21 -> 0 | CJ21: =+CJ16*CJ20 -> 0 | CK21: =ROW() -> 21 | CL21: INCREASE (DECREASE) NOI | CN21: =-CN17-CN20 -> -13970675.83 | CO21: 359714.4808 | CP21: -13610961.35 | CQ21: 0 | CR21: -13610961.35 | CS21: 0 | CT21: -13610961.35 | CU21: 0 | CV21: -13610961.35 | CW21: 0 | CX21: -13610961.35 | CY21: 0 | CZ21: =-CZ17-CZ20 -> 0 | DA21: 0 | DB21: =-DB17-DB20 -> 0 | DC21: =ROW() -> 21 | DD21: 2020 AND 2014 PCORC EXPENSES TO BE NORMALIZED | DF21: 0 | DG21: 168800 | DH21: =DF21+DG21 -> 168800 | DJ21: =DH21+DI21 -> 168800 | DL21: =DJ21+DK21 -> 168800 | DN21: =DL21+DM21 -> 168800 | DP21: =DN21+DO21 -> 168800 | DR21: =DP21+DQ21 -> 168800 | DT21: =DR21+DS21 -> 168800 | DU21: =ROW() -> 21 | DV21: INCREASE(DECREASE) FIT @ | DW21: 0.21 | DX21: =-$DW$21*DX20 -> -22344225.94 | DY21: -5753.771335 | DZ21: -22349979.71 | EA21: 0 | EB21: -22349979.71 | EC21: 0 | ED21: -22349979.71 | EE21: 0 | EF21: -22349979.71 | EG21: 0 | EH21: -22349979.71 | EL21: =-$DW$21*EL20 -> 0 | EM21: =ROW() -> 21 | EN21: APPLICABLE TO OPERATIONS @ | EO21: 0.4657709555 | EP21: =EP19*EO21 -> 16095507.95 | EQ21: =ER21-EP21 -> -45443.68343 | ER21: =ER19*EO21 -> 16050064.27 | ES21: =ET21-ER21 -> 677349.6363 | ET21: =ET19*EO21 -> 16727413.9 | EV21: =SUM(ET21:EU21) -> 16727413.9 | EX21: =SUM(EV21:EW21) -> 16727413.9 | EZ21: =SUM(EX21:EY21) -> 16727413.9 | FD21: =SUM(FB21:FC21) -> 0 | FE21: =ROW() -> 21 | FF21: INCREASE (DECREASE) FIT @ | FG21: 0.21 | FH21: =-FH20*$FG$21 -> -103239.1738 | FI21: =-FI20*$FG$21 -> 35080.6375 | FJ21: =FH21+FI21 -> -68158.53629 | FK21: =-FK20*$FG$21 -> 0 | FL21: =FJ21+FK21 -> -68158.53629 | FM21: =-FM20*$FG$21 -> 0 | FN21: =FL21+FM21 -> -68158.53629 | FO21: =-FO20*$FG$21 -> 0 | FP21: =FN21+FO21 -> -68158.53629 | FQ21: =-FQ20*$FG$21 -> 0 | FR21: =FP21+FQ21 -> -68158.53629 | FV21: =FT21+FU21 -> 0 | FW21: =ROW() -> 21 | FX21: CUSTOMER ACCTS | FZ21: 717727.0543 | GA21: -266154.7777 | GB21: 451572.2766 | GC21: 57514.10716 | GD21: 509086.3838 | GE21: 23928.46461 | GF21: 533014.8484 | GG21: 112668.2243 | GH21: 645683.0727 | GI21: 372.1326221 | GJ21: 646055.2053 | GL21: 646055.2053 | GN21: 646055.2053 | GO21: =ROW() -> 21 | GP21: INVESTMENT PLAN APPLICABLE TO IBEW | GR21: 4853544.472 | GS21: 72803.16707 | GT21: =SUM(GR21:GS21) -> 4926347.639 | GV21: =SUM(GT21:GU21) -> 4926347.639 | GX21: =SUM(GV21:GW21) -> 4926347.639 | GZ21: =SUM(GX21:GY21) -> 4926347.639 | HB21: =SUM(GZ21:HA21) -> 4926347.639 | HY21: =ROW() -> 21 | IQ21: =ROW() -> 21 | IR21: INCREASE (DECREASE) FIT | IS21: 0.21 | IT21: =-$IS$21*IT19 -> 439523.6433 | IU21: -308709.8133 | IV21: 130813.83 | IW21: 0 | IX21: 130813.83 | IY21: 0 | IZ21: 130813.83 | JA21: 4279.5914 | JB21: 135093.4214 | JC21: 0 | JD21: 135093.4214 | JF21: =-$IS$21*JF19 -> 135093.4214 | JH21: =-$IS$21*JH19 -> 135093.4214 | JI21: =ROW() -> 21 | KS21: =ROW() -> 21 | KT21: CUSTOMER ACCTS | KV21: 8947920.233 | KW21: 265251.9821 | KX21: 9213172.215 | KY21: 0 | KZ21: 9213172.215 | LA21: 0 | LB21: 9213172.215 | LD21: 9213172.215 | LF21: 9213172.215 | LJ21: 0 | LK21: =ROW() -> 21 | LL21: OTHER | LN21: -135953118.1 | LO21: -6040411.669 | LP21: -141993529.8 | LQ21: 0 | LR21: -141993529.8 | LS21: 0 | LT21: -141993529.8 | LU21: 0 | LV21: -141993529.8 | LW21: 0 | LX21: -141993529.8 | LY21: 0 | MA21: 0 | MB21: 0 | MC21: =ROW() -> 21 | MD21: 403.1 ELEC. ASSET RETIREMENT COST DEPRECIATION | MF21: 6277133.78 | MG21: -6277133.78 | MH21: =MF21+MG21 -> 0 | MI21: 0 | MJ21: =MH21+MI21 -> 0 | ML21: =MJ21+MK21 -> 0 | MN21: =ML21+MM21 -> 0 | MP21: =MN21+MO21 -> 0 | MR21: =MP21+MQ21 -> 0 | MT21: =MR21+MS21 -> 0 | MU21: =ROW() -> 21 | MV21: INCREASE(DECREASE) NOI | MX21: =-MX19-MX20 -> -8514269.659 | MY21: =-MY19-MY20 -> -227035.3153 | MZ21: =SUM(MX21:MY21) -> -8741304.974 | NA21: =-NA19-NA20 -> 0 | NB21: =SUM(MZ21:NA21) -> -8741304.974 | NC21: =-NC19-NC20 -> 0 | ND21: =SUM(NB21:NC21) -> -8741304.974 | NE21: =-NE19-NE20 -> 0 | NF21: =SUM(ND21:NE21) -> -8741304.974 | NG21: =-NG19-NG20 -> 0 | NH21: -8741304.974 | NI21: 0 | NJ21: 0 | NK21: 0 | NL21: 0 | NM21: =ROW() -> 21 | NN21: CUSTOMER ACCTS EXPENSES | NV21: =Summary!I33 -> 52818585.45 | NW21: ='O&M'!H157 -> -10694852.31 | NX21: 42123733.14 | NY21: ='O&M'!I157 -> -629248.4407 | NZ21: 41494484.69 | OE21: =ROW() -> 21 | OF21: NET ELECTRIC AMR PLANT | OH21: =SUM(OH18:OH20) -> 60657666.76 | OI21: =SUM(OI18:OI20) -> 0 | OJ21: =SUM(OJ18:OJ20) -> 60657666.76 | OK21: =SUM(OK18:OK20) -> -60657666.76 | OL21: =SUM(OL18:OL20) -> 0 | OS21: =SUM(OS18:OS20) -> 0 | OT21: =SUM(OT18:OT20) -> 0 | OU21: =SUM(OU18:OU20) -> 0 | OV21: =SUM(OV18:OV20) -> 0 | OW21: =ROW() -> 21 | OX21: Total Electric AMI Plant | OZ21: =SUM(OZ18:OZ20) -> 250801491.8 | PA21: -161479731.4 | PB21: 89321760.35 | PC21: 161479731.4 | PD21: 250801491.8 | PE21: 0 | PF21: 250801491.8 | PG21: =SUM(PG18:PG20) -> 0 | PH21: 250801491.8 | PI21: =SUM(PI18:PI20) -> 0 | PJ21: 250801491.8 | PK21: 0 | PL21: =SUM(PL18:PL20) -> 250801491.8 | PM21: 0 | PN21: 250801491.8 | PS21: =ROW() -> 21 | PT21: INCREASE (DECREASE) NOI | PV21: =-PV18-PV20 -> -668872.7365 | PW21: -42170.08493 | PX21: -711042.8214 | PY21: 2149.140102 | PZ21: -708893.6813 | QA21: -2151.748412 | QB21: -711045.4297 | QC21: 228474.1058 | QD21: =-QD18-QD20 -> -482571.324 | QE21: 391700.9837 | QF21: -90870.34026 | QG21: 0 | QH21: -90870.34026 | QI21: 0 | QJ21: -90870.34026 | QK21: =ROW() -> 21 | QL21: TOTAL ADJUSTMENT TO RATEBASE | QN21: =QN19+QN20 -> 0 | QO21: =QO19+QO20 -> 0 | QP21: 0 | QQ21: 0 | QR21: 0 | QS21: 0 | QT21: 0 | QU21: 0 | QV21: 0 | QW21: 0 | QX21: 0 | QZ21: =QZ19+QZ20 -> 0 | RA21: 0 | RB21: =RB19+RB20 -> 0 | RC21: =ROW() -> 21 | RD21: SUBTOTAL DEPRECIATION EXPENSE 403 | RH21: =SUM(RH17:RH20) -> 414214933.7 | RI21: 1121435.129 | RJ21: 415336368.8 | RK21: -4042532.662 | RL21: 411293836.2 | RM21: -6188121.428 | RN21: 405105714.8 | RO21: =SUM(RO17:RO20) -> -21973136.55 | RP21: 383132578.2 | RQ21: =SUM(RQ17:RQ20) -> 0 | RR21: =SUM(RR17:RR20) -> 0 | RS21: =SUM(RS17:RS20) -> 0 | RT21: =SUM(RT17:RT20) -> 0 | RU21: =ROW() -> 21 | RV21: 403.1 ELEC. ASSET RETIREMENT COST DEPRECIATION | SA21: 0 | SB21: =SA21+RZ21 -> 0 | SC21: 0 | SD21: 0 | SE21: 0 | SF21: 0 | SG21: 0 | SH21: 0 | SJ21: 0 | SL21: 0 | SM21: =ROW() -> 21 | TF21: =ROW() -> 21 | TG21: BAD DEBTS | TH21: =+'Def, COC, ConvF'!$P$12 -> 0.006488 | TI21: =+$TI$19*TH21 -> 277.106827 | TJ21: =-TI21 -> -277.106827 | TU21: =ROW() -> 21 | TV21: AMORTIZATION OF REGULATORY ASSET/LIABILITY | UJ21: =ROW() -> 21 | UK21: Increase (Decrease) Expense | UM21: =SUM(UM18:UM20) -> 127874 | UN21: -127874 | UO21: 0 | UP21: 0 | UQ21: 0 | UR21: 0 | US21: 0 | UT21: 138000 | UU21: 138000 | UV21: 0 | UW21: 138000 | UY21: =ROW() -> 21 | UZ21: ACCUMULATED DEFERRED INCOME TAXES | VE21: =VF21-VD18 -> -768134.808 | VF21: -768134.808 | VG21: =VH21-VF21 -> -2381865.192 | VH21: -3150000 | VI21: =VJ21-VH21 -> 787500 | VJ21: -2362500 | VK21: =VL21-VJ21 -> 1575000 | VL21: -787500 | VN21: =ROW() -> 21 | VO21: INCREASE (DECREASE) NOI | VQ21: =-VQ18-VQ20 -> 0 | VR21: =-VR18-VR20 -> 0 | VS21: 0 | VT21: 0 | VU21: 0 | VV21: 0 | VW21: 0 | VX21: -444846.3825 | VY21: -444846.3825 | VZ21: -15569.62339 | WA21: -460416.0059
A22: =ROW() -> 22 | P22: 0 | R22: 0 | S22: =ROW() -> 22 | T22: REMOVE RESIDENTIAL EXCHANGE - SCH 194 | V22: =-'CTM Exh Summary'!$E$32 -> -81560520.6 | W22: 81560520.6 | X22: 0 | Z22: 0 | AB22: 0 | AD22: 0 | AF22: 0 | AK22: =ROW() -> 22 | AL22: UNCOLLECTIBLES @ | AM22: ='Def, COC, ConvF'!P12 -> 0.006488 | AN22: =AN$20*$AM22 -> 16162032.09 | AO22: =AO$20*$AM22 -> -408308.201 | AP22: =SUM(AN22:AO22) -> 15753723.89 | AQ22: =AQ$20*$AM22 -> 0 | AR22: =SUM(AP23:AQ23) -> 9712530.144 | AS22: 0 | AT22: =SUM(AR22:AS22) -> 9712530.144 | AU22: 0 | AV22: =SUM(AT22:AU22) -> 9712530.144 | AW22: 0 | AX22: =SUM(AV22:AW22) -> 9712530.144 | BA22: =ROW() -> 22 | BB22: INCREASE (DECREASE) FIT | BD22: =SUM(BD16:BD21) -> 66839376.64 | BE22: -2711360.772 | BF22: 64128015.87 | BG22: -3832342.767 | BH22: 60913998.76 | BI22: 1299233.389 | BJ22: 62213232.15 | BK22: -455130.5394 | BL22: 63227415.37 | BM22: -560044.4514 | BN22: 62666506.34 | BO22: =SUM(BO16:BO21) -> 0 | BP22: 62666506.34 | BQ22: 0 | BR22: 62666506.34 | BS22: =ROW() -> 22 | DC22: =ROW() -> 22 | DD22: CCA Power Cost | DF22: 4989.6 | DG22: -4989.6 | DH22: =DF22+DG22 -> 0 | DJ22: =DH22+DI22 -> 0 | DL22: =DJ22+DK22 -> 0 | DN22: =DL22+DM22 -> 0 | DP22: =DN22+DO22 -> 0 | DR22: 0 | DT22: 0 | DU22: =ROW() -> 22 | DV22: INCREASE(DECREASE) NOI | DX22: =-DX20-DX21 -> -84056849.97 | DY22: =-DY20-DY21 -> -21645.13978 | DZ22: =-DZ20-DZ21 -> -84078495.11 | EA22: =-EA20-EA21 -> 0 | EB22: =-EB20-EB21 -> -84078495.11 | EC22: =-EC20-EC21 -> 0 | ED22: -84078495.11 | EE22: 0 | EF22: -84078495.11 | EG22: 0 | EH22: -84078495.11 | EI22: 0 | EJ22: =-EJ20-EJ21 -> 0 | EK22: 0 | EL22: =-EL20-EL21 -> 0 | EM22: =ROW() -> 22 | EN22: CHARGED TO EXPENSE | EP22: 16408019.59 | EQ22: =ER22-EP22 -> 0 | ER22: 16408019.59 | ES22: =ET22-ER22 -> 0 | ET22: 16408019.59 | EV22: =SUM(ET22:EU22) -> 16408019.59 | EX22: =SUM(EV22:EW22) -> 16408019.59 | EZ22: =SUM(EX22:EY22) -> 16408019.59 | FD22: =SUM(FB22:FC22) -> 0 | FE22: =ROW() -> 22 | FW22: =ROW() -> 22 | FX22: CUSTOMER SERVICE | FZ22: 185947.3679 | GA22: -64455.82615 | GB22: 121491.5417 | GC22: 15473.66371 | GD22: 136965.2054 | GE22: 6437.742542 | GF22: 143402.948 | GG22: 30312.39291 | GH22: 173715.3409 | GI22: 100.1190027 | GJ22: 173815.4599 | GL22: 173815.4599 | GN22: 173815.4599 | GO22: =ROW() -> 22 | HY22: =ROW() -> 22 | HZ22: INCREASE (DECREASE) FIT @ | IA22: 0.21 | IB22: =-IB20*$IA$22 -> -2072839.262 | IC22: -217543.5804 | ID22: -2290382.842 | IE22: 0 | IF22: -2290382.842 | IG22: 0 | IH22: -2290382.842 | II22: 0 | IJ22: -2290382.842 | IK22: 0 | IL22: -2290382.842 | IM22: =-IM20*$IA$22 -> 0 | IN22: =-IN20*$IA$22 -> -2290382.842 | IO22: =-IO20*$IA$22 -> 0 | IP22: =-IP20*$IA$22 -> -2290382.842 | IQ22: =ROW() -> 22 | IR22: INCREASE (DECREASE) NOI | IT22: =-IT19-IT21 -> 1653446.087 | IU22: -1161336.917 | IV22: 492109.17 | IW22: 0 | IX22: 492109.17 | IY22: 0 | IZ22: 492109.17 | JA22: 16099.41527 | JB22: 508208.5853 | JC22: 0 | JD22: 508208.5853 | JE22: 0 | JF22: =-JF19-JF21 -> 508208.5853 | JG22: 0 | JH22: =-JH19-JH21 -> 508208.5853 | JI22: =ROW() -> 22 | JJ22: INCREASE (DECREASE) FIT @ | JK22: =FIT -> 0.21 | JL22: =-JL20*$JK$22 -> -29532.47911 | JM22: 4855.952859 | JN22: -24676.52625 | JO22: 0 | JP22: -24676.52625 | JQ22: 0 | JR22: -24676.52625 | JS22: 0 | JT22: -24676.52625 | JU22: 0 | JV22: -24676.52625 | JW22: 0 | JX22: -24676.52625 | JY22: 0 | JZ22: -24676.52625 | KS22: =ROW() -> 22 | KT22: CUSTOMER SERVICE | KV22: 2317505.462 | KW22: 161267.0162 | KX22: 2478772.479 | KY22: 0 | KZ22: 2478772.479 | LA22: 0 | LB22: 2478772.479 | LD22: 2478772.479 | LF22: 2478772.479 | LJ22: 0 | LK22: =ROW() -> 22 | LL22: TOTAL RATE BASE | LN22: =SUM(LN16:LN21) -> 5583764450 | LO22: 23410353.12 | LP22: 5607174803 | LQ22: 0 | LR22: 5607174803 | LS22: 0 | LT22: 5607174803 | LU22: 0 | LV22: 5607174803 | LW22: 0 | LX22: 5607174803 | LY22: 0 | LZ22: =SUM(LZ16:LZ21) -> 0 | MA22: 0 | MB22: =SUM(MB16:MB21) -> 0 | MC22: =ROW() -> 22 | MD22: 403.1 ELEC. PORTION OF COMMON | MF22: 104840.5327 | MG22: -104840.5327 | MH22: =MF22+MG22 -> 0 | MI22: 0 | MJ22: =MH22+MI22 -> 0 | ML22: =MJ22+MK22 -> 0 | MN22: =ML22+MM22 -> 0 | MP22: =MN22+MO22 -> 0 | MR22: =MP22+MQ22 -> 0 | MT22: =MR22+MS22 -> 0 | NM22: =ROW() -> 22 | NN22: CUSTOMER SERVICE EXPENSES | NV22: =Summary!I34 -> 4292946.864 | NW22: ='O&M'!H158 -> -637976.0809 | NX22: 3654970.783 | NY22: ='O&M'!I158 -> 115434.576 | NZ22: 3770405.359 | OE22: =ROW() -> 22 | OW22: =ROW() -> 22 | RC22: =ROW() -> 22 | RD22: 403.1 ELEC. ASSET RETIREMENT COST DEPRECIATION | RI22: =RJ22-RH22 -> 0 | RK22: 0 | RM22: =RN22-RL22 -> 0 | RO22: 0 | RQ22: =RR22-RP22 -> 0 | RS22: 0 | RU22: =ROW() -> 22 | RV22: 403.1 ELEC. PORTION OF COMMON | SA22: 0 | SB22: 0 | SC22: 0 | SD22: 0 | SE22: 0 | SF22: 0 | SG22: 0 | SH22: 0 | SJ22: 0 | SL22: 0 | SM22: =ROW() -> 22 | SN22: INCREASE (DECREASE) EXPENSE | SS22: =SS20 -> 3491440.853 | ST22: 3491440.853 | SU22: 19601779.59 | SV22: 23093220.44 | SW22: 21043774.4 | SX22: 44136994.84 | SY22: 26135590.06 | SZ22: =SZ20 -> 70272584.9 | TA22: =TA20 -> 0 | TB22: =TB20 -> 70272584.9 | TC22: =TC20 -> 0 | TD22: =TD20 -> 70272584.9 | TF22: =ROW() -> 22 | TG22: ANNUAL FILING FEE | TH22: =+'Def, COC, ConvF'!$P$13 -> 0.004 | TI22: =+$TI$19*TH22 -> 170.84268 | TJ22: =-TI22 -> -170.84268 | TU22: =ROW() -> 22 | TV22: TOTAL AMORTIZATION OF REG ASSETS/LIABS | TX22: 0 | TY22: 0 | TZ22: =TX22+TY22 -> 0 | UE22: 7790728.008 | UF22: =UD22+UE22 -> 7790728.008 | UG22: 0 | UH22: =UF22+UG22 -> 7790728.008 | UJ22: =ROW() -> 22 | UY22: =ROW() -> 22
A23: =ROW() -> 23 | B23: SCHEDULE 141N - RATES NOT SUBJECT TO REFUND - REMOVE 6 MOS IN TY | D23: =-'CTM Exh Summary'!D26 -> 91673151.81 | E23: =-D23 -> -91673151.81 | F23: 0 | H23: 0 | J23: 0 | L23: 0 | N23: 0 | P23: 0 | R23: 0 | S23: =ROW() -> 23 | T23: SCHEDULE 132 MERGER RATE CREDIT | V23: =-'CTM Exh Summary'!$E$13 -> -367.18 | W23: 367.18 | AK23: =ROW() -> 23 | AL23: ANNUAL FILING FEE @ | AM23: ='Def, COC, ConvF'!P13 -> 0.004 | AN23: =AN$20*$AM23 -> 9964261.464 | AO23: =$AO$20*$AM23 -> -251731.32 | AP23: =SUM(AN23:AO23) -> 9712530.144 | AQ23: =AQ$20*$AM23 -> 0 | AR23: =SUM(AP24:AQ24) -> 93441824.38 | AS23: 0 | AT23: =SUM(AR23:AS23) -> 93441824.38 | AU23: 0 | AV23: =SUM(AT23:AU23) -> 93441824.38 | AW23: 0 | AX23: =SUM(AV23:AW23) -> 93441824.38 | BA23: =ROW() -> 23 | BS23: =ROW() -> 23 | BT23: INCREASE (DECREASE) FIT @ | BU23: 0.21 | BV23: =-BV21*$BU$23 -> 0 | BW23: =-BW21*$BU$23 -> -30881913.79 | BX23: =SUM(BV23:BW23) -> -30881913.79 | BY23: =-BY21*$BU$23 -> -2863596.511 | BZ23: =SUM(BX23:BY23) -> -33745510.3 | CA23: =-CA21*$BU$23 -> -2460753.3 | CB23: =SUM(BZ23:CA23) -> -36206263.6 | CC23: =-CC21*$BU$23 -> -3170203.721 | CD23: =SUM(CB23:CC23) -> -39376467.33 | CE23: =-CE21*$BU$23 -> -6980920.686 | CF23: =SUM(CD23:CE23) -> -46357388.01 | CG23: =-CG21*$BU$23 -> 0 | CI23: =-CI21*$BU$23 -> 0 | CJ23: =SUM(CH23:CI23) -> 0 | DC23: =ROW() -> 23 | DD23: TOTAL INCREASE (DECREASE) EXPENSE | DF23: =SUM(DF18:DF22) -> 1724418.691 | DG23: =SUM(DG18:DG22) -> -226618.6914 | DH23: =SUM(DH18:DH22) -> 1497800 | DI23: =SUM(DI18:DI21) -> 0 | DJ23: =SUM(DJ18:DJ22) -> 1497800 | DL23: =SUM(DL18:DL22) -> 1497800 | DN23: =SUM(DN18:DN22) -> 1497800 | DP23: =SUM(DP18:DP22) -> 1497800 | DR23: =SUM(DR18:DR22) -> 1497800 | DT23: =SUM(DT18:DT22) -> 1497800 | EM23: =ROW() -> 23 | EN23: INCREASE (DECREASE ) EXPENSE | EP23: =EP21-EP22 -> -312511.638 | EQ23: =EQ21-EQ22 -> -45443.68343 | ER23: -357955.3214 | ES23: 677349.6363 | ET23: 319394.3149 | EU23: 0 | EV23: 319394.3149 | EW23: 0 | EX23: 319394.3149 | EY23: 0 | EZ23: 319394.3149 | FA23: 0 | FB23: =FB21-FB22 -> 0 | FC23: 0 | FD23: =FD21-FD22 -> 0 | FE23: =ROW() -> 23 | FF23: INCREASE (DECREASE) NOI | FH23: =-FH20-FH21 -> -388375.9395 | FI23: 131970.0173 | FJ23: -256405.9223 | FK23: 0 | FL23: -256405.9223 | FM23: 0 | FN23: -256405.9223 | FO23: 0 | FP23: -256405.9223 | FQ23: 0 | FR23: -256405.9223 | FS23: 0 | FT23: =-FT20-FT21 -> 0 | FU23: 0 | FV23: =-FV20-FV21 -> 0 | FW23: =ROW() -> 23 | FX23: SALES | FZ23: 64570.96813 | GA23: -22383.04205 | GB23: 42187.92608 | GC23: 5372.336674 | GD23: 47560.26276 | GE23: 2236.134549 | GF23: 49796.3973 | GG23: 10525.92002 | GH23: 60322.31732 | GI23: 34.76613073 | GJ23: 60357.08345 | GL23: 60357.08345 | GN23: 60357.08345 | GO23: =ROW() -> 23 | GP23: UA | HY23: =ROW() -> 23 | HZ23: INCREASE (DECREASE) NOI | IB23: =-IB20-IB22 -> -7797823.89 | IC23: -818378.2309 | ID23: -8616202.121 | IE23: 0 | IF23: -8616202.121 | IG23: 0 | IH23: -8616202.121 | II23: 0 | IJ23: -8616202.121 | IK23: 0 | IL23: -8616202.121 | IM23: =-IM20-IM22 -> 0 | IN23: =-IN20-IN22 -> -8616202.121 | IO23: =-IO20-IO22 -> 0 | IP23: =-IP20-IP22 -> -8616202.121 | JI23: =ROW() -> 23 | JJ23: INCREASE (DECREASE) NOI | JL23: =-SUM(JL20:JL22) -> -111098.3738 | JM23: =-SUM(JM20:JM22) -> 18267.63218 | JN23: =-SUM(JN20:JN22) -> -92830.74161 | JO23: 0 | JP23: -92830.74161 | JQ23: 0 | JR23: -92830.74161 | JS23: 0 | JT23: -92830.74161 | JU23: 0 | JV23: -92830.74161 | JW23: 0 | JX23: -92830.74161 | JY23: 0 | JZ23: -92830.74161 | KS23: =ROW() -> 23 | KT23: SALES | KV23: 804630.0756 | KW23: 55997.34578 | KX23: 860627.4214 | KY23: 0 | KZ23: 860627.4214 | LA23: 0 | LB23: 860627.4214 | LD23: 860627.4214 | LF23: 860627.4214 | LJ23: 0 | LM23: check | LN23: =LN22-Summary!C58 -> 0 | MC23: =ROW() -> 23 | MD23: 411.10 ELEC. ASSET RETIREMENT OBLIGATION ACCRETION | MF23: 3222646.11 | MG23: -3222646.11 | MH23: =MF23+MG23 -> 0 | MI23: 0 | MJ23: =MH23+MI23 -> 0 | ML23: =MJ23+MK23 -> 0 | MN23: =ML23+MM23 -> 0 | MP23: =MN23+MO23 -> 0 | MR23: =MP23+MQ23 -> 0 | MT23: =MR23+MS23 -> 0 | NM23: =ROW() -> 23 | NN23: CONSERVATION AMORTIZATION | NV23: =Summary!I35 -> 0 | NW23: ='O&M'!H159 -> 0 | NX23: 0 | NY23: ='O&M'!I159 -> 0 | NZ23: 0 | OE23: =ROW() -> 23 | OW23: =ROW() -> 23 | OX23: Accumulated Depreciation: | RC23: =ROW() -> 23 | RD23: 403.1 ELEC. PORTION OF COMMON | RI23: 0 | RK23: 0 | RM23: 0 | RO23: 0 | RQ23: 0 | RS23: 0 | RU23: =ROW() -> 23 | RV23: 411.10 ELEC. ASSET RETIREMENT OBLIGATION ACCRETION | SA23: 0 | SB23: 0 | SC23: 0 | SD23: 0 | SE23: 0 | SF23: 0 | SG23: 0 | SH23: 0 | SJ23: 0 | SL23: 0 | SM23: =ROW() -> 23 | TF23: =ROW() -> 23 | TG23: STATE UTILITY TAX | TH23: =+'Def, COC, ConvF'!$P$14 -> 0.038483 | TI23: =+$TI$19*TH23 -> 1643.634714 | TJ23: =-TI23 -> -1643.634714 | TU23: =ROW() -> 23 | TV23: REMOVE TEST YEAR DEFERRAL | TX23: -5438339.73 | TY23: =-TX23 -> 5438339.73 | UJ23: =ROW() -> 23 | UK23: Increase (Decrease) FIT 409.1 | UL23: 0.21 | UM23: =-UM21*$UL23 -> -26853.54 | UN23: =-UN21*$UL23 -> 26853.54 | UO23: =-UO21*$UL23 -> 0 | UP23: 0 | UQ23: 0 | UR23: 0 | US23: 0 | UT23: -28980 | UU23: -28980 | UV23: 0 | UW23: -28980 | UY23: =ROW() -> 23 | UZ23: NET RATE BASE | VD23: =SUM(VD16:VD21) -> 0 | VE23: =SUM(VE19:VE21) -> 2889649.992 | VF23: =SUM(VF19:VF21) -> 2889649.992 | VG23: 8960350.008 | VH23: 11850000 | VI23: -2962500 | VJ23: 8887500 | VK23: -5925000 | VL23: 2962500
A24: =ROW() -> 24 | B24: SCHEDULE 141R - RATES SUBJECT TO REFUND - REMOVE 6 MOS IN TY | D24: =-'CTM Exh Summary'!D27 -> 45959764.01 | E24: -45959764.01 | F24: 0 | H24: 0 | J24: 0 | L24: 0 | N24: 0 | P24: 0 | R24: 0 | S24: =ROW() -> 24 | T24: REMOVE REC PROCEEDS - SCH 137 | V24: =-'CTM Exh Summary'!$E$16 -> -221021.54 | W24: 221021.54 | X24: 0 | Z24: 0 | AB24: 0 | AD24: 0 | AF24: 0 | AK24: =ROW() -> 24 | AL24: STATE UTILITY TAX @ | AM24: ='Def, COC, ConvF'!P14 -> 0.038483 | AN24: =AN$20*$AM24 -> 95863668.48 | AO24: =$AO$20*$AM24 -> -2421844.097 | AP24: =SUM(AN24:AO24) -> 93441824.38 | AQ24: =AQ$20*$AM24 -> 0 | AR24: =SUM(AP25:AQ25) -> 118908078.4 | AS24: 0 | AT24: =SUM(AR24:AS24) -> 118908078.4 | AU24: 0 | AV24: =SUM(AT24:AU24) -> 118908078.4 | AW24: 0 | AX24: =SUM(AV24:AW24) -> 118908078.4 | BA24: =ROW() -> 24 | BB24: INCREASE(DECREASE) NOI | BD24: =-BD22 -> -66839376.64 | BE24: 2711360.772 | BF24: -64128015.87 | BG24: 3832342.767 | BH24: -60913998.76 | BI24: -1299233.389 | BJ24: -62213232.15 | BK24: 455130.5394 | BL24: -63227415.37 | BM24: 560044.4514 | BN24: -62666506.34 | BO24: =-BO22 -> 0 | BP24: -62666506.34 | BQ24: 0 | BR24: -62666506.34 | BS24: =ROW() -> 24 | BT24: INCREASE (DECREASE) NOI | BV24: =-BV23 -> 0 | BW24: =-BW23 -> 30881913.79 | BX24: =-BX23 -> 30881913.79 | BY24: =-BY23 -> 2863596.511 | BZ24: =-BZ23 -> 33745510.3 | CA24: =-CA23 -> 2460753.3 | CB24: 36206263.6 | CC24: 3170203.721 | CD24: 39376467.33 | CE24: 6980920.686 | CF24: 46357388.01 | CG24: 0 | CH24: 0 | CI24: 0 | CJ24: 0 | DC24: =ROW() -> 24 | EM24: =ROW() -> 24 | FW24: =ROW() -> 24 | FX24: ADMIN. & GENERAL | FZ24: 3286639.365 | GA24: -1063771.405 | GB24: 2222867.96 | GC24: 283113.6292 | GD24: 2505981.589 | GE24: 117788.0487 | GF24: 2623769.638 | GG24: 554610.1896 | GH24: 3178379.827 | GI24: 1831.825658 | GJ24: 3180211.653 | GL24: 3180211.653 | GN24: 3180211.653 | GO24: =ROW() -> 24 | GP24: INVESTMENT PLAN APPLICABLE TO UA | GR24: 1179089.943 | GS24: 10317.037 | GT24: =SUM(GR24:GS24) -> 1189406.98 | GV24: =SUM(GT24:GU24) -> 1189406.98 | GX24: =SUM(GV24:GW24) -> 1189406.98 | GZ24: =SUM(GX24:GY24) -> 1189406.98 | HB24: =SUM(GZ24:HA24) -> 1189406.98 | HY24: =ROW() -> 24 | KS24: =ROW() -> 24 | KT24: ADMIN. & GENERAL | KV24: 40972341.54 | KW24: 4379415.048 | KX24: 45351756.58 | KY24: 0 | KZ24: 45351756.58 | LA24: 0 | LB24: 45351756.58 | LD24: 45351756.58 | LF24: 45351756.58 | LJ24: 0 | MC24: =ROW() -> 24 | MD24: 411.10 ELEC. PORTION OF COMMON ASSET RETIRE OBLIG ACCRETION | MF24: 19263.1131 | MG24: -19263.1131 | MH24: =MF24+MG24 -> 0 | MI24: 0 | MJ24: =MH24+MI24 -> 0 | ML24: =MJ24+MK24 -> 0 | MN24: =ML24+MM24 -> 0 | MP24: =MN24+MO24 -> 0 | MR24: =MP24+MQ24 -> 0 | MT24: =MR24+MS24 -> 0 | NM24: =ROW() -> 24 | NN24: ADMIN & GENERAL EXPENSE | NV24: =Summary!I36 -> 172123374.9 | NW24: ='O&M'!H160 -> 4850265.984 | NX24: 176973640.9 | NY24: ='O&M'!I160 -> 9026048.63 | NZ24: 185999689.5 | OE24: =ROW() -> 24 | OF24: NET RATEBASE | OH24: =OH21 -> 60657666.76 | OI24: =OI21 -> 0 | OJ24: =OJ21 -> 60657666.76 | OK24: =OK21 -> -60657666.76 | OL24: =OL21 -> 0 | OS24: =OT24-#REF! ->  | OU24: =OV24-OT24 -> 0 | OW24: =ROW() -> 24 | OX24: Electric AMI | OZ24: -31210201.31 | PA24: 20094836.32 | PB24: =SUM(OZ24:PA24) -> -11115364.99 | PC24: -20094836.32 | PD24: =SUM(PB24:PC24) -> -31210201.31 | PE24: 0 | PF24: =SUM(PD24:PE24) -> -31210201.31 | PG24: 0 | PH24: =SUM(PF24:PG24) -> -31210201.31 | PI24: 0 | PJ24: =SUM(PH24:PI24) -> -31210201.31 | PK24: 0 | PL24: =SUM(PJ24:PK24) -> -31210201.31 | PM24: 0 | PN24: =SUM(PL24:PM24) -> -31210201.31 | RC24: =ROW() -> 24 | RD24: 411.10 ELEC. ASSET RETIREMENT OBLIGATION ACCRETION | RI24: 0 | RK24: 0 | RM24: 0 | RO24: 0 | RQ24: 0 | RS24: 0 | RU24: =ROW() -> 24 | RV24: TOTAL DEPRECIATION AND ACCRETION | RZ24: =SUM(RZ20:RZ23) -> 0 | SA24: =SUM(SA20:SA23) -> -174784.55 | SB24: -174784.55 | SC24: -1552531.01 | SD24: -1727315.56 | SE24: -1738872.72 | SF24: -3466188.28 | SG24: -1738872.72 | SH24: -5205061 | SI24: =SUM(SI20:SI23) -> 0 | SJ24: =SUM(SJ20:SJ23) -> -5205061 | SK24: =SUM(SK20:SK23) -> 0 | SL24: =SUM(SL20:SL23) -> -5205061 | SM24: =ROW() -> 24 | SN24: INCREASE (DECREASE) FIT | SO24: 0.21 | SS24: =SS22*-$SO$24 -> -733202.5792 | ST24: =ST22*-$SO$24 -> -733202.5792 | SU24: -4116373.713 | SV24: -4849576.293 | SW24: -4419192.624 | SX24: -9268768.917 | SY24: -5488473.912 | SZ24: =SZ22*-$SO$24 -> -14757242.83 | TA24: =TA22*-$SO$24 -> 0 | TB24: =TB22*-$SO$24 -> -14757242.83 | TC24: =TC22*-$SO$24 -> 0 | TD24: =TD22*-$SO$24 -> -14757242.83 | TF24: =ROW() -> 24 | TG24: TOTAL | TI24: =SUM(TI21:TI23) -> 2091.584221 | TJ24: =SUM(TJ21:TJ23) -> -2091.584221 | TU24: =ROW() -> 24 | TV24: TOTAL REGULATORY AMORT | TX24: =SUM(TX22:TX23) -> -5438339.73 | TY24: =SUM(TY22:TY23) -> 5438339.73 | TZ24: 0 | UA24: 0 | UB24: 0 | UC24: 0 | UD24: 0 | UE24: 7790728.008 | UF24: 7790728.008 | UG24: 0 | UH24: 7790728.008 | UJ24: =ROW() -> 24 | UY24: =ROW() -> 24
A25: =ROW() -> 25 | B25: SCHEDULE 141X - PROTECTED PLUS EXCESS DEFERRED INCOME TAX REVERSAL | D25: =-'CTM Exh Summary'!D28 -> 8180430.29 | E25: -8180430.29 | F25: 0 | H25: 0 | J25: 0 | L25: 0 | N25: 0 | P25: 0 | R25: 0 | S25: =ROW() -> 25 | T25: REMOVE AMORTIZATION ASSOCIATED WITH SCH 137 REC PROCEEDS | U25: =-(V25-V48)/V24 -> 0.9511149909 | V25: 198942.23 | W25: =-V25 -> -198942.23 | X25: 0 | Z25: 0 | AB25: 0 | AD25: 0 | AF25: 0 | AK25: =ROW() -> 25 | AL25: INCREASE (DECREASE) EXPENSE | AN25: =SUM(AN22:AN24) -> 121989962 | AO25: =SUM(AO22:AO24) -> -3081883.618 | AP25: =SUM(AP22:AP24) -> 118908078.4 | AQ25: =SUM(AQ22:AQ24) -> 0 | AR25: 222062432.9 | AS25: 0 | AT25: 222062432.9 | AU25: 0 | AV25: 222062432.9 | AW25: 0 | AX25: 222062432.9 | BA25: =ROW() -> 25 | DC25: =ROW() -> 25 | DD25: INCREASE(DECREASE) FIT @ 21% | DE25: 0.21 | DF25: =-DF23*$DE$25 -> -362127.9252 | DG25: =-DG23*$DE$25 -> 47589.9252 | DH25: =DF25+DG25 -> -314538 | DJ25: =DH25+DI25 -> -314538 | DL25: =DJ25+DK25 -> -314538 | DN25: =DL25+DM25 -> -314538 | DP25: =DN25+DO25 -> -314538 | DR25: =DP25+DQ25 -> -314538 | DT25: =DR25+DS25 -> -314538 | EM25: =ROW() -> 25 | EN25: INCREASE (DECREASE) FIT @ | EO25: 0.21 | EP25: =-$EO$25*EP23 -> 65627.44398 | EQ25: 9543.173521 | ER25: 75170.6175 | ES25: -142243.4236 | ET25: -67072.80612 | EU25: 0 | EV25: -67072.80612 | EW25: 0 | EX25: -67072.80612 | EY25: 0 | EZ25: -67072.80612 | FA25: 0 | FB25: =-$EO$25*FB23 -> 0 | FC25: 0 | FD25: =-$EO$25*FD23 -> 0 | FW25: =ROW() -> 25 | FX25: TOTAL INCENTIVE / MERIT PAY | FZ25: =SUM(FZ17:FZ24) -> 10637666.45 | GA25: -3746484.165 | GB25: 6891182.282 | GC25: 877688.4989 | GD25: 7768870.781 | GE25: =SUM(GE17:GE24) -> 365159.032 | GF25: 8134029.813 | GG25: =SUM(GG17:GG24) -> 81424.70666 | GH25: 8215454.519 | GI25: =SUM(GI17:GI24) -> 4734.890477 | GJ25: 8220189.41 | GK25: =SUM(GK17:GK24) -> 0 | GL25: 8220189.41 | GM25: =SUM(GM17:GM24) -> 0 | GN25: 8220189.41 | GO25: =ROW() -> 25 | HY25: =ROW() -> 25 | HZ25: (NOTE 1) INSURANCE PREMIUMS RELATED TO WILDFIRE COVERAGE ARE INCLUDED IN THESE RESTATING / PROFORMA ADJUSTMENTS | KS25: =ROW() -> 25 | KT25: TOTAL WAGE INCREASE | KV25: =SUM(KV17:KV24) -> 132613447.9 | KW25: 7983000.65 | KX25: 140596448.6 | KY25: 0 | KZ25: 140596448.6 | LA25: =SUM(LA17:LA24) -> 0 | LB25: 140596448.6 | LC25: =SUM(LC17:LC24) -> 0 | LD25: 140596448.6 | LE25: =SUM(LE17:LE24) -> 0 | LF25: 140596448.6 | LG25: =SUM(LG17:LG24) -> 0 | LH25: =SUM(LH17:LH24) -> 0 | LI25: =SUM(LI17:LI24) -> 0 | LJ25: =SUM(LJ17:LJ24) -> 0 | MC25: =ROW() -> 25 | MD25: TOTAL DEPRECIATION AND ACCRETION | MF25: =SUM(MF20:MF24) -> 455757385.7 | MG25: -3988422.85 | MH25: 451768962.9 | MI25: 0 | MJ25: 451768962.9 | MK25: 0 | ML25: 451768962.9 | MM25: 0 | MN25: 451768962.9 | MO25: 0 | MP25: 451768962.9 | MQ25: 0 | MR25: 0 | MS25: 0 | MT25: 0 | NM25: =ROW() -> 25 | NN25: TAXES OTHER THAN INCOME TAXES | NV25: =Summary!I41 -> 97820600.6 | NW25: ='4081'!J145 -> -1768139.913 | NX25: =NV25+NW25 -> 96052460.68 | NY25: ='4081'!J154 -> 1362567.18 | NZ25: =NX25+NY25 -> 97415027.86 | OE25: =ROW() -> 25 | OS25: =OT25-#REF! ->  | OU25: =OV25-OT25 -> 0 | OW25: =ROW() -> 25 | OX25: Electric Portion of Common | OZ25: -10501397.92 | PA25: 6761374.915 | PB25: =SUM(OZ25:PA25) -> -3740023 | PC25: -6761374.915 | PD25: =SUM(PB25:PC25) -> -10501397.92 | PE25: 0 | PF25: =SUM(PD25:PE25) -> -10501397.92 | PG25: 0 | PH25: =SUM(PF25:PG25) -> -10501397.92 | PI25: 0 | PJ25: =SUM(PH25:PI25) -> -10501397.92 | PK25: 0 | PL25: -10501397.92 | PM25: 0 | PN25: -10501397.92 | RC25: =ROW() -> 25 | RD25: TOTAL DEPRECIATION AND ACCRETION | RH25: =SUM(RH21:RH24) -> 414214933.7 | RI25: 1121435.129 | RJ25: =SUM(RJ21:RJ24) -> 415336368.8 | RK25: -4042532.662 | RL25: 411293836.2 | RM25: -6188121.428 | RN25: 405105714.8 | RO25: =SUM(RO21:RO24) -> -21973136.55 | RP25: 383132578.2 | RQ25: =SUM(RQ21:RQ24) -> 0 | RR25: =SUM(RR21:RR24) -> 0 | RS25: =SUM(RS21:RS24) -> 0 | RT25: =SUM(RT21:RT24) -> 0 | RU25: =ROW() -> 25 | SM25: =ROW() -> 25 | TF25: =ROW() -> 25 | TU25: =ROW() -> 25 | UJ25: =ROW() -> 25 | UK25: Increase (Decrease) NOI | UM25: =-UM21-UM23 -> -101020.46 | UN25: 101020.46 | UO25: 0 | UP25: 0 | UQ25: 0 | UR25: 0 | US25: 0 | UT25: -109020 | UU25: -109020 | UV25: 0 | UW25: -109020 | UY25: =ROW() -> 25 | UZ25: AMORTIZATION EXPENSE-
A26: =ROW() -> 26 | B26: SCHEDULE 141Y - TEMPORARY FEDERAL INCOME TAX CREDIT | D26: =-'CTM Exh Summary'!D29 -> -2036.08 | E26: 2036.08 | F26: 0 | H26: 0 | J26: 0 | L26: 0 | N26: 0 | P26: 0 | R26: 0 | S26: =ROW() -> 26 | T26: REMOVE DECOUPLING SCH 142 REVENUE | V26: =-'CTM Exh Summary'!$E$31 -> 144719.97 | W26: =-V26 -> -144719.97 | X26: 0 | Z26: 0 | AB26: 0 | AD26: 0 | AF26: 0 | AK26: =ROW() -> 26 | BA26: =ROW() -> 26 | DD26: INCREASE(DECREASE) NOI | DF26: =-DF23-DF25 -> -1362290.766 | DG26: =-DG23-DG25 -> 179028.7662 | DH26: =-DH23-DH25 -> -1183262 | DI26: =-DI23-DI25 -> 0 | DJ26: =-DJ23-DJ25 -> -1183262 | DL26: =-DL23-DL25 -> -1183262 | DN26: =-DN23-DN25 -> -1183262 | DP26: =-DP23-DP25 -> -1183262 | DR26: =-DR23-DR25 -> -1183262 | DT26: =-DT23-DT25 -> -1183262 | EM26: =ROW() -> 26 | FW26: =ROW() -> 26 | GO26: =ROW() -> 26 | GP26: TOTAL | HY26: =ROW() -> 26 | HZ26: THESE PREMIUMS ARE THEN REMOVED FROM THE REVENUE REQUIREMENT IN THE O&M ADJUSTMENT, AS O&M AMOUNTS FOR 2025 AND 2026 DO NOT CONTAIN WILDFIRE PREMIUMS. | KS26: =ROW() -> 26 | MC26: =ROW() -> 26 | NM26: =ROW() -> 26 | NN26: SUBTOTAL | NP26: =SUM(NP18:NP25) -> 0 | NQ26: =SUM(NQ18:NQ25) -> 0 | NR26: =SUM(NR18:NR25) -> 0 | NS26: 0 | NT26: =SUM(NT18:NT25) -> 0 | NU26: 0 | NV26: 553555187.2 | NW26: 12661506.45 | NX26: 566216693.7 | NY26: 20607176.74 | NZ26: 586823870.4 | OE26: =ROW() -> 26 | OF26: OPERATING INCOME/EXPENSE: | OS26: =OT26-#REF! ->  | OU26: =OV26-OT26 -> 0 | OW26: =ROW() -> 26 | PB26: =SUM(OZ26:PA26) -> 0 | PD26: =SUM(PB26:PC26) -> 0 | PF26: =SUM(PD26:PE26) -> 0 | PH26: =SUM(PF26:PG26) -> 0 | PJ26: =SUM(PH26:PI26) -> 0 | PL26: 0 | PN26: 0 | RC26: =ROW() -> 26 | RU26: =ROW() -> 26 | RV26: INCREASE (DECREASE) EXPENSE | RZ26: =RZ24 -> 0 | SA26: -174784.55 | SB26: -174784.55 | SC26: -1552531.01 | SD26: -1727315.56 | SE26: -1738872.72 | SF26: -3466188.28 | SG26: -1738872.72 | SH26: -5205061 | SI26: =SI24 -> 0 | SJ26: =SJ24 -> -5205061 | SK26: =SK24 -> 0 | SL26: =SL24 -> -5205061 | SM26: =ROW() -> 26 | SN26: INCREASE (DECREASE) NOI | SS26: =-SS22-SS24 -> -2758238.274 | ST26: =-ST22-ST24 -> -2758238.274 | SU26: -15485405.87 | SV26: -18243644.15 | SW26: -16624581.78 | SX26: -34868225.93 | SY26: -20647116.15 | SZ26: =-SZ22-SZ24 -> -55515342.07 | TA26: =-TA22-TA24 -> 0 | TB26: =-TB22-TB24 -> -55515342.07 | TC26: =-TC22-TC24 -> 0 | TD26: =-TD22-TD24 -> -55515342.07 | TF26: =ROW() -> 26 | TG26: REMOVE TY EXPENSE DEFERRALS | TU26: =ROW() -> 26 | TV26: INCREASE(DECREASE) FIT @ | TW26: 0.21 | TX26: =-$TW$26*TX24 -> 1142051.343 | TY26: =-$TW$26*TY24 -> -1142051.343 | TZ26: 0 | UA26: 0 | UB26: 0 | UC26: 0 | UD26: 0 | UE26: =-$UE$24*TW26 -> -1636052.882 | UF26: =-$UF$24*TW26 -> -1636052.882 | UG26: =-$UG$24*TW26 -> 0 | UH26: =-$UH$24*TW26 -> -1636052.882 | UY26: =ROW() -> 26 | UZ26: DECARBONIZATION STUDY - ELECTRIFICATION PILOT DEFERRAL | VH26: 0 | VI26: =VJ26-VH26 -> 7500000 | VJ26: 7500000 | VK26: =VL26-VJ26 -> 0 | VL26: 7500000
A27: =ROW() -> 27 | B27: SCHEDULE 141Z - UNPROTECTED EXCESS DEFERRED INCOME TAX REVERSAL | D27: =-'CTM Exh Summary'!D30 -> -16649919.5 | E27: 16649919.5 | F27: 0 | H27: 0 | J27: 0 | L27: 0 | N27: 0 | P27: 0 | R27: 0 | S27: =ROW() -> 27 | T27: REMOVE DECOUPLING SCH 142 SURCHARGE AMORT EXPENSE | V27: -144719.97 | W27: =-V27 -> 144719.97 | X27: 0 | Z27: 0 | AB27: 0 | AD27: 0 | AF27: 0 | AK27: =ROW() -> 27 | AL27: INCREASE (DECREASE) OPERATING INCOME BEFORE INCOME TAXES | AN27: =AN20-AN25 -> 2369075404 | AO27: =AO20-AO25 -> -59850946.38 | AP27: =AP20-AP25 -> 2309224458 | AQ27: =AQ20-AQ25 -> 0 | AR27: =AR20-AR25 -> -222062432.9 | AS27: 0 | AT27: =AT20-AT25 -> -222062432.9 | AU27: 0 | AV27: -222062432.9 | AW27: 0 | AX27: -222062432.9 | BA27: =ROW() -> 27 | CG27: -18629747.03 | CH27: 5583439088 | CI27: -16995654.05 | CJ27: 5566443434 | EM27: =ROW() -> 27 | EN27: INCREASE(DECREASE) NOI | EP27: =-EP23-EP25 -> 246884.194 | EQ27: 35900.50991 | ER27: 282784.7039 | ES27: -535106.2127 | ET27: -252321.5087 | EU27: 0 | EV27: -252321.5087 | EW27: 0 | EX27: -252321.5087 | EY27: 0 | EZ27: -252321.5087 | FA27: 0 | FB27: =-FB23-FB25 -> 0 | FC27: 0 | FD27: =-FD23-FD25 -> 0 | FW27: =ROW() -> 27 | FX27: PAYROLL TAXES ASSOCI WITH MERIT PAY | FZ27: 935055.7 | GA27: -329317.6554 | GB27: =SUM(FZ27:GA27) -> 605738.0445 | GC27: 77149.21668 | GD27: =SUM(GB27:GC27) -> 682887.2612 | GE27: 32097.64434 | GF27: 714984.9055 | GG27: 7157.268604 | GH27: 722142.1742 | GI27: 416.199018 | GJ27: 722558.3732 | GL27: =SUM(GJ27:GK27) -> 722558.3732 | GN27: =SUM(GL27:GM27) -> 722558.3732 | GO27: =ROW() -> 27 | GP27: TOTAL PROFORMA COSTS | GR27: =+GR24+GR21+GR18 -> 20348028.73 | GS27: 1079471.648 | GT27: 21427500.38 | GU27: 0 | GV27: 21427500.38 | GW27: 0 | GX27: 21427500.38 | GY27: 0 | GZ27: 21427500.38 | HA27: 0 | HB27: 21427500.38 | HC27: 0 | HD27: 0 | HE27: 0 | HF27: 0 | HY27: =ROW() -> 27 | HZ27: WILDFIRE PREMIUMS FOR THE RATE YEARS ARE SEPARATELY ESTIMATED AND REQUESTED FOR RECOVERY IN A SEPARATE RATE SCHEDULE, SCHEDULE 141WFD | KS27: =ROW() -> 27 | KT27: PAYROLL TAXES | KV27: 9933441.897 | KW27: 365630.7377 | KX27: =SUM(KV27:KW27) -> 10299072.64 | KY27: 0 | KZ27: =SUM(KX27:KY27) -> 10299072.64 | LA27: 0 | LB27: =SUM(KZ27:LA27) -> 10299072.64 | LD27: =SUM(LB27:LC27) -> 10299072.64 | LF27: =SUM(LD27:LE27) -> 10299072.64 | LJ27: =SUM(LH27:LI27) -> 0 | MC27: =ROW() -> 27 | MD27: INCREASE (DECREASE) EXPENSE | MF27: =MF25 -> 455757385.7 | MG27: =MG25 -> -3988422.85 | MH27: =MH25 -> 451768962.9 | MI27: =MI25 -> 0 | MJ27: =MJ25 -> 451768962.9 | MK27: 0 | ML27: 451768962.9 | MM27: 0 | MN27: 451768962.9 | MO27: 0 | MP27: 451768962.9 | MQ27: 0 | MR27: 0 | MS27: 0 | MT27: 0 | NM27: =ROW() -> 27 | OE27: =ROW() -> 27 | OS27: =SUM(OS24:OS26) ->  | OT27: =SUM(OT24:OT26) -> 0 | OU27: =SUM(OU24:OU26) -> 0 | OV27: =SUM(OV24:OV26) -> 0 | OW27: =ROW() -> 27 | OX27: Total Electric AMI Accum Depreciation | OZ27: =SUM(OZ24:OZ26) -> -41711599.23 | PA27: =SUM(PA24:PA26) -> 26856211.23 | PB27: =SUM(PB24:PB26) -> -14855387.99 | PC27: =SUM(PC24:PC26) -> -26856211.23 | PD27: -41711599.23 | PE27: 0 | PF27: -41711599.23 | PG27: =SUM(PG24:PG26) -> 0 | PH27: -41711599.23 | PI27: =SUM(PI24:PI26) -> 0 | PJ27: -41711599.23 | PK27: 0 | PL27: =SUM(PL24:PL26) -> -41711599.23 | PM27: 0 | PN27: -41711599.23 | RC27: =ROW() -> 27 | RD27: INCREASE (DECREASE) EXPENSE | RH27: =RH25 -> 414214933.7 | RI27: =RI25 -> 1121435.129 | RJ27: 415336368.8 | RK27: -4042532.662 | RL27: 411293836.2 | RM27: -6188121.428 | RN27: 405105714.8 | RO27: =RO25 -> -21973136.55 | RP27: 383132578.2 | RQ27: =RQ25 -> 0 | RR27: =RR25 -> 0 | RS27: =RS25 -> 0 | RT27: =RT25 -> 0 | RU27: =ROW() -> 27 | SM27: =ROW() -> 27 | TF27: =ROW() -> 27 | TL27: =-TK27 -> 0 | TN27: =-TM27 -> 0 | TP27: =-TO27 -> 0 | TR27: =-TQ27 -> 0 | TU27: =ROW() -> 27 | TV27: INCREASE(DECREASE) NOI | TX27: =-TX24-TX26 -> 4296288.387 | TY27: =-TY24-TY26 -> -4296288.387 | TZ27: 0 | UA27: 0 | UB27: 0 | UC27: 0 | UD27: 0 | UE27: -6154675.127 | UF27: -6154675.127 | UG27: 0 | UH27: =-UH24-UH26 -> -6154675.127 | UY27: =ROW() -> 27
A28: =ROW() -> 28 | B28: Annualized Revenues: | F28: 0 | H28: 0 | J28: 0 | L28: 0 | N28: 0 | P28: 0 | R28: 0 | S28: =ROW() -> 28 | T28: REMOVE GREEN POWER - SCH 135/136 | V28: =-'CTM Exh Summary'!$E$15 -> 8009867.56 | W28: =-V28 -> -8009867.56 | X28: 0 | Z28: 0 | AB28: 0 | AD28: 0 | AF28: 0 | AK28: =ROW() -> 28 | BA28: =ROW() -> 28 | FW28: =ROW() -> 28 | FX28: INCREASE (DECREASE ) IN EXPENSE | FZ28: =SUM(FZ25:FZ27) -> 11572722.15 | GA28: =SUM(GA25:GA27) -> -4075801.821 | GB28: 7496920.326 | GC28: 954837.7156 | GD28: 8451758.042 | GE28: 397256.6763 | GF28: 8849014.718 | GG28: 88581.97526 | GH28: 8937596.694 | GI28: 5151.089495 | GJ28: 8942747.783 | GK28: 0 | GL28: 8942747.783 | GM28: 0 | GN28: 8942747.783 | GO28: =ROW() -> 28 | KS28: =ROW() -> 28 | KT28: TOTAL WAGES & TAXES | KV28: =SUM(KV25:KV27) -> 142546889.8 | KW28: =SUM(KW25:KW27) -> 8348631.388 | KX28: 150895521.2 | KY28: 0 | KZ28: 150895521.2 | LA28: 0 | LB28: 150895521.2 | LC28: 0 | LD28: 150895521.2 | LE28: 0 | LF28: 150895521.2 | LG28: 0 | LH28: =SUM(LH25:LH27) -> 0 | LI28: 0 | LJ28: =SUM(LJ25:LJ27) -> 0 | MC28: =ROW() -> 28 | NM28: =ROW() -> 28 | NN28: TOTAL INCREASE (DECREASE) IN COSTS | NP28: =SUM(NP26) -> 0 | NQ28: =SUM(NQ26) -> 0 | NR28: 0 | NS28: 0 | NT28: 0 | NU28: 0 | NV28: 553555187.2 | NW28: 12661506.45 | NX28: 566216693.7 | NY28: 20607176.74 | NZ28: 586823870.4 | OE28: =ROW() -> 28 | OF28: DEPRECIATION EXPENSE | OH28: -4730967.98 | OI28: =OJ28-OH28 -> 0 | OJ28: -4730967.98 | OK28: =OL28-OJ28 -> 4730967.98 | OL28: 0 | OW28: =ROW() -> 28 | RC28: =ROW() -> 28 | RU28: =ROW() -> 28 | RV28: INCREASE (DECREASE) FIT | RW28: 0.21 | RZ28: =RZ26*-$RW$28 -> 0 | SA28: 36704.7555 | SB28: 36704.7555 | SC28: 326031.5121 | SD28: 362736.2676 | SE28: 365163.2712 | SF28: 727899.5388 | SG28: 365163.2712 | SH28: 1093062.81 | SI28: =SI26*-$RW$28 -> 0 | SJ28: =SJ26*-$RW$28 -> 1093062.81 | SK28: =SK26*-$RW$28 -> 0 | SL28: =SL26*-$RW$28 -> 1093062.81 | SM28: =ROW() -> 28 | SN28: INCREASE TO GROSS PLANT | SS28: 198533936.6 | ST28: =SS28 -> 198533936.6 | SU28: 400416901.5 | SV28: =SU28+ST28 -> 598950838.1 | SW28: 166513952.5 | SX28: =SW28+SV28 -> 765464790.6 | SY28: 488013286.2 | SZ28: =SY28+SX28 -> 1253478077 | TF28: =ROW() -> 28 | TG28: EV NET EXPENSE DEFERRAL (NOTE 1) | TI28: -691934.9 | TJ28: =-TI28 -> 691934.9 | TL28: =-TK28 -> 0 | TN28: =-TM28 -> 0 | TP28: =-TO28 -> 0 | TR28: =-TQ28 -> 0 | UY28: =ROW() -> 28 | UZ28: INCREASE(DECREASE) IN OPERATING EXPENSE | VB28: =VB16+VB26 -> -138703.19 | VC28: =VC16+VC26 -> 138703.19 | VD28: 0 | VE28: 0 | VF28: 0 | VG28: 0 | VH28: 0 | VI28: 7500000 | VJ28: 7500000 | VK28: 0 | VL28: 7500000
A29: =ROW() -> 29 | B29: BASE REVENUE (1-11-2023) - RATE CHANGE ANNUALIZED | D29: =-'CTM Exh Summary'!D34 -> 20273240.03 | E29: -20273240.03 | F29: 0 | H29: 0 | J29: 0 | L29: 0 | N29: 0 | P29: 0 | R29: 0 | S29: =ROW() -> 29 | T29: REMOVE GREEN POWER - SCH 135/136 ELIMINATE OVER EXPENSED | V29: -2023388.65 | W29: =-V29 -> 2023388.65 | X29: 0 | Z29: 0 | AB29: 0 | AD29: 0 | AF29: 0 | AK29: =ROW() -> 29 | AL29: INCREASE (DECREASE) FIT @ | AM29: 0.21 | AN29: =+$AM$29*AN27 -> 497505834.8 | AO29: =+$AM$29*AO27 -> -12568698.74 | AP29: =+$AM$29*AP27 -> 484937136.1 | AQ29: =+$AM$29*AQ27 -> 0 | AR29: =+$AM$29*AR27 -> -46633110.92 | AS29: 0 | AT29: -46633110.92 | AU29: 0 | AV29: -46633110.92 | AW29: 0 | AX29: -46633110.92 | BA29: =ROW() -> 29 | BB29: *Note - Colstrip and TGrant DFIT are removed from the test year in Adjustment 6.54. Only the incremental Costrip related DFIT beyond the test year is removed in this adjustment | FW29: =ROW() -> 29 | GO29: =ROW() -> 29 | GP29: COSTS APPLICABLE TO OPERATIONS | GQ29: 0.4657709555 | GR29: =+GR27*$GQ$29 -> 9477520.783 | GS29: =+GS27*$GQ$29 -> 502786.5411 | GT29: 9980307.324 | GU29: 0 | GV29: 9980307.324 | GW29: 0 | GX29: 9980307.324 | GY29: 0 | GZ29: =+GZ27*$GQ$29 -> 9980307.324 | HA29: =+HA27*$GQ$29 -> 0 | HB29: 9980307.324 | HC29: 0 | HD29: 0 | HE29: 0 | HF29: 0 | KS29: =ROW() -> 29 | MC29: =ROW() -> 29 | MD29: INCREASE (DECREASE) FIT | ME29: 0.21 | MF29: =-MF27*$ME$29 -> -95709051 | MG29: 837568.7985 | MH29: -94871482.2 | MI29: 0 | MJ29: -94871482.2 | MK29: 0 | ML29: -94871482.2 | MM29: 0 | MN29: -94871482.2 | MO29: 0 | MP29: -94871482.2 | MQ29: 0 | MR29: 0 | MS29: 0 | MT29: 0 | NM29: =ROW() -> 29 | OE29: =ROW() -> 29 | OS29: =OS21+OS27 ->  | OT29: =OT21+OT27 -> 0 | OU29: =OU21+OU27 -> 0 | OV29: =OV21+OV27 -> 0 | OW29: =ROW() -> 29 | OX29: ADIT: | RC29: =ROW() -> 29 | RD29: DFIT REVERSAL TO FIT | RE29: 0.21 | RH29: =-RH27*$RE$29 -> -86985136.08 | RI29: =-RI27*$RE$29 -> -235501.3771 | RJ29: =RH29+RI29 -> -87220637.46 | RK29: =-RK27*$RE$29 -> 848931.859 | RL29: =RJ29+RK29 -> -86371705.6 | RM29: =-RM27*$RE$29 -> 1299505.5 | RN29: =RL29+RM29 -> -85072200.1 | RO29: =-RO27*$RE$29 -> 4614358.676 | RP29: =RN29+RO29 -> -80457841.42 | RR29: =RP29+RQ29 -> -80457841.42 | RT29: =RR29+RS29 -> -80457841.42 | RU29: =ROW() -> 29 | SM29: =ROW() -> 29 | SN29: INCREASE TO ACCUM. DEPRECIATION & AMORTIZATION | SS29: -3491440.853 | ST29: =SS29 -> -3491440.853 | SU29: -23093220.44 | SV29: =SU29+ST29 -> -26584661.29 | SW29: -20796623.43 | SX29: =SW29+SV29 -> -47381284.72 | SY29: -57040442.01 | SZ29: =SY29+SX29 -> -104421726.7 | TF29: =ROW() -> 29 | TG29: EMISSIONS EXPENSE DEFERRAL - WHOLESALE | TI29: -90690232.22 | TJ29: =-TI29 -> 90690232.22 | TL29: =-TK29 -> 0 | TN29: =-TM29 -> 0 | TP29: =-TO29 -> 0 | TR29: =-TQ29 -> 0 | UY29: =ROW() -> 29
A30: =ROW() -> 30 | B30: 141N REVENUE (1-11-2023) - 6 MONTHS ANNUALIZED + 6 MONTHS ACTUALS | E30: ='CTM Exh Summary'!D35 -> 187501067.5 | F30: 187501067.5 | G30: ='CTM Exh Summary'!D53 -> -187501067.5 | H30: 0 | J30: 0 | L30: 0 | N30: 0 | P30: 0 | R30: 0 | S30: =ROW() -> 30 | T30: REMOVE SCH. 141A (GREEN DIRECT ENERGY CREDIT RECOVERY) | V30: =-'CTM Exh Summary'!E22 -> 17506569.71 | X30: =+W30+V30 -> 17506569.71 | Y30: =-X30 -> -17506569.71 | Z30: 0 | AK30: =ROW() -> 30 | AL30: INCREASE (DECREASE) NOI | AN30: =AN27-AN29 -> 1871569569 | AO30: =AO27-AO29 -> -47282247.64 | AP30: =AP27-AP29 -> 1824287321 | AQ30: =AQ27-AQ29 -> 0 | AR30: -175429322 | AS30: 0 | AT30: -175429322 | AU30: 0 | AV30: -175429322 | AW30: 0 | AX30: -175429322 | BA30: =ROW() -> 30 | BB30: since the Tgrant DFIT doesn't change post test year no further adjustment is required. | FW30: =ROW() -> 30 | FX30: INCREASE (DECREASE) FIT @ | FY30: 0.21 | FZ30: =-$FY$30*FZ28 -> -2430271.651 | GA30: 855918.3824 | GB30: -1574353.269 | GC30: -200515.9203 | GD30: -1774869.189 | GE30: -83423.90203 | GF30: -1858293.091 | GG30: -18602.21481 | GH30: -1876895.306 | GI30: -1081.728794 | GJ30: =-$FY$30*GJ28 -> -1877977.034 | GK30: =-$FY$30*GK28 -> 0 | GL30: =-$FY$30*GL28 -> -1877977.034 | GM30: =-$FY$30*GM28 -> 0 | GN30: =-$FY$30*GN28 -> -1877977.034 | GO30: =ROW() -> 30 | KS30: =ROW() -> 30 | KT30: INCREASE (DECREASE) OPERATING EXPENSE | KV30: =+KV28 -> 142546889.8 | KW30: =+KW28 -> 8348631.388 | KX30: =+KX28 -> 150895521.2 | KY30: =+KY28 -> 0 | KZ30: =+KZ28 -> 150895521.2 | LA30: =+LA28 -> 0 | LB30: 150895521.2 | LC30: 0 | LD30: 150895521.2 | LE30: 0 | LF30: 150895521.2 | LG30: 0 | LH30: =+LH28 -> 0 | LI30: 0 | LJ30: =+LJ28 -> 0 | MC30: =ROW() -> 30 | NM30: =ROW() -> 30 | OE30: =ROW() -> 30 | OF30: TOTAL OPERATING EXPENSES | OH30: =OH28 -> -4730967.98 | OI30: =OI28 -> 0 | OJ30: =OJ28 -> -4730967.98 | OK30: =OK28 -> 4730967.98 | OL30: =OL28 -> 0 | OW30: =ROW() -> 30 | OX30: Electric AMI | OZ30: -22567669.47 | PA30: 14530301.16 | PB30: =SUM(OZ30:PA30) -> -8037368.318 | PC30: -14530301.16 | PD30: =SUM(PB30:PC30) -> -22567669.47 | PE30: 0 | PF30: =SUM(PD30:PE30) -> -22567669.47 | PG30: 0 | PH30: =SUM(PF30:PG30) -> -22567669.47 | PI30: 0 | PJ30: =SUM(PH30:PI30) -> -22567669.47 | PK30: 0 | PL30: =SUM(PJ30:PK30) -> -22567669.47 | PM30: 0 | PN30: =SUM(PL30:PM30) -> -22567669.47 | RC30: =ROW() -> 30 | RU30: =ROW() -> 30 | RV30: INCREASE (DECREASE) NOI | RZ30: =-RZ26-RZ28 -> 0 | SA30: =-SA26-SA28 -> 138079.7945 | SB30: 138079.7945 | SC30: 1226499.498 | SD30: 1364579.292 | SE30: 1373709.449 | SF30: 2738288.741 | SG30: 1373709.449 | SH30: 4111998.19 | SI30: =-SI26-SI28 -> 0 | SJ30: =-SJ26-SJ28 -> 4111998.19 | SK30: =-SK26-SK28 -> 0 | SL30: =-SL26-SL28 -> 4111998.19 | SM30: =ROW() -> 30 | SN30: INCREASE TO ACCUMULATED DEFERRED INCOME TAXES | SS30: -1405924.732 | ST30: =SS30 -> -1405924.732 | SU30: -5095900.69 | SV30: =SU30+ST30 -> -6501825.422 | SW30: -4900371.43 | SX30: =SW30+SV30 -> -11402196.85 | SY30: -12001436.6 | SZ30: =SY30+SX30 -> -23403633.46 | TF30: =ROW() -> 30 | TG30: GTZ DEPR EXP DEFERRAL (NOTE 1) | TI30: -3405812.487 | TJ30: =-TI30 -> 3405812.487 | TL30: =-TK30 -> 0 | TN30: =-TM30 -> 0 | TP30: =-TO30 -> 0 | TR30: =-TQ30 -> 0 | UY30: =ROW() -> 30 | UZ30: INCREASE (DECREASE) FIT @ | VA30: 0.21 | VB30: =-VB28*$VA$30 -> 29127.6699 | VC30: -29127.6699 | VD30: 0 | VE30: 0 | VF30: 0 | VG30: 0 | VH30: 0 | VI30: -1575000 | VJ30: -1575000 | VK30: 0 | VL30: -1575000
A31: =ROW() -> 31 | B31: 141R REVENUE (1-11-2023) - 6 MONTHS ANNUALIZED + 6 MONTHS ACTUALS | E31: ='CTM Exh Summary'!D37 -> 94144319 | F31: 94144319 | G31: ='CTM Exh Summary'!D55 -> -94144319 | H31: 0 | J31: 0 | L31: 0 | N31: 0 | P31: 0 | R31: 0 | S31: =ROW() -> 31 | T31: REMOVE SCH. 141A/SCH. 139 GREEN DIRECT CREDIT REVENUE | X31: =+W31+V31 -> 0 | Y31: =-X31 -> 0 | AK31: =ROW() -> 31 | BA31: =ROW() -> 31 | BB31: ADJUSTMENTS TO ADIT ARE MADE IN ALL OTHER ADJUSTMENTS WITH RATE BASE COMPONENTS | CG31: 0.025 | CH31: 0.025 | CI31: 0.025 | CJ31: 0.025 | FW31: =ROW() -> 31 | FX31: INCREASE (DECREASE) NOI | FZ31: =-FZ28-FZ30 -> -9142450.496 | GA31: =-GA28-GA30 -> 3219883.439 | GB31: -5922567.058 | GC31: -754321.7953 | GD31: -6676888.853 | GE31: -313832.7743 | GF31: -6990721.628 | GG31: -69979.76046 | GH31: -7060701.388 | GI31: -4069.360701 | GJ31: =-GJ28-GJ30 -> -7064770.749 | GK31: =-GK28-GK30 -> 0 | GL31: =-GL28-GL30 -> -7064770.749 | GM31: =-GM28-GM30 -> 0 | GN31: =-GN28-GN30 -> -7064770.749 | GO31: =ROW() -> 31 | GP31: INCREASE (DECREASE) IN EXPENSE | GR31: =SUM(GR29:GR30) -> 9477520.783 | GS31: 502786.5411 | GT31: 9980307.324 | GU31: 0 | GV31: 9980307.324 | GW31: 0 | GX31: 9980307.324 | GY31: 0 | GZ31: 9980307.324 | HA31: 0 | HB31: 9980307.324 | HC31: 0 | HD31: 0 | HE31: 0 | HF31: 0 | KS31: =ROW() -> 31 | KT31: INCREASE (DECREASE) FIT @ | KU31: =FIT -> 0.21 | KV31: =-KV30*$KU$31 -> -29934846.86 | KW31: =-KW30*$KU$31 -> -1753212.591 | KX31: =-KX30*$KU$31 -> -31688059.45 | KY31: =-KY30*$KU$31 -> 0 | KZ31: =-KZ30*$KU$31 -> -31688059.45 | LA31: =-LA30*$KU$31 -> 0 | LB31: -31688059.45 | LC31: 0 | LD31: -31688059.45 | LE31: 0 | LF31: -31688059.45 | LG31: 0 | LH31: =-LH30*$KU$31 -> 0 | LI31: 0 | LJ31: =-LJ30*$KU$31 -> 0 | MC31: =ROW() -> 31 | MD31: INCREASE (DECREASE) NOI | MF31: =-MF27-MF29 -> -360048334.7 | MG31: =-MG27-MG29 -> 3150854.052 | MH31: =-MH27-MH29 -> -356897480.7 | MI31: =-MI27-MI29 -> 0 | MJ31: =-MJ27-MJ29 -> -356897480.7 | MK31: 0 | ML31: -356897480.7 | MM31: 0 | MN31: -356897480.7 | MO31: 0 | MP31: -356897480.7 | MQ31: 0 | MR31: 0 | MS31: 0 | MT31: 0 | NM31: =ROW() -> 31 | NN31: INCREASE (DECREASE) OPERATING INCOME | NP31: =-NP28 -> 0 | NQ31: =-NQ28 -> 0 | NR31: 0 | NS31: 0 | NT31: 0 | NU31: 0 | NV31: -553555187.2 | NW31: -12661506.45 | NX31: =-NX28 -> -566216693.7 | NY31: =-NY28 -> -20607176.74 | NZ31: =-NZ28 -> -586823870.4 | OE31: =ROW() -> 31 | OW31: =ROW() -> 31 | OX31: Electric portion of Common AMI | OZ31: -3585977.139 | PA31: 2308848.409 | PB31: =SUM(OZ31:PA31) -> -1277128.73 | PC31: -2308848.409 | PD31: =SUM(PB31:PC31) -> -3585977.139 | PE31: 0 | PF31: =SUM(PD31:PE31) -> -3585977.139 | PG31: 0 | PH31: =SUM(PF31:PG31) -> -3585977.139 | PI31: 0 | PJ31: =SUM(PH31:PI31) -> -3585977.139 | PK31: 0 | PL31: -3585977.139 | PM31: 0 | PN31: -3585977.139 | RC31: =ROW() -> 31 | RD31: INCREASE (DECREASE) NOI | RH31: =-RH27-RH29 -> -327229797.6 | RI31: -885933.7521 | RJ31: -328115731.4 | RK31: 3193600.803 | RL31: -324922130.6 | RM31: 4888615.928 | RN31: -320033514.7 | RO31: 17358777.88 | RP31: -302674736.8 | RQ31: 0 | RR31: 80457841.42 | RS31: 0 | RT31: 80457841.42 | RU31: =ROW() -> 31 | SM31: =ROW() -> 31 | SN31: TOTAL ADJUSTMENT TO RATE BASE | SS31: =SUM(SS28:SS30) -> 193636571.1 | ST31: =SUM(ST28:ST30) -> 193636571.1 | SU31: 372227780.4 | SV31: 565864351.4 | SW31: 140816957.7 | SX31: 706681309.1 | SY31: 418971407.6 | SZ31: 1125652717 | TA31: 0 | TB31: 0 | TC31: 0 | TD31: 0 | TF31: =ROW() -> 31 | TG31: SUBTOTAL | TI31: =SUM(TI27:TI30) -> -94787979.61 | TJ31: =SUM(TJ27:TJ30) -> 94787979.61 | UY31: =ROW() -> 31 | UZ31: INCREASE (DECREASE) NOI | VB31: =-VB28-VB30 -> 109575.5201 | VC31: -109575.5201 | VD31: 0 | VE31: 0 | VF31: 0 | VG31: 0 | VH31: 0 | VI31: -5925000 | VJ31: -5925000 | VK31: 0 | VL31: -5925000
A32: =ROW() -> 32 | B32: Other: | S32: =ROW() -> 32 | T32: REMOVE SCH. 141A/SCH. 139 DEFERRAL ACCOUNT | V32: ='E OOR'!D68 -> -2466633.94 | X32: =+W32+V32 -> -2466633.94 | Y32: =-X32 -> 2466633.94 | AK32: =ROW() -> 32 | AL32: ="PORTION OF LINE "&AK20&" ASSOCIATED WITH RETAIL CUSTOMERS" -> PORTION OF LINE 20 ASSOCIATED WITH RETAIL CUSTOMERS | AO32: ='CTM Exh Summary'!$H$40 -> -62918624 | CG32: -465743.6758 | CH32: 139585977.2 | CI32: -424891.3512 | CJ32: 139161085.8 | GO32: =ROW() -> 32 | KS32: =ROW() -> 32 | KT32: INCREASE (DECREASE) NOI | KV32: =-KV30-KV31 -> -112612043 | KW32: =-KW30-KW31 -> -6595418.797 | KX32: =-KX30-KX31 -> -119207461.7 | KY32: =-KY30-KY31 -> 0 | KZ32: =-KZ30-KZ31 -> -119207461.7 | LA32: =-LA30-LA31 -> 0 | LB32: -119207461.7 | LC32: 0 | LD32: -119207461.7 | LE32: 0 | LF32: -119207461.7 | LG32: 0 | LH32: =-LH30-LH31 -> 0 | LI32: 0 | LJ32: =-LJ30-LJ31 -> 0 | MC32: =ROW() -> 32 | NM32: =ROW() -> 32 | NN32: INCREASE (DECREASE) FIT @ | NO32: 0.21 | NP32: =NP31*$NO$32 -> 0 | NQ32: 0 | NR32: 0 | NS32: 0 | NT32: 0 | NU32: 0 | NV32: -116246589.3 | NW32: -2658916.354 | NX32: =NX31*$NO$32 -> -118905505.7 | NY32: =NY31*$NO$32 -> -4327507.116 | NZ32: =NZ31*$NO$32 -> -123233012.8 | OE32: =ROW() -> 32 | OF32: INCREASE (DECREASE ) EXPENSE | OH32: =-OH30 -> 4730967.98 | OI32: =-OI30 -> 0 | OJ32: =-OJ30 -> 4730967.98 | OK32: =-OK30 -> -4730967.98 | OL32: =-OL30 -> 0 | OW32: =ROW() -> 32 | PB32: =SUM(OZ32:PA32) -> 0 | PD32: =SUM(PB32:PC32) -> 0 | PF32: =SUM(PD32:PE32) -> 0 | PH32: =SUM(PF32:PG32) -> 0 | PJ32: =SUM(PH32:PI32) -> 0 | PL32: 0 | PN32: 0 | RC32: =ROW() -> 32 | RU32: =ROW() -> 32 | RV32: ADJUSTMENT TO RATE BASE: | SM32: =ROW() -> 32 | TF32: =ROW() -> 32
A33: =ROW() -> 33 | B33: RECLASSIFY TRANSPORTATION REVENUES FROM OTHER OPERATING | D33: =-'CTM Exh Summary'!D42 -> -13154883 | E33: 13154883 | F33: 0 | H33: 0 | J33: 0 | L33: 0 | N33: 0 | P33: =N33+O33 -> 0 | R33: =P33+Q33 -> 0 | S33: =ROW() -> 33 | T33: REMOVE PCA AMORTIZATION OF CUSTOMER RECEIVABLE UE-200893 | V33: =-'CTM Exh Summary'!$E$8 -> 46393846.57 | W33: =-V33 -> -46393846.57 | X33: =+W33+V33 -> 0 | Z33: =+Y33+X33 -> 0 | AB33: =+AA33+Z33 -> 0 | AD33: =+AC33+AB33 -> 0 | AF33: =+AE33+AD33 -> 0 | AK33: =ROW() -> 33 | AL33: ="PORTION OF LINE "&AK20&" ASSOCIATED WITH WHOLESALE CUSTOMERS" -> PORTION OF LINE 20 ASSOCIATED WITH WHOLESALE CUSTOMERS | AO33: ='CTM Exh Summary'!$H$41 -> -14206 | GO33: =ROW() -> 33 | GP33: INCREASE(DECREASE) OPERATING EXPENSE | GR33: =+GR31 -> 9477520.783 | GS33: 502786.5411 | GT33: 9980307.324 | GU33: 0 | GV33: 9980307.324 | GW33: 0 | GX33: 9980307.324 | GY33: 0 | GZ33: 9980307.324 | HA33: 0 | HB33: 9980307.324 | HC33: 0 | HD33: 0 | HE33: 0 | HF33: 0 | MC33: =ROW() -> 33 | MD33: ADJUSTMENT TO RATE BASE: | NM33: =ROW() -> 33 | NN33: INCREASE (DECREASE) NOI | NP33: =NP31-NP32 -> 0 | NQ33: =NQ31-NQ32 -> 0 | NR33: 0 | NS33: 0 | NT33: 0 | NU33: 0 | NV33: -437308597.9 | NW33: -10002590.09 | NX33: =NX31-NX32 -> -447311188 | NY33: =NY31-NY32 -> -16279669.63 | NZ33: =NZ31-NZ32 -> -463590857.6 | OE33: =ROW() -> 33 | OW33: =ROW() -> 33 | OX33: Total Electric AMI ADIT | OZ33: =SUM(OZ30:OZ32) -> -26153646.61 | PA33: =SUM(PA30:PA32) -> 16839149.56 | PB33: =SUM(PB30:PB32) -> -9314497.048 | PC33: =SUM(PC30:PC32) -> -16839149.56 | PD33: -26153646.61 | PE33: 0 | PF33: -26153646.61 | PG33: 0 | PH33: -26153646.61 | PI33: 0 | PJ33: -26153646.61 | PK33: =SUM(PK30:PK32) -> 0 | PL33: -26153646.61 | PM33: 0 | PN33: -26153646.61 | RC33: =ROW() -> 33 | RD33: ADJUSTMENT TO RATE BASE: | RU33: =ROW() -> 33 | RV33: ADJUSTMENT TO ACCUM. DEPREC. | SA33: =SB33 -> 174784.55 | SB33: 174784.55 | SC33: =SD33-SB33 -> 1727315.56 | SD33: 1902100.11 | SE33: =SF33-SD33 -> 1611738.49 | SF33: 3513838.6 | SG33: =SH33-SF33 -> 4335624.65 | SH33: 7849463.25 | SK33: =SL33-SJ33 -> 0 | SM33: =ROW() -> 33 | SN33: CUSTOMER DRIVEN PROGRAMMATIC PROVISIONAL PROFORMA (ADJUSTMENT 6.32) | TF33: =ROW() -> 33 | TG33: INCREASE(DECREASE) OPERATING EXPENSE | TI33: =+TI19-TI24-TI31 -> 94828598.69 | TJ33: =+TJ19-TJ24-TJ31 -> -94828598.69 | TK33: =TI33+TJ33 -> 0 | TL33: =TL32 -> 0 | TM33: =SUM(TK33:TL33) -> 0 | TN33: =TN32 -> 0 | TO33: =SUM(TM33:TN33) -> 0 | TP33: =TP32 -> 0 | TQ33: =SUM(TO33:TP33) -> 0 | TR33: =TR32 -> 0 | TS33: =TS32 -> 0
A34: =ROW() -> 34 | B34: UNBILLED REVENUE CHANGE | D34: =-'CTM Exh Summary'!D43 -> 2163901.064 | E34: -2163901.064 | F34: 0 | H34: 0 | J34: 0 | L34: 0 | N34: 0 | P34: 0 | R34: 0 | S34: =ROW() -> 34 | T34: TOTAL (INCREASE) DECREASE REVENUES | V34: =SUM(V17:V33) -> 299689671.2 | W34: -284649735.5 | X34: 15039935.77 | Y34: -15039935.77 | Z34: 0 | AA34: 0 | AB34: 0 | AC34: 0 | AD34: 0 | AE34: 0 | AF34: 0 | AK34: =ROW() -> 34 | AL34: TOTAL | AO34: =SUM(AO32:AO33) -> -62932830 | AQ34: =SUM(AQ32:AQ33) -> 0 | CG34: 97806.17191 | CH34: -29313055.21 | CI34: 89227.18375 | CJ34: -29223828.03 | GO34: =ROW() -> 34 | MC34: =ROW() -> 34 | MD34: ADJUSTMENT TO ACCUM. DEPREC. AT 100% DEPREC. EXP. LINE 9 | MF34: =-MF27 -> -455757385.7 | MG34: =-MG27 -> 3988422.85 | MH34: =-MH27 -> -451768962.9 | MI34: =-MI27 -> 0 | MJ34: =-MJ27 -> -451768962.9 | MK34: 0 | ML34: -451768962.9 | MM34: 0 | MN34: -451768962.9 | MO34: 0 | MP34: -451768962.9 | MR34: =-MR27 -> 0 | MT34: =-MT27 -> 0 | NM34: =ROW() -> 34 | OE34: =ROW() -> 34 | OF34: INCREASE (DECREASE) FIT @ | OG34: 0.21 | OH34: =-OH32*$OG$34 -> -993503.2758 | OI34: =-OI32*$OG$34 -> 0 | OJ34: =-OJ32*$OG$34 -> -993503.2758 | OK34: =-OK32*$OG$34 -> 993503.2758 | OL34: =-OL32*$OG$34 -> 0 | OW34: =ROW() -> 34 | RC34: =ROW() -> 34 | RD34: ADJUSTMENT TO ACCUM. DEPREC. | RH34: -4724726175 | RI34: -210203843.6 | RJ34: =RH34+RI34 -> -4934930018 | RK34: -411293836.2 | RL34: =RJ34+RK34 -> -5346223855 | RM34: -203371069.2 | RN34: =RL34+RM34 -> -5549594924 | RO34: -394042042.2 | RP34: =RN34+RO34 -> -5943636966 | RR34: =RP34+RQ34 -> -5943636966 | RT34: =RR34+RS34 -> -5943636966 | RU34: =ROW() -> 34 | RV34: ADJUSTMENT TO ADIT IS IN ADJ 6.29 AND TO EDIT IS IN 6.04 | SB34: 0 | SD34: 0 | SF34: 0 | SH34: 0 | SJ34: =SI34+SH34 -> 0 | SL34: =SK34+SJ34 -> 0 | SM34: =ROW() -> 34 | SN34: 403 ELEC. DEPRECIATION EXPENSE | SS34: 301743.54 | ST34: =SS34 -> 301743.54 | SU34: 2874771.14 | SV34: =SU34+ST34 -> 3176514.68 | SW34: 3596245.09 | SX34: =SW34+SV34 -> 6772759.77 | SY34: 3997892.69 | SZ34: =SY34+SX34 -> 10770652.46 | TB34: =TA34+SZ34 -> 10770652.46 | TD34: =TC34+TB34 -> 10770652.46 | TF34: =ROW() -> 34 | TG34: INCREASE(DECREASE) FIT @ | TH34: =FIT -> 0.21 | TI34: =TH34*TI33 -> 19914005.73 | TJ34: =TH34*TJ33 -> -19914005.73 | TK34: =TI34+TJ34 -> 0 | TL34: =-$C$43*TL33 -> 0 | TM34: =SUM(TK34:TL34) -> 0 | TN34: =-$C$43*TN33 -> 0 | TO34: =SUM(TM34:TN34) -> 0 | TP34: =-$C$43*TP33 -> 0 | TQ34: =SUM(TO34:TP34) -> 0 | TR34: =-$C$43*TR33 -> 0 | TS34: =SUM(TQ34:TR34) -> 0
A35: =ROW() -> 35 | B35: CUSTOMER MIGRATION ADJUSTMENT FROM SCH 449I TO SCH 31 | D35: =-'CTM Exh Summary'!D45 -> -283221.0111 | E35: 283221.0111 | F35: 0 | H35: 0 | J35: 0 | L35: 0 | N35: 0 | P35: 0 | R35: 0 | S35: =ROW() -> 35 | CG35: -97806.17191 | CH35: 29313055.21 | CI35: -89227.18375 | CJ35: 29223828.03 | GO35: =ROW() -> 35 | GP35: INCREASE (DECREASE) FIT @ | GQ35: =FIT -> 0.21 | GR35: =-GR33*$GQ$35 -> -1990279.364 | GS35: -105585.1736 | GT35: -2095864.538 | GU35: 0 | GV35: -2095864.538 | GW35: 0 | GX35: -2095864.538 | GY35: 0 | GZ35: -2095864.538 | HA35: =-HA33*$GQ$35 -> 0 | HB35: -2095864.538 | HC35: 0 | HD35: 0 | HE35: 0 | HF35: 0 | MC35: =ROW() -> 35 | MD35: DFIT | MF35: =-MF34*0.21 -> 95709051 | MG35: =-MG34*0.21 -> -837568.7985 | MH35: =-MH34*0.21 -> 94871482.2 | MI35: =-MI34*0.21 -> 0 | MJ35: =-MJ34*0.21 -> 94871482.2 | MK35: 0 | ML35: 94871482.2 | MM35: 0 | MN35: 94871482.2 | MO35: 0 | MP35: 94871482.2 | MR35: =-MR34*0.21 -> 0 | MT35: =-MT34*0.21 -> 0 | NM35: =ROW() -> 35 | OE35: =ROW() -> 35 | OF35: INCREASE (DECREASE) NOI | OH35: =-OH32-OH34 -> -3737464.704 | OI35: =-OI32-OI34 -> 0 | OJ35: =-OJ32-OJ34 -> -3737464.704 | OK35: =-OK32-OK34 -> 3737464.704 | OL35: =OL32+OL34 -> 0 | OS35: =SUM(OS33:OS34) -> 0 | OT35: =SUM(OT33:OT34) -> 0 | OU35: =SUM(OU33:OU34) -> 0 | OV35: =SUM(OV33:OV34) -> 0 | OW35: =ROW() -> 35 | OX35: NET RATEBASE | OZ35: =OZ21+OZ27+OZ33 -> 182936246 | PA35: =PA21+PA27+PA33 -> -117784370.6 | PB35: 65151875.3 | PC35: 117784370.6 | PD35: 182936246 | PE35: 0 | PF35: 182936246 | PG35: 0 | PH35: 182936246 | PI35: 0 | PJ35: 182936246 | PK35: =PK21+PK27+PK33 -> 0 | PL35: 182936246 | PM35: 0 | PN35: 182936246 | RC35: =ROW() -> 35 | RD35: DFIT | RH35: -1229979121 | RI35: -3213422.246 | RJ35: =RI35+RH35 -> -1233192544 | RK35: 29264042.8 | RL35: =RK35+RJ35 -> -1203928501 | RM35: 18401207.36 | RN35: =RM35+RL35 -> -1185527293 | RO35: 41791813.65 | RP35: =RO35+RN35 -> -1143735480 | RR35: =RQ35+RP35 -> -1143735480 | RT35: =RS35+RR35 -> -1143735480 | RU35: =ROW() -> 35 | RV35: TOTAL ADJUSTMENT TO RATEBASE | RZ35: =SUM(RZ32:RZ34) -> 0 | SA35: 174784.55 | SB35: 174784.55 | SC35: 1727315.56 | SD35: 1902100.11 | SE35: 1611738.49 | SF35: 3513838.6 | SG35: 4335624.65 | SH35: =SUM(SH32:SH34) -> 7849463.25 | SI35: 0 | SJ35: 0 | SK35: 0 | SL35: 0 | SM35: =ROW() -> 35 | SN35: 403 ELEC. PORTION OF COMMON | SS35: 0 | ST35: =SS35 -> 0 | SU35: 0 | SV35: =SU35+ST35 -> 0 | SW35: 0 | SX35: =SW35+SV35 -> 0 | SY35: 0 | SZ35: =SY35+SX35 -> 0 | TB35: 0 | TD35: 0 | TF35: =ROW() -> 35 | TG35: INCREASE(DECREASE) NOI | TI35: =TI33-TI34 -> 74914592.97 | TJ35: =TJ33-TJ34 -> -74914592.97 | TK35: =SUM(TI35:TJ35) -> 0 | TL35: =-TL33-TL34 -> 0 | TM35: =SUM(TK35:TL35) -> 0 | TN35: =-TN33-TN34 -> 0 | TO35: =SUM(TM35:TN35) -> 0 | TP35: =-TP33-TP34 -> 0 | TQ35: =SUM(TO35:TP35) -> 0 | TR35: =-TR33-TR34 -> 0 | TS35: =-TS33-TS34 -> 0
A36: =ROW() -> 36 | B36: SCHEDULE 139 GREEN DIRECT RESOURCE OPTION CHARGE | D36: =-'CTM Exh Summary'!D17 -> 33274362.82 | F36: 33274362.82 | G36: =-F36 -> -33274362.82 | H36: 0 | J36: 0 | L36: 0 | N36: 0 | P36: 0 | R36: 0 | S36: =ROW() -> 36 | T36: DECREASE REVENUE SENSITIVE ITEMS FOR DECREASE IN REVENUES: | CG36: =CG24-CG35 -> 97806.17191 | CH36: =CH24-CH35 -> -29313055.21 | CI36: =CI24-CI35 -> 89227.18375 | CJ36: =CJ24-CJ35 -> -29223828.03 | GO36: =ROW() -> 36 | MD36: TOTAL ADJUSTMENT TO RATEBASE | MF36: =SUM(MF34:MF35) -> -360048334.7 | MG36: =SUM(MG34:MG35) -> 3150854.052 | MH36: =SUM(MH34:MH35) -> -356897480.7 | MI36: =SUM(MI34:MI35) -> 0 | MJ36: =SUM(MJ34:MJ35) -> -356897480.7 | MK36: 0 | ML36: -356897480.7 | MM36: 0 | MN36: -356897480.7 | MO36: 0 | MP36: -356897480.7 | MQ36: 0 | MR36: 0 | MS36: 0 | MT36: 0 | OE36: =ROW() -> 36 | OW36: =ROW() -> 36 | RC36: =ROW() -> 36 | RD36: TOTAL ADJUSTMENT TO RATEBASE | RH36: =SUM(RH33:RH35) -> -5954705296 | RI36: -213417265.8 | RJ36: -6168122562 | RK36: -382029793.4 | RL36: -6550152355 | RM36: -184969861.9 | RN36: -6735122217 | RO36: -352250228.5 | RP36: -7087372446 | RQ36: 0 | RR36: -7087372446 | RS36: 0 | RT36: -7087372446 | SM36: =ROW() -> 36 | SN36: 404 ELEC. AMORTIZATION EXPENSE | SS36: 2048.95 | ST36: =SS36 -> 2048.95 | SU36: 55344.95 | SV36: =SU36+ST36 -> 57393.9 | SW36: 87905.46 | SX36: =SW36+SV36 -> 145299.36 | SY36: 88036.5 | SZ36: 233335.86 | TB36: 233335.86 | TD36: 233335.86 | TF36: =ROW() -> 36
A37: =ROW() -> 37 | B37: SCHEDULE 139 GREEN DIRECT ENERGY CREDIT | D37: =-'CTM Exh Summary'!D18 -> -31206131.68 | F37: -31206131.68 | G37: =-F37 -> 31206131.68 | H37: 0 | J37: 0 | L37: 0 | N37: 0 | P37: 0 | R37: 0 | S37: =ROW() -> 37 | T37: BAD DEBTS | U37: =+'Def, COC, ConvF'!$P$12 -> 0.006488 | V37: =SUM(V$17:V$24,V$28:V33)*U37 -> 1943095.85 | W37: =SUM(W$17:W$24,W$28:W$30,W33:W33)*U37 -> -1845516.747 | X37: =SUM(V37:W37) -> 97579.10328 | Y37: =SUM(Y$17:Y$24,Y$28:Y$33)*$U37 -> -97579.10328 | Z37: =SUM(Z$17:Z$24,Z$28:Z$33)*$C$55 -> 0 | AA37: 0 | AB37: 0 | AC37: 0 | AD37: 0 | AE37: 0 | AF37: 0 | GO37: =ROW() -> 37 | GP37: INCREASE (DECREASE) NOI | GR37: =-GR33-GR35 -> -7487241.419 | GS37: -397201.3674 | GT37: -7884442.786 | GU37: 0 | GV37: -7884442.786 | GW37: 0 | GX37: -7884442.786 | GY37: 0 | GZ37: -7884442.786 | HA37: =-HA33-HA35 -> 0 | HB37: -7884442.786 | HC37: 0 | HD37: 0 | HE37: 0 | HF37: 0 | OE37: =ROW() -> 37 | OS37: =OS35 -> 0 | OT37: =OT35 -> 0 | OU37: =OU35 -> 0 | OV37: =OV35 -> 0 | OW37: =ROW() -> 37 | OX37: OPERATING INCOME | SM37: =ROW() -> 37 | SN37: 404 ELEC. PORTION OF COMMON | SS37: 0 | ST37: =SS37 -> 0 | SU37: 0 | SV37: =SU37+ST37 -> 0 | SW37: 0 | SX37: =SW37+SV37 -> 0 | SY37: 0 | SZ37: 0 | TB37: 0 | TD37: 0 | TF37: =ROW() -> 37 | TG37: (NOTE 1) THESE DEFERRALS WERE APPROVED FOR RECOVERY IN THE PRIOR RATE CASE; THEIR
A38: =ROW() -> 38 | B38: SCHEDULE 139 GREEN DIRECT SUPPLEMENT ENERGY CREDIT | D38: =-'CTM Exh Summary'!D19 -> -741313.722 | F38: -741313.722 | G38: =-F38 -> 741313.722 | H38: 0 | J38: 0 | L38: 0 | N38: 0 | P38: 0 | R38: 0 | S38: =ROW() -> 38 | T38: ANNUAL FILING FEE | U38: =+'Def, COC, ConvF'!$P$13 -> 0.004 | V38: =SUM(V$17:V$24,V$28:V33)*U38 -> 1197962.916 | W38: =SUM(W$17:W$24,W$28:W$30,W33:W33)*U38 -> -1137803.173 | X38: =SUM(V38:W38) -> 60159.74308 | Y38: =SUM(Y$17:Y$24,Y$28:Y$33)*$U38 -> -60159.74308 | Z38: =SUM(Z$17:Z$24,Z$28:Z$33)*$C$56 -> 0 | AA38: 0 | AB38: 0 | AC38: 0 | AD38: 0 | AE38: 0 | AF38: 0 | OE38: =ROW() -> 38 | OF38: (NOTE 1) - DUE TO AMR RETIREMENTS, THE ACCUMULATED DEPRECIATION HAS A DEBIT BALANCE RESULTING IN AN OVERALL NEGATIVE RESERVE | OW38: =ROW() -> 38 | OX38: Remove Test Year Entries for Deferred Return (456) | OY38: =+'Def, COC, ConvF'!K24 -> 0.0275 | OZ38: 7727414.6 | PA38: -7727414.6 | PB38: =OZ38+PA38 -> 0 | SM38: =ROW() -> 38 | SN38: TOTAL DEPRECIATION AND AMORTIZATION EXPENSE | SS38: =SUM(SS34:SS37) -> 303792.49 | ST38: 303792.49 | SU38: 2930116.09 | SV38: 3233908.58 | SW38: 3684150.55 | SX38: 6918059.13 | SY38: 4085929.19 | SZ38: 11003988.32 | TA38: 0 | TB38: 11003988.32 | TC38: 0 | TD38: 11003988.32 | TF38: =ROW() -> 38 | TG38: RATE BASE AND AMORTIZATION ADJUSTMENTS ARE INCLUDED IN THE
A39: =ROW() -> 39 | F39: 0 | H39: 0 | J39: 0 | L39: 0 | N39: 0 | P39: 0 | R39: 0 | S39: =ROW() -> 39 | T39: STATE UTILITY TAX | U39: =+'Def, COC, ConvF'!$P$14 -> 0.038483 | V39: =SUM(V$17:V$24,V$28:V33)*U39 -> 11525301.72 | W39: =SUM(W$17:W$24,W$28:W$30,W33:W33)*U39 -> -10946519.88 | X39: =SUM(V39:W39) -> 578781.8482 | Y39: =SUM(Y$17:Y$24,Y$28:Y$33)*$U39 -> -578781.8482 | Z39: =SUM(Z$17:Z$24,Z$28:Z$33)*$C$57 -> 0 | AA39: 0 | AB39: 0 | AC39: 0 | AD39: 0 | AE39: 0 | AF39: 0 | OS39: =-$OG$34*OS37 -> 0 | OT39: =-$OG$34*OT37 -> 0 | OU39: =-$OG$34*OU37 -> 0 | OV39: =-$OG$34*OV37 -> 0 | OW39: =ROW() -> 39 | SM39: =ROW() -> 39 | TF39: =ROW() -> 39 | TG39: REGULATORY ASSETS AND LIABILITIES ADJUSTMENT. THESE ADJUSTMENTS REVERSE THE
A40: =ROW() -> 40 | F40: 0 | H40: 0 | J40: 0 | L40: 0 | N40: 0 | P40: 0 | R40: 0 | S40: =ROW() -> 40 | T40: TOTAL | V40: =SUM(V37:V39) -> 14666360.49 | W40: -13929839.8 | X40: 736520.6946 | Y40: -736520.6946 | Z40: 0 | AA40: 0 | AB40: 0 | AC40: 0 | AD40: 0 | AE40: 0 | AF40: 0 | OS40: =-OS37-OS39 -> 0 | OT40: =-OT37-OT39 -> 0 | OU40: =-OU37-OU39 -> 0 | OV40: =-OV37-OV39 -> 0 | OW40: =ROW() -> 40 | OX40: REVENUE SENSITIVE ITEMS FOR CHANGE IN REVENUES: | SM40: =ROW() -> 40 | SN40: INCREASE (DECREASE) EXPENSE | SS40: =SS38 -> 303792.49 | ST40: 303792.49 | SU40: 2930116.09 | SV40: 3233908.58 | SW40: 3684150.55 | SX40: 6918059.13 | SY40: 4085929.19 | SZ40: 11003988.32 | TA40: 0 | TB40: 11003988.32 | TC40: 0 | TD40: 11003988.32 | TF40: =ROW() -> 40 | TG40: DEFERRAL ENTRIES THAT OCCURRED IN THE TEST YEAR.
A41: =ROW() -> 41 | B41: NORMALIZED TEST YEAR SALES REVENUE | F41: 0 | H41: 0 | I41: ='CTM Exh Summary'!D61 -> 14181030.29 | J41: 14181030.29 | K41: ='CTM Exh Summary'!D62 -> 9749529.13 | L41: 23930559.42 | M41: ='CTM Exh Summary'!D63 -> 22389080.99 | N41: 46319640.41 | O41: ='CTM Exh Summary'!H62 -> 0 | P41: 46319640.41 | Q41: ='CTM Exh Summary'!H63 -> 0 | R41: 46319640.41 | S41: =ROW() -> 41 | OW41: =ROW() -> 41 | OX41: BAD DEBTS | OY41: =+'Def, COC, ConvF'!$P$12 -> 0.006488 | OZ41: =OZ38*OY41 -> 50135.46592 | PA41: =-OZ41 -> -50135.46592 | SM41: =ROW() -> 41
A42: =ROW() -> 42 | F42: 0 | H42: 0 | J42: 0 | L42: 0 | N42: 0 | P42: 0 | R42: 0 | S42: =ROW() -> 42 | T42: REMOVE EXPENSES ASSOCIATED WITH RIDERS | OW42: =ROW() -> 42 | OX42: ANNUAL FILING FEE | OY42: =+'Def, COC, ConvF'!$P$13 -> 0.004 | OZ42: =OZ38*OY42 -> 30909.6584 | PA42: =-OZ42 -> -30909.6584 | SM42: =ROW() -> 42 | SN42: INCREASE (DECREASE) FIT | SO42: 0.21 | SS42: =SS40*-$SO$42 -> -63796.4229 | ST42: =ST40*-$SO$42 -> -63796.4229 | SU42: -615324.3789 | SV42: -679120.8018 | SW42: -773671.6155 | SX42: -1452792.417 | SY42: -858045.1299 | SZ42: -2310837.547 | TA42: 0 | TB42: -2310837.547 | TC42: 0 | TD42: -2310837.547
A43: =ROW() -> 43 | B43: OTHER - SALES | D43: =-'CTM Exh Summary'!D46 -> 3281890 | E43: =-D43 -> -3281890 | F43: 0 | H43: 0 | J43: 0 | L43: 0 | N43: 0 | P43: 0 | R43: 0 | S43: =ROW() -> 43 | T43: REMOVE CONSERVATION AMORTIZATON - SCHEDULE 120 | V43: 102976391.1 | W43: =-V43 -> -102976391.1 | X43: =+W43+V43 -> 0 | Z43: =+Y43+X43 -> 0 | AB43: =+AA43+Z43 -> 0 | AD43: =+AC43+AB43 -> 0 | AF43: =+AE43+AD43 -> 0 | OW43: =ROW() -> 43 | OX43: STATE UTILITY TAX | OY43: =+'Def, COC, ConvF'!$P$14 -> 0.038483 | OZ43: =OZ38*OY43 -> 297374.0961 | PA43: =-OZ43 -> -297374.0961 | SM43: =ROW() -> 43
A44: =ROW() -> 44 | F44: 0 | H44: 0 | J44: 0 | L44: 0 | N44: 0 | P44: 0 | R44: 0 | S44: =ROW() -> 44 | T44: REMOVE PROPERTY TAX AMORTIZATION EXP - SCHEDULE 140 | V44: 49773760.21 | W44: -49773760.21 | X44: 0 | Z44: 0 | AB44: 0 | AD44: 0 | AF44: 0 | OW44: =ROW() -> 44 | OX44: TOTAL | OZ44: =SUM(OZ41:OZ43) -> 378419.2204 | PA44: =SUM(PA41:PA43) -> -378419.2204 | SM44: =ROW() -> 44 | SN44: INCREASE (DECREASE) NOI | SS44: =-SS40-SS42 -> -239996.0671 | ST44: =-ST40-ST42 -> -239996.0671 | SU44: -2314791.711 | SV44: -2554787.778 | SW44: -2910478.935 | SX44: -5465266.713 | SY44: -3227884.06 | SZ44: -8693150.773 | TA44: 0 | TB44: -8693150.773 | TC44: 0 | TD44: -8693150.773
A45: =ROW() -> 45 | B45: OTHER- RESALE | D45: =-SUM('CTM Exh Summary'!D6,,'CTM Exh Summary'!D41,'CTM Exh Summary'!D44,'CTM Exh Summary'!D47) -> -112906.73 | E45: =SUM('CTM Exh Summary'!D6,'CTM Exh Summary'!D36,'CTM Exh Summary'!D38,'CTM Exh Summary'!D41,'CTM Exh Summary'!D44,'CTM Exh Summary'!D47) -> 147017.8761 | F45: 34111.14608 | G45: =SUM('CTM Exh Summary'!D54,'CTM Exh Summary'!D56) -> -34111.14608 | H45: 0 | J45: 0 | L45: 0 | N45: 0 | P45: 0 | R45: 0 | S45: =ROW() -> 45 | T45: REMOVE MUNICIPAL TAXES - SCHEDULE 81 | V45: 99030798.5 | W45: -99030798.5 | X45: 0 | Z45: 0 | AB45: 0 | AD45: 0 | AF45: 0 | OW45: =ROW() -> 45 | SM45: =ROW() -> 45
A46: =ROW() -> 46 | B46: ADJUSTMENTS TO SALES TO CUSTOMERS | D46: =SUM(D16:D45) -> 165843415.5 | E46: 117162999.5 | F46: 283006415 | G46: -283006415 | H46: 0 | I46: 14181030.29 | J46: 14181030.29 | K46: 9749529.13 | L46: 23930559.42 | M46: 22389080.99 | N46: 46319640.41 | O46: =SUM(O16:O45) -> 0 | P46: 46319640.41 | Q46: 0 | R46: 46319640.41 | S46: =ROW() -> 46 | T46: REMOVE LOW INCOME AMORTIZATION - SCHEDULE 129 | V46: 46781936.94 | W46: -46781936.94 | X46: 0 | Z46: 0 | AB46: 0 | AD46: 0 | AF46: 0 | OW46: =ROW() -> 46 | OX46: OPERATING EXPENSE | SM46: =ROW() -> 46 | SN46: INCREASE TO GROSS PLANT | SS46: 44198350.35 | ST46: =SS46 -> 44198350.35 | SU46: 112269526 | SV46: =SU46+ST46 -> 156467876.3 | SW46: 58413576.16 | SX46: =SW46+SV46 -> 214881452.5 | SY46: 128498653.7 | SZ46: =SY46+SX46 -> 343380106.2
A47: =ROW() -> 47 | C47: check | E47: ='CTM Exh Summary'!D71+'CTM Exh Summary'!D76-E46 -> 0 | G47: ='CTM Exh Summary'!D72+'CTM Exh Summary'!D77-G46 -> 0 | I47: ='CTM Exh Summary'!D73-'Common Adj'!I46 -> 0 | K47: ='CTM Exh Summary'!D74-'Common Adj'!K46+K33 -> 0 | M47: ='CTM Exh Summary'!D75-'Common Adj'!M46+M33 -> 0 | O47: ='CTM Exh Summary'!H74-'Common Adj'!O46+O33 -> 0 | Q47: ='CTM Exh Summary'!H75-'Common Adj'!Q46+Q33 -> 0 | S47: =ROW() -> 47 | T47: REMOVE RESIDENTIAL EXCHANGE - SCH 194 | V47: -77573434.54 | W47: 77573434.54 | X47: 0 | Z47: 0 | AB47: 0 | AD47: 0 | AF47: 0 | OW47: =ROW() -> 47 | OX47: Amortization of Deferred Equity Return on AMI | PF47: 0 | PG47: =PH47-PF47 -> 9678037.196 | PH47: 9678037.196 | PI47: =PJ47-PH47 -> 0 | PJ47: 9678037.196 | PK47: =PL47-PJ47 -> 0 | PL47: 9678037.196 | PM47: =PN47-PL47 -> 0 | PN47: 9678037.196 | SM47: =ROW() -> 47 | SN47: INCREASE TO ACCUM. DEPRECIATION & AMORTIZATION | SS47: -303792.49 | ST47: =SS47 -> -303792.49 | SU47: -3233908.58 | SV47: =SU47+ST47 -> -3537701.07 | SW47: -3145184.89 | SX47: =SW47+SV47 -> -6682885.96 | SY47: -8949341.32 | SZ47: =SY47+SX47 -> -15632227.28
A48: =ROW() -> 48 | B48: OTHER OPERATING REVENUES | S48: =ROW() -> 48 | T48: REMOVE AMORT ON INTEREST ON REC PROCEEDS SCH 137 | V48: -11274.67 | W48: 11274.67 | X48: 0 | Z48: 0 | AB48: 0 | AD48: 0 | AF48: 0 | OW48: =ROW() -> 48 | OX48: TOTAL OPERATING EXPENSES | OZ48: =SUM(OZ47:OZ47) -> 0 | PA48: 0 | PB48: 0 | PC48: 0 | PD48: 0 | PE48: 0 | PF48: 0 | PG48: 9678037.196 | PH48: 9678037.196 | PI48: 0 | PJ48: 9678037.196 | PK48: =SUM(PK47:PK47) -> 0 | PL48: 9678037.196 | PM48: 0 | PN48: 9678037.196 | SM48: =ROW() -> 48 | SN48: INCREASE TO ACCUMULATED DEFERRED INCOME TAXES | SS48: 4899661.06 | ST48: =SS48 -> 4899661.06 | SU48: 8958185.01 | SV48: =SU48+ST48 -> 13857846.07 | SW48: 3177082.73 | SX48: =SW48+SV48 -> 17034928.8 | SY48: 6224482.58 | SZ48: =SY48+SX48 -> 23259411.38
A49: =ROW() -> 49 | S49: =ROW() -> 49 | T49: GREEN POWER - SCH 135/136 TAGS CHARGED TO 557 | V49: 4108514.92 | W49: -4108514.92 | X49: 0 | Z49: 0 | AB49: 0 | AD49: 0 | AF49: 0 | OW49: =ROW() -> 49 | SM49: =ROW() -> 49 | SN49: TOTAL ADJUSTMENT TO RATE BASE | SS49: =SUM(SS46:SS48) -> 48794218.92 | ST49: =SUM(ST46:ST48) -> 48794218.92 | SU49: 117993802.4 | SV49: 166788021.3 | SW49: 58445474 | SX49: 225233495.3 | SY49: 125773795 | SZ49: 351007290.3 | TA49: 0 | TB49: 0 | TC49: 0 | TD49: 0
A50: =ROW() -> 50 | B50: EV ONE TIME INCENTIVE | D50: ='E OOR'!D69 -> -42240 | E50: =-D50 -> 42240 | F50: =D50+E50 -> 0 | H50: =F50+G50 -> 0 | J50: =H50+I50 -> 0 | L50: =J50+K50 -> 0 | N50: =L50+M50 -> 0 | P50: =N50+O50 -> 0 | R50: =P50+Q50 -> 0 | S50: =ROW() -> 50 | T50: GREEN POWER - SCH 135/136 CHARGED TO C.99999.03.37.01 | V50: 1451914.62 | W50: -1451914.62 | X50: 0 | Z50: 0 | AB50: 0 | AD50: 0 | AF50: 0 | OW50: =ROW() -> 50 | OX50: INCREASE (DECREASE ) OPERATING INCOME | OZ50: =+OZ38-OZ48-OZ44 -> 7348995.38 | PA50: =+PA38-PA48-PA44 -> -7348995.38 | PB50: 0 | PC50: 0 | PD50: 0 | PE50: 0 | PF50: 0 | PG50: -9678037.196 | PH50: -9678037.196 | PI50: 0 | PJ50: -9678037.196 | PK50: =+PK38-PK48-PK44 -> 0 | PL50: -9678037.196 | PM50: 0 | PN50: -9678037.196 | SM50: =ROW() -> 50
A51: =ROW() -> 51 | S51: =ROW() -> 51 | T51: GREEN POWER - SCH 135/136 BENEFITS PORTION OF ADMIN | V51: 124164.44 | W51: -124164.44 | X51: 0 | Z51: 0 | AB51: 0 | AD51: 0 | AF51: 0 | OW51: =ROW() -> 51 | SM51: =ROW() -> 51 | SN51: SPECIFIC (ADJUSTMENT 6.33)
A52: =ROW() -> 52 | S52: =ROW() -> 52 | T52: GREEN POWER - SCH 135/136 TAXES PORTION OF ADMIN | V52: 36835.45 | W52: -36835.45 | X52: 0 | Z52: 0 | AB52: 0 | AD52: 0 | AF52: 0 | OW52: =ROW() -> 52 | OX52: INCREASE (DECREASE) FIT @ | OY52: =FIT -> 0.21 | OZ52: =+$OY$52*OZ50 -> 1543289.03 | PA52: -1543289.03 | PB52: 0 | PC52: 0 | PD52: 0 | PE52: 0 | PF52: 0 | PG52: -2032387.811 | PH52: -2032387.811 | PI52: 0 | PJ52: -2032387.811 | PK52: =+$OY$52*PK50 -> 0 | PL52: -2032387.811 | PM52: 0 | PN52: -2032387.811 | SM52: =ROW() -> 52 | SN52: 403 ELEC. DEPRECIATION EXPENSE | SS52: 1286931.13 | ST52: =SS52 -> 1286931.13 | SU52: 5436371.78 | SV52: =SU52+ST52 -> 6723302.91 | SW52: 4452175.21 | SX52: =SW52+SV52 -> 11175478.12 | SY52: 10196902.23 | SZ52: =SY52+SX52 -> 21372380.35 | TB52: =TA52+SZ52 -> 21372380.35 | TD52: =TC52+TB52 -> 21372380.35
A53: =ROW() -> 53 | B53: REMOVE OVEREARNINGS ACCRUALS | F53: =D53+E53 -> 0 | H53: =F53+G53 -> 0 | J53: =H53+I53 -> 0 | L53: =J53+K53 -> 0 | N53: 0 | P53: =N53+O53 -> 0 | R53: =P53+Q53 -> 0 | S53: =ROW() -> 53 | T53: REMOVE PCA CUSTOMER RECEIVABLE UE200893 (BOOKED TO 55700138) | V53: 43582093 | W53: -43582093 | X53: 0 | Z53: 0 | AB53: 0 | AD53: 0 | AF53: 0 | OW53: =ROW() -> 53 | OX53: INCREASE (DECREASE) NOI | OZ53: =+OZ50-OZ52 -> 5805706.35 | PA53: -5805706.35 | PB53: 0 | PC53: 0 | PD53: 0 | PE53: 0 | PF53: 0 | PG53: -7645649.385 | PH53: -7645649.385 | PI53: 0 | PJ53: -7645649.385 | PK53: =+PK50-PK52 -> 0 | PL53: -7645649.385 | PM53: 0 | PN53: -7645649.385 | SM53: =ROW() -> 53 | SN53: 403 ELEC. PORTION OF COMMON | SS53: 0 | ST53: =SS53 -> 0 | SU53: 0 | SV53: =SU53+ST53 -> 0 | SW53: 0 | SX53: =SW53+SV53 -> 0 | SY53: 0 | SZ53: =SY53+SX53 -> 0 | TB53: 0 | TD53: 0
A54: =ROW() -> 54 | B54: REMOVE CURRENT PERIOD DECOUPLING DEFERRALS | F54: 0 | G54: 43799383.6 | H54: 43799383.6 | J54: 43799383.6 | L54: 43799383.6 | N54: 43799383.6 | P54: 43799383.6 | R54: 43799383.6 | S54: =ROW() -> 54 | X54: 0 | Z54: 0 | AB54: 0 | AD54: 0 | AF54: 0 | SM54: =ROW() -> 54 | SN54: 404 ELEC. AMORTIZATION EXPENSE | SS54: 0 | ST54: =SS54 -> 0 | SU54: 0 | SV54: =SU54+ST54 -> 0 | SW54: 0 | SX54: =SW54+SV54 -> 0 | SY54: 0 | SZ54: 0 | TB54: 0 | TD54: 0
A55: =ROW() -> 55 | B55: REMOVE REVENUE DEFERRALS FOR TAX REFORM | E55: 0 | F55: 0 | H55: 0 | J55: 0 | L55: 0 | N55: 0 | P55: 0 | R55: 0 | S55: =ROW() -> 55 | T55: TOTAL INCREASE (DECREASE) EXPENSE | V55: =SUM(V43:V54) -> 270281700 | W55: -270281700 | X55: 0 | Y55: 0 | Z55: 0 | AA55: 0 | AB55: 0 | AC55: 0 | AD55: 0 | AE55: 0 | AF55: 0 | SM55: =ROW() -> 55 | SN55: 404 ELEC. PORTION OF COMMON | SS55: 0 | ST55: =SS55 -> 0 | SU55: 0 | SV55: =SU55+ST55 -> 0 | SW55: 0 | SX55: =SW55+SV55 -> 0 | SY55: 461782.4226 | SZ55: 461782.4226 | TB55: 461782.4226 | TD55: 461782.4226
A56: =ROW() -> 56 | B56: RECLASSIFY TRANPORTATION REVENUES TO SALES TO CUSTOMERS TY only | D56: =-E56 -> 13154883 | E56: =-E33 -> -13154883 | F56: 0 | H56: 0 | J56: 0 | K56: -627645.3466 | L56: -627645.3466 | M56: 616545.7592 | N56: -11099.58742 | P56: -11099.58742 | R56: -11099.58742 | S56: =ROW() -> 56 | SM56: =ROW() -> 56 | SN56: TOTAL DEPRECIATION AND AMORTIZATION EXPENSE | SS56: =SUM(SS52:SS55) -> 1286931.13 | ST56: 1286931.13 | SU56: 5436371.78 | SV56: 6723302.91 | SW56: 4452175.21 | SX56: 11175478.12 | SY56: 10658684.65 | SZ56: 21834162.77 | TA56: 0 | TB56: 21834162.77 | TC56: 0 | TD56: 21834162.77
A57: =ROW() -> 57 | B57: REMOVE PLR REVENUE ACCRUAL - OFFSET TO LINE 26 and 27 | D57: ='E OOR'!D43 -> -8280610.34 | E57: =-D57 -> 8280610.34 | F57: 0 | H57: 0 | J57: 0 | L57: 0 | N57: 0 | P57: 0 | R57: 0 | S57: =ROW() -> 57 | T57: INCREASE (DECREASE) OPERATING INCOME BEFORE FIT | V57: =+V34-V40-V55 -> 14741610.74 | W57: -438195.6695 | X57: 14303415.08 | Y57: -14303415.08 | Z57: 0 | AA57: 0 | AB57: 0 | AC57: 0 | AD57: 0 | AE57: 0 | AF57: 0 | SM57: =ROW() -> 57
A58: =ROW() -> 58 | B58: REMOVE 24 M GAAP | F58: 0 | G58: 0 | H58: 0 | J58: 0 | L58: 0 | N58: 0 | P58: 0 | R58: 0 | S58: =ROW() -> 58 | T58: INCREASE (DECREASE) FIT | U58: 0.21 | V58: =V57*$U$58 -> 3095738.256 | W58: -92021.0906 | X58: 3003717.166 | Y58: -3003717.166 | Z58: 0 | AA58: 0 | AB58: 0 | AC58: 0 | AD58: 0 | AE58: 0 | AF58: 0 | SM58: =ROW() -> 58 | SN58: INCREASE (DECREASE) EXPENSE | SS58: =SS56 -> 1286931.13 | ST58: 1286931.13 | SU58: 5436371.78 | SV58: 6723302.91 | SW58: 4452175.21 | SX58: 11175478.12 | SY58: 10658684.65 | SZ58: 21834162.77 | TB58: =TB56 -> 21834162.77 | TD58: =TD56 -> 21834162.77
A59: =ROW() -> 59 | B59: REMOVE RESERVE ON DEFERRED LATE PAY FEES/COVID | F59: 0 | H59: 0 | J59: 0 | L59: 0 | N59: 0 | P59: 0 | R59: 0 | S59: =ROW() -> 59 | T59: INCREASE (DECREASE) NOI | V59: =V57-V58 -> 11645872.49 | W59: -346174.5789 | X59: 11299697.91 | Y59: -11299697.91 | Z59: 0 | AA59: 0 | AB59: 0 | AC59: 0 | AD59: 0 | AE59: 0 | AF59: 0 | SM59: =ROW() -> 59 | TG59: =UPPER(TG32) ->  | UK59: =UPPER(UK34) -> 
A60: =ROW() -> 60 | B60: REMOVE GREEN DIRECT LIQ DMGS AMORT - REV REMOVAL PART OF LINE 37 | F60: 0 | G60: -1389380.02 | H60: -1389380.02 | J60: -1389380.02 | L60: -1389380.02 | N60: -1389380.02 | P60: -1389380.02 | R60: -1389380.02 | S60: =ROW() -> 60 | SM60: =ROW() -> 60 | SN60: INCREASE (DECREASE) FIT | SO60: 0.21 | SS60: =SS58*-$SO$60 -> -270255.5373 | ST60: =ST58*-$SO$60 -> -270255.5373 | SU60: -1141638.074 | SV60: -1411893.611 | SW60: -934956.7941 | SX60: -2346850.405 | SY60: -2238323.777 | SZ60: =SZ58*-$SO$60 -> -4585174.182 | TA60: =TA58*-$SO$60 -> 0 | TB60: =TB58*-$SO$60 -> -4585174.182 | TC60: =TC58*-$SO$60 -> 0 | TD60: =TD58*-$SO$60 -> -4585174.182 | UK60: =UPPER(UK35) -> 
A61: =ROW() -> 61 | B61: INCLUDE TRANSMISSION OATT REVENUE | F61: 0 | H61: 0 | J61: 0 | K61: -1308151.591 | L61: -1308151.591 | M61: 4224790.606 | N61: 2916639.015 | P61: 2916639.015 | R61: 2916639.015 | S61: =ROW() -> 61 | SM61: =ROW() -> 61
A62: =ROW() -> 62 | B62: ADJUSTMENTS TO OTHER OPERATING REVENUES | D62: =SUM(D49:D61) -> 4832032.66 | E62: =SUM(E49:E61) -> -4832032.66 | F62: 0 | G62: 42410003.58 | H62: 42410003.58 | I62: 0 | J62: 42410003.58 | K62: -1935796.938 | L62: 40474206.64 | M62: 4841336.365 | N62: 45315543.01 | O62: =SUM(O49:O61) -> 0 | P62: 45315543.01 | Q62: 0 | R62: 45315543.01 | S62: =ROW() -> 62 | T62: SALES TO CUSTOMERS | V62: =SUM(V17:V19,V21:V24,V26,V28,V33:V33,V30:V31) -> 304125471.6 | W62: -286618901.9 | X62: 17506569.71 | Y62: -17506569.71 | Z62: 0 | AA62: 0 | AB62: 0 | AC62: 0 | AD62: 0 | AE62: 0 | AF62: 0 | SM62: =ROW() -> 62 | SN62: INCREASE (DECREASE) NOI | SS62: =-SS58-SS60 -> -1016675.593 | ST62: =-ST58-ST60 -> -1016675.593 | SU62: -4294733.706 | SV62: -5311409.299 | SW62: -3517218.416 | SX62: -8828627.715 | SY62: -8420360.876 | SZ62: =-SZ58-SZ60 -> -17248988.59 | TA62: =-TA58-TA60 -> 0 | TB62: =-TB58-TB60 -> -17248988.59 | TC62: =-TC58-TC60 -> 0 | TD62: =-TD58-TD60 -> -17248988.59
A63: =ROW() -> 63 | B63: TOTAL INCREASE (DECREASE) RETAIL REVENUES | D63: =D46+D62 -> 170675448.1 | E63: =E46+E62 -> 112330966.9 | F63: 283006415 | G63: -240596411.4 | H63: 42410003.58 | I63: 14181030.29 | J63: 56591033.87 | K63: 7813732.193 | L63: 64404766.07 | M63: 27230417.35 | N63: 91635183.42 | O63: =O46+O62 -> 0 | P63: 91635183.42 | Q63: 0 | R63: 91635183.42 | S63: =ROW() -> 63 | T63: FIRM RESALE | V63: =V20 -> 0 | W63: 0 | X63: 0 | Y63: 0 | Z63: 0 | AA63: 0 | AB63: 0 | AC63: 0 | AD63: 0 | AE63: 0 | AF63: 0 | SM63: =ROW() -> 63
A64: =ROW() -> 64 | S64: =ROW() -> 64 | T64: OTHER OPERATING REVENUES | V64: =SUM(V25,V27,V29,V32) -> -4435800.33 | W64: 1969166.39 | X64: -2466633.94 | Y64: 2466633.94 | Z64: 0 | AA64: 0 | AB64: 0 | AC64: 0 | AD64: 0 | AE64: 0 | AF64: 0 | SM64: =ROW() -> 64 | SN64: INCREASE TO GROSS PLANT | SS64: 248858085.7 | ST64: =SS64 -> 248858085.7 | SU64: 207087159.3 | SV64: =SU64+ST64 -> 455945245 | SW64: 32685474.27 | SX64: =SW64+SV64 -> 488630719.2 | SY64: 446418402.2 | SZ64: =SY64+SX64 -> 935049121.4
A65: =ROW() -> 65 | S65: =ROW() -> 65 | T65: TOTAL ADJUSTMENTS TO REVENUES | V65: =SUM(V62:V64) -> 299689671.2 | W65: -284649735.5 | X65: 15039935.77 | Y65: -15039935.77 | Z65: 0 | AA65: 0 | AB65: 0 | AC65: 0 | AD65: 0 | AE65: 0 | AF65: 0 | SM65: =ROW() -> 65 | SN65: INCREASE TO ACCUM. DEPRECIATION & AMORTIZATION | SS65: -1286931.13 | ST65: =SS65 -> -1286931.13 | SU65: -6723302.91 | SV65: =SU65+ST65 -> -8010234.04 | SW65: -5322013.09 | SX65: =SW65+SV65 -> -13332247.13 | SY65: -16537949.62 | SZ65: =SY65+SX65 -> -29870196.75
A66: =ROW() -> 66 | S66: =ROW() -> 66 | V66: =V34-V65 -> 0 | W66: 0 | X66: 0 | Y66: 0 | Z66: 0 | AA66: 0 | AB66: 0 | AC66: 0 | AD66: 0 | AE66: 0 | AF66: 0 | SM66: =ROW() -> 66 | SN66: INCREASE TO ACCUMULATED DEFERRED INCOME TAXES | SS66: -2205224.7 | ST66: =SS66 -> -2205224.7 | SU66: -5511447.69 | SV66: =SU66+ST66 -> -7716672.39 | SW66: -4601340.83 | SX66: =SW66+SV66 -> -12318013.22 | SY66: -10842382.59 | SZ66: =SY66+SX66 -> -23160395.81
A67: =ROW() -> 67 | B67: OTHER OPERATING EXPENSES | S67: =ROW() -> 67 | T67: PURCHASED AND INTERCHANGED | V67: =SUM(V53,V49) -> 47690607.92 | W67: -47690607.92 | X67: 0 | Y67: 0 | Z67: 0 | AA67: 0 | AB67: 0 | AC67: 0 | AD67: 0 | AE67: 0 | AF67: 0 | SM67: =ROW() -> 67 | SN67: TOTAL ADJUSTMENT TO RATE BASE | SS67: =SUM(SS64:SS66) -> 245365929.8 | ST67: =SUM(ST64:ST66) -> 245365929.8 | SU67: 194852408.7 | SV67: 440218338.5 | SW67: 22762120.35 | SX67: 462980458.9 | SY67: 419038070 | SZ67: 882018528.9 | TA67: 0 | TB67: 0 | TC67: 0 | TD67: 0
A68: =ROW() -> 68 | B68: SCH95A SET IN RATES UE-220066 | D68: ='E OOE'!D18 -> 312908.36 | E68: =-D68 -> -312908.36 | F68: =D68+E68 -> 0 | H68: =F68+G68 -> 0 | J68: =H68+I68 -> 0 | L68: =J68+K68 -> 0 | N68: =L68+M68 -> 0 | P68: =N68+O68 -> 0 | R68: =P68+Q68 -> 0 | S68: =ROW() -> 68 | T68: RESIDENTIAL EXCHANGE | V68: =V47 -> -77573434.54 | W68: 77573434.54 | X68: 0 | Y68: 0 | Z68: 0 | AA68: 0 | AB68: 0 | AC68: 0 | AD68: 0 | AE68: 0 | AF68: 0 | SM68: =ROW() -> 68
